Workbook

Sheet Пн День 1 Нед 1
A1: Расход продуктов питания в образовательных учереждениях
D2: Меню с 1 по 4 класс 77,76 РУБ | L2: ИТОГО | M2: Меню с 5 по 11 класс 77,76 РУБ | U2: ИТОГО | V2: Меню на сумму 10,70 РУБ | X2: ИТОГО | Y2: Меню КАШИ НА молоке 28,00 РУБ | AB2: ИТОГО | AC2: Меню СУПА 38,00 РУБ | AF2: ИТОГО | AG2: Меню ЧЕРЕДОВАНИЕ суп/второе 50,00 РУБ | AL2: ИТОГО | AM2: Меню ЧЕРЕДОВАНИЕ суп/второе +КОНДИТЕРКА 53,00 РУБ | AR2: ИТОГО | AS2: ВСЕГО ЗА ДЕНЬ расход продуктов по всем рационам
B3: ДЕНЬ 1 неделя 1 | D3: салат из моркови с яблоками | E3: котлета из мяса птицы | G3: макаронные изд отвар с маслом | H3: компот из сухофруктов | I3: Хлеб пшеничн /ржаной | M3: салат из моркови с яблоками | N3: котлета из мяса кур | P3: макаронные изд отвар с маслом | Q3: компот из сухофруктов | R3: Хлеб пшеничн /ржаной | V3: Печенье | W3: компот из сухофруктов | Y3: каша вязкая гречневая с масл слив | Z3: кисель | AA3: Хлеб ржаной | AC3: Рассольник ленин с кур фрикад со сметаной | AD3: компот из св яблок и изюма | AE3: Хлеб ржаной | AG3: котлета из мяса кур | AI3: макаронные изд отвар с маслом | AJ3: чай с сахаром | AK3: Хлеб пшеничн /ржаной | AM3: котлета из мяса кур | AO3: макаронные изд отвар с маслом | AP3: чай с сахаром | AQ3: Хлеб пшеничн /ржаной
B4: КОЛИЧЕСТВО ДЕТЕЙ | D4: 7-11 | E4: 7-11 | F4: 7-11 | G4: 7-11 | H4: 7-11 | I4: 7-11 | M4: 12-18 | N4: 12-18 | O4: 12-18 | P4: 12-18 | Q4: 12-18 | R4: 12-18 | V4: 12-18 | W4: 12-18 | Y4: 12-18 | Z4: 12-18 | AA4: 12-18 | AC4: 12-18 | AD4: 12-18 | AE4: 12-18 | AG4: 12-18 | AH4: 12-18 | AI4: 12-18 | AJ4: 12-18 | AK4: 12-18 | AM4: 12-18 | AN4: 12-18 | AO4: 12-18 | AP4: 12-18 | AQ4: 12-18
B5: Выход,гр | D5: 60 | E5: 75 | G5: 150/5 | H5: 200 | I5: 0/30 | L5: 1 | M5: 100 | N5: 75 | P5: 180/3 | Q5: 200 | R5: 0/35 | U5: 1 | V5: 20 | W5: 200 | X5: 1 | Y5: 150/3 | Z5: 200 | AA5: 30 | AB5: 1 | AC5: 250/10/5 | AD5: 200 | AE5: 30 | AF5: 1 | AG5: 90 | AI5: 150/5 | AJ5: 190/10 | AK5: 20/20 | AL5: 1 | AM5: 90 | AO5: 150/5 | AP5: 190/10 | AQ5: 20/20 | AS5: =AR5+AL5+AF5+AB5+X5+U5+L5 -> 6
B6: Хлеб
A7: 1 | B7: батон | C7: кг | J7: =(E7+G7+H7+#REF!+D7+I7)*$J$5 ->  | K7: =(F7+G7+H7+#REF!+D7+I7)*$K$5 ->  | L7: =(I7+H7+G7+F7+E7+D7)*$L$5 -> 0.0000 | S7: =(R7+Q7+P7+N7+M7)*$S$5 -> 0.0000 | T7: =(R7+Q7+P7+O7+M7)*$T$5 -> 0.0000 | U7: =(M7+N7+P7+Q7+R7)*$U$5 -> 0.0000 | X7: =(V7+W7)*$X$5 -> 0.0000 | AB7: =(AA7+Z7+Y7)*AB$5 -> 0.0000 | AF7: =(AC7+AD7+AE7)*$AF$5 -> 0.0000 | AL7: =(AG7+AI7+AJ7+AK7)*$AL$5 -> 0.0000 | AR7: =(AQ7+AM7+AO7+AP7)*$AR$5 -> 0.0000 | AS7: =AR7+AF7+AB7+X7+U7+L7+AL7 -> 0.000
A8: 2 | B8: хлеб пшеничный | C8: кг | E8: 0.0140 | J8: =(E8+G8+H8+#REF!+D8+I8)*$J$5 ->  | K8: =(F8+G8+H8+#REF!+D8+I8)*$K$5 ->  | L8: =(I8+H8+G8+F8+E8+D8)*$L$5 -> 0.0140 | N8: 0.0140 | S8: 0.0000 | T8: 0.0000 | U8: =(M8+N8+P8+Q8+R8)*$U$5 -> 0.0140 | X8: =(V8+W8)*$X$5 -> 0.0000 | AB8: =(AA8+Z8+Y8)*AB$5 -> 0.0000 | AF8: =(AC8+AD8+AE8)*$AF$5 -> 0.0000 | AG8: 0.0160 | AK8: 0.0200 | AL8: =(AG8+AI8+AJ8+AK8)*$AL$5 -> 0.0360 | AM8: 0.0160 | AQ8: 0.0200 | AR8: =(AQ8+AM8+AO8+AP8)*$AR$5 -> 0.0000 | AS8: =AR8+AF8+AB8+X8+U8+L8+AL8 -> 0.064
A9: 3 | B9: хлеб ржаной | C9: кг | I9: 0.0300 | J9: =(E9+G9+H9+#REF!+D9+I9)*$J$5 ->  | K9: =(F9+G9+H9+#REF!+D9+I9)*$K$5 ->  | L9: 0.0300 | R9: 0.0350 | S9: 0.0000 | T9: 0.0000 | U9: 0.0350 | X9: 0.0000 | AA9: 0.0300 | AB9: 0.0300 | AE9: 0.0300 | AF9: 0.0300 | AK9: 0.0200 | AL9: 0.0200 | AQ9: 0.0200 | AR9: 0.0000 | AS9: 0.145
A10: 4 | B10: булоч/выпечка готов с х/ком | C10: шт | J10: =(E10+G10+H10+#REF!+D10+I10)*$J$5 ->  | K10: =(F10+G10+H10+#REF!+D10+I10)*$K$5 ->  | L10: 0.0000 | S10: 0.0000 | T10: 0.0000 | U10: 0.0000 | X10: 0.0000 | AB10: 0.0000 | AF10: 0.0000 | AL10: 0.0000 | AR10: 0.0000 | AS10: 0.000
B11: Молочка | J11: =(E11+G11+H11+#REF!+D11+I11)*$J$5 ->  | K11: =(F11+G11+H11+#REF!+D11+I11)*$K$5 ->  | L11: 0.0000 | S11: 0.0000 | T11: 0.0000 | U11: 0.0000 | X11: 0.0000 | AB11: 0.0000 | AF11: 0.0000 | AL11: 0.0000 | AR11: 0.0000 | AS11: 0.000
A12: 5 | B12: молоко 2,5% | C12: кг | J12: =(E12+G12+H12+#REF!+D12+I12)*$J$5 ->  | K12: =(F12+G12+H12+#REF!+D12+I12)*$K$5 ->  | L12: 0.0000 | S12: 0.0000 | T12: 0.0000 | U12: 0.0000 | X12: 0.0000 | Y12: 0.0750 | AB12: 0.0750 | AF12: 0.0000 | AL12: 0.0000 | AR12: 0.0000 | AS12: 0.075
A13: 6 | B13: творог 5% | C13: кг | J13: =(E13+G13+H13+#REF!+D13+I13)*$J$5 ->  | K13: =(F13+G13+H13+#REF!+D13+I13)*$K$5 ->  | L13: 0.0000 | S13: 0.0000 | T13: 0.0000 | U13: 0.0000 | X13: 0.0000 | AB13: 0.0000 | AF13: 0.0000 | AL13: 0.0000 | AR13: 0.0000 | AS13: 0.000
A14: 7 | B14: сметана 15% | C14: кг | J14: =(E14+G14+H14+#REF!+D14+I14)*$J$5 ->  | K14: =(F14+G14+H14+#REF!+D14+I14)*$K$5 ->  | L14: 0.0000 | S14: 0.0000 | T14: 0.0000 | U14: 0.0000 | X14: 0.0000 | AB14: 0.0000 | AC14: 0.0050 | AF14: 0.0050 | AL14: 0.0000 | AR14: 0.0000 | AS14: 0.005
A15: 8 | B15: йогурт фруктов | C15: кг | J15: =(E15+G15+H15+#REF!+D15+I15)*$J$5 ->  | K15: =(F15+G15+H15+#REF!+D15+I15)*$K$5 ->  | L15: 0.0000 | S15: 0.0000 | T15: 0.0000 | U15: 0.0000 | X15: 0.0000 | AB15: 0.0000 | AF15: 0.0000 | AL15: 0.0000 | AR15: 0.0000 | AS15: 0.000
A16: 9 | B16: катык 2,5% | C16: кг | J16: =(E16+G16+H16+#REF!+D16+I16)*$J$5 ->  | K16: =(F16+G16+H16+#REF!+D16+I16)*$K$5 ->  | L16: 0.0000 | S16: 0.0000 | T16: 0.0000 | U16: 0.0000 | X16: 0.0000 | AB16: 0.0000 | AF16: 0.0000 | AL16: 0.0000 | AR16: 0.0000 | AS16: 0.000
A17: 10 | B17: кефир 2,5% | C17: кг | J17: =(E17+G17+H17+#REF!+D17+I17)*$J$5 ->  | K17: =(F17+G17+H17+#REF!+D17+I17)*$K$5 ->  | L17: 0.0000 | S17: 0.0000 | T17: 0.0000 | U17: 0.0000 | X17: 0.0000 | AB17: 0.0000 | AF17: 0.0000 | AL17: 0.0000 | AR17: 0.0000 | AS17: 0.000
A18: 11 | B18: ряженка 2,5% | C18: кг | J18: =(E18+G18+H18+#REF!+D18+I18)*$J$5 ->  | K18: =(F18+G18+H18+#REF!+D18+I18)*$K$5 ->  | L18: 0.0000 | S18: 0.0000 | T18: 0.0000 | U18: 0.0000 | X18: 0.0000 | AB18: 0.0000 | AF18: 0.0000 | AL18: 0.0000 | AR18: 0.0000 | AS18: 0.000
A19: 12 | B19: напиток ацидофильный | C19: кг | J19: =(E19+G19+H19+#REF!+D19+I19)*$J$5 ->  | K19: =(F19+G19+H19+#REF!+D19+I19)*$K$5 ->  | L19: 0.0000 | S19: 0.0000 | T19: 0.0000 | U19: 0.0000 | X19: 0.0000 | AB19: 0.0000 | AF19: 0.0000 | AL19: 0.0000 | AR19: 0.0000 | AS19: 0.000
B20: Масло / сыр | J20: =(E20+G20+H20+#REF!+D20+I20)*$J$5 ->  | K20: =(F20+G20+H20+#REF!+D20+I20)*$K$5 ->  | L20: 0.0000 | S20: 0.0000 | T20: 0.0000 | U20: 0.0000 | X20: 0.0000 | AB20: 0.0000 | AF20: 0.0000 | AL20: 0.0000 | AR20: 0.0000 | AS20: 0.000
A21: 13 | B21: масло растительное | C21: кг | E21: 0.0045 | J21: =(E21+G21+H21+#REF!+D21+I21)*$J$5 ->  | K21: =(F21+G21+H21+#REF!+D21+I21)*$K$5 ->  | L21: 0.0045 | N21: 0.0045 | S21: 0.0000 | T21: 0.0000 | U21: 0.0045 | X21: 0.0000 | AB21: 0.0000 | AC21: 0.0050 | AF21: 0.0050 | AG21: 0.0070 | AL21: 0.0070 | AM21: 0.0070 | AR21: 0.0000 | AS21: 0.021
A22: 14 | B22: масло сливочное | C22: кг | G22: 0.0050 | J22: =(E22+G22+H22+#REF!+D22+I22)*$J$5 ->  | K22: =(F22+G22+H22+#REF!+D22+I22)*$K$5 ->  | L22: 0.0050 | P22: 0.0030 | S22: 0.0000 | T22: 0.0000 | U22: 0.0030 | X22: 0.0000 | Y22: 0.0030 | AB22: 0.0030 | AF22: 0.0000 | AI22: 0.0050 | AL22: 0.0050 | AO22: 0.0050 | AR22: 0.0000 | AS22: 0.016
A23: 15 | B23: сыр голландский | C23: кг | J23: =(E23+G23+H23+#REF!+D23+I23)*$J$5 ->  | K23: =(F23+G23+H23+#REF!+D23+I23)*$K$5 ->  | L23: 0.0000 | S23: 0.0000 | T23: 0.0000 | U23: 0.0000 | X23: 0.0000 | AB23: 0.0000 | AF23: 0.0000 | AL23: 0.0000 | AR23: 0.0000 | AS23: 0.000
B24: Мясо | J24: =(E24+G24+H24+#REF!+D24+I24)*$J$5 ->  | K24: =(F24+G24+H24+#REF!+D24+I24)*$K$5 ->  | L24: 0.0000 | S24: 0.0000 | T24: 0.0000 | U24: 0.0000 | X24: 0.0000 | AB24: 0.0000 | AF24: 0.0000 | AL24: 0.0000 | AR24: 0.0000 | AS24: 0.000
A25: 16 | B25: говядина (котлетное мясо) | C25: кг | J25: =(E25+G25+H25+#REF!+D25+I25)*$J$5 ->  | K25: =(F25+G25+H25+#REF!+D25+I25)*$K$5 ->  | L25: 0.0000 | S25: 0.0000 | T25: 0.0000 | U25: 0.0000 | X25: 0.0000 | AB25: 0.0000 | AF25: 0.0000 | AL25: 0.0000 | AR25: 0.0000 | AS25: 0.000
A26: 17 | B26: фарш говяжий | C26: кг | J26: =(E26+G26+H26+#REF!+D26+I26)*$J$5 ->  | K26: =(F26+G26+H26+#REF!+D26+I26)*$K$5 ->  | L26: 0.0000 | S26: 0.0000 | T26: 0.0000 | U26: 0.0000 | X26: 0.0000 | AB26: 0.0000 | AF26: 0.0000 | AL26: 0.0000 | AR26: 0.0000 | AS26: 0.000
A27: 18 | B27: говядина лопатка б/к | C27: кг | J27: =(E27+G27+H27+#REF!+D27+I27)*$J$5 ->  | K27: =(F27+G27+H27+#REF!+D27+I27)*$K$5 ->  | L27: 0.0000 | S27: 0.0000 | T27: 0.0000 | U27: 0.0000 | X27: 0.0000 | AB27: 0.0000 | AF27: 0.0000 | AL27: 0.0000 | AR27: 0.0000 | AS27: 0.000
A28: 19 | B28: сосиски | C28: кг | J28: =(E28+G28+H28+#REF!+D28+I28)*$J$5 ->  | K28: =(F28+G28+H28+#REF!+D28+I28)*$K$5 ->  | L28: 0.0000 | S28: 0.0000 | T28: 0.0000 | U28: 0.0000 | X28: 0.0000 | AB28: 0.0000 | AF28: 0.0000 | AL28: 0.0000 | AR28: 0.0000 | AS28: 0.000
A29: 20 | B29: колбаса п/к "Халяль" | C29: кг | J29: =(E29+G29+H29+#REF!+D29+I29)*$J$5 ->  | K29: =(F29+G29+H29+#REF!+D29+I29)*$K$5 ->  | L29: 0.0000 | S29: 0.0000 | T29: 0.0000 | U29: 0.0000 | X29: 0.0000 | AB29: 0.0000 | AF29: 0.0000 | AL29: 0.0000 | AR29: 0.0000 | AS29: 0.000
A30: 21 | B30: куриное бедро | C30: кг | J30: =(E30+G30+H30+#REF!+D30+I30)*$J$5 ->  | K30: =(F30+G30+H30+#REF!+D30+I30)*$K$5 ->  | L30: 0.0000 | S30: 0.0000 | T30: 0.0000 | U30: 0.0000 | X30: 0.0000 | AB30: 0.0000 | AF30: 0.0000 | AL30: 0.0000 | AR30: 0.0000 | AS30: 0.000
A31: 22 | B31: куриная грудка | C31: кг | E31: 0.0545 | J31: =(E31+G31+H31+#REF!+D31+I31)*$J$5 ->  | K31: =(F31+G31+H31+#REF!+D31+I31)*$K$5 ->  | L31: 0.0545 | N31: 0.0545 | S31: 0.0000 | T31: 0.0000 | U31: 0.0545 | X31: 0.0000 | AB31: 0.0000 | AC31: 0.0132 | AF31: 0.0132 | AG31: 0.0662 | AL31: 0.0662 | AM31: 0.0662 | AR31: 0.0000 | AS31: 0.188
A32: 23 | B32: куры/цыплята потрош. | C32: кг | J32: =(E32+G32+H32+#REF!+D32+I32)*$J$5 ->  | K32: =(F32+G32+H32+#REF!+D32+I32)*$K$5 ->  | L32: 0.0000 | S32: 0.0000 | T32: 0.0000 | U32: 0.0000 | X32: 0.0000 | AB32: 0.0000 | AF32: 0.0000 | AL32: 0.0000 | AR32: 0.0000 | AS32: 0.000
A33: 24 | B33: фарш куриный | C33: кг | J33: =(E33+G33+H33+#REF!+D33+I33)*$J$5 ->  | K33: =(F33+G33+H33+#REF!+D33+I33)*$K$5 ->  | L33: 0.0000 | S33: 0.0000 | T33: 0.0000 | U33: 0.0000 | X33: 0.0000 | AB33: 0.0000 | AF33: 0.0000 | AL33: 0.0000 | AR33: 0.0000 | AS33: 0.000
A34: 25 | B34: индейка бедро филе | C34: кг | J34: =(E34+G34+H34+#REF!+D34+I34)*$J$5 ->  | K34: =(F34+G34+H34+#REF!+D34+I34)*$K$5 ->  | L34: 0.0000 | S34: 0.0000 | T34: 0.0000 | U34: 0.0000 | X34: 0.0000 | AB34: 0.0000 | AF34: 0.0000 | AL34: 0.0000 | AR34: 0.0000 | AS34: 0.000
A35: 26 | B35: индейка грудка филе | C35: кг | J35: =(E35+G35+H35+#REF!+D35+I35)*$J$5 ->  | K35: =(F35+G35+H35+#REF!+D35+I35)*$K$5 ->  | L35: 0.0000 | S35: 0.0000 | T35: 0.0000 | U35: 0.0000 | X35: 0.0000 | AB35: 0.0000 | AF35: 0.0000 | AL35: 0.0000 | AR35: 0.0000 | AS35: 0.000
B36: Рыба | J36: =(E36+G36+H36+#REF!+D36+I36)*$J$5 ->  | K36: =(F36+G36+H36+#REF!+D36+I36)*$K$5 ->  | L36: 0.0000 | S36: 0.0000 | T36: 0.0000 | U36: 0.0000 | X36: 0.0000 | AB36: 0.0000 | AF36: 0.0000 | AL36: 0.0000 | AR36: 0.0000 | AS36: 0.000
A37: 27 | B37: горбуша ПБГ с/м | C37: кг | J37: =(E37+G37+H37+#REF!+D37+I37)*$J$5 ->  | K37: =(F37+G37+H37+#REF!+D37+I37)*$K$5 ->  | L37: 0.0000 | S37: 0.0000 | T37: 0.0000 | U37: 0.0000 | X37: 0.0000 | AB37: 0.0000 | AF37: 0.0000 | AL37: 0.0000 | AR37: 0.0000 | AS37: 0.000
A38: 28 | B38: минтай б/г с/м | C38: кг | J38: =(E38+G38+H38+#REF!+D38+I38)*$J$5 ->  | K38: =(F38+G38+H38+#REF!+D38+I38)*$K$5 ->  | L38: 0.0000 | S38: 0.0000 | T38: 0.0000 | U38: 0.0000 | X38: 0.0000 | AB38: 0.0000 | AF38: 0.0000 | AL38: 0.0000 | AR38: 0.0000 | AS38: 0.000
A39: 29 | B39: фарш минтая | C39: кг | J39: =(E39+G39+H39+#REF!+D39+I39)*$J$5 ->  | K39: =(F39+G39+H39+#REF!+D39+I39)*$K$5 ->  | L39: 0.0000 | S39: =(R39+Q39+P39+N39+M39)*$S$5 -> 0.0000 | T39: =(R39+Q39+P39+O39+M39)*$T$5 -> 0.0000 | U39: 0.0000 | X39: 0.0000 | AB39: 0.0000 | AF39: 0.0000 | AL39: 0.0000 | AR39: 0.0000 | AS39: 0.000
B40: Сыпучка | J40: =(E40+G40+H40+#REF!+D40+I40)*$J$5 ->  | K40: =(F40+G40+H40+#REF!+D40+I40)*$K$5 ->  | L40: 0.0000 | S40: 0.0000 | T40: 0.0000 | U40: 0.0000 | X40: 0.0000 | AB40: 0.0000 | AF40: 0.0000 | AL40: 0.0000 | AR40: 0.0000 | AS40: 0.000
A41: 30 | B41: вермишель | C41: кг | J41: =(E41+G41+H41+#REF!+D41+I41)*$J$5 ->  | K41: =(F41+G41+H41+#REF!+D41+I41)*$K$5 ->  | L41: 0.0000 | S41: 0.0000 | T41: 0.0000 | U41: 0.0000 | X41: 0.0000 | AB41: 0.0000 | AF41: 0.0000 | AL41: 0.0000 | AR41: 0.0000 | AS41: 0.000
A42: 31 | B42: геркулес | C42: кг | J42: =(E42+G42+H42+#REF!+D42+I42)*$J$5 ->  | K42: =(F42+G42+H42+#REF!+D42+I42)*$K$5 ->  | L42: 0.0000 | S42: 0.0000 | T42: 0.0000 | U42: 0.0000 | X42: 0.0000 | AB42: 0.0000 | AF42: 0.0000 | AL42: 0.0000 | AR42: 0.0000 | AS42: 0.000
A43: 32 | B43: горох | C43: кг | J43: =(E43+G43+H43+#REF!+D43+I43)*$J$5 ->  | K43: =(F43+G43+H43+#REF!+D43+I43)*$K$5 ->  | L43: 0.0000 | S43: 0.0000 | T43: 0.0000 | U43: 0.0000 | X43: 0.0000 | AB43: 0.0000 | AF43: 0.0000 | AL43: 0.0000 | AR43: 0.0000 | AS43: 0.000
A44: 33 | B44: гречневая крупа | C44: кг | J44: =(E44+G44+H44+#REF!+D44+I44)*$J$5 ->  | K44: =(F44+G44+H44+#REF!+D44+I44)*$K$5 ->  | L44: 0.0000 | S44: 0.0000 | T44: 0.0000 | U44: 0.0000 | X44: 0.0000 | Y44: 0.0375 | AB44: 0.0375 | AF44: 0.0000 | AL44: 0.0000 | AR44: 0.0000 | AS44: 0.038
A45: 34 | B45: кукурузная крупа | C45: кг | J45: =(E45+G45+H45+#REF!+D45+I45)*$J$5 ->  | K45: =(F45+G45+H45+#REF!+D45+I45)*$K$5 ->  | L45: 0.0000 | S45: 0.0000 | T45: 0.0000 | U45: 0.0000 | X45: 0.0000 | AB45: 0.0000 | AF45: 0.0000 | AL45: 0.0000 | AR45: 0.0000 | AS45: 0.000
A46: 35 | B46: макаронные изделия | C46: кг | G46: 0.0610 | J46: =(E46+G46+H46+#REF!+D46+I46)*$J$5 ->  | K46: =(F46+G46+H46+#REF!+D46+I46)*$K$5 ->  | L46: 0.0610 | P46: 0.0732 | S46: 0.0000 | T46: 0.0000 | U46: 0.0732 | X46: 0.0000 | AB46: 0.0000 | AF46: 0.0000 | AI46: 0.0610 | AL46: 0.0610 | AO46: 0.0610 | AR46: 0.0000 | AS46: 0.195
A47: 36 | B47: манная крупа | C47: кг | J47: =(E47+G47+H47+#REF!+D47+I47)*$J$5 ->  | K47: =(F47+G47+H47+#REF!+D47+I47)*$K$5 ->  | L47: 0.0000 | S47: 0.0000 | T47: 0.0000 | U47: 0.0000 | X47: 0.0000 | AB47: 0.0000 | AF47: 0.0000 | AL47: 0.0000 | AR47: 0.0000 | AS47: 0.000
A48: 37 | B48: перловая крупа | C48: кг | J48: =(E48+G48+H48+#REF!+D48+I48)*$J$5 ->  | K48: =(F48+G48+H48+#REF!+D48+I48)*$K$5 ->  | L48: 0.0000 | S48: 0.0000 | T48: 0.0000 | U48: 0.0000 | X48: 0.0000 | AB48: 0.0000 | AC48: 0.0050 | AF48: 0.0050 | AL48: 0.0000 | AR48: 0.0000 | AS48: 0.005
A49: 38 | B49: полбяная крупа | C49: кг | J49: =(E49+G49+H49+#REF!+D49+I49)*$J$5 ->  | K49: =(F49+G49+H49+#REF!+D49+I49)*$K$5 ->  | L49: 0.0000 | S49: 0.0000 | T49: 0.0000 | U49: 0.0000 | X49: 0.0000 | AB49: 0.0000 | AF49: 0.0000 | AL49: 0.0000 | AR49: 0.0000 | AS49: 0.000
A50: 39 | B50: пшеничная крупа | C50: кг | J50: =(E50+G50+H50+#REF!+D50+I50)*$J$5 ->  | K50: =(F50+G50+H50+#REF!+D50+I50)*$K$5 ->  | L50: 0.0000 | S50: 0.0000 | T50: 0.0000 | U50: 0.0000 | X50: 0.0000 | AB50: 0.0000 | AF50: 0.0000 | AL50: 0.0000 | AR50: 0.0000 | AS50: 0.000
A51: 40 | B51: пшено | C51: кг | J51: =(E51+G51+H51+#REF!+D51+I51)*$J$5 ->  | K51: =(F51+G51+H51+#REF!+D51+I51)*$K$5 ->  | L51: 0.0000 | S51: 0.0000 | T51: 0.0000 | U51: 0.0000 | X51: 0.0000 | AB51: 0.0000 | AF51: 0.0000 | AL51: 0.0000 | AR51: 0.0000 | AS51: 0.000
A52: 41 | B52: рис | C52: кг | J52: =(E52+G52+H52+#REF!+D52+I52)*$J$5 ->  | K52: =(F52+G52+H52+#REF!+D52+I52)*$K$5 ->  | L52: 0.0000 | S52: 0.0000 | T52: 0.0000 | U52: 0.0000 | X52: 0.0000 | AB52: 0.0000 | AF52: 0.0000 | AL52: 0.0000 | AR52: 0.0000 | AS52: 0.000
A53: 42 | B53: яневая крупа | C53: кг | J53: =(E53+G53+H53+#REF!+D53+I53)*$J$5 ->  | K53: =(F53+G53+H53+#REF!+D53+I53)*$K$5 ->  | L53: 0.0000 | S53: 0.0000 | T53: 0.0000 | U53: 0.0000 | X53: 0.0000 | AB53: 0.0000 | AF53: 0.0000 | AL53: 0.0000 | AR53: 0.0000 | AS53: 0.000
A54: 43 | B54: лапша домашняя п/ф | C54: кг | J54: =(E54+G54+H54+#REF!+D54+I54)*$J$5 ->  | K54: =(F54+G54+H54+#REF!+D54+I54)*$K$5 ->  | L54: 0.0000 | S54: 0.0000 | T54: 0.0000 | U54: 0.0000 | X54: 0.0000 | AB54: 0.0000 | AF54: 0.0000 | AL54: 0.0000 | AR54: 0.0000 | AS54: 0.000
A55: 44 | B55: мука пшеничная в/с | C55: кг | J55: =(E55+G55+H55+#REF!+D55+I55)*$J$5 ->  | K55: =(F55+G55+H55+#REF!+D55+I55)*$K$5 ->  | L55: 0.0000 | S55: 0.0000 | T55: 0.0000 | U55: 0.0000 | X55: 0.0000 | AB55: 0.0000 | AF55: 0.0000 | AL55: 0.0000 | AR55: 0.0000 | AS55: 0.000
A56: 45 | B56: сахарный песок | C56: кг | D56: 0.0006 | H56: 0.0100 | J56: =(E56+G56+H56+#REF!+D56+I56)*$J$5 ->  | K56: =(F56+G56+H56+#REF!+D56+I56)*$K$5 ->  | L56: 0.0106 | M56: 0.0010 | Q56: 0.0100 | S56: 0.0000 | T56: 0.0000 | U56: 0.0110 | W56: 0.0100 | X56: 0.0100 | Z56: 0.0100 | AB56: 0.0100 | AD56: 0.0060 | AF56: 0.0060 | AJ56: 0.0100 | AL56: 0.0100 | AP56: 0.0100 | AR56: 0.0000 | AS56: 0.058
A57: 46 | B57: соль | C57: кг | E57: 0.0005 | G57: 0.0005 | J57: =(E57+G57+H57+#REF!+D57+I57)*$J$5 ->  | K57: =(F57+G57+H57+#REF!+D57+I57)*$K$5 ->  | L57: 0.0010 | N57: 0.0005 | P57: 0.0006 | S57: 0.0000 | T57: 0.0000 | U57: 0.0011 | X57: 0.0000 | Y57: 0.0003 | AB57: 0.0003 | AC57: 0.0009 | AF57: 0.0009 | AG57: 0.0006 | AI57: 0.0005 | AL57: 0.0011 | AM57: 0.0006 | AO57: 0.0005 | AR57: 0.0000 | AS57: 0.004
A58: 47 | B58: сухари панировочные | C58: кг | E58: 0.0075 | J58: =(E58+G58+H58+#REF!+D58+I58)*$J$5 ->  | K58: =(F58+G58+H58+#REF!+D58+I58)*$K$5 ->  | L58: 0.0075 | N58: 0.0075 | S58: 0.0000 | T58: 0.0000 | U58: 0.0075 | X58: 0.0000 | AB58: 0.0000 | AF58: 0.0000 | AG58: 0.0090 | AL58: 0.0090 | AM58: 0.0090 | AR58: 0.0000 | AS58: 0.024
A59: 48 | B59: дрожжи сухие | C59: кг | J59: =(E59+G59+H59+#REF!+D59+I59)*$J$5 ->  | K59: =(F59+G59+H59+#REF!+D59+I59)*$K$5 ->  | L59: 0.0000 | S59: 0.0000 | T59: 0.0000 | U59: 0.0000 | X59: 0.0000 | AB59: 0.0000 | AF59: 0.0000 | AL59: 0.0000 | AR59: 0.0000 | AS59: 0.000
A60: 49 | B60: хлебцы | C60: кг | J60: =(E60+G60+H60+#REF!+D60+I60)*$J$5 ->  | K60: =(F60+G60+H60+#REF!+D60+I60)*$K$5 ->  | L60: 0.0000 | S60: 0.0000 | T60: 0.0000 | U60: 0.0000 | X60: 0.0000 | AB60: 0.0000 | AF60: 0.0000 | AL60: 0.0000 | AR60: 0.0000 | AS60: 0.000
B61: Консервы | J61: =(E61+G61+H61+#REF!+D61+I61)*$J$5 ->  | K61: =(F61+G61+H61+#REF!+D61+I61)*$K$5 ->  | L61: 0.0000 | S61: 0.0000 | T61: 0.0000 | U61: 0.0000 | X61: 0.0000 | AB61: 0.0000 | AF61: 0.0000 | AL61: 0.0000 | AR61: 0.0000 | AS61: 0.000
A62: 50 | B62: зеленый горошек к/с | C62: кг | J62: =(E62+G62+H62+#REF!+D62+I62)*$J$5 ->  | K62: =(F62+G62+H62+#REF!+D62+I62)*$K$5 ->  | L62: 0.0000 | S62: 0.0000 | T62: 0.0000 | U62: 0.0000 | X62: 0.0000 | AB62: 0.0000 | AF62: 0.0000 | AL62: 0.0000 | AR62: 0.0000 | AS62: 0.000
A63: 51 | B63: кукуруза к/с | C63: кг | J63: =(E63+G63+H63+#REF!+D63+I63)*$J$5 ->  | K63: =(F63+G63+H63+#REF!+D63+I63)*$K$5 ->  | L63: 0.0000 | S63: 0.0000 | T63: 0.0000 | U63: 0.0000 | X63: 0.0000 | AB63: 0.0000 | AF63: 0.0000 | AL63: 0.0000 | AR63: 0.0000 | AS63: 0.000
A64: 52 | B64: фасоль к/с | C64: кг | J64: =(E64+G64+H64+#REF!+D64+I64)*$J$5 ->  | K64: =(F64+G64+H64+#REF!+D64+I64)*$K$5 ->  | L64: 0.0000 | S64: 0.0000 | T64: 0.0000 | U64: 0.0000 | X64: 0.0000 | AB64: 0.0000 | AF64: 0.0000 | AL64: 0.0000 | AR64: 0.0000 | AS64: 0.000
A65: 53 | B65: икра кабачк/икра баклажан | C65: кг | J65: =(E65+G65+H65+#REF!+D65+I65)*$J$5 ->  | K65: =(F65+G65+H65+#REF!+D65+I65)*$K$5 ->  | L65: 0.0000 | S65: 0.0000 | T65: 0.0000 | U65: 0.0000 | X65: 0.0000 | AB65: 0.0000 | AF65: 0.0000 | AL65: 0.0000 | AR65: 0.0000 | AS65: 0.000
A66: 54 | B66: капуста морская сушеная | C66: кг | J66: =(E66+G66+H66+#REF!+D66+I66)*$J$5 ->  | K66: =(F66+G66+H66+#REF!+D66+I66)*$K$5 ->  | L66: 0.0000 | S66: 0.0000 | T66: 0.0000 | U66: 0.0000 | X66: 0.0000 | AB66: 0.0000 | AF66: 0.0000 | AL66: 0.0000 | AR66: 0.0000 | AS66: 0.000
A67: 55 | B67: квашеная капуста | C67: кг | J67: =(E67+G67+H67+#REF!+D67+I67)*$J$5 ->  | K67: =(F67+G67+H67+#REF!+D67+I67)*$K$5 ->  | L67: 0.0000 | S67: 0.0000 | T67: 0.0000 | U67: 0.0000 | X67: 0.0000 | AB67: 0.0000 | AF67: 0.0000 | AL67: 0.0000 | AR67: 0.0000 | AS67: 0.000
A68: 56 | B68: молоко сгущенное | C68: кг | J68: =(E68+G68+H68+#REF!+D68+I68)*$J$5 ->  | K68: =(F68+G68+H68+#REF!+D68+I68)*$K$5 ->  | L68: 0.0000 | S68: 0.0000 | T68: 0.0000 | U68: 0.0000 | X68: 0.0000 | AB68: 0.0000 | AF68: 0.0000 | AL68: 0.0000 | AR68: 0.0000 | AS68: 0.000
A69: 57 | B69: огурцы соленые | C69: кг | J69: =(E69+G69+H69+#REF!+D69+I69)*$J$5 ->  | K69: =(F69+G69+H69+#REF!+D69+I69)*$K$5 ->  | L69: 0.0000 | S69: 0.0000 | T69: 0.0000 | U69: 0.0000 | X69: 0.0000 | AB69: 0.0000 | AC69: 0.0273 | AF69: 0.0273 | AL69: 0.0000 | AR69: 0.0000 | AS69: 0.027
A70: 58 | B70: повидло | C70: кг | J70: =(E70+G70+H70+#REF!+D70+I70)*$J$5 ->  | K70: =(F70+G70+H70+#REF!+D70+I70)*$K$5 ->  | L70: 0.0000 | S70: 0.0000 | T70: 0.0000 | U70: 0.0000 | X70: 0.0000 | AB70: 0.0000 | AF70: 0.0000 | AL70: 0.0000 | AR70: 0.0000 | AS70: 0.000
A71: 59 | B71: томатная паста | C71: кг | J71: =(E71+G71+H71+#REF!+D71+I71)*$J$5 ->  | K71: =(F71+G71+H71+#REF!+D71+I71)*$K$5 ->  | L71: 0.0000 | S71: =(R71+Q71+P71+N71+M71)*$S$5 -> 0.0000 | T71: =(R71+Q71+P71+O71+M71)*$T$5 -> 0.0000 | U71: 0.0000 | X71: 0.0000 | AB71: 0.0000 | AF71: 0.0000 | AL71: 0.0000 | AR71: 0.0000 | AS71: 0.000
A72: 60 | B72: рыбные консервы | C72: кг | J72: =(E72+G72+H72+#REF!+D72+I72)*$J$5 ->  | K72: =(F72+G72+H72+#REF!+D72+I72)*$K$5 ->  | L72: =(I72+H72+G72+F72+E72+D72)*$L$5 -> 0.0000 | S72: 0.0000 | T72: 0.0000 | U72: =(M72+N72+P72+Q72+R72)*$U$5 -> 0.0000 | X72: =(V72+W72)*$X$5 -> 0.0000 | AB72: =(AA72+Z72+Y72)*AB$5 -> 0.0000 | AF72: =(AC72+AD72+AE72)*$AF$5 -> 0.0000 | AL72: =(AG72+AI72+AJ72+AK72)*$AL$5 -> 0.0000 | AR72: =(AQ72+AM72+AO72+AP72)*$AR$5 -> 0.0000 | AS72: =AR72+AF72+AB72+X72+U72+L72+AL72 -> 0.000
B73: Напитки | J73: =(E73+G73+H73+#REF!+D73+I73)*$J$5 ->  | K73: =(F73+G73+H73+#REF!+D73+I73)*$K$5 ->  | L73: 0.0000 | S73: 0.0000 | T73: 0.0000 | U73: 0.0000 | X73: 0.0000 | AB73: 0.0000 | AF73: 0.0000 | AL73: 0.0000 | AR73: 0.0000 | AS73: 0.000
A74: 61 | B74: чай весовой | C74: кг | J74: =(E74+G74+H74+#REF!+D74+I74)*$J$5 ->  | K74: =(F74+G74+H74+#REF!+D74+I74)*$K$5 ->  | L74: 0.0000 | S74: 0.0000 | T74: 0.0000 | U74: 0.0000 | X74: 0.0000 | AB74: 0.0000 | AF74: 0.0000 | AJ74: 0.0005 | AL74: 0.0005 | AP74: 0.0005 | AR74: 0.0000 | AS74: 0.001
A75: 62 | B75: какао | C75: кг | J75: =(E75+G75+H75+#REF!+D75+I75)*$J$5 ->  | K75: =(F75+G75+H75+#REF!+D75+I75)*$K$5 ->  | L75: 0.0000 | S75: 0.0000 | T75: 0.0000 | U75: 0.0000 | X75: 0.0000 | AB75: 0.0000 | AF75: 0.0000 | AL75: 0.0000 | AR75: 0.0000 | AS75: 0.000
A76: 63 | B76: кисель | C76: кг | J76: =(E76+G76+H76+#REF!+D76+I76)*$J$5 ->  | K76: =(F76+G76+H76+#REF!+D76+I76)*$K$5 ->  | L76: 0.0000 | S76: 0.0000 | T76: 0.0000 | U76: 0.0000 | X76: 0.0000 | Z76: 0.0240 | AB76: 0.0240 | AF76: 0.0000 | AL76: 0.0000 | AR76: 0.0000 | AS76: 0.024
A77: 64 | B77: кофейный напиток | C77: кг | J77: =(E77+G77+H77+#REF!+D77+I77)*$J$5 ->  | K77: =(F77+G77+H77+#REF!+D77+I77)*$K$5 ->  | L77: 0.0000 | S77: 0.0000 | T77: 0.0000 | U77: 0.0000 | X77: 0.0000 | AB77: 0.0000 | AF77: 0.0000 | AL77: 0.0000 | AR77: 0.0000 | AS77: 0.000
A78: 65 | B78: цикорий | C78: кг | J78: =(E78+G78+H78+#REF!+D78+I78)*$J$5 ->  | K78: =(F78+G78+H78+#REF!+D78+I78)*$K$5 ->  | L78: 0.0000 | S78: 0.0000 | T78: 0.0000 | U78: 0.0000 | X78: 0.0000 | AB78: 0.0000 | AF78: 0.0000 | AL78: 0.0000 | AR78: 0.0000 | AS78: 0.000
B79: Сухофрукты | J79: =(E79+G79+H79+#REF!+D79+I79)*$J$5 ->  | K79: =(F79+G79+H79+#REF!+D79+I79)*$K$5 ->  | L79: 0.0000 | S79: 0.0000 | T79: 0.0000 | U79: 0.0000 | X79: 0.0000 | AB79: 0.0000 | AF79: 0.0000 | AL79: 0.0000 | AR79: 0.0000 | AS79: 0.000
A80: 66 | B80: ассорти для компота (сухофрукты) | C80: кг | H80: 0.0204 | J80: =(E80+G80+H80+#REF!+D80+I80)*$J$5 ->  | K80: =(F80+G80+H80+#REF!+D80+I80)*$K$5 ->  | L80: 0.0204 | Q80: 0.0204 | S80: 0.0000 | T80: 0.0000 | U80: 0.0204 | W80: 0.0204 | X80: 0.0204 | AB80: 0.0000 | AF80: 0.0000 | AL80: 0.0000 | AR80: 0.0000 | AS80: 0.061
A81: 67 | B81: изюм | C81: кг | J81: =(E81+G81+H81+#REF!+D81+I81)*$J$5 ->  | K81: =(F81+G81+H81+#REF!+D81+I81)*$K$5 ->  | L81: 0.0000 | S81: 0.0000 | T81: 0.0000 | U81: 0.0000 | X81: 0.0000 | AB81: 0.0000 | AD81: 0.0102 | AF81: 0.0102 | AL81: 0.0000 | AR81: 0.0000 | AS81: 0.010
A82: 68 | B82: курага | C82: кг | J82: =(E82+G82+H82+#REF!+D82+I82)*$J$5 ->  | K82: =(F82+G82+H82+#REF!+D82+I82)*$K$5 ->  | L82: 0.0000 | S82: 0.0000 | T82: 0.0000 | U82: 0.0000 | X82: 0.0000 | AB82: 0.0000 | AF82: 0.0000 | AL82: 0.0000 | AR82: 0.0000 | AS82: 0.000
A83: 69 | B83: урюк | C83: кг | J83: =(E83+G83+H83+#REF!+D83+I83)*$J$5 ->  | K83: =(F83+G83+H83+#REF!+D83+I83)*$K$5 ->  | L83: 0.0000 | S83: 0.0000 | T83: 0.0000 | U83: 0.0000 | X83: 0.0000 | AB83: 0.0000 | AF83: 0.0000 | AL83: 0.0000 | AR83: 0.0000 | AS83: 0.000
A84: 70 | B84: шиповник | C84: кг | J84: =(E84+G84+H84+#REF!+D84+I84)*$J$5 ->  | K84: =(F84+G84+H84+#REF!+D84+I84)*$K$5 ->  | L84: 0.0000 | S84: 0.0000 | T84: 0.0000 | U84: 0.0000 | X84: 0.0000 | AB84: 0.0000 | AF84: 0.0000 | AL84: 0.0000 | AR84: 0.0000 | AS84: 0.000
A85: 71 | B85: компотная смесь с/м | C85: кг | J85: =(E85+G85+H85+#REF!+D85+I85)*$J$5 ->  | K85: =(F85+G85+H85+#REF!+D85+I85)*$K$5 ->  | L85: 0.0000 | S85: 0.0000 | T85: 0.0000 | U85: 0.0000 | X85: 0.0000 | AB85: 0.0000 | AF85: 0.0000 | AL85: 0.0000 | AR85: 0.0000 | AS85: 0.000
A86: 72 | B86: вишня с/м | C86: кг | J86: =(E86+G86+H86+#REF!+D86+I86)*$J$5 ->  | K86: =(F86+G86+H86+#REF!+D86+I86)*$K$5 ->  | L86: 0.0000 | S86: 0.0000 | T86: 0.0000 | U86: 0.0000 | X86: 0.0000 | AB86: 0.0000 | AF86: 0.0000 | AL86: 0.0000 | AR86: 0.0000 | AS86: 0.000
A87: 73 | B87: клюква с/м | C87: кг | J87: =(E87+G87+H87+#REF!+D87+I87)*$J$5 ->  | K87: =(F87+G87+H87+#REF!+D87+I87)*$K$5 ->  | L87: 0.0000 | S87: 0.0000 | T87: 0.0000 | U87: 0.0000 | X87: 0.0000 | AB87: 0.0000 | AF87: 0.0000 | AL87: 0.0000 | AR87: 0.0000 | AS87: 0.000
A88: 74 | B88: смородина в ассорт с/м | C88: кг | J88: =(E88+G88+H88+#REF!+D88+I88)*$J$5 ->  | K88: =(F88+G88+H88+#REF!+D88+I88)*$K$5 ->  | L88: 0.0000 | S88: 0.0000 | T88: 0.0000 | U88: 0.0000 | X88: 0.0000 | AB88: 0.0000 | AF88: 0.0000 | AL88: 0.0000 | AR88: 0.0000 | AS88: 0.000
A89: 75 | B89: облепиха с/м | C89: кг | J89: =(E89+G89+H89+#REF!+D89+I89)*$J$5 ->  | K89: =(F89+G89+H89+#REF!+D89+I89)*$K$5 ->  | L89: 0.0000 | S89: 0.0000 | T89: 0.0000 | U89: 0.0000 | X89: 0.0000 | AB89: 0.0000 | AF89: 0.0000 | AL89: 0.0000 | AR89: 0.0000 | AS89: 0.000
B90: Сок | J90: =(E90+G90+H90+#REF!+D90+I90)*$J$5 ->  | K90: =(F90+G90+H90+#REF!+D90+I90)*$K$5 ->  | L90: 0.0000 | S90: 0.0000 | T90: 0.0000 | U90: 0.0000 | X90: 0.0000 | AB90: 0.0000 | AF90: 0.0000 | AL90: 0.0000 | AR90: 0.0000 | AS90: 0.000
A91: 76 | B91: сок 0,125л или 0,2л | C91: л | J91: =(E91+G91+H91+#REF!+D91+I91)*$J$5 ->  | K91: =(F91+G91+H91+#REF!+D91+I91)*$K$5 ->  | L91: 0.0000 | S91: 0.0000 | T91: 0.0000 | U91: 0.0000 | X91: 0.0000 | AB91: 0.0000 | AF91: 0.0000 | AL91: 0.0000 | AR91: 0.0000 | AS91: 0.000
A92: 77 | B92: нектоар плодовый | C92: л | J92: =(E92+G92+H92+#REF!+D92+I92)*$J$5 ->  | K92: =(F92+G92+H92+#REF!+D92+I92)*$K$5 ->  | L92: 0.0000 | S92: 0.0000 | T92: 0.0000 | U92: 0.0000 | X92: 0.0000 | AB92: 0.0000 | AF92: 0.0000 | AL92: 0.0000 | AR92: 0.0000 | AS92: 0.000
B93: Кондитерка | J93: =(E93+G93+H93+#REF!+D93+I93)*$J$5 ->  | K93: =(F93+G93+H93+#REF!+D93+I93)*$K$5 ->  | L93: 0.0000 | S93: 0.0000 | T93: 0.0000 | U93: 0.0000 | X93: 0.0000 | AB93: 0.0000 | AF93: 0.0000 | AL93: 0.0000 | AR93: 0.0000 | AS93: 0.000
A94: 78 | B94: батончик злаковый | C94: шт | J94: =(E94+G94+H94+#REF!+D94+I94)*$J$5 ->  | K94: =(F94+G94+H94+#REF!+D94+I94)*$K$5 ->  | L94: 0.0000 | S94: 0.0000 | T94: 0.0000 | U94: 0.0000 | X94: 0.0000 | AB94: 0.0000 | AF94: 0.0000 | AL94: 0.0000 | AR94: 0.0000 | AS94: 0.000
A95: 79 | B95: пряник | C95: кг | J95: =(E95+G95+H95+#REF!+D95+I95)*$J$5 ->  | K95: =(F95+G95+H95+#REF!+D95+I95)*$K$5 ->  | L95: 0.0000 | S95: 0.0000 | T95: 0.0000 | U95: 0.0000 | X95: 0.0000 | AB95: 0.0000 | AF95: 0.0000 | AL95: 0.0000 | AR95: 0.0000 | AS95: 0.000
A96: 80 | B96: вафли | C96: кг | J96: =(E96+G96+H96+#REF!+D96+I96)*$J$5 ->  | K96: =(F96+G96+H96+#REF!+D96+I96)*$K$5 ->  | L96: 0.0000 | S96: 0.0000 | T96: 0.0000 | U96: 0.0000 | X96: 0.0000 | AB96: 0.0000 | AF96: 0.0000 | AL96: 0.0000 | AR96: 0.0000 | AS96: 0.000
A97: 81 | B97: печенье | C97: кг | J97: =(E97+G97+H97+#REF!+D97+I97)*$J$5 ->  | K97: =(F97+G97+H97+#REF!+D97+I97)*$K$5 ->  | L97: 0.0000 | S97: 0.0000 | T97: 0.0000 | U97: 0.0000 | V97: 0.0200 | X97: 0.0200 | AB97: 0.0000 | AF97: 0.0000 | AL97: 0.0000 | AR97: 0.0000 | AS97: 0.020
A98: 82 | B98: крекер | C98: кг | J98: =(E98+G98+H98+#REF!+D98+I98)*$J$5 ->  | K98: =(F98+G98+H98+#REF!+D98+I98)*$K$5 ->  | L98: 0.0000 | S98: 0.0000 | T98: 0.0000 | U98: 0.0000 | X98: 0.0000 | AB98: 0.0000 | AF98: 0.0000 | AL98: 0.0000 | AR98: 0.0000 | AS98: 0.000
A99: 83 | B99: сушки | C99: кг | J99: =(E99+G99+H99+#REF!+D99+I99)*$J$5 ->  | K99: =(F99+G99+H99+#REF!+D99+I99)*$K$5 ->  | L99: 0.0000 | S99: 0.0000 | T99: 0.0000 | U99: 0.0000 | X99: 0.0000 | AB99: 0.0000 | AF99: 0.0000 | AL99: 0.0000 | AR99: 0.0000 | AS99: 0.000
A100: 84 | B100: мармелад | C100: кг | J100: =(E100+G100+H100+#REF!+D100+I100)*$J$5 ->  | K100: =(F100+G100+H100+#REF!+D100+I100)*$K$5 ->  | L100: 0.0000 | S100: 0.0000 | T100: 0.0000 | U100: 0.0000 | X100: 0.0000 | AB100: 0.0000 | AF100: 0.0000 | AL100: 0.0000 | AR100: 0.0000 | AS100: 0.000
A101: 85 | B101: блины п/ф | C101: кг | J101: =(E101+G101+H101+#REF!+D101+I101)*$J$5 ->  | K101: =(F101+G101+H101+#REF!+D101+I101)*$K$5 ->  | L101: 0.0000 | S101: 0.0000 | T101: 0.0000 | U101: 0.0000 | X101: 0.0000 | AB101: 0.0000 | AF101: 0.0000 | AL101: 0.0000 | AR101: 0.0000 | AS101: 0.000
A102: 86 | B102: выпечка п/ф со склада | C102: шт | J102: =(E102+G102+H102+#REF!+D102+I102)*$J$5 ->  | K102: =(F102+G102+H102+#REF!+D102+I102)*$K$5 ->  | L102: 0.0000 | S102: 0.0000 | T102: 0.0000 | U102: 0.0000 | X102: 0.0000 | AB102: 0.0000 | AF102: 0.0000 | AL102: 0.0000 | AR102: 0.0000 | AS102: 0.000
B103: Яйцо | J103: =(E103+G103+H103+#REF!+D103+I103)*$J$5 ->  | K103: =(F103+G103+H103+#REF!+D103+I103)*$K$5 ->  | L103: 0.0000 | S103: =(R103+Q103+P103+N103+M103)*$S$5 -> 0.0000 | T103: =(R103+Q103+P103+O103+M103)*$T$5 -> 0.0000 | U103: 0.0000 | X103: 0.0000 | AB103: 0.0000 | AF103: 0.0000 | AL103: 0.0000 | AR103: 0.0000 | AS103: 0.000
A104: 87 | B104: яйцо куриное | C104: кг | J104: =(E104+G104+H104+#REF!+D104+I104)*$J$5 ->  | K104: =(F104+G104+H104+#REF!+D104+I104)*$K$5 ->  | L104: 0.0000 | S104: 0.0000 | T104: 0.0000 | U104: 0.0000 | X104: 0.0000 | AB104: 0.0000 | AC104: 0.0010 | AF104: 0.0010 | AL104: 0.0000 | AR104: 0.0000 | AS104: 0.001
B105: 0.048 | C105: шт | J105: =(E105+G105+H105+#REF!+D105+I105)*$J$5 ->  | K105: =(F105+G105+H105+#REF!+D105+I105)*$K$5 ->  | L105: 0.0000 | S105: 0.0000 | T105: 0.0000 | U105: 0.0000 | X105: 0.0000 | AB105: 0.0000 | AF105: 0.0000 | AL105: 0.0000 | AR105: 0.0000 | AS105: 0.000
B106: Овощи заморозка | J106: =(E106+G106+H106+#REF!+D106+I106)*$J$5 ->  | K106: =(F106+G106+H106+#REF!+D106+I106)*$K$5 ->  | L106: 0.0000 | S106: 0.0000 | T106: 0.0000 | U106: 0.0000 | X106: 0.0000 | AB106: 0.0000 | AF106: 0.0000 | AL106: 0.0000 | AR106: 0.0000 | AS106: 0.000
A107: 88 | B107: зеленый горошек с/м | C107: кг | J107: =(E107+G107+H107+#REF!+D107+I107)*$J$5 ->  | K107: =(F107+G107+H107+#REF!+D107+I107)*$K$5 ->  | L107: 0.0000 | S107: 0.0000 | T107: 0.0000 | U107: 0.0000 | X107: 0.0000 | AB107: 0.0000 | AF107: 0.0000 | AL107: 0.0000 | AR107: 0.0000 | AS107: 0.000
A108: 89 | B108: кабачки с/м | C108: кг | J108: =(E108+G108+H108+#REF!+D108+I108)*$J$5 ->  | K108: =(F108+G108+H108+#REF!+D108+I108)*$K$5 ->  | L108: 0.0000 | S108: 0.0000 | T108: 0.0000 | U108: 0.0000 | X108: 0.0000 | AB108: 0.0000 | AF108: 0.0000 | AL108: 0.0000 | AR108: 0.0000 | AS108: 0.000
A109: 90 | B109: мексиканс смесь с/м | C109: кг | J109: =(E109+G109+H109+#REF!+D109+I109)*$J$5 ->  | K109: =(F109+G109+H109+#REF!+D109+I109)*$K$5 ->  | L109: 0.0000 | S109: 0.0000 | T109: 0.0000 | U109: 0.0000 | X109: 0.0000 | AB109: 0.0000 | AF109: 0.0000 | AL109: 0.0000 | AR109: 0.0000 | AS109: 0.000
A110: 91 | B110: капуста цветная с/м | C110: кг | J110: =(E110+G110+H110+#REF!+D110+I110)*$J$5 ->  | K110: =(F110+G110+H110+#REF!+D110+I110)*$K$5 ->  | L110: 0.0000 | S110: 0.0000 | T110: 0.0000 | U110: 0.0000 | X110: 0.0000 | AB110: 0.0000 | AF110: 0.0000 | AL110: 0.0000 | AR110: 0.0000 | AS110: 0.000
A111: 92 | B111: брокколи с/м | C111: кг | J111: =(E111+G111+H111+#REF!+D111+I111)*$J$5 ->  | K111: =(F111+G111+H111+#REF!+D111+I111)*$K$5 ->  | L111: 0.0000 | S111: 0.0000 | T111: 0.0000 | U111: 0.0000 | X111: 0.0000 | AB111: 0.0000 | AF111: 0.0000 | AL111: 0.0000 | AR111: 0.0000 | AS111: 0.000
A112: 93 | B112: кукуруза с/м | C112: кг | J112: =(E112+G112+H112+#REF!+D112+I112)*$J$5 ->  | K112: =(F112+G112+H112+#REF!+D112+I112)*$K$5 ->  | L112: 0.0000 | S112: 0.0000 | T112: 0.0000 | U112: 0.0000 | X112: 0.0000 | AB112: 0.0000 | AF112: 0.0000 | AL112: 0.0000 | AR112: 0.0000 | AS112: 0.000
A113: 94 | B113: фасоль стручковая с/м | C113: кг | J113: =(E113+G113+H113+#REF!+D113+I113)*$J$5 ->  | K113: =(F113+G113+H113+#REF!+D113+I113)*$K$5 ->  | L113: 0.0000 | S113: 0.0000 | T113: 0.0000 | U113: 0.0000 | X113: 0.0000 | AB113: 0.0000 | AF113: 0.0000 | AL113: 0.0000 | AR113: 0.0000 | AS113: 0.000
B114: Фрукты | J114: =(E114+G114+H114+#REF!+D114+I114)*$J$5 ->  | K114: =(F114+G114+H114+#REF!+D114+I114)*$K$5 ->  | L114: 0.0000 | S114: 0.0000 | T114: 0.0000 | U114: 0.0000 | X114: 0.0000 | AB114: 0.0000 | AF114: 0.0000 | AL114: 0.0000 | AR114: 0.0000 | AS114: 0.000
A115: 95 | B115: апельсин | C115: кг | J115: =(E115+G115+H115+#REF!+D115+I115)*$J$5 ->  | K115: =(F115+G115+H115+#REF!+D115+I115)*$K$5 ->  | L115: 0.0000 | S115: 0.0000 | T115: 0.0000 | U115: 0.0000 | X115: 0.0000 | AB115: 0.0000 | AF115: 0.0000 | AL115: 0.0000 | AR115: 0.0000 | AS115: 0.000
A116: 96 | B116: банан | C116: кг | J116: =(E116+G116+H116+#REF!+D116+I116)*$J$5 ->  | K116: =(F116+G116+H116+#REF!+D116+I116)*$K$5 ->  | L116: 0.0000 | S116: 0.0000 | T116: 0.0000 | U116: 0.0000 | X116: 0.0000 | AB116: 0.0000 | AF116: 0.0000 | AL116: 0.0000 | AR116: 0.0000 | AS116: 0.000
A117: 97 | B117: груши | C117: кг | J117: =(E117+G117+H117+#REF!+D117+I117)*$J$5 ->  | K117: =(F117+G117+H117+#REF!+D117+I117)*$K$5 ->  | L117: 0.0000 | S117: 0.0000 | T117: 0.0000 | U117: 0.0000 | X117: 0.0000 | AB117: 0.0000 | AF117: 0.0000 | AL117: 0.0000 | AR117: 0.0000 | AS117: 0.000
A118: 98 | B118: мандарины | C118: кг | J118: =(E118+G118+H118+#REF!+D118+I118)*$J$5 ->  | K118: =(F118+G118+H118+#REF!+D118+I118)*$K$5 ->  | L118: 0.0000 | S118: 0.0000 | T118: 0.0000 | U118: 0.0000 | X118: 0.0000 | AB118: 0.0000 | AF118: 0.0000 | AL118: 0.0000 | AR118: 0.0000 | AS118: 0.000
A119: 99 | B119: лимон | C119: кг | J119: =(E119+G119+H119+#REF!+D119+I119)*$J$5 ->  | K119: =(F119+G119+H119+#REF!+D119+I119)*$K$5 ->  | L119: 0.0000 | S119: 0.0000 | T119: 0.0000 | U119: 0.0000 | X119: 0.0000 | AB119: 0.0000 | AF119: 0.0000 | AL119: 0.0000 | AR119: 0.0000 | AS119: 0.000
A120: 100 | B120: яблоки свежие | C120: кг | D120: 0.0171 | J120: =(E120+G120+H120+#REF!+D120+I120)*$J$5 ->  | K120: =(F120+G120+H120+#REF!+D120+I120)*$K$5 ->  | L120: 0.0171 | M120: 0.0285 | S120: 0.0000 | T120: 0.0000 | U120: 0.0285 | X120: 0.0000 | AB120: 0.0000 | AD120: 0.0228 | AF120: 0.0228 | AL120: 0.0000 | AR120: 0.0000 | AS120: 0.068
B121: Овощи / зелень | J121: =(E121+G121+H121+#REF!+D121+I121)*$J$5 ->  | K121: =(F121+G121+H121+#REF!+D121+I121)*$K$5 ->  | L121: 0.0000 | S121: 0.0000 | T121: 0.0000 | U121: 0.0000 | X121: 0.0000 | AB121: 0.0000 | AF121: 0.0000 | AL121: 0.0000 | AR121: 0.0000 | AS121: 0.000
A122: 101 | B122: капуста свежая | C122: кг | J122: =(E122+G122+H122+#REF!+D122+I122)*$J$5 ->  | K122: =(F122+G122+H122+#REF!+D122+I122)*$K$5 ->  | L122: 0.0000 | S122: 0.0000 | T122: 0.0000 | U122: 0.0000 | X122: 0.0000 | AB122: 0.0000 | AF122: 0.0000 | AL122: 0.0000 | AR122: 0.0000 | AS122: 0.000
A123: 102 | B123: картофель | C123: кг | J123: =(E123+G123+H123+#REF!+D123+I123)*$J$5 ->  | K123: =(F123+G123+H123+#REF!+D123+I123)*$K$5 ->  | L123: 0.0000 | S123: 0.0000 | T123: 0.0000 | U123: 0.0000 | X123: 0.0000 | AB123: 0.0000 | AC123: 0.1000 | AF123: 0.1000 | AL123: 0.0000 | AR123: 0.0000 | AS123: 0.100
A124: 103 | B124: лук репчатый | C124: кг | E124: 0.0192 | J124: =(E124+G124+H124+#REF!+D124+I124)*$J$5 ->  | K124: =(F124+G124+H124+#REF!+D124+I124)*$K$5 ->  | L124: 0.0192 | N124: 0.0192 | S124: 0.0000 | T124: 0.0000 | U124: 0.0192 | X124: 0.0000 | AB124: 0.0000 | AC124: 0.0072 | AF124: 0.0072 | AG124: 0.0240 | AL124: 0.0240 | AM124: 0.0240 | AR124: 0.0000 | AS124: 0.070
A125: 104 | B125: морковь | C125: кг | D125: 0.0563 | J125: =(E125+G125+H125+#REF!+D125+I125)*$J$5 ->  | K125: =(F125+G125+H125+#REF!+D125+I125)*$K$5 ->  | L125: 0.0563 | M125: 0.0938 | S125: 0.0000 | T125: 0.0000 | U125: 0.0938 | X125: 0.0000 | AB125: 0.0000 | AC125: 0.0125 | AF125: 0.0125 | AL125: 0.0000 | AR125: 0.0000 | AS125: 0.163
A126: 105 | B126: свекла | C126: кг | J126: =(E126+G126+H126+#REF!+D126+I126)*$J$5 ->  | K126: =(F126+G126+H126+#REF!+D126+I126)*$K$5 ->  | L126: 0.0000 | S126: 0.0000 | T126: 0.0000 | U126: 0.0000 | X126: 0.0000 | AB126: 0.0000 | AF126: 0.0000 | AL126: 0.0000 | AR126: 0.0000 | AS126: 0.000
A127: 106 | B127: огурцы св. | C127: кг | J127: =(E127+G127+H127+#REF!+D127+I127)*$J$5 ->  | K127: =(F127+G127+H127+#REF!+D127+I127)*$K$5 ->  | L127: 0.0000 | S127: 0.0000 | T127: 0.0000 | U127: 0.0000 | X127: 0.0000 | AB127: 0.0000 | AF127: 0.0000 | AL127: 0.0000 | AR127: 0.0000 | AS127: 0.000
A128: 107 | B128: томаты св. | C128: кг | J128: =(E128+G128+H128+#REF!+D128+I128)*$J$5 ->  | K128: =(F128+G128+H128+#REF!+D128+I128)*$K$5 ->  | L128: 0.0000 | S128: 0.0000 | T128: 0.0000 | U128: 0.0000 | X128: 0.0000 | AB128: 0.0000 | AF128: 0.0000 | AL128: 0.0000 | AR128: 0.0000 | AS128: 0.000
A129: 108 | B129: перец болг.красный | C129: кг | J129: =(E129+G129+H129+#REF!+D129+I129)*$J$5 ->  | K129: =(F129+G129+H129+#REF!+D129+I129)*$K$5 ->  | L129: 0.0000 | S129: 0.0000 | T129: 0.0000 | U129: 0.0000 | X129: 0.0000 | AB129: 0.0000 | AF129: 0.0000 | AL129: 0.0000 | AR129: 0.0000 | AS129: 0.000
A130: 109 | B130: тыква | C130: кг | J130: =(E130+G130+H130+#REF!+D130+I130)*$J$5 ->  | K130: =(F130+G130+H130+#REF!+D130+I130)*$K$5 ->  | L130: 0.0000 | S130: 0.0000 | T130: 0.0000 | U130: 0.0000 | X130: 0.0000 | AB130: 0.0000 | AF130: 0.0000 | AL130: 0.0000 | AR130: 0.0000 | AS130: 0.000
A131: Овощи очищ ПФ | J131: =(E131+G131+H131+#REF!+D131+I131)*$J$5 ->  | K131: =(F131+G131+H131+#REF!+D131+I131)*$K$5 ->  | L131: 0.0000 | S131: 0.0000 | T131: 0.0000 | U131: 0.0000 | X131: 0.0000 | AB131: 0.0000 | AF131: 0.0000 | AL131: 0.0000 | AR131: 0.0000 | AS131: 0.000
A132: 110 | B132: капуста св.очищенная | C132: кг | J132: =(E132+G132+H132+#REF!+D132+I132)*$J$5 ->  | K132: =(F132+G132+H132+#REF!+D132+I132)*$K$5 ->  | L132: 0.0000 | S132: 0.0000 | T132: 0.0000 | U132: 0.0000 | X132: 0.0000 | AB132: 0.0000 | AF132: 0.0000 | AL132: 0.0000 | AR132: 0.0000 | AS132: 0.000
A133: 111 | B133: картофель св. очищенный | C133: кг | J133: =(E133+G133+H133+#REF!+D133+I133)*$J$5 ->  | K133: =(F133+G133+H133+#REF!+D133+I133)*$K$5 ->  | L133: 0.0000 | S133: 0.0000 | T133: 0.0000 | U133: 0.0000 | X133: 0.0000 | AB133: 0.0000 | AF133: 0.0000 | AL133: 0.0000 | AR133: 0.0000 | AS133: 0.000
A134: 112 | B134: лук репчатый св.очищенный | C134: кг | J134: =(E134+G134+H134+#REF!+D134+I134)*$J$5 ->  | K134: =(F134+G134+H134+#REF!+D134+I134)*$K$5 ->  | L134: 0.0000 | S134: 0.0000 | T134: 0.0000 | U134: 0.0000 | X134: 0.0000 | AB134: 0.0000 | AF134: 0.0000 | AL134: 0.0000 | AR134: 0.0000 | AS134: 0.000
A135: 113 | B135: морковь св.очищенная | C135: кг | J135: =(E135+G135+H135+#REF!+D135+I135)*$J$5 ->  | K135: =(F135+G135+H135+#REF!+D135+I135)*$K$5 ->  | L135: 0.0000 | S135: =(R135+Q135+P135+N135+M135)*$S$5 -> 0.0000 | T135: =(R135+Q135+P135+O135+M135)*$T$5 -> 0.0000 | U135: 0.0000 | X135: 0.0000 | AB135: 0.0000 | AF135: 0.0000 | AL135: 0.0000 | AR135: 0.0000 | AS135: 0.000
A136: 114 | B136: свекла св.очищенная | C136: кг | J136: =(E136+G136+H136+#REF!+D136+I136)*$J$5 ->  | K136: =(F136+G136+H136+#REF!+D136+I136)*$K$5 ->  | L136: =(I136+H136+G136+F136+E136+D136)*$L$5 -> 0.0000 | S136: 0.0000 | T136: 0.0000 | U136: =(M136+N136+P136+Q136+R136)*$U$5 -> 0.0000 | X136: =(V136+W136)*$X$5 -> 0.0000 | AB136: =(AA136+Z136+Y136)*AB$5 -> 0.0000 | AF136: =(AC136+AD136+AE136)*$AF$5 -> 0.0000 | AL136: =(AG136+AI136+AJ136+AK136)*$AL$5 -> 0.0000 | AR136: =(AQ136+AM136+AO136+AP136)*$AR$5 -> 0.0000 | AS136: =AR136+AF136+AB136+X136+U136+L136+AL136 -> 0.000
B137: Полуфабрикаты | J137: =(E137+G137+H137+#REF!+D137+I137)*$J$5 ->  | K137: =(F137+G137+H137+#REF!+D137+I137)*$K$5 ->  | L137: 0.0000 | S137: 0.0000 | T137: 0.0000 | U137: 0.0000 | X137: 0.0000 | AB137: 0.0000 | AF137: 0.0000 | AL137: 0.0000 | AR137: 0.0000 | AS137: 0.000
A138: 115 | B138: сырники ПФ | C138: шт | J138: =(E138+G138+H138+#REF!+D138+I138)*$J$5 ->  | K138: =(F138+G138+H138+#REF!+D138+I138)*$K$5 ->  | L138: 0.0000 | S138: 0.0000 | T138: 0.0000 | U138: 0.0000 | X138: 0.0000 | AB138: 0.0000 | AF138: 0.0000 | AL138: 0.0000 | AR138: 0.0000 | AS138: 0.000
A139: 116 | B139: пельмени ПФ | C139: кг | J139: =(E139+G139+H139+#REF!+D139+I139)*$J$5 ->  | K139: =(F139+G139+H139+#REF!+D139+I139)*$K$5 ->  | L139: 0.0000 | S139: 0.0000 | T139: 0.0000 | U139: 0.0000 | X139: 0.0000 | AB139: 0.0000 | AF139: 0.0000 | AL139: 0.0000 | AR139: 0.0000 | AS139: 0.000
A140: 117 | B140: биточки рыбные | C140: шт | J140: =(E140+G140+H140+#REF!+D140+I140)*$J$5 ->  | K140: =(F140+G140+H140+#REF!+D140+I140)*$K$5 ->  | L140: 0.0000 | S140: 0.0000 | T140: 0.0000 | U140: 0.0000 | X140: 0.0000 | AB140: 0.0000 | AF140: 0.0000 | AL140: 0.0000 | AR140: 0.0000 | AS140: 0.000
A141: 118 | B141: фрикадельки мясные | C141: кг | J141: =(E141+G141+H141+#REF!+D141+I141)*$J$5 ->  | K141: =(F141+G141+H141+#REF!+D141+I141)*$K$5 ->  | L141: 0.0000 | S141: 0.0000 | T141: 0.0000 | U141: 0.0000 | X141: 0.0000 | AB141: 0.0000 | AF141: 0.0000 | AL141: 0.0000 | AR141: 0.0000 | AS141: 0.000
A142: 119 | B142: фрикадельки куриные | C142: кг | J142: =(E142+G142+H142+#REF!+D142+I142)*$J$5 ->  | K142: =(F142+G142+H142+#REF!+D142+I142)*$K$5 ->  | L142: 0.0000 | S142: 0.0000 | T142: 0.0000 | U142: 0.0000 | X142: 0.0000 | AB142: 0.0000 | AF142: 0.0000 | AL142: 0.0000 | AR142: 0.0000 | AS142: 0.000
A143: 120 | B143: хинкали п/ф из говядины | C143: кг | J143: =(E143+G143+H143+#REF!+D143+I143)*$J$5 ->  | K143: =(F143+G143+H143+#REF!+D143+I143)*$K$5 ->  | L143: 0.0000 | S143: 0.0000 | T143: 0.0000 | U143: 0.0000 | X143: 0.0000 | AB143: 0.0000 | AF143: 0.0000 | AL143: 0.0000 | AR143: 0.0000 | AS143: 0.000
A144: 121 | B144: котлеты из говядины "Пожарские" | C144: шт | J144: =(E144+G144+H144+#REF!+D144+I144)*$J$5 ->  | K144: =(F144+G144+H144+#REF!+D144+I144)*$K$5 ->  | L144: 0.0000 | S144: 0.0000 | T144: 0.0000 | U144: 0.0000 | X144: 0.0000 | AB144: 0.0000 | AF144: 0.0000 | AL144: 0.0000 | AR144: 0.0000 | AS144: 0.000
A145: 122 | B145: бифштекс из говядины | C145: шт | J145: =(E145+G145+H145+#REF!+D145+I145)*$J$5 ->  | K145: =(F145+G145+H145+#REF!+D145+I145)*$K$5 ->  | L145: 0.0000 | S145: 0.0000 | T145: 0.0000 | U145: 0.0000 | X145: 0.0000 | AB145: 0.0000 | AF145: 0.0000 | AL145: 0.0000 | AR145: 0.0000 | AS145: 0.000
A146: 123 | B146: котлеты из мяса кур | C146: шт | J146: =(E146+G146+H146+#REF!+D146+I146)*$J$5 ->  | K146: =(F146+G146+H146+#REF!+D146+I146)*$K$5 ->  | L146: 0.0000 | S146: 0.0000 | T146: 0.0000 | U146: 0.0000 | X146: 0.0000 | AB146: 0.0000 | AF146: 0.0000 | AL146: 0.0000 | AR146: 0.0000 | AS146: 0.000
A147: 124 | B147: котлеты "Аппетитные" мясо-куриные | C147: шт | J147: =(E147+G147+H147+#REF!+D147+I147)*$J$5 ->  | K147: =(F147+G147+H147+#REF!+D147+I147)*$K$5 ->  | L147: 0.0000 | S147: 0.0000 | T147: 0.0000 | U147: 0.0000 | X147: 0.0000 | AB147: 0.0000 | AF147: 0.0000 | AL147: 0.0000 | AR147: 0.0000 | AS147: 0.000
A148: 125 | B148: ежики мясные с рисом | C148: шт | J148: =(E148+G148+H148+#REF!+D148+I148)*$J$5 ->  | K148: =(F148+G148+H148+#REF!+D148+I148)*$K$5 ->  | L148: 0.0000 | S148: 0.0000 | T148: 0.0000 | U148: 0.0000 | X148: 0.0000 | AB148: 0.0000 | AF148: 0.0000 | AL148: 0.0000 | AR148: 0.0000 | AS148: 0.000

Sheet Вт День 2 Нед 1
A1: Расход продуктов питания в образовательных учереждениях
D2: Меню с 1 по 4 класс 77,76 РУБ | J2: Кол-во учащихся 1 - 4 кл СЫРНИКИ ПФ | K2: Кол-во учащихся 1 - 4 кл СЫРНИКИ самодельные | L2: ИТОГО | M2: Меню с 5 по 11 класс 77,76 РУБ | S2: Кол-во учащихся 5-11 кл СЫРНИКИ ПФ | T2: Кол-во учащихся 5-11 кл СЫРНИКИ самодельные | U2: ИТОГО | V2: Меню на сумму 10,70 РУБ | X2: ИТОГО | Y2: Меню КАШИ НА молоке 28,00 РУБ | AB2: ИТОГО | AC2: Меню СУПА 38,00 РУБ | AF2: ИТОГО | AG2: Меню ЧЕРЕДОВАНИЕ суп/второе 50,00 РУБ | AK2: ИТОГО | AL2: Меню ЧЕРЕДОВАНИЕ суп/второе +КОНДИТЕРКА 53,00 РУБ | AP2: ИТОГО | AQ2: ВСЕГО ЗА ДЕНЬ расход продуктов по всем рационам
B3: ДЕНЬ 2 неделя 1 | D3: фрукт ЯБЛОКО | E3: сырники из творога ПФ | F3: сырники из творога | G3: каша дружба молоч с масл слив | H3: кофейный напиток с молоком | I3: Хлеб пшенич /ржаной | M3: фрукт ЯБЛОКО | N3: сырники из творога ПФ | O3: сырники из творога | P3: каша дружба с масл слив | Q3: кофейный напиток с молоком | R3: Хлеб пшенич /ржаной | V3: Вафли | W3: чай с сахаром с лимоном | Y3: каша ячневая с масл слив | Z3: чай с сахаром с лимоном | AA3: хлеб ржаной | AC3: Суп лапша ПФ дом с мясом пицы | AD3: напиток из шиповника | AE3: Хлеб ржаной | AG3: Суп лапша ПФ дом с мясом пицы | AI3: чай с сахаром с лимоном | AJ3: Хлеб пшеничн /ржаной | AL3: Суп лапша ПФ дом с мясом пицы | AM3: вафли | AN3: чай с сахаром с лимоном | AO3: Хлеб пшеничн /ржаной
B4: КОЛИЧЕСТВО ДЕТЕЙ | D4: 7-11 | E4: 7-11 | F4: 7-11 | G4: 7-11 | H4: 7-11 | I4: 7-11 | M4: 12-18 | N4: 12-18 | O4: 12-18 | P4: 12-18 | Q4: 12-18 | R4: 12-18 | V4: 12-18 | W4: 12-18 | Y4: 12-18 | Z4: 12-18 | AA4: 12-18 | AC4: 12-18 | AD4: 12-18 | AE4: 12-18 | AG4: 12-18 | AH4: 12-18 | AI4: 12-18 | AJ4: 12-18 | AL4: 12-18 | AM4: 12-18 | AN4: 12-18 | AO4: 12-18
B5: Выход,гр | D5: 100 | E5: 60 | F5: 60 | G5: 150/5 | H5: 200 | I5: 0/30 | J5: 1 | K5: 0 | L5: =K5+J5 -> 1 | M5: 100 | N5: 60 | O5: 60 | P5: 200/3 | Q5: 200 | R5: 0/40 | S5: 1 | T5: 0 | U5: =S5+T5 -> 1 | V5: 20 | W5: 185/10/5 | X5: 1 | Y5: 150/3 | Z5: 185/10/5 | AA5: 30 | AB5: 1 | AC5: 250/10 | AD5: 200 | AE5: 30 | AF5: 1 | AG5: 250/10 | AI5: 185/10/5 | AJ5: 20/20 | AK5: 1 | AL5: 250/10 | AM5: 30 | AN5: 185/10/5 | AO5: 20/20 | AQ5: =AP5+AK5+AF5+AB5+X5+U5+L5 -> 6
B6: Хлеб
A7: 1 | B7: батон | C7: кг | J7: =(I7+H7+G7+E7+D7)*$J$5 -> 0.0000 | K7: =(I7+H7+G7+F7+D7)*$K$5 -> 0.0000 | L7: =K7+J7 -> 0.0000 | S7: =(M7+N7+P7+Q7+R7)*$S$5 -> 0.0000 | T7: =(M7+O7+P7+Q7+R7)*$T$5 -> 0.0000 | U7: =S7+T7 -> 0.0000 | X7: =(V7+W7)*$X$5 -> 0.0000 | AB7: =(Y7+Z7+AA7)*$AB$5 -> 0.0000 | AF7: =(AC7+AD7+AE7)*$AF$5 -> 0.0000 | AK7: =(AG7+AI7+AJ7)*$AK$5 -> 0.0000 | AP7: =(AL7+AM7+AO7+AN7)*$AP$5 -> 0.0000 | AQ7: =AP7+AK7+AF7+AB7+X7+U7+L7 -> 0.000
A8: 2 | B8: хлеб пшеничный | C8: кг | J8: =(I8+H8+G8+E8+D8)*$J$5 -> 0.0000 | K8: =(I8+H8+G8+F8+D8)*$K$5 -> 0.0000 | L8: =K8+J8 -> 0.0000 | S8: =(M8+N8+P8+Q8+R8)*$S$5 -> 0.0000 | T8: =(M8+O8+P8+Q8+R8)*$T$5 -> 0.0000 | U8: =S8+T8 -> 0.0000 | X8: =(V8+W8)*$X$5 -> 0.0000 | AB8: =(Y8+Z8+AA8)*$AB$5 -> 0.0000 | AF8: =(AC8+AD8+AE8)*$AF$5 -> 0.0000 | AJ8: 0.0200 | AK8: =(AG8+AI8+AJ8)*$AK$5 -> 0.0200 | AO8: 0.0200 | AP8: =(AL8+AM8+AO8+AN8)*$AP$5 -> 0.0000 | AQ8: =AP8+AK8+AF8+AB8+X8+U8+L8 -> 0.020
A9: 3 | B9: хлеб ржаной | C9: кг | I9: 0.0300 | J9: 0.0300 | K9: 0.0000 | L9: 0.0300 | R9: 0.0400 | S9: 0.0400 | T9: 0.0000 | U9: 0.0400 | X9: 0.0000 | AA9: 0.0300 | AB9: 0.0300 | AE9: 0.0300 | AF9: 0.0300 | AJ9: 0.0200 | AK9: 0.0200 | AO9: 0.0200 | AP9: 0.0000 | AQ9: 0.150
A10: 4 | B10: булоч/выпечка готов с х/ком | C10: шт | J10: 0.0000 | K10: 0.0000 | L10: 0.0000 | S10: 0.0000 | T10: 0.0000 | U10: 0.0000 | X10: 0.0000 | AB10: 0.0000 | AF10: 0.0000 | AK10: 0.0000 | AP10: 0.0000 | AQ10: 0.000
B11: Молочка | J11: 0.0000 | K11: 0.0000 | L11: 0.0000 | S11: 0.0000 | T11: 0.0000 | U11: 0.0000 | X11: 0.0000 | AB11: 0.0000 | AF11: 0.0000 | AK11: 0.0000 | AP11: 0.0000 | AQ11: 0.000
A12: 5 | B12: молоко 2,5% | C12: кг | G12: 0.0750 | H12: 0.100 | J12: 0.1750 | K12: 0.0000 | L12: 0.1750 | P12: 0.1000 | Q12: 0.100 | S12: 0.2000 | T12: 0.0000 | U12: 0.2000 | X12: 0.0000 | Y12: 0.0750 | AB12: 0.0750 | AF12: 0.0000 | AK12: 0.0000 | AP12: 0.0000 | AQ12: 0.450
A13: 6 | B13: творог 5% | C13: кг | F13: 0.0612 | J13: 0.0000 | K13: 0.0000 | L13: 0.0000 | O13: 0.0612 | S13: 0.0000 | T13: 0.0000 | U13: 0.0000 | X13: 0.0000 | AB13: 0.0000 | AF13: 0.0000 | AK13: 0.0000 | AP13: 0.0000 | AQ13: 0.000
A14: 7 | B14: сметана 15% | C14: кг | J14: 0.0000 | K14: 0.0000 | L14: 0.0000 | S14: 0.0000 | T14: 0.0000 | U14: 0.0000 | X14: 0.0000 | AB14: 0.0000 | AF14: 0.0000 | AK14: 0.0000 | AP14: 0.0000 | AQ14: 0.000
A15: 8 | B15: йогурт фруктов | C15: кг | J15: 0.0000 | K15: 0.0000 | L15: 0.0000 | S15: 0.0000 | T15: 0.0000 | U15: 0.0000 | X15: 0.0000 | AB15: 0.0000 | AF15: 0.0000 | AK15: 0.0000 | AP15: 0.0000 | AQ15: 0.000
A16: 9 | B16: катык 2,5% | C16: кг | J16: 0.0000 | K16: 0.0000 | L16: 0.0000 | S16: 0.0000 | T16: 0.0000 | U16: 0.0000 | X16: 0.0000 | AB16: 0.0000 | AF16: 0.0000 | AK16: 0.0000 | AP16: 0.0000 | AQ16: 0.000
A17: 10 | B17: кефир 2,5% | C17: кг | J17: 0.0000 | K17: 0.0000 | L17: 0.0000 | S17: 0.0000 | T17: 0.0000 | U17: 0.0000 | X17: 0.0000 | AB17: 0.0000 | AF17: 0.0000 | AK17: 0.0000 | AP17: 0.0000 | AQ17: 0.000
A18: 11 | B18: ряженка 2,5% | C18: кг | J18: 0.0000 | K18: 0.0000 | L18: 0.0000 | S18: 0.0000 | T18: 0.0000 | U18: 0.0000 | X18: 0.0000 | AB18: 0.0000 | AF18: 0.0000 | AK18: 0.0000 | AP18: 0.0000 | AQ18: 0.000
A19: 12 | B19: напиток ацидофильный | C19: шт | J19: 0.0000 | K19: 0.0000 | L19: 0.0000 | S19: 0.0000 | T19: 0.0000 | U19: 0.0000 | X19: 0.0000 | AB19: 0.0000 | AF19: 0.0000 | AK19: 0.0000 | AP19: 0.0000 | AQ19: 0.000
B20: Масло / сыр | J20: 0.0000 | K20: 0.0000 | L20: 0.0000 | S20: 0.0000 | T20: 0.0000 | U20: 0.0000 | X20: 0.0000 | AB20: 0.0000 | AF20: 0.0000 | AK20: 0.0000 | AP20: 0.0000 | AQ20: 0.000
A21: 13 | B21: масло растительное | C21: кг | E21: 0.0020 | F21: 0.0020 | J21: 0.0020 | K21: 0.0000 | L21: 0.0020 | N21: 0.0020 | O21: 0.0020 | S21: 0.0020 | T21: 0.0000 | U21: 0.0020 | X21: 0.0000 | AB21: 0.0000 | AC21: 0.0050 | AF21: 0.0050 | AG21: 0.0050 | AK21: 0.0050 | AL21: 0.0050 | AP21: 0.0000 | AQ21: 0.014
A22: 14 | B22: масло сливочное | C22: кг | G22: 0.0050 | J22: 0.0050 | K22: 0.0000 | L22: 0.0050 | P22: 0.0030 | S22: 0.0030 | T22: 0.0000 | U22: 0.0030 | X22: 0.0000 | Y22: 0.0030 | AB22: 0.0030 | AF22: 0.0000 | AK22: 0.0000 | AP22: 0.0000 | AQ22: 0.011
A23: 15 | B23: сыр голландский | C23: кг | J23: 0.0000 | K23: 0.0000 | L23: 0.0000 | S23: 0.0000 | T23: 0.0000 | U23: 0.0000 | X23: 0.0000 | AB23: 0.0000 | AF23: 0.0000 | AK23: 0.0000 | AP23: 0.0000 | AQ23: 0.000
B24: Мясо | J24: 0.0000 | K24: 0.0000 | L24: 0.0000 | S24: 0.0000 | T24: 0.0000 | U24: 0.0000 | X24: 0.0000 | AB24: 0.0000 | AF24: 0.0000 | AK24: 0.0000 | AP24: 0.0000 | AQ24: 0.000
A25: 16 | B25: говядина (котлетное мясо) | C25: кг | J25: 0.0000 | K25: 0.0000 | L25: 0.0000 | S25: 0.0000 | T25: 0.0000 | U25: 0.0000 | X25: 0.0000 | AB25: 0.0000 | AF25: 0.0000 | AK25: 0.0000 | AP25: 0.0000 | AQ25: 0.000
A26: 17 | B26: фарш говяжий | C26: кг | J26: 0.0000 | K26: 0.0000 | L26: 0.0000 | S26: 0.0000 | T26: 0.0000 | U26: 0.0000 | X26: 0.0000 | AB26: 0.0000 | AF26: 0.0000 | AK26: 0.0000 | AP26: 0.0000 | AQ26: 0.000
A27: 18 | B27: говядина лопатка б/к | C27: кг | J27: 0.0000 | K27: 0.0000 | L27: 0.0000 | S27: 0.0000 | T27: 0.0000 | U27: 0.0000 | X27: 0.0000 | AB27: 0.0000 | AF27: 0.0000 | AK27: 0.0000 | AP27: 0.0000 | AQ27: 0.000
A28: 19 | B28: сосиски | C28: кг | J28: 0.0000 | K28: 0.0000 | L28: 0.0000 | S28: 0.0000 | T28: 0.0000 | U28: 0.0000 | X28: 0.0000 | AB28: 0.0000 | AF28: 0.0000 | AK28: 0.0000 | AP28: 0.0000 | AQ28: 0.000
A29: 20 | B29: колбаса п/к "Халяль" | C29: кг | J29: 0.0000 | K29: 0.0000 | L29: 0.0000 | S29: 0.0000 | T29: 0.0000 | U29: 0.0000 | X29: 0.0000 | AB29: 0.0000 | AF29: 0.0000 | AK29: 0.0000 | AP29: 0.0000 | AQ29: 0.000
A30: 21 | B30: куриное бедро | C30: кг | J30: 0.0000 | K30: 0.0000 | L30: 0.0000 | S30: 0.0000 | T30: 0.0000 | U30: 0.0000 | X30: 0.0000 | AB30: 0.0000 | AF30: 0.0000 | AK30: 0.0000 | AP30: 0.0000 | AQ30: 0.000
A31: 22 | B31: куриная грудка | C31: кг | J31: 0.0000 | K31: 0.0000 | L31: 0.0000 | S31: 0.0000 | T31: 0.0000 | U31: 0.0000 | X31: 0.0000 | AB31: 0.0000 | AC31: 0.0162 | AF31: 0.0162 | AG31: 0.0162 | AK31: 0.0162 | AL31: 0.0162 | AP31: 0.0000 | AQ31: 0.032
A32: 23 | B32: куры/цыплята потрош. | C32: кг | J32: 0.0000 | K32: 0.0000 | L32: 0.0000 | S32: 0.0000 | T32: 0.0000 | U32: 0.0000 | X32: 0.0000 | AB32: 0.0000 | AF32: 0.0000 | AK32: 0.0000 | AP32: 0.0000 | AQ32: 0.000
A33: 24 | B33: фарш куриный | C33: кг | J33: 0.0000 | K33: 0.0000 | L33: 0.0000 | S33: 0.0000 | T33: 0.0000 | U33: 0.0000 | X33: 0.0000 | AB33: 0.0000 | AF33: 0.0000 | AK33: 0.0000 | AP33: 0.0000 | AQ33: 0.000
A34: 25 | B34: индейка бедро филе | C34: кг | J34: 0.0000 | K34: 0.0000 | L34: 0.0000 | S34: 0.0000 | T34: 0.0000 | U34: 0.0000 | X34: 0.0000 | AB34: 0.0000 | AF34: 0.0000 | AK34: 0.0000 | AP34: 0.0000 | AQ34: 0.000
A35: 26 | B35: индейка грудка филе | C35: кг | J35: 0.0000 | K35: 0.0000 | L35: 0.0000 | S35: 0.0000 | T35: 0.0000 | U35: 0.0000 | X35: 0.0000 | AB35: 0.0000 | AF35: 0.0000 | AK35: 0.0000 | AP35: 0.0000 | AQ35: 0.000
B36: Рыба | J36: 0.0000 | K36: 0.0000 | L36: 0.0000 | S36: 0.0000 | T36: 0.0000 | U36: 0.0000 | X36: 0.0000 | AB36: 0.0000 | AF36: 0.0000 | AK36: 0.0000 | AP36: 0.0000 | AQ36: 0.000
A37: 27 | B37: горбуша ПБГ с/м | C37: кг | J37: 0.0000 | K37: 0.0000 | L37: 0.0000 | S37: 0.0000 | T37: 0.0000 | U37: 0.0000 | X37: 0.0000 | AB37: 0.0000 | AF37: 0.0000 | AK37: 0.0000 | AP37: 0.0000 | AQ37: 0.000
A38: 28 | B38: минтай б/г с/м | C38: кг | J38: 0.0000 | K38: 0.0000 | L38: 0.0000 | S38: 0.0000 | T38: 0.0000 | U38: 0.0000 | X38: 0.0000 | AB38: 0.0000 | AF38: 0.0000 | AK38: 0.0000 | AP38: 0.0000 | AQ38: 0.000
A39: 29 | B39: фарш минтая | C39: кг | J39: 0.0000 | K39: 0.0000 | L39: 0.0000 | S39: 0.0000 | T39: 0.0000 | U39: 0.0000 | X39: 0.0000 | AB39: 0.0000 | AF39: 0.0000 | AK39: 0.0000 | AP39: 0.0000 | AQ39: 0.000
B40: Сыпучка | J40: 0.0000 | K40: 0.0000 | L40: 0.0000 | S40: 0.0000 | T40: 0.0000 | U40: 0.0000 | X40: 0.0000 | AB40: 0.0000 | AF40: 0.0000 | AK40: 0.0000 | AP40: 0.0000 | AQ40: 0.000
A41: 30 | B41: вермишель | C41: кг | J41: 0.0000 | K41: 0.0000 | L41: 0.0000 | S41: 0.0000 | T41: 0.0000 | U41: 0.0000 | X41: 0.0000 | AB41: 0.0000 | AF41: 0.0000 | AK41: 0.0000 | AP41: 0.0000 | AQ41: 0.000
A42: 31 | B42: геркулес | C42: кг | J42: 0.0000 | K42: 0.0000 | L42: 0.0000 | S42: 0.0000 | T42: 0.0000 | U42: 0.0000 | X42: 0.0000 | AB42: 0.0000 | AF42: 0.0000 | AK42: 0.0000 | AP42: 0.0000 | AQ42: 0.000
A43: 32 | B43: горох | C43: кг | J43: 0.0000 | K43: 0.0000 | L43: 0.0000 | S43: 0.0000 | T43: 0.0000 | U43: 0.0000 | X43: 0.0000 | AB43: 0.0000 | AF43: 0.0000 | AK43: 0.0000 | AP43: 0.0000 | AQ43: 0.000
A44: 33 | B44: гречневая крупа | C44: кг | J44: 0.0000 | K44: 0.0000 | L44: 0.0000 | S44: 0.0000 | T44: 0.0000 | U44: 0.0000 | X44: 0.0000 | AB44: 0.0000 | AF44: 0.0000 | AK44: 0.0000 | AP44: 0.0000 | AQ44: 0.000
A45: 34 | B45: кукурузная крупа | C45: кг | J45: 0.0000 | K45: 0.0000 | L45: 0.0000 | S45: 0.0000 | T45: 0.0000 | U45: 0.0000 | X45: 0.0000 | AB45: 0.0000 | AF45: 0.0000 | AK45: 0.0000 | AP45: 0.0000 | AQ45: 0.000
A46: 35 | B46: макаронные изделия | C46: кг | J46: 0.0000 | K46: 0.0000 | L46: 0.0000 | S46: 0.0000 | T46: 0.0000 | U46: 0.0000 | X46: 0.0000 | AB46: 0.0000 | AF46: 0.0000 | AK46: 0.0000 | AP46: 0.0000 | AQ46: 0.000
A47: 36 | B47: манная крупа | C47: кг | J47: 0.0000 | K47: 0.0000 | L47: 0.0000 | S47: 0.0000 | T47: 0.0000 | U47: 0.0000 | X47: 0.0000 | AB47: 0.0000 | AF47: 0.0000 | AK47: 0.0000 | AP47: 0.0000 | AQ47: 0.000
A48: 37 | B48: перловая крупа | C48: кг | J48: 0.0000 | K48: 0.0000 | L48: 0.0000 | S48: 0.0000 | T48: 0.0000 | U48: 0.0000 | X48: 0.0000 | AB48: 0.0000 | AF48: 0.0000 | AK48: 0.0000 | AP48: 0.0000 | AQ48: 0.000
A49: 38 | B49: полбяная крупа | C49: кг | J49: 0.0000 | K49: 0.0000 | L49: 0.0000 | S49: 0.0000 | T49: 0.0000 | U49: 0.0000 | X49: 0.0000 | AB49: 0.0000 | AF49: 0.0000 | AK49: 0.0000 | AP49: 0.0000 | AQ49: 0.000
A50: 39 | B50: пшеничная крупа | C50: кг | J50: 0.0000 | K50: 0.0000 | L50: 0.0000 | S50: 0.0000 | T50: 0.0000 | U50: 0.0000 | X50: 0.0000 | AB50: 0.0000 | AF50: 0.0000 | AK50: 0.0000 | AP50: 0.0000 | AQ50: 0.000
A51: 40 | B51: пшено | C51: кг | G51: 0.0150 | J51: 0.0150 | K51: 0.0000 | L51: 0.0150 | P51: 0.0190 | S51: 0.0190 | T51: 0.0000 | U51: 0.0190 | X51: 0.0000 | AB51: 0.0000 | AF51: 0.0000 | AK51: 0.0000 | AP51: 0.0000 | AQ51: 0.034
A52: 41 | B52: рис | C52: кг | G52: 0.0110 | J52: 0.0110 | K52: 0.0000 | L52: 0.0110 | P52: 0.0140 | S52: 0.0140 | T52: 0.0000 | U52: 0.0140 | X52: 0.0000 | AB52: 0.0000 | AF52: 0.0000 | AK52: 0.0000 | AP52: 0.0000 | AQ52: 0.025
A53: 42 | B53: ячневая крупа | C53: кг | J53: 0.0000 | K53: 0.0000 | L53: 0.0000 | S53: 0.0000 | T53: 0.0000 | U53: 0.0000 | X53: 0.0000 | Y53: 0.0280 | AB53: 0.0280 | AF53: 0.0000 | AK53: 0.0000 | AP53: 0.0000 | AQ53: 0.028
A54: 43 | B54: лапша доиашняя п/ф | C54: кг | J54: 0.0000 | K54: 0.0000 | L54: 0.0000 | S54: 0.0000 | T54: 0.0000 | U54: 0.0000 | X54: 0.0000 | AB54: 0.0000 | AC54: 0.0200 | AF54: 0.0200 | AG54: 0.0200 | AK54: 0.0200 | AL54: 0.0200 | AP54: 0.0000 | AQ54: 0.040
A55: 44 | B55: мука пшеничная в/с | C55: кг | F55: 0.0078 | J55: 0.0000 | K55: 0.0000 | L55: 0.0000 | O55: 0.0078 | S55: 0.0000 | T55: 0.0000 | U55: 0.0000 | X55: 0.0000 | AB55: 0.0000 | AF55: 0.0000 | AK55: 0.0000 | AP55: 0.0000 | AQ55: 0.000
A56: 45 | B56: сахарный песок | C56: кг | F56: 0.0030 | G56: 0.0006 | H56: 0.0100 | J56: 0.0106 | K56: 0.0000 | L56: 0.0106 | O56: 0.0030 | P56: 0.0008 | Q56: 0.0100 | S56: 0.0108 | T56: 0.0000 | U56: 0.0108 | W56: 0.0100 | X56: 0.0100 | Y56: 0.0005 | Z56: 0.0100 | AB56: 0.0105 | AD56: 0.0100 | AF56: 0.0100 | AI56: 0.0100 | AK56: 0.0100 | AN56: 0.0100 | AP56: 0.0000 | AQ56: 0.062
A57: 46 | B57: соль | C57: кг | F57: 0.0002 | G57: 0.0004 | J57: 0.0004 | K57: 0.0000 | L57: 0.0004 | O57: 0.0002 | P57: 0.0005 | S57: 0.0005 | T57: 0.0000 | U57: 0.0005 | X57: 0.0000 | Y57: 0.0003 | AB57: 0.0003 | AC57: 0.0009 | AF57: 0.0009 | AG57: 0.0009 | AK57: 0.0009 | AL57: 0.0009 | AP57: 0.0000 | AQ57: 0.003
A58: 47 | B58: сухари панировочные | C58: кг | J58: 0.0000 | K58: 0.0000 | L58: 0.0000 | S58: 0.0000 | T58: 0.0000 | U58: 0.0000 | X58: 0.0000 | AB58: 0.0000 | AF58: 0.0000 | AK58: 0.0000 | AP58: 0.0000 | AQ58: 0.000
A59: 48 | B59: дрожжи сухие | C59: кг | J59: 0.0000 | K59: 0.0000 | L59: 0.0000 | S59: 0.0000 | T59: 0.0000 | U59: 0.0000 | X59: 0.0000 | AB59: 0.0000 | AF59: 0.0000 | AK59: 0.0000 | AP59: 0.0000 | AQ59: 0.000
A60: 49 | B60: хлебцы | C60: кг | J60: 0.0000 | K60: 0.0000 | L60: 0.0000 | S60: 0.0000 | T60: 0.0000 | U60: 0.0000 | X60: 0.0000 | AB60: 0.0000 | AF60: 0.0000 | AK60: 0.0000 | AP60: 0.0000 | AQ60: 0.000
B61: Консервы | J61: 0.0000 | K61: 0.0000 | L61: 0.0000 | S61: 0.0000 | T61: 0.0000 | U61: 0.0000 | X61: 0.0000 | AB61: 0.0000 | AF61: 0.0000 | AK61: 0.0000 | AP61: 0.0000 | AQ61: 0.000
A62: 50 | B62: зеленый горошек к/с | C62: кг | J62: 0.0000 | K62: 0.0000 | L62: 0.0000 | S62: 0.0000 | T62: 0.0000 | U62: 0.0000 | X62: 0.0000 | AB62: 0.0000 | AF62: 0.0000 | AK62: 0.0000 | AP62: 0.0000 | AQ62: 0.000
A63: 51 | B63: кукуруза к/с | C63: кг | J63: 0.0000 | K63: 0.0000 | L63: 0.0000 | S63: 0.0000 | T63: 0.0000 | U63: 0.0000 | X63: 0.0000 | AB63: 0.0000 | AF63: 0.0000 | AK63: 0.0000 | AP63: 0.0000 | AQ63: 0.000
A64: 52 | B64: фасоль к/с | C64: кг | J64: 0.0000 | K64: 0.0000 | L64: 0.0000 | S64: 0.0000 | T64: 0.0000 | U64: 0.0000 | X64: 0.0000 | AB64: 0.0000 | AF64: 0.0000 | AK64: 0.0000 | AP64: 0.0000 | AQ64: 0.000
A65: 53 | B65: икра кабачк/икра баклажан | C65: кг | J65: 0.0000 | K65: 0.0000 | L65: 0.0000 | S65: 0.0000 | T65: 0.0000 | U65: 0.0000 | X65: 0.0000 | AB65: 0.0000 | AF65: 0.0000 | AK65: 0.0000 | AP65: 0.0000 | AQ65: 0.000
A66: 54 | B66: капуста морская сушеная | C66: кг | J66: 0.0000 | K66: 0.0000 | L66: 0.0000 | S66: 0.0000 | T66: 0.0000 | U66: 0.0000 | X66: 0.0000 | AB66: 0.0000 | AF66: 0.0000 | AK66: 0.0000 | AP66: 0.0000 | AQ66: 0.000
A67: 55 | B67: капуста квашеная | C67: кг | J67: 0.0000 | K67: 0.0000 | L67: 0.0000 | S67: 0.0000 | T67: 0.0000 | U67: 0.0000 | X67: 0.0000 | AB67: 0.0000 | AF67: 0.0000 | AK67: 0.0000 | AP67: 0.0000 | AQ67: 0.000
A68: 56 | B68: молоко сгущенное | C68: кг | J68: 0.0000 | K68: 0.0000 | L68: 0.0000 | S68: 0.0000 | T68: 0.0000 | U68: 0.0000 | X68: 0.0000 | AB68: 0.0000 | AF68: 0.0000 | AK68: 0.0000 | AP68: 0.0000 | AQ68: 0.000
A69: 57 | B69: огурцы соленые | C69: кг | J69: 0.0000 | K69: 0.0000 | L69: 0.0000 | S69: 0.0000 | T69: 0.0000 | U69: 0.0000 | X69: 0.0000 | AB69: 0.0000 | AF69: 0.0000 | AK69: 0.0000 | AP69: 0.0000 | AQ69: 0.000
A70: 58 | B70: повидло | C70: кг | J70: 0.0000 | K70: 0.0000 | L70: 0.0000 | S70: 0.0000 | T70: 0.0000 | U70: 0.0000 | X70: 0.0000 | AB70: 0.0000 | AF70: 0.0000 | AK70: 0.0000 | AP70: 0.0000 | AQ70: 0.000
A71: 59 | B71: томатная паста | C71: кг | J71: 0.0000 | K71: 0.0000 | L71: 0.0000 | S71: 0.0000 | T71: 0.0000 | U71: 0.0000 | X71: 0.0000 | AB71: 0.0000 | AF71: 0.0000 | AK71: 0.0000 | AP71: 0.0000 | AQ71: 0.000
A72: 60 | B72: рыбные консервы | C72: кг | J72: =(I72+H72+G72+E72+D72)*$J$5 -> 0.0000 | K72: =(I72+H72+G72+F72+D72)*$K$5 -> 0.0000 | L72: =K72+J72 -> 0.0000 | S72: =(M72+N72+P72+Q72+R72)*$S$5 -> 0.0000 | T72: =(M72+O72+P72+Q72+R72)*$T$5 -> 0.0000 | U72: =S72+T72 -> 0.0000 | X72: =(V72+W72)*$X$5 -> 0.0000 | AB72: =(Y72+Z72+AA72)*$AB$5 -> 0.0000 | AF72: =(AC72+AD72+AE72)*$AF$5 -> 0.0000 | AK72: =(AG72+AI72+AJ72)*$AK$5 -> 0.0000 | AP72: =(AL72+AM72+AO72+AN72)*$AP$5 -> 0.0000 | AQ72: =AP72+AK72+AF72+AB72+X72+U72+L72 -> 0.000
B73: Напитки | J73: 0.0000 | K73: 0.0000 | L73: 0.0000 | S73: 0.0000 | T73: 0.0000 | U73: 0.0000 | X73: 0.0000 | AB73: 0.0000 | AF73: 0.0000 | AK73: 0.0000 | AP73: 0.0000 | AQ73: 0.000
A74: 61 | B74: чай весовой | C74: кг | J74: 0.0000 | K74: 0.0000 | L74: 0.0000 | S74: 0.0000 | T74: 0.0000 | U74: 0.0000 | W74: 0.0010 | X74: 0.0010 | Z74: 0.0010 | AB74: 0.0010 | AF74: 0.0000 | AI74: 0.0010 | AK74: 0.0010 | AN74: 0.0010 | AP74: 0.0000 | AQ74: 0.003
A75: 62 | B75: какао | C75: кг | J75: 0.0000 | K75: 0.0000 | L75: 0.0000 | S75: 0.0000 | T75: 0.0000 | U75: 0.0000 | X75: 0.0000 | AB75: 0.0000 | AF75: 0.0000 | AK75: 0.0000 | AP75: 0.0000 | AQ75: 0.000
A76: 63 | B76: кисель | C76: кг | J76: 0.0000 | K76: 0.0000 | L76: 0.0000 | S76: 0.0000 | T76: 0.0000 | U76: 0.0000 | X76: 0.0000 | AB76: 0.0000 | AF76: 0.0000 | AK76: 0.0000 | AP76: 0.0000 | AQ76: 0.000
A77: 64 | B77: кофейный напиток | C77: кг | H77: 0.005 | J77: 0.0050 | K77: 0.0000 | L77: 0.0050 | Q77: 0.005 | S77: 0.0050 | T77: 0.0000 | U77: 0.0050 | X77: 0.0000 | AB77: 0.0000 | AF77: 0.0000 | AK77: 0.0000 | AP77: 0.0000 | AQ77: 0.010
A78: 65 | B78: цикорий | C78: кг | J78: 0.0000 | K78: 0.0000 | L78: 0.0000 | S78: 0.0000 | T78: 0.0000 | U78: 0.0000 | X78: 0.0000 | AB78: 0.0000 | AF78: 0.0000 | AK78: 0.0000 | AP78: 0.0000 | AQ78: 0.000
B79: Сухофрукты | J79: 0.0000 | K79: 0.0000 | L79: 0.0000 | S79: 0.0000 | T79: 0.0000 | U79: 0.0000 | X79: 0.0000 | AB79: 0.0000 | AF79: 0.0000 | AK79: 0.0000 | AP79: 0.0000 | AQ79: 0.000
A80: 66 | B80: ассорти для компота (сухофрукты) | C80: кг | J80: 0.0000 | K80: 0.0000 | L80: 0.0000 | S80: 0.0000 | T80: 0.0000 | U80: 0.0000 | X80: 0.0000 | AB80: 0.0000 | AF80: 0.0000 | AK80: 0.0000 | AP80: 0.0000 | AQ80: 0.000
A81: 67 | B81: изюм | C81: кг | J81: 0.0000 | K81: 0.0000 | L81: 0.0000 | S81: 0.0000 | T81: 0.0000 | U81: 0.0000 | X81: 0.0000 | AB81: 0.0000 | AF81: 0.0000 | AK81: 0.0000 | AP81: 0.0000 | AQ81: 0.000
A82: 68 | B82: курага | C82: кг | J82: 0.0000 | K82: 0.0000 | L82: 0.0000 | S82: 0.0000 | T82: 0.0000 | U82: 0.0000 | X82: 0.0000 | AB82: 0.0000 | AF82: 0.0000 | AK82: 0.0000 | AP82: 0.0000 | AQ82: 0.000
A83: 69 | B83: урюк | C83: кг | J83: 0.0000 | K83: 0.0000 | L83: 0.0000 | S83: 0.0000 | T83: 0.0000 | U83: 0.0000 | X83: 0.0000 | AB83: 0.0000 | AF83: 0.0000 | AK83: 0.0000 | AP83: 0.0000 | AQ83: 0.000
A84: 70 | B84: шиповник | C84: кг | J84: 0.0000 | K84: 0.0000 | L84: 0.0000 | S84: 0.0000 | T84: 0.0000 | U84: 0.0000 | X84: 0.0000 | AB84: 0.0000 | AD84: 0.0153 | AF84: 0.0153 | AK84: 0.0000 | AP84: 0.0000 | AQ84: 0.015
A85: 71 | B85: компотная смесь с/м | C85: кг | J85: 0.0000 | K85: 0.0000 | L85: 0.0000 | S85: 0.0000 | T85: 0.0000 | U85: 0.0000 | X85: 0.0000 | AB85: 0.0000 | AF85: 0.0000 | AK85: 0.0000 | AP85: 0.0000 | AQ85: 0.000
A86: 72 | B86: вишня с/м | C86: кг | J86: 0.0000 | K86: 0.0000 | L86: 0.0000 | S86: 0.0000 | T86: 0.0000 | U86: 0.0000 | X86: 0.0000 | AB86: 0.0000 | AF86: 0.0000 | AK86: 0.0000 | AP86: 0.0000 | AQ86: 0.000
A87: 73 | B87: клюква с/м | C87: кг | J87: 0.0000 | K87: 0.0000 | L87: 0.0000 | S87: 0.0000 | T87: 0.0000 | U87: 0.0000 | X87: 0.0000 | AB87: 0.0000 | AF87: 0.0000 | AK87: 0.0000 | AP87: 0.0000 | AQ87: 0.000
A88: 74 | B88: смородина в ассорт с/м | C88: кг | J88: 0.0000 | K88: 0.0000 | L88: 0.0000 | S88: 0.0000 | T88: 0.0000 | U88: 0.0000 | X88: 0.0000 | AB88: 0.0000 | AF88: 0.0000 | AK88: 0.0000 | AP88: 0.0000 | AQ88: 0.000
A89: 75 | B89: облепиха с/м | C89: кг | J89: 0.0000 | K89: 0.0000 | L89: 0.0000 | S89: 0.0000 | T89: 0.0000 | U89: 0.0000 | X89: 0.0000 | AB89: 0.0000 | AF89: 0.0000 | AK89: 0.0000 | AP89: 0.0000 | AQ89: 0.000
B90: Сок | J90: 0.0000 | K90: 0.0000 | L90: 0.0000 | S90: 0.0000 | T90: 0.0000 | U90: 0.0000 | X90: 0.0000 | AB90: 0.0000 | AF90: 0.0000 | AK90: 0.0000 | AP90: 0.0000 | AQ90: 0.000
A91: 76 | B91: сок 0,125л или 0,2л | C91: л | J91: 0.0000 | K91: 0.0000 | L91: 0.0000 | S91: 0.0000 | T91: 0.0000 | U91: 0.0000 | X91: 0.0000 | AB91: 0.0000 | AF91: 0.0000 | AK91: 0.0000 | AP91: 0.0000 | AQ91: 0.000
A92: 77 | B92: нектар плодовый | C92: л | J92: 0.0000 | K92: 0.0000 | L92: 0.0000 | S92: 0.0000 | T92: 0.0000 | U92: 0.0000 | X92: 0.0000 | AB92: 0.0000 | AF92: 0.0000 | AK92: 0.0000 | AP92: 0.0000 | AQ92: 0.000
B93: Кондитерка | J93: 0.0000 | K93: 0.0000 | L93: 0.0000 | S93: 0.0000 | T93: 0.0000 | U93: 0.0000 | X93: 0.0000 | AB93: 0.0000 | AF93: 0.0000 | AK93: 0.0000 | AP93: 0.0000 | AQ93: 0.000
A94: 78 | B94: батончик злаковый | C94: шт | J94: 0.0000 | K94: 0.0000 | L94: 0.0000 | S94: 0.0000 | T94: 0.0000 | U94: 0.0000 | X94: 0.0000 | AB94: 0.0000 | AF94: 0.0000 | AK94: 0.0000 | AP94: 0.0000 | AQ94: 0.000
A95: 79 | B95: пряник | C95: кг | J95: 0.0000 | K95: 0.0000 | L95: 0.0000 | S95: 0.0000 | T95: 0.0000 | U95: 0.0000 | X95: 0.0000 | AB95: 0.0000 | AF95: 0.0000 | AK95: 0.0000 | AP95: 0.0000 | AQ95: 0.000
A96: 80 | B96: вафли | C96: кг | J96: 0.0000 | K96: 0.0000 | L96: 0.0000 | S96: 0.0000 | T96: 0.0000 | U96: 0.0000 | V96: 0.0200 | X96: 0.0200 | AB96: 0.0000 | AF96: 0.0000 | AK96: 0.0000 | AM96: 0.0300 | AP96: 0.0000 | AQ96: 0.020
A97: 81 | B97: печенье | C97: кг | J97: 0.0000 | K97: 0.0000 | L97: 0.0000 | S97: 0.0000 | T97: 0.0000 | U97: 0.0000 | X97: 0.0000 | AB97: 0.0000 | AF97: 0.0000 | AK97: 0.0000 | AP97: 0.0000 | AQ97: 0.000
A98: 82 | B98: крекер | C98: кг | J98: 0.0000 | K98: 0.0000 | L98: 0.0000 | S98: 0.0000 | T98: 0.0000 | U98: 0.0000 | X98: 0.0000 | AB98: 0.0000 | AF98: 0.0000 | AK98: 0.0000 | AP98: 0.0000 | AQ98: 0.000
A99: 83 | B99: сушки | C99: кг | J99: 0.0000 | K99: 0.0000 | L99: 0.0000 | S99: 0.0000 | T99: 0.0000 | U99: 0.0000 | X99: 0.0000 | AB99: 0.0000 | AF99: 0.0000 | AK99: 0.0000 | AP99: 0.0000 | AQ99: 0.000
A100: 84 | B100: мармелад | C100: кг | J100: 0.0000 | K100: 0.0000 | L100: 0.0000 | S100: 0.0000 | T100: 0.0000 | U100: 0.0000 | X100: 0.0000 | AB100: 0.0000 | AF100: 0.0000 | AK100: 0.0000 | AP100: 0.0000 | AQ100: 0.000
A101: 85 | B101: блины п/ф | C101: кг | J101: 0.0000 | K101: 0.0000 | L101: 0.0000 | S101: 0.0000 | T101: 0.0000 | U101: 0.0000 | X101: 0.0000 | AB101: 0.0000 | AF101: 0.0000 | AK101: 0.0000 | AP101: 0.0000 | AQ101: 0.000
A102: 86 | B102: выпечка п/ф со склада | C102: шт | J102: 0.0000 | K102: 0.0000 | L102: 0.0000 | S102: 0.0000 | T102: 0.0000 | U102: 0.0000 | X102: 0.0000 | AB102: 0.0000 | AF102: 0.0000 | AK102: 0.0000 | AP102: 0.0000 | AQ102: 0.000
B103: Яйцо | J103: 0.0000 | K103: 0.0000 | L103: 0.0000 | S103: 0.0000 | T103: 0.0000 | U103: 0.0000 | X103: 0.0000 | AB103: 0.0000 | AF103: 0.0000 | AK103: 0.0000 | AP103: 0.0000 | AQ103: 0.000
A104: 87 | B104: яйцо куриное | C104: кг | F104: 0.0029 | J104: 0.0000 | K104: 0.0000 | L104: 0.0000 | O104: 0.0029 | S104: 0.0000 | T104: 0.0000 | U104: 0.0000 | X104: 0.0000 | AB104: 0.0000 | AF104: 0.0000 | AK104: 0.0000 | AP104: 0.0000 | AQ104: 0.000
B105: 0.048 | C105: шт | J105: 0.0000 | K105: 0.0000 | L105: 0.0000 | S105: 0.0000 | T105: 0.0000 | U105: 0.0000 | X105: 0.0000 | AB105: 0.0000 | AF105: 0.0000 | AK105: 0.0000 | AP105: 0.0000 | AQ105: 0.000
B106: Овощи заморозка | J106: 0.0000 | K106: 0.0000 | L106: 0.0000 | S106: 0.0000 | T106: 0.0000 | U106: 0.0000 | X106: 0.0000 | AB106: 0.0000 | AF106: 0.0000 | AK106: 0.0000 | AP106: 0.0000 | AQ106: 0.000
A107: 88 | B107: зеленый горошек с/м | C107: кг | J107: 0.0000 | K107: 0.0000 | L107: 0.0000 | S107: 0.0000 | T107: 0.0000 | U107: 0.0000 | X107: 0.0000 | AB107: 0.0000 | AF107: 0.0000 | AK107: 0.0000 | AP107: 0.0000 | AQ107: 0.000
A108: 89 | B108: кабачки с/м | C108: кг | J108: 0.0000 | K108: 0.0000 | L108: 0.0000 | S108: 0.0000 | T108: 0.0000 | U108: 0.0000 | X108: 0.0000 | AB108: 0.0000 | AF108: 0.0000 | AK108: 0.0000 | AP108: 0.0000 | AQ108: 0.000
A109: 90 | B109: мексиканс смесь с/м | C109: кг | J109: 0.0000 | K109: 0.0000 | L109: 0.0000 | S109: 0.0000 | T109: 0.0000 | U109: 0.0000 | X109: 0.0000 | AB109: 0.0000 | AF109: 0.0000 | AK109: 0.0000 | AP109: 0.0000 | AQ109: 0.000
A110: 91 | B110: капуста цветная с/м | C110: кг | J110: 0.0000 | K110: 0.0000 | L110: 0.0000 | S110: 0.0000 | T110: 0.0000 | U110: 0.0000 | X110: 0.0000 | AB110: 0.0000 | AF110: 0.0000 | AK110: 0.0000 | AP110: 0.0000 | AQ110: 0.000
A111: 92 | B111: брокколи с/м | C111: кг | J111: 0.0000 | K111: 0.0000 | L111: 0.0000 | S111: 0.0000 | T111: 0.0000 | U111: 0.0000 | X111: 0.0000 | AB111: 0.0000 | AF111: 0.0000 | AK111: 0.0000 | AP111: 0.0000 | AQ111: 0.000
A112: 93 | B112: кукуруза с/м | C112: кг | J112: 0.0000 | K112: 0.0000 | L112: 0.0000 | S112: 0.0000 | T112: 0.0000 | U112: 0.0000 | X112: 0.0000 | AB112: 0.0000 | AF112: 0.0000 | AK112: 0.0000 | AP112: 0.0000 | AQ112: 0.000
A113: 94 | B113: фасоль стручковая с/м | C113: кг | J113: 0.0000 | K113: 0.0000 | L113: 0.0000 | S113: 0.0000 | T113: 0.0000 | U113: 0.0000 | X113: 0.0000 | AB113: 0.0000 | AF113: 0.0000 | AK113: 0.0000 | AP113: 0.0000 | AQ113: 0.000
B114: Фрукты | J114: 0.0000 | K114: 0.0000 | L114: 0.0000 | S114: 0.0000 | T114: 0.0000 | U114: 0.0000 | X114: 0.0000 | AB114: 0.0000 | AF114: 0.0000 | AK114: 0.0000 | AP114: 0.0000 | AQ114: 0.000
A115: 95 | B115: апельсин | C115: кг | J115: 0.0000 | K115: 0.0000 | L115: 0.0000 | S115: 0.0000 | T115: 0.0000 | U115: 0.0000 | X115: 0.0000 | AB115: 0.0000 | AF115: 0.0000 | AK115: 0.0000 | AP115: 0.0000 | AQ115: 0.000
A116: 96 | B116: банан | C116: кг | J116: 0.0000 | K116: 0.0000 | L116: 0.0000 | S116: 0.0000 | T116: 0.0000 | U116: 0.0000 | X116: 0.0000 | AB116: 0.0000 | AF116: 0.0000 | AK116: 0.0000 | AP116: 0.0000 | AQ116: 0.000
A117: 97 | B117: груши | C117: кг | J117: 0.0000 | K117: 0.0000 | L117: 0.0000 | S117: 0.0000 | T117: 0.0000 | U117: 0.0000 | X117: 0.0000 | AB117: 0.0000 | AF117: 0.0000 | AK117: 0.0000 | AP117: 0.0000 | AQ117: 0.000
A118: 98 | B118: мандарины | C118: кг | J118: 0.0000 | K118: 0.0000 | L118: 0.0000 | S118: 0.0000 | T118: 0.0000 | U118: 0.0000 | X118: 0.0000 | AB118: 0.0000 | AF118: 0.0000 | AK118: 0.0000 | AP118: 0.0000 | AQ118: 0.000
A119: 99 | B119: лимон | C119: кг | J119: 0.0000 | K119: 0.0000 | L119: 0.0000 | S119: 0.0000 | T119: 0.0000 | U119: 0.0000 | W119: 0.0056 | X119: 0.0056 | Z119: 0.0056 | AB119: 0.0056 | AF119: 0.0000 | AI119: 0.0056 | AK119: 0.0056 | AN119: 0.0056 | AP119: 0.0000 | AQ119: 0.017
A120: 100 | B120: яблоки свежие | C120: кг | D120: 0.1000 | J120: 0.1000 | K120: 0.0000 | L120: 0.1000 | M120: 0.1000 | S120: 0.1000 | T120: 0.0000 | U120: 0.1000 | X120: 0.0000 | AB120: 0.0000 | AF120: 0.0000 | AK120: 0.0000 | AP120: 0.0000 | AQ120: 0.200
B121: Овощи / зелень | J121: 0.0000 | K121: 0.0000 | L121: 0.0000 | S121: 0.0000 | T121: 0.0000 | U121: 0.0000 | X121: 0.0000 | AB121: 0.0000 | AF121: 0.0000 | AK121: 0.0000 | AP121: 0.0000 | AQ121: 0.000
A122: 101 | B122: капуста свежая | C122: кг | J122: 0.0000 | K122: 0.0000 | L122: 0.0000 | S122: 0.0000 | T122: 0.0000 | U122: 0.0000 | X122: 0.0000 | AB122: 0.0000 | AF122: 0.0000 | AK122: 0.0000 | AP122: 0.0000 | AQ122: 0.000
A123: 102 | B123: картофель | C123: кг | J123: 0.0000 | K123: 0.0000 | L123: 0.0000 | S123: 0.0000 | T123: 0.0000 | U123: 0.0000 | X123: 0.0000 | AB123: 0.0000 | AF123: 0.0000 | AK123: 0.0000 | AP123: 0.0000 | AQ123: 0.000
A124: 103 | B124: лук репчатый | C124: кг | J124: 0.0000 | K124: 0.0000 | L124: 0.0000 | S124: 0.0000 | T124: 0.0000 | U124: 0.0000 | X124: 0.0000 | AB124: 0.0000 | AC124: 0.0060 | AF124: 0.0060 | AG124: 0.0060 | AK124: 0.0060 | AL124: 0.0060 | AP124: 0.0000 | AQ124: 0.012
A125: 104 | B125: морковь | C125: кг | J125: 0.0000 | K125: 0.0000 | L125: 0.0000 | S125: 0.0000 | T125: 0.0000 | U125: 0.0000 | X125: 0.0000 | AB125: 0.0000 | AC125: 0.0063 | AF125: 0.0063 | AG125: 0.0063 | AK125: 0.0063 | AL125: 0.0063 | AP125: 0.0000 | AQ125: 0.013
A126: 105 | B126: свекла | C126: кг | J126: 0.0000 | K126: 0.0000 | L126: 0.0000 | S126: 0.0000 | T126: 0.0000 | U126: 0.0000 | X126: 0.0000 | AB126: 0.0000 | AF126: 0.0000 | AK126: 0.0000 | AP126: 0.0000 | AQ126: 0.000
A127: 106 | B127: огурцы св. | C127: кг | J127: 0.0000 | K127: 0.0000 | L127: 0.0000 | S127: 0.0000 | T127: 0.0000 | U127: 0.0000 | X127: 0.0000 | AB127: 0.0000 | AF127: 0.0000 | AK127: 0.0000 | AP127: 0.0000 | AQ127: 0.000
A128: 107 | B128: томаты св. | C128: кг | J128: 0.0000 | K128: 0.0000 | L128: 0.0000 | S128: 0.0000 | T128: 0.0000 | U128: 0.0000 | X128: 0.0000 | AB128: 0.0000 | AF128: 0.0000 | AK128: 0.0000 | AP128: 0.0000 | AQ128: 0.000
A129: 108 | B129: перец болг.красный | C129: кг | J129: 0.0000 | K129: 0.0000 | L129: 0.0000 | S129: 0.0000 | T129: 0.0000 | U129: 0.0000 | X129: 0.0000 | AB129: 0.0000 | AF129: 0.0000 | AK129: 0.0000 | AP129: 0.0000 | AQ129: 0.000
A130: 109 | B130: тыква | C130: кг | J130: 0.0000 | K130: 0.0000 | L130: 0.0000 | S130: 0.0000 | T130: 0.0000 | U130: 0.0000 | X130: 0.0000 | AB130: 0.0000 | AF130: 0.0000 | AK130: 0.0000 | AP130: 0.0000 | AQ130: 0.000
B131: Овощи очищенные | J131: 0.0000 | K131: 0.0000 | L131: 0.0000 | S131: 0.0000 | T131: 0.0000 | U131: 0.0000 | X131: 0.0000 | AB131: 0.0000 | AF131: 0.0000 | AK131: 0.0000 | AP131: 0.0000 | AQ131: 0.000
A132: 110 | B132: капуста св.очищенная | C132: кг | J132: 0.0000 | K132: 0.0000 | L132: 0.0000 | S132: 0.0000 | T132: 0.0000 | U132: 0.0000 | X132: 0.0000 | AB132: 0.0000 | AF132: 0.0000 | AK132: 0.0000 | AP132: 0.0000 | AQ132: 0.000
A133: 111 | B133: картофель св. очищенный | C133: кг | J133: 0.0000 | K133: 0.0000 | L133: 0.0000 | S133: 0.0000 | T133: 0.0000 | U133: 0.0000 | X133: 0.0000 | AB133: 0.0000 | AF133: 0.0000 | AK133: 0.0000 | AP133: 0.0000 | AQ133: 0.000
A134: 112 | B134: лук репчатый св.очищенный | C134: кг | J134: 0.0000 | K134: 0.0000 | L134: 0.0000 | S134: 0.0000 | T134: 0.0000 | U134: 0.0000 | X134: 0.0000 | AB134: 0.0000 | AF134: 0.0000 | AK134: 0.0000 | AP134: 0.0000 | AQ134: 0.000
A135: 113 | B135: морковь св.очищенная | C135: кг | J135: 0.0000 | K135: 0.0000 | L135: 0.0000 | S135: 0.0000 | T135: 0.0000 | U135: 0.0000 | X135: 0.0000 | AB135: 0.0000 | AF135: 0.0000 | AK135: 0.0000 | AP135: 0.0000 | AQ135: 0.000
A136: 114 | B136: свекла св.очищенная | C136: кг | J136: =(I136+H136+G136+E136+D136)*$J$5 -> 0.0000 | K136: =(I136+H136+G136+F136+D136)*$K$5 -> 0.0000 | L136: =K136+J136 -> 0.0000 | S136: =(M136+N136+P136+Q136+R136)*$S$5 -> 0.0000 | T136: =(M136+O136+P136+Q136+R136)*$T$5 -> 0.0000 | U136: =S136+T136 -> 0.0000 | X136: =(V136+W136)*$X$5 -> 0.0000 | AB136: =(Y136+Z136+AA136)*$AB$5 -> 0.0000 | AF136: =(AC136+AD136+AE136)*$AF$5 -> 0.0000 | AK136: =(AG136+AI136+AJ136)*$AK$5 -> 0.0000 | AP136: =(AL136+AM136+AO136+AN136)*$AP$5 -> 0.0000 | AQ136: =AP136+AK136+AF136+AB136+X136+U136+L136 -> 0.000
B137: Полуфабрикаты | J137: 0.0000 | K137: 0.0000 | L137: 0.0000 | S137: 0.0000 | T137: 0.0000 | U137: 0.0000 | X137: 0.0000 | AB137: 0.0000 | AF137: 0.0000 | AK137: 0.0000 | AP137: 0.0000 | AQ137: 0.000
A138: 115 | B138: сырники ПФ | C138: шт | E138: 1.0000 | J138: 1.0000 | K138: 0.0000 | L138: 1.0000 | N138: 1.0000 | S138: 1.0000 | T138: 0.0000 | U138: 1.0000 | X138: 0.0000 | AB138: 0.0000 | AF138: 0.0000 | AK138: 0.0000 | AP138: 0.0000 | AQ138: 2.000
A139: 116 | B139: пельмени ПФ | C139: кг | J139: 0.0000 | K139: 0.0000 | L139: 0.0000 | S139: 0.0000 | T139: 0.0000 | U139: 0.0000 | X139: 0.0000 | AB139: 0.0000 | AF139: 0.0000 | AK139: 0.0000 | AP139: 0.0000 | AQ139: 0.000
A140: 117 | B140: биточки рыбные | C140: шт | J140: 0.0000 | K140: 0.0000 | L140: 0.0000 | S140: 0.0000 | T140: 0.0000 | U140: 0.0000 | X140: 0.0000 | AB140: 0.0000 | AF140: 0.0000 | AK140: 0.0000 | AP140: 0.0000 | AQ140: 0.000
A141: 118 | B141: фрикадельки мясные | C141: кг | J141: 0.0000 | K141: 0.0000 | L141: 0.0000 | S141: 0.0000 | T141: 0.0000 | U141: 0.0000 | X141: 0.0000 | AB141: 0.0000 | AF141: 0.0000 | AK141: 0.0000 | AP141: 0.0000 | AQ141: 0.000
A142: 119 | B142: фрикадельки куриные | C142: кг | J142: 0.0000 | K142: 0.0000 | L142: 0.0000 | S142: 0.0000 | T142: 0.0000 | U142: 0.0000 | X142: 0.0000 | AB142: 0.0000 | AF142: 0.0000 | AK142: 0.0000 | AP142: 0.0000 | AQ142: 0.000
A143: 120 | B143: хинкали п/ф из говядины | C143: кг | J143: 0.0000 | K143: 0.0000 | L143: 0.0000 | S143: 0.0000 | T143: 0.0000 | U143: 0.0000 | X143: 0.0000 | AB143: 0.0000 | AF143: 0.0000 | AK143: 0.0000 | AP143: 0.0000 | AQ143: 0.000
A144: 121 | B144: котлеты из говядины "Пожарские" | C144: шт | J144: 0.0000 | K144: 0.0000 | L144: 0.0000 | S144: 0.0000 | T144: 0.0000 | U144: 0.0000 | X144: 0.0000 | AB144: 0.0000 | AF144: 0.0000 | AK144: 0.0000 | AP144: 0.0000 | AQ144: 0.000
A145: 122 | B145: бифштекс из говядины | C145: шт | J145: 0.0000 | K145: 0.0000 | L145: 0.0000 | S145: 0.0000 | T145: 0.0000 | U145: 0.0000 | X145: 0.0000 | AB145: 0.0000 | AF145: 0.0000 | AK145: 0.0000 | AP145: 0.0000 | AQ145: 0.000
A146: 123 | B146: котлеты из мяса кур | C146: шт | J146: 0.0000 | K146: 0.0000 | L146: 0.0000 | S146: 0.0000 | T146: 0.0000 | U146: 0.0000 | X146: 0.0000 | AB146: 0.0000 | AF146: 0.0000 | AK146: 0.0000 | AP146: 0.0000 | AQ146: 0.000
A147: 124 | B147: котлеты "Аппетитные" мясо-куриные | C147: шт | J147: 0.0000 | K147: 0.0000 | L147: 0.0000 | S147: 0.0000 | T147: 0.0000 | U147: 0.0000 | X147: 0.0000 | AB147: 0.0000 | AF147: 0.0000 | AK147: 0.0000 | AP147: 0.0000 | AQ147: 0.000
A148: 125 | B148: ежики мясные с рисом | C148: шт | J148: 0.0000 | K148: 0.0000 | L148: 0.0000 | S148: 0.0000 | T148: 0.0000 | U148: 0.0000 | X148: 0.0000 | AB148: 0.0000 | AF148: 0.0000 | AK148: 0.0000 | AP148: 0.0000 | AQ148: 0.000

Sheet Ср День 3 Нед 1
A1: Расход продуктов питания в образовательных учереждениях
D2: Меню с 1 по 4 класс 77,76 РУБ | L2: ИТОГО | M2: Меню с 5 по 11 класс 77,76 РУБ | U2: ИТОГО | V2: Меню на сумму 10,70 РУБ | X2: ИТОГО | Y2: Меню КАШИ НА молоке 28,00 РУБ | AB2: ИТОГО | AC2: Меню СУПА 38,00 РУБ | AF2: ИТОГО | AG2: Меню ЧЕРЕДОВАНИЕ суп/второе 50,00 руб | AK2: ИТОГО | AL2: Меню ЧЕРЕДОВАНИЕ суп/второе +КОНДИТЕРКА 53,00 РУБ | AQ2: ИТОГО | AR2: ВСЕГО ЗА ДЕНЬ расход продуктов по всем рационам
B3: ДЕНЬ 3 неделя 1 | D3: сыр порционно | E3: гуляш из говядины | F3: каша гречневая рассыпч | G3: Чай с сахаром с лимоном | I3: Хлеб пшеничн /ржаной | N3: сыр порционно | O3: гуляш из говядины | P3: каша гречневая рассып | Q3: чай с сахаром с лимоном | R3: Хлеб пшеничн /ржаной | V3: пряники | W3: Чай с сахаром | Y3: макарон изд отварн с маслом слив | Z3: Компот из сухофруктов | AA3: хлеб ржаной | AC3: Щи из св капусты с мяс фрикад со сметаной | AD3: Компот из урюка | AE3: хлеб ржаной | AG3: гуляш из куриной грудки | AH3: каша гречневая рассып | AI3: компот из сухофруктов | AJ3: Хлеб ржаной | AL3: гуляш из куриной грудки | AM3: каша гречневая рассып | AO3: компот из сухофруктов | AP3: Хлеб ржаной
B4: КОЛИЧЕСТВО ДЕТЕЙ | D4: 7-11 | E4: 7-11 | F4: 7-11 | G4: 7-11 | H4: 7-11 | I4: 7-11 | M4: 12-18 | N4: 12-18 | O4: 12-18 | P4: 12-18 | Q4: 12-18 | R4: 12-18 | V4: 12-18 | W4: 12-18 | Y4: 12-18 | Z4: 12-18 | AA4: 12-18 | AC4: 12-18 | AD4: 12-18 | AE4: 12-18 | AG4: 12-18 | AH4: 12-18 | AI4: 12-18 | AJ4: 12-18 | AL4: 12-18 | AM4: 12-18 | AN4: 12-18 | AO4: 12-18 | AP4: 12-18
B5: Выход,гр | D5: 10 | E5: 50/50 | F5: 150 | G5: 185/10/5 | I5: 0/50 | L5: 1 | N5: 10 | O5: 50/50 | P5: 180 | Q5: 185/10/5 | R5: 20/40 | U5: 1 | V5: 35 | W5: 190/10 | X5: 1 | Y5: 150/3 | Z5: 200 | AA5: 30 | AB5: 1 | AC5: 250/10/5 | AD5: 200 | AE5: 30 | AF5: 1 | AG5: 50/50 | AH5: 180 | AI5: 200 | AJ5: 20 | AK5: 1 | AL5: 50/50 | AM5: 180 | AO5: 200 | AP5: 20 | AR5: =AQ5+AK5+AF5+AB5+X5+U5+L5 -> 6
B6: Хлеб
A7: 1 | B7: батон | C7: кг | J7: =(D7+E7+G7+H7+I7+F7)*$J$5 -> 0.0000 | K7: =(I7+D7+H7+G7+F7)*$K$5 -> 0.0000 | L7: =(I7+G7+F7+E7+D7)*$L$5 -> 0.0000 | U7: =(R7+Q7+P7+O7+N7)*$U$5 -> 0.0000 | X7: =(W7+V7)*$X$5 -> 0.0000 | AB7: =(AA7+Z7+Y7)*$AB$5 -> 0.0000 | AF7: =(AC7+AD7+AE7)*$AF$5 -> 0.0000 | AK7: =(AG7+AI7+AJ7+AH7)*$AK$5 -> 0.0000 | AQ7: =(AP7+AO7+AN7+AM7+AL7)*$AQ$5 -> 0.0000 | AR7: =AQ7+AK7+AF7+AB7+X7+U7+L7 -> 0.000
A8: 2 | B8: хлеб пшеничный | C8: кг | J8: =(D8+E8+G8+H8+I8+F8)*$J$5 -> 0.0000 | K8: 0.0000 | L8: =(I8+G8+F8+E8+D8)*$L$5 -> 0.0000 | R8: 0.0200 | U8: =(R8+Q8+P8+O8+N8)*$U$5 -> 0.0200 | X8: =(W8+V8)*$X$5 -> 0.0000 | AB8: =(AA8+Z8+Y8)*$AB$5 -> 0.0000 | AF8: =(AC8+AD8+AE8)*$AF$5 -> 0.0000 | AK8: 0.0000 | AQ8: =(AP8+AO8+AN8+AM8+AL8)*$AQ$5 -> 0.0000 | AR8: =AQ8+AK8+AF8+AB8+X8+U8+L8 -> 0.020
A9: 3 | B9: хлеб ржаной | C9: кг | I9: 0.0500 | J9: 0.0000 | K9: 0.0000 | L9: 0.0500 | R9: 0.0400 | U9: 0.0400 | X9: 0.0000 | AA9: 0.0300 | AB9: 0.0300 | AE9: 0.0300 | AF9: 0.0300 | AJ9: 0.0200 | AK9: 0.0200 | AP9: 0.0200 | AQ9: 0.0000 | AR9: 0.170
A10: 4 | B10: булоч/выпечка ПФ | C10: кг | J10: 0.0000 | K10: 0.0000 | L10: 0.0000 | U10: 0.0000 | X10: 0.0000 | AB10: 0.0000 | AF10: 0.0000 | AK10: 0.0000 | AQ10: 0.0000 | AR10: 0.000
B11: Молочка | J11: 0.0000 | K11: 0.0000 | L11: 0.0000 | U11: 0.0000 | X11: 0.0000 | AB11: 0.0000 | AF11: 0.0000 | AK11: 0.0000 | AQ11: 0.0000 | AR11: 0.000
A12: 5 | B12: молоко 2,5% | C12: кг | J12: 0.0000 | K12: 0.0000 | L12: 0.0000 | U12: 0.0000 | X12: 0.0000 | AB12: 0.0000 | AF12: 0.0000 | AK12: 0.0000 | AQ12: 0.0000 | AR12: 0.000
A13: 6 | B13: творог 5% | C13: кг | J13: 0.0000 | K13: 0.0000 | L13: 0.0000 | U13: 0.0000 | X13: 0.0000 | AB13: 0.0000 | AF13: 0.0000 | AK13: 0.0000 | AQ13: 0.0000 | AR13: 0.000
A14: 7 | B14: сметана 15% | C14: кг | J14: 0.0000 | K14: 0.0000 | L14: 0.0000 | U14: 0.0000 | X14: 0.0000 | AB14: 0.0000 | AC14: 0.0050 | AF14: 0.0050 | AK14: 0.0000 | AQ14: 0.0000 | AR14: 0.005
A15: 8 | B15: йогурт фруктов | C15: кг | J15: 0.0000 | K15: 0.0000 | L15: 0.0000 | U15: 0.0000 | X15: 0.0000 | AB15: 0.0000 | AF15: 0.0000 | AK15: 0.0000 | AQ15: 0.0000 | AR15: 0.000
A16: 9 | B16: катык 2,5% | C16: кг | J16: 0.0000 | K16: 0.0000 | L16: 0.0000 | U16: 0.0000 | X16: 0.0000 | AB16: 0.0000 | AF16: 0.0000 | AK16: 0.0000 | AQ16: 0.0000 | AR16: 0.000
A17: 10 | B17: кефир 2,5% | C17: кг | J17: 0.0000 | K17: 0.0000 | L17: 0.0000 | U17: 0.0000 | X17: 0.0000 | AB17: 0.0000 | AF17: 0.0000 | AK17: 0.0000 | AQ17: 0.0000 | AR17: 0.000
A18: 11 | B18: ряженка 2,5% | C18: кг | J18: 0.0000 | K18: 0.0000 | L18: 0.0000 | U18: 0.0000 | X18: 0.0000 | AB18: 0.0000 | AF18: 0.0000 | AK18: 0.0000 | AQ18: 0.0000 | AR18: 0.000
A19: 12 | B19: напиток ацидофильный | C19: кг | J19: 0.0000 | K19: 0.0000 | L19: 0.0000 | U19: 0.0000 | X19: 0.0000 | AB19: 0.0000 | AF19: 0.0000 | AK19: 0.0000 | AQ19: 0.0000 | AR19: 0.000
B20: Масло / сыр | J20: 0.0000 | K20: 0.0000 | L20: 0.0000 | U20: 0.0000 | X20: 0.0000 | AB20: 0.0000 | AF20: 0.0000 | AK20: 0.0000 | AQ20: 0.0000 | AR20: 0.000
A21: 13 | B21: масло растительное | C21: кг | E21: 0.0025 | J21: 0.0000 | K21: 0.0000 | L21: 0.0025 | O21: 0.0025 | U21: 0.0025 | X21: 0.0000 | AB21: 0.0000 | AC21: 0.0050 | AF21: 0.0050 | AG21: 0.0025 | AK21: 0.0025 | AL21: 0.0025 | AQ21: 0.0000 | AR21: 0.013
A22: 14 | B22: масло сливочное | C22: кг | J22: 0.0000 | K22: 0.0000 | L22: 0.0000 | U22: 0.0000 | X22: 0.0000 | Y22: 0.0030 | AB22: 0.0030 | AF22: 0.0000 | AK22: 0.0000 | AQ22: 0.0000 | AR22: 0.003
A23: 15 | B23: сыр голландский | C23: кг | D23: 0.0102 | J23: 0.0000 | K23: 0.0000 | L23: 0.0102 | N23: 0.0102 | U23: 0.0102 | X23: 0.0000 | AB23: 0.0000 | AF23: 0.0000 | AK23: 0.0000 | AQ23: 0.0000 | AR23: 0.020
B24: Мясо | J24: 0.0000 | K24: 0.0000 | L24: 0.0000 | U24: 0.0000 | X24: 0.0000 | AB24: 0.0000 | AF24: 0.0000 | AK24: 0.0000 | AQ24: 0.0000 | AR24: 0.000
A25: 16 | B25: говядина (котлетное мясо) | C25: кг | J25: 0.0000 | K25: 0.0000 | L25: 0.0000 | U25: 0.0000 | X25: 0.0000 | AB25: 0.0000 | AF25: 0.0000 | AK25: 0.0000 | AQ25: 0.0000 | AR25: 0.000
A26: 17 | B26: фарш говяжий | C26: кг | J26: 0.0000 | K26: 0.0000 | L26: 0.0000 | U26: 0.0000 | X26: 0.0000 | AB26: 0.0000 | AC26: 0.0120 | AF26: 0.0120 | AK26: 0.0000 | AQ26: 0.0000 | AR26: 0.012
A27: 18 | B27: говядина лопатка б/к | C27: кг | E27: 0.0800 | J27: 0.0000 | K27: 0.0000 | L27: 0.0800 | O27: 0.0800 | U27: 0.0800 | X27: 0.0000 | AB27: 0.0000 | AF27: 0.0000 | AK27: 0.0000 | AQ27: 0.0000 | AR27: 0.160
A28: 19 | B28: сосиски | C28: кг | J28: 0.0000 | K28: 0.0000 | L28: 0.0000 | U28: 0.0000 | X28: 0.0000 | AB28: 0.0000 | AF28: 0.0000 | AK28: 0.0000 | AQ28: 0.0000 | AR28: 0.000
A29: 20 | B29: колбаса п/к "Халяль" | C29: кг | J29: 0.0000 | K29: 0.0000 | L29: 0.0000 | U29: 0.0000 | X29: 0.0000 | AB29: 0.0000 | AF29: 0.0000 | AK29: 0.0000 | AQ29: 0.0000 | AR29: 0.000
A30: 21 | B30: куриное бедро | C30: кг | J30: 0.0000 | K30: 0.0000 | L30: 0.0000 | U30: 0.0000 | X30: 0.0000 | AB30: 0.0000 | AF30: 0.0000 | AK30: 0.0000 | AQ30: 0.0000 | AR30: 0.000
A31: 22 | B31: куриная грудка | C31: кг | J31: 0.0000 | K31: 0.0000 | L31: 0.0000 | U31: 0.0000 | X31: 0.0000 | AB31: 0.0000 | AF31: 0.0000 | AG31: 0.0812 | AK31: 0.0812 | AL31: 0.0812 | AQ31: 0.0000 | AR31: 0.081
A32: 23 | B32: куры/цыплята потрош | C32: кг | J32: 0.0000 | K32: 0.0000 | L32: 0.0000 | U32: 0.0000 | X32: 0.0000 | AB32: 0.0000 | AF32: 0.0000 | AK32: 0.0000 | AQ32: 0.0000 | AR32: 0.000
A33: 24 | B33: фарш куриный | C33: кг | J33: 0.0000 | K33: 0.0000 | L33: 0.0000 | U33: 0.0000 | X33: 0.0000 | AB33: 0.0000 | AF33: 0.0000 | AK33: 0.0000 | AQ33: 0.0000 | AR33: 0.000
A34: 25 | B34: индейка бедро филе | C34: кг | J34: 0.0000 | K34: 0.0000 | L34: 0.0000 | U34: 0.0000 | X34: 0.0000 | AB34: 0.0000 | AF34: 0.0000 | AK34: 0.0000 | AQ34: 0.0000 | AR34: 0.000
A35: 26 | B35: индейка грудка филе | C35: кг | J35: 0.0000 | K35: 0.0000 | L35: 0.0000 | U35: 0.0000 | X35: 0.0000 | AB35: 0.0000 | AF35: 0.0000 | AK35: 0.0000 | AQ35: 0.0000 | AR35: 0.000
B36: Рыба | J36: 0.0000 | K36: 0.0000 | L36: 0.0000 | U36: 0.0000 | X36: 0.0000 | AB36: 0.0000 | AF36: 0.0000 | AK36: 0.0000 | AQ36: 0.0000 | AR36: 0.000
A37: 27 | B37: горбуша ПБГ с/м | C37: кг | J37: 0.0000 | K37: 0.0000 | L37: 0.0000 | U37: 0.0000 | X37: 0.0000 | AB37: 0.0000 | AF37: 0.0000 | AK37: 0.0000 | AQ37: 0.0000 | AR37: 0.000
A38: 28 | B38: минтай б/г с/м | C38: кг | J38: 0.0000 | K38: 0.0000 | L38: 0.0000 | U38: 0.0000 | X38: 0.0000 | AB38: 0.0000 | AF38: 0.0000 | AK38: 0.0000 | AQ38: 0.0000 | AR38: 0.000
A39: 29 | B39: фарш минтая | C39: кг | J39: 0.0000 | K39: =(I39+D39+H39+G39+F39)*$K$5 -> 0.0000 | L39: 0.0000 | U39: 0.0000 | X39: 0.0000 | AB39: 0.0000 | AF39: 0.0000 | AK39: =(AG39+AI39+AJ39+AH39)*$AK$5 -> 0.0000 | AQ39: 0.0000 | AR39: 0.000
B40: Сыпучка | J40: 0.0000 | K40: 0.0000 | L40: 0.0000 | U40: 0.0000 | X40: 0.0000 | AB40: 0.0000 | AF40: 0.0000 | AK40: 0.0000 | AQ40: 0.0000 | AR40: 0.000
A41: 30 | B41: вермишель | C41: кг | J41: 0.0000 | K41: 0.0000 | L41: 0.0000 | U41: 0.0000 | X41: 0.0000 | AB41: 0.0000 | AF41: 0.0000 | AK41: 0.0000 | AQ41: 0.0000 | AR41: 0.000
A42: 31 | B42: геркулес | C42: кг | J42: 0.0000 | K42: 0.0000 | L42: 0.0000 | U42: 0.0000 | X42: 0.0000 | AB42: 0.0000 | AF42: 0.0000 | AK42: 0.0000 | AQ42: 0.0000 | AR42: 0.000
A43: 32 | B43: горох | C43: кг | J43: 0.0000 | K43: 0.0000 | L43: 0.0000 | U43: 0.0000 | X43: 0.0000 | AB43: 0.0000 | AF43: 0.0000 | AK43: 0.0000 | AQ43: 0.0000 | AR43: 0.000
A44: 33 | B44: гречневая крупа | C44: кг | F44: 0.0710 | J44: 0.0000 | K44: 0.0000 | L44: 0.0710 | P44: 0.0852 | U44: 0.0852 | X44: 0.0000 | AB44: 0.0000 | AF44: 0.0000 | AH44: 0.0852 | AK44: 0.0852 | AM44: 0.0852 | AQ44: 0.0000 | AR44: 0.241
A45: 34 | B45: кукурузная крупа | C45: кг | J45: 0.0000 | K45: 0.0000 | L45: 0.0000 | U45: 0.0000 | X45: 0.0000 | AB45: 0.0000 | AF45: 0.0000 | AK45: 0.0000 | AQ45: 0.0000 | AR45: 0.000
A46: 35 | B46: макаронные изделия | C46: кг | J46: 0.0000 | K46: 0.0000 | L46: 0.0000 | U46: 0.0000 | X46: 0.0000 | Y46: 0.0610 | AB46: 0.0610 | AF46: 0.0000 | AK46: 0.0000 | AQ46: 0.0000 | AR46: 0.061
A47: 36 | B47: манная крупа | C47: кг | J47: 0.0000 | K47: 0.0000 | L47: 0.0000 | U47: 0.0000 | X47: 0.0000 | AB47: 0.0000 | AF47: 0.0000 | AK47: 0.0000 | AQ47: 0.0000 | AR47: 0.000
A48: 37 | B48: перловая крупа | C48: кг | J48: 0.0000 | K48: 0.0000 | L48: 0.0000 | U48: 0.0000 | X48: 0.0000 | AB48: 0.0000 | AF48: 0.0000 | AK48: 0.0000 | AQ48: 0.0000 | AR48: 0.000
A49: 38 | B49: полбяная крупа | C49: кг | J49: 0.0000 | K49: 0.0000 | L49: 0.0000 | U49: 0.0000 | X49: 0.0000 | AB49: 0.0000 | AF49: 0.0000 | AK49: 0.0000 | AQ49: 0.0000 | AR49: 0.000
A50: 39 | B50: пшеничная крупа | C50: кг | J50: 0.0000 | K50: 0.0000 | L50: 0.0000 | U50: 0.0000 | X50: 0.0000 | AB50: 0.0000 | AF50: 0.0000 | AK50: 0.0000 | AQ50: 0.0000 | AR50: 0.000
A51: 40 | B51: пшено | C51: кг | J51: 0.0000 | K51: 0.0000 | L51: 0.0000 | U51: 0.0000 | X51: 0.0000 | AB51: 0.0000 | AF51: 0.0000 | AK51: 0.0000 | AQ51: 0.0000 | AR51: 0.000
A52: 41 | B52: рис | C52: кг | J52: 0.0000 | K52: 0.0000 | L52: 0.0000 | U52: 0.0000 | X52: 0.0000 | AB52: 0.0000 | AF52: 0.0000 | AK52: 0.0000 | AQ52: 0.0000 | AR52: 0.000
A53: 42 | B53: ячневая крупа | C53: кг | J53: 0.0000 | K53: 0.0000 | L53: 0.0000 | U53: 0.0000 | X53: 0.0000 | AB53: 0.0000 | AF53: 0.0000 | AK53: 0.0000 | AQ53: 0.0000 | AR53: 0.000
A54: 43 | B54: лапша домашняя п/ф | C54: кг | J54: 0.0000 | K54: 0.0000 | L54: 0.0000 | U54: 0.0000 | X54: 0.0000 | AB54: 0.0000 | AF54: 0.0000 | AK54: 0.0000 | AQ54: 0.0000 | AR54: 0.000
A55: 44 | B55: мука пшеничная в/с | C55: кг | E55: 0.0020 | J55: 0.0000 | K55: 0.0000 | L55: 0.0020 | O55: 0.0020 | U55: 0.0020 | X55: 0.0000 | AB55: 0.0000 | AF55: 0.0000 | AG55: 0.0020 | AK55: 0.0020 | AL55: 0.0020 | AQ55: 0.0000 | AR55: 0.006
A56: 45 | B56: сахарный песок | C56: кг | G56: 0.0100 | J56: 0.0000 | K56: 0.0000 | L56: 0.0100 | Q56: 0.0100 | U56: 0.0100 | W56: 0.0100 | X56: 0.0100 | Z56: 0.0100 | AB56: 0.0100 | AD56: 0.0100 | AF56: 0.0100 | AI56: 0.0100 | AK56: 0.0100 | AO56: 0.0100 | AQ56: 0.0000 | AR56: 0.060
A57: 46 | B57: соль | C57: кг | E57: 0.0003 | F57: 0.0005 | J57: 0.0000 | K57: 0.0000 | L57: 0.0008 | O57: 0.0003 | P57: 0.0006 | U57: 0.0009 | X57: 0.0000 | Y57: 0.0005 | AB57: 0.0005 | AC57: 0.0010 | AF57: 0.0010 | AG57: 0.0003 | AH57: 0.0006 | AK57: 0.0009 | AL57: 0.0003 | AM57: 0.0006 | AQ57: 0.0000 | AR57: 0.004
A58: 47 | B58: сухари панировочные | C58: кг | J58: 0.0000 | K58: 0.0000 | L58: 0.0000 | U58: 0.0000 | X58: 0.0000 | AB58: 0.0000 | AF58: 0.0000 | AK58: 0.0000 | AQ58: 0.0000 | AR58: 0.000
A59: 48 | B59: дрожжи сухие | C59: кг | J59: 0.0000 | K59: 0.0000 | L59: 0.0000 | U59: 0.0000 | X59: 0.0000 | AB59: 0.0000 | AF59: 0.0000 | AK59: 0.0000 | AQ59: 0.0000 | AR59: 0.000
A60: 49 | B60: хлебцы | C60: кг | J60: 0.0000 | K60: 0.0000 | L60: 0.0000 | U60: 0.0000 | X60: 0.0000 | AB60: 0.0000 | AF60: 0.0000 | AK60: 0.0000 | AQ60: 0.0000 | AR60: 0.000
B61: Консервы | J61: 0.0000 | K61: 0.0000 | L61: 0.0000 | U61: 0.0000 | X61: 0.0000 | AB61: 0.0000 | AF61: 0.0000 | AK61: 0.0000 | AQ61: 0.0000 | AR61: 0.000
A62: 50 | B62: зеленый горошек к/с | C62: кг | J62: 0.0000 | K62: 0.0000 | L62: 0.0000 | U62: 0.0000 | X62: 0.0000 | AB62: 0.0000 | AF62: 0.0000 | AK62: 0.0000 | AQ62: 0.0000 | AR62: 0.000
A63: 51 | B63: кукуруза к/с | C63: кг | J63: 0.0000 | K63: 0.0000 | L63: 0.0000 | U63: 0.0000 | X63: 0.0000 | AB63: 0.0000 | AF63: 0.0000 | AK63: 0.0000 | AQ63: 0.0000 | AR63: 0.000
A64: 52 | B64: фасоль к/с | C64: кг | J64: 0.0000 | K64: 0.0000 | L64: 0.0000 | U64: 0.0000 | X64: 0.0000 | AB64: 0.0000 | AF64: 0.0000 | AK64: 0.0000 | AQ64: 0.0000 | AR64: 0.000
A65: 53 | B65: икра кабачк/икра баклаж | C65: кг | J65: 0.0000 | K65: 0.0000 | L65: 0.0000 | U65: 0.0000 | X65: 0.0000 | AB65: 0.0000 | AF65: 0.0000 | AK65: 0.0000 | AQ65: 0.0000 | AR65: 0.000
A66: 54 | B66: капуста морская сушеная | C66: кг | J66: 0.0000 | K66: 0.0000 | L66: 0.0000 | U66: 0.0000 | X66: 0.0000 | AB66: 0.0000 | AF66: 0.0000 | AK66: 0.0000 | AQ66: 0.0000 | AR66: 0.000
A67: 55 | B67: капуста квашеная | C67: кг | J67: 0.0000 | K67: 0.0000 | L67: 0.0000 | U67: 0.0000 | X67: 0.0000 | AB67: 0.0000 | AF67: 0.0000 | AK67: 0.0000 | AQ67: 0.0000 | AR67: 0.000
A68: 56 | B68: молоко сгущенное | C68: кг | J68: 0.0000 | K68: 0.0000 | L68: 0.0000 | U68: 0.0000 | X68: 0.0000 | AB68: 0.0000 | AF68: 0.0000 | AK68: 0.0000 | AQ68: 0.0000 | AR68: 0.000
A69: 57 | B69: огурцы соленые | C69: кг | J69: 0.0000 | K69: 0.0000 | L69: 0.0000 | U69: 0.0000 | X69: 0.0000 | AB69: 0.0000 | AF69: 0.0000 | AK69: 0.0000 | AQ69: 0.0000 | AR69: 0.000
A70: 58 | B70: повидло | C70: кг | J70: 0.0000 | K70: 0.0000 | L70: 0.0000 | U70: 0.0000 | X70: 0.0000 | AB70: 0.0000 | AF70: 0.0000 | AK70: 0.0000 | AQ70: 0.0000 | AR70: 0.000
A71: 59 | B71: томатная паста | C71: кг | E71: 0.0032 | J71: 0.0000 | K71: =(I71+D71+H71+G71+F71)*$K$5 -> 0.0000 | L71: 0.0032 | O71: 0.0032 | U71: 0.0032 | X71: 0.0000 | AB71: 0.0000 | AC71: 0.0010 | AF71: 0.0010 | AG71: 0.0032 | AK71: =(AG71+AI71+AJ71+AH71)*$AK$5 -> 0.0032 | AL71: 0.0032 | AQ71: 0.0000 | AR71: 0.011
A72: 60 | B72: рыбные консервы | C72: кг | J72: =(D72+E72+G72+H72+I72+F72)*$J$5 -> 0.0000 | K72: 0.0000 | L72: =(I72+G72+F72+E72+D72)*$L$5 -> 0.0000 | U72: =(R72+Q72+P72+O72+N72)*$U$5 -> 0.0000 | X72: =(W72+V72)*$X$5 -> 0.0000 | AB72: =(AA72+Z72+Y72)*$AB$5 -> 0.0000 | AF72: =(AC72+AD72+AE72)*$AF$5 -> 0.0000 | AK72: 0.0000 | AQ72: =(AP72+AO72+AN72+AM72+AL72)*$AQ$5 -> 0.0000 | AR72: =AQ72+AK72+AF72+AB72+X72+U72+L72 -> 0.000
B73: Напитки | J73: 0.0000 | K73: 0.0000 | L73: 0.0000 | U73: 0.0000 | X73: 0.0000 | AB73: 0.0000 | AF73: 0.0000 | AK73: 0.0000 | AQ73: 0.0000 | AR73: 0.000
A74: 61 | B74: чай весовой | C74: кг | G74: 0.0005 | J74: 0.0000 | K74: 0.0000 | L74: 0.0005 | Q74: 0.0005 | U74: 0.0005 | W74: 0.0005 | X74: 0.0005 | AB74: 0.0000 | AF74: 0.0000 | AK74: 0.0000 | AQ74: 0.0000 | AR74: 0.002
A75: 62 | B75: какао | C75: кг | J75: 0.0000 | K75: 0.0000 | L75: 0.0000 | U75: 0.0000 | X75: 0.0000 | AB75: 0.0000 | AF75: 0.0000 | AK75: 0.0000 | AQ75: 0.0000 | AR75: 0.000
A76: 63 | B76: кисель | C76: кг | J76: 0.0000 | K76: 0.0000 | L76: 0.0000 | U76: 0.0000 | X76: 0.0000 | AB76: 0.0000 | AF76: 0.0000 | AK76: 0.0000 | AQ76: 0.0000 | AR76: 0.000
A77: 64 | B77: кофейный напиток | C77: кг | J77: 0.0000 | K77: 0.0000 | L77: 0.0000 | U77: 0.0000 | X77: 0.0000 | AB77: 0.0000 | AF77: 0.0000 | AK77: 0.0000 | AQ77: 0.0000 | AR77: 0.000
A78: 65 | B78: цикорий | C78: кг | J78: 0.0000 | K78: 0.0000 | L78: 0.0000 | U78: 0.0000 | X78: 0.0000 | AB78: 0.0000 | AF78: 0.0000 | AK78: 0.0000 | AQ78: 0.0000 | AR78: 0.000
B79: Сухофрукты | J79: 0.0000 | K79: 0.0000 | L79: 0.0000 | U79: 0.0000 | X79: 0.0000 | AB79: 0.0000 | AF79: 0.0000 | AK79: 0.0000 | AQ79: 0.0000 | AR79: 0.000
A80: 66 | B80: ассорти для компота (сухофрукты) | C80: кг | J80: 0.0000 | K80: 0.0000 | L80: 0.0000 | U80: 0.0000 | X80: 0.0000 | Z80: 0.0204 | AB80: 0.0204 | AF80: 0.0000 | AI80: 0.0200 | AK80: 0.0200 | AO80: 0.0200 | AQ80: 0.0000 | AR80: 0.040
A81: 67 | B81: изюм | C81: кг | J81: 0.0000 | K81: 0.0000 | L81: 0.0000 | U81: 0.0000 | X81: 0.0000 | AB81: 0.0000 | AF81: 0.0000 | AK81: 0.0000 | AQ81: 0.0000 | AR81: 0.000
A82: 68 | B82: курага | C82: кг | J82: 0.0000 | K82: 0.0000 | L82: 0.0000 | U82: 0.0000 | X82: 0.0000 | AB82: 0.0000 | AF82: 0.0000 | AK82: 0.0000 | AQ82: 0.0000 | AR82: 0.000
A83: 69 | B83: урюк | C83: кг | J83: 0.0000 | K83: 0.0000 | L83: 0.0000 | U83: 0.0000 | X83: 0.0000 | AB83: 0.0000 | AD83: 0.0204 | AF83: 0.0204 | AK83: 0.0000 | AQ83: 0.0000 | AR83: 0.020
A84: 70 | B84: шиповник | C84: кг | J84: 0.0000 | K84: 0.0000 | L84: 0.0000 | U84: 0.0000 | X84: 0.0000 | AB84: 0.0000 | AF84: 0.0000 | AK84: 0.0000 | AQ84: 0.0000 | AR84: 0.000
A85: 71 | B85: компотная смесь с/м | C85: кг | J85: 0.0000 | K85: 0.0000 | L85: 0.0000 | U85: 0.0000 | X85: 0.0000 | AB85: 0.0000 | AF85: 0.0000 | AK85: 0.0000 | AQ85: 0.0000 | AR85: 0.000
A86: 72 | B86: вишня с/м | C86: кг | J86: 0.0000 | K86: 0.0000 | L86: 0.0000 | U86: 0.0000 | X86: 0.0000 | AB86: 0.0000 | AF86: 0.0000 | AK86: 0.0000 | AQ86: 0.0000 | AR86: 0.000
A87: 73 | B87: клюква с/м | C87: кг | J87: 0.0000 | K87: 0.0000 | L87: 0.0000 | U87: 0.0000 | X87: 0.0000 | AB87: 0.0000 | AF87: 0.0000 | AK87: 0.0000 | AQ87: 0.0000 | AR87: 0.000
A88: 74 | B88: смородина в ассорт с/м | C88: кг | J88: 0.0000 | K88: 0.0000 | L88: 0.0000 | U88: 0.0000 | X88: 0.0000 | AB88: 0.0000 | AF88: 0.0000 | AK88: 0.0000 | AQ88: 0.0000 | AR88: 0.000
A89: 75 | B89: облепиха с/м | C89: кг | J89: 0.0000 | K89: 0.0000 | L89: 0.0000 | U89: 0.0000 | X89: 0.0000 | AB89: 0.0000 | AF89: 0.0000 | AK89: 0.0000 | AQ89: 0.0000 | AR89: 0.000
B90: Сок | J90: 0.0000 | K90: 0.0000 | L90: 0.0000 | U90: 0.0000 | X90: 0.0000 | AB90: 0.0000 | AF90: 0.0000 | AK90: 0.0000 | AQ90: 0.0000 | AR90: 0.000
A91: 76 | B91: сок 0,125л или 0,2л | C91: л | J91: 0.0000 | K91: 0.0000 | L91: 0.0000 | U91: 0.0000 | X91: 0.0000 | AB91: 0.0000 | AF91: 0.0000 | AK91: 0.0000 | AQ91: 0.0000 | AR91: 0.000
A92: 77 | B92: нектар плодовый | C92: л | J92: 0.0000 | K92: 0.0000 | L92: 0.0000 | U92: 0.0000 | X92: 0.0000 | AB92: 0.0000 | AF92: 0.0000 | AK92: 0.0000 | AQ92: 0.0000 | AR92: 0.000
B93: Кондитерка | J93: 0.0000 | K93: 0.0000 | L93: 0.0000 | U93: 0.0000 | X93: 0.0000 | AB93: 0.0000 | AF93: 0.0000 | AK93: 0.0000 | AQ93: 0.0000 | AR93: 0.000
A94: 78 | B94: батончик злаковый | C94: шт | J94: 0.0000 | K94: 0.0000 | L94: 0.0000 | U94: 0.0000 | X94: 0.0000 | AB94: 0.0000 | AF94: 0.0000 | AK94: 0.0000 | AQ94: 0.0000 | AR94: 0.000
A95: 79 | B95: пряник | C95: кг | J95: 0.0000 | K95: 0.0000 | L95: 0.0000 | U95: 0.0000 | V95: 0.0350 | X95: 0.0350 | AB95: 0.0000 | AF95: 0.0000 | AK95: 0.0000 | AQ95: 0.0000 | AR95: 0.035
A96: 80 | B96: вафли | C96: кг | J96: 0.0000 | K96: 0.0000 | L96: 0.0000 | U96: 0.0000 | X96: 0.0000 | AB96: 0.0000 | AF96: 0.0000 | AK96: 0.0000 | AQ96: 0.0000 | AR96: 0.000
A97: 81 | B97: печенье | C97: кг | J97: 0.0000 | K97: 0.0000 | L97: 0.0000 | U97: 0.0000 | X97: 0.0000 | AB97: 0.0000 | AF97: 0.0000 | AK97: 0.0000 | AQ97: 0.0000 | AR97: 0.000
A98: 82 | B98: крекер | C98: кг | J98: 0.0000 | K98: 0.0000 | L98: 0.0000 | U98: 0.0000 | X98: 0.0000 | AB98: 0.0000 | AF98: 0.0000 | AK98: 0.0000 | AQ98: 0.0000 | AR98: 0.000
A99: 83 | B99: сушки | C99: кг | J99: 0.0000 | K99: 0.0000 | L99: 0.0000 | U99: 0.0000 | X99: 0.0000 | AB99: 0.0000 | AF99: 0.0000 | AK99: 0.0000 | AQ99: 0.0000 | AR99: 0.000
A100: 84 | B100: мармелад | C100: кг | J100: 0.0000 | K100: 0.0000 | L100: 0.0000 | U100: 0.0000 | X100: 0.0000 | AB100: 0.0000 | AF100: 0.0000 | AK100: 0.0000 | AQ100: 0.0000 | AR100: 0.000
A101: 85 | B101: блины п/ф | C101: кг | J101: 0.0000 | K101: 0.0000 | L101: 0.0000 | U101: 0.0000 | X101: 0.0000 | AB101: 0.0000 | AF101: 0.0000 | AK101: 0.0000 | AQ101: 0.0000 | AR101: 0.000
A102: 86 | B102: выпечка п/ф со склада | C102: шт | J102: 0.0000 | K102: 0.0000 | L102: 0.0000 | U102: 0.0000 | X102: 0.0000 | AB102: 0.0000 | AF102: 0.0000 | AK102: 0.0000 | AQ102: 0.0000 | AR102: 0.000
B103: Яйцо | J103: 0.0000 | K103: =(I103+D103+H103+G103+F103)*$K$5 -> 0.0000 | L103: 0.0000 | U103: 0.0000 | X103: 0.0000 | AB103: 0.0000 | AF103: 0.0000 | AK103: =(AG103+AI103+AJ103+AH103)*$AK$5 -> 0.0000 | AQ103: 0.0000 | AR103: 0.000
A104: 87 | B104: яйцо куриное | C104: кг | J104: 0.0000 | K104: 0.0000 | L104: 0.0000 | U104: 0.0000 | X104: 0.0000 | AB104: 0.0000 | AC104: 0.0010 | AF104: 0.0010 | AK104: 0.0000 | AQ104: 0.0000 | AR104: 0.001
B105: 0.048 | C105: шт | J105: 0.0000 | K105: 0.0000 | L105: 0.0000 | U105: 0.0000 | X105: 0.0000 | AB105: 0.0000 | AF105: 0.0000 | AK105: 0.0000 | AQ105: 0.0000 | AR105: 0.000
B106: Овощи заморозка | J106: 0.0000 | K106: 0.0000 | L106: 0.0000 | U106: 0.0000 | X106: 0.0000 | AB106: 0.0000 | AF106: 0.0000 | AK106: 0.0000 | AQ106: 0.0000 | AR106: 0.000
A107: 88 | B107: зеленый горошек с/м | C107: кг | J107: 0.0000 | K107: 0.0000 | L107: 0.0000 | U107: 0.0000 | X107: 0.0000 | AB107: 0.0000 | AF107: 0.0000 | AK107: 0.0000 | AQ107: 0.0000 | AR107: 0.000
A108: 89 | B108: кабачки с/м | C108: кг | J108: 0.0000 | K108: 0.0000 | L108: 0.0000 | U108: 0.0000 | X108: 0.0000 | AB108: 0.0000 | AF108: 0.0000 | AK108: 0.0000 | AQ108: 0.0000 | AR108: 0.000
A109: 90 | B109: мексиканс смесь с/м | C109: кг | J109: 0.0000 | K109: 0.0000 | L109: 0.0000 | U109: 0.0000 | X109: 0.0000 | AB109: 0.0000 | AF109: 0.0000 | AK109: 0.0000 | AQ109: 0.0000 | AR109: 0.000
A110: 91 | B110: капуста цветная с/м | C110: кг | J110: 0.0000 | K110: 0.0000 | L110: 0.0000 | U110: 0.0000 | X110: 0.0000 | AB110: 0.0000 | AF110: 0.0000 | AK110: 0.0000 | AQ110: 0.0000 | AR110: 0.000
A111: 92 | B111: брокколи с/м | C111: кг | J111: 0.0000 | K111: 0.0000 | L111: 0.0000 | U111: 0.0000 | X111: 0.0000 | AB111: 0.0000 | AF111: 0.0000 | AK111: 0.0000 | AQ111: 0.0000 | AR111: 0.000
A112: 93 | B112: кукуруза с/м | C112: кг | J112: 0.0000 | K112: 0.0000 | L112: 0.0000 | U112: 0.0000 | X112: 0.0000 | AB112: 0.0000 | AF112: 0.0000 | AK112: 0.0000 | AQ112: 0.0000 | AR112: 0.000
A113: 94 | B113: фасоль стручковая с/м | C113: кг | J113: 0.0000 | K113: 0.0000 | L113: 0.0000 | U113: 0.0000 | X113: 0.0000 | AB113: 0.0000 | AF113: 0.0000 | AK113: 0.0000 | AQ113: 0.0000 | AR113: 0.000
B114: Фрукты | J114: 0.0000 | K114: 0.0000 | L114: 0.0000 | U114: 0.0000 | X114: 0.0000 | AB114: 0.0000 | AF114: 0.0000 | AK114: 0.0000 | AQ114: 0.0000 | AR114: 0.000
A115: 95 | B115: апельсин | C115: кг | J115: 0.0000 | K115: 0.0000 | L115: 0.0000 | U115: 0.0000 | X115: 0.0000 | AB115: 0.0000 | AF115: 0.0000 | AK115: 0.0000 | AQ115: 0.0000 | AR115: 0.000
A116: 96 | B116: банан | C116: кг | J116: 0.0000 | K116: 0.0000 | L116: 0.0000 | U116: 0.0000 | X116: 0.0000 | AB116: 0.0000 | AF116: 0.0000 | AK116: 0.0000 | AQ116: 0.0000 | AR116: 0.000
A117: 97 | B117: груши | C117: кг | J117: 0.0000 | K117: 0.0000 | L117: 0.0000 | U117: 0.0000 | X117: 0.0000 | AB117: 0.0000 | AF117: 0.0000 | AK117: 0.0000 | AQ117: 0.0000 | AR117: 0.000
A118: 98 | B118: мандарины | C118: кг | J118: 0.0000 | K118: 0.0000 | L118: 0.0000 | U118: 0.0000 | X118: 0.0000 | AB118: 0.0000 | AF118: 0.0000 | AK118: 0.0000 | AQ118: 0.0000 | AR118: 0.000
A119: 99 | B119: лимон | C119: кг | G119: 0.0056 | J119: 0.0000 | K119: 0.0000 | L119: 0.0056 | Q119: 0.0056 | U119: 0.0056 | X119: 0.0000 | AB119: 0.0000 | AF119: 0.0000 | AK119: 0.0000 | AQ119: 0.0000 | AR119: 0.011
A120: 100 | B120: яблоки свежие | C120: кг | J120: 0.0000 | K120: 0.0000 | L120: 0.0000 | U120: 0.0000 | X120: 0.0000 | AB120: 0.0000 | AF120: 0.0000 | AK120: 0.0000 | AQ120: 0.0000 | AR120: 0.000
B121: Овощи / зелень | J121: 0.0000 | K121: 0.0000 | L121: 0.0000 | U121: 0.0000 | X121: 0.0000 | AB121: 0.0000 | AF121: 0.0000 | AK121: 0.0000 | AQ121: 0.0000 | AR121: 0.000
A122: 101 | B122: капуста свежая | C122: кг | J122: 0.0000 | K122: 0.0000 | L122: 0.0000 | U122: 0.0000 | X122: 0.0000 | AB122: 0.0000 | AC122: 0.0625 | AF122: 0.0625 | AK122: 0.0000 | AQ122: 0.0000 | AR122: 0.063
A123: 102 | B123: картофель | C123: кг | J123: 0.0000 | K123: 0.0000 | L123: 0.0000 | U123: 0.0000 | X123: 0.0000 | AB123: 0.0000 | AC123: 0.0399 | AF123: 0.0399 | AK123: 0.0000 | AQ123: 0.0000 | AR123: 0.040
A124: 103 | B124: лук репчатый | C124: кг | E124: 0.0120 | J124: 0.0000 | K124: 0.0000 | L124: 0.0120 | O124: 0.0120 | U124: 0.0120 | X124: 0.0000 | AB124: 0.0000 | AC124: 0.0162 | AF124: 0.0162 | AG124: 0.0120 | AK124: 0.0120 | AL124: 0.0120 | AQ124: 0.0000 | AR124: 0.052
A125: 104 | B125: морковь | C125: кг | E125: 0.0063 | J125: 0.0000 | K125: 0.0000 | L125: 0.0063 | O125: 0.0063 | U125: 0.0063 | X125: 0.0000 | AB125: 0.0000 | AC125: 0.0156 | AF125: 0.0156 | AG125: 0.0063 | AK125: 0.0063 | AL125: 0.0063 | AQ125: 0.0000 | AR125: 0.034
A126: 105 | B126: свекла | C126: кг | J126: 0.0000 | K126: 0.0000 | L126: 0.0000 | U126: 0.0000 | X126: 0.0000 | AB126: 0.0000 | AF126: 0.0000 | AK126: 0.0000 | AQ126: 0.0000 | AR126: 0.000
A127: 106 | B127: огурцы св. | C127: кг | J127: 0.0000 | K127: 0.0000 | L127: 0.0000 | U127: 0.0000 | X127: 0.0000 | AB127: 0.0000 | AF127: 0.0000 | AK127: 0.0000 | AQ127: 0.0000 | AR127: 0.000
A128: 107 | B128: томаты св. | C128: кг | J128: 0.0000 | K128: 0.0000 | L128: 0.0000 | U128: 0.0000 | X128: 0.0000 | AB128: 0.0000 | AF128: 0.0000 | AK128: 0.0000 | AQ128: 0.0000 | AR128: 0.000
A129: 108 | B129: перец болг.красный | C129: кг | J129: 0.0000 | K129: 0.0000 | L129: 0.0000 | U129: 0.0000 | X129: 0.0000 | AB129: 0.0000 | AF129: 0.0000 | AK129: 0.0000 | AQ129: 0.0000 | AR129: 0.000
A130: 109 | B130: тыква | C130: кг | J130: 0.0000 | K130: 0.0000 | L130: 0.0000 | U130: 0.0000 | X130: 0.0000 | AB130: 0.0000 | AF130: 0.0000 | AK130: 0.0000 | AQ130: 0.0000 | AR130: 0.000
B131: Овощи очищенные | J131: 0.0000 | K131: 0.0000 | L131: 0.0000 | U131: 0.0000 | X131: 0.0000 | AB131: 0.0000 | AF131: 0.0000 | AK131: 0.0000 | AQ131: 0.0000 | AR131: 0.000
A132: 110 | B132: капуста св.очищенная | C132: кг | J132: 0.0000 | K132: 0.0000 | L132: 0.0000 | U132: 0.0000 | X132: 0.0000 | AB132: 0.0000 | AF132: 0.0000 | AK132: 0.0000 | AQ132: 0.0000 | AR132: 0.000
A133: 111 | B133: картофель св. очищенный | C133: кг | J133: 0.0000 | K133: 0.0000 | L133: 0.0000 | U133: 0.0000 | X133: 0.0000 | AB133: 0.0000 | AF133: 0.0000 | AK133: 0.0000 | AQ133: 0.0000 | AR133: 0.000
A134: 112 | B134: лук репчатый св.очищенный | C134: кг | J134: 0.0000 | K134: 0.0000 | L134: 0.0000 | U134: 0.0000 | X134: 0.0000 | AB134: 0.0000 | AF134: 0.0000 | AK134: 0.0000 | AQ134: 0.0000 | AR134: 0.000
A135: 113 | B135: морковь св.очищенная | C135: кг | J135: 0.0000 | K135: =(I135+D135+H135+G135+F135)*$K$5 -> 0.0000 | L135: 0.0000 | U135: 0.0000 | X135: 0.0000 | AB135: 0.0000 | AF135: 0.0000 | AK135: =(AG135+AI135+AJ135+AH135)*$AK$5 -> 0.0000 | AQ135: 0.0000 | AR135: 0.000
A136: 114 | B136: свекла св.очищенная | C136: кг | J136: =(D136+E136+G136+H136+I136+F136)*$J$5 -> 0.0000 | K136: 0.0000 | L136: =(I136+G136+F136+E136+D136)*$L$5 -> 0.0000 | U136: =(R136+Q136+P136+O136+N136)*$U$5 -> 0.0000 | X136: =(W136+V136)*$X$5 -> 0.0000 | AB136: =(AA136+Z136+Y136)*$AB$5 -> 0.0000 | AF136: =(AC136+AD136+AE136)*$AF$5 -> 0.0000 | AK136: 0.0000 | AQ136: =(AP136+AO136+AN136+AM136+AL136)*$AQ$5 -> 0.0000 | AR136: =AQ136+AK136+AF136+AB136+X136+U136+L136 -> 0.000
B137: Полуфабрикаты | J137: 0.0000 | K137: 0.0000 | L137: 0.0000 | U137: 0.0000 | X137: 0.0000 | AB137: 0.0000 | AF137: 0.0000 | AK137: 0.0000 | AQ137: 0.0000 | AR137: 0.000
A138: 115 | B138: сырники ПФ | C138: шт | J138: 0.0000 | K138: 0.0000 | L138: 0.0000 | U138: 0.0000 | X138: 0.0000 | AB138: 0.0000 | AF138: 0.0000 | AK138: 0.0000 | AQ138: 0.0000 | AR138: 0.000
A139: 116 | B139: пельмени ПФ | C139: кг | J139: 0.0000 | K139: 0.0000 | L139: 0.0000 | U139: 0.0000 | X139: 0.0000 | AB139: 0.0000 | AF139: 0.0000 | AK139: 0.0000 | AQ139: 0.0000 | AR139: 0.000
A140: 117 | B140: биточки рыбные | C140: шт | J140: 0.0000 | K140: 0.0000 | L140: 0.0000 | U140: 0.0000 | X140: 0.0000 | AB140: 0.0000 | AF140: 0.0000 | AK140: 0.0000 | AQ140: 0.0000 | AR140: 0.000
A141: 118 | B141: фрикадельки мясные | C141: кг | J141: 0.0000 | K141: 0.0000 | L141: 0.0000 | U141: 0.0000 | X141: 0.0000 | AB141: 0.0000 | AF141: 0.0000 | AK141: 0.0000 | AQ141: 0.0000 | AR141: 0.000
A142: 119 | B142: фрикадельки куриные | C142: кг | J142: 0.0000 | K142: 0.0000 | L142: 0.0000 | U142: 0.0000 | X142: 0.0000 | AB142: 0.0000 | AF142: 0.0000 | AK142: 0.0000 | AQ142: 0.0000 | AR142: 0.000
A143: 120 | B143: хинкали п/ф из говядины | C143: кг | J143: 0.0000 | K143: 0.0000 | L143: 0.0000 | U143: 0.0000 | X143: 0.0000 | AB143: 0.0000 | AF143: 0.0000 | AK143: 0.0000 | AQ143: 0.0000 | AR143: 0.000
A144: 121 | B144: котлеты из говядины "Пожарские" | C144: шт | J144: 0.0000 | K144: 0.0000 | L144: 0.0000 | U144: 0.0000 | X144: 0.0000 | AB144: 0.0000 | AF144: 0.0000 | AK144: 0.0000 | AQ144: 0.0000 | AR144: 0.000
A145: 122 | B145: бифштекс из говядины | C145: шт | J145: 0.0000 | K145: 0.0000 | L145: 0.0000 | U145: 0.0000 | X145: 0.0000 | AB145: 0.0000 | AF145: 0.0000 | AK145: 0.0000 | AQ145: 0.0000 | AR145: 0.000
A146: 123 | B146: котлеты из мяса кур | C146: шт | J146: 0.0000 | K146: 0.0000 | L146: 0.0000 | U146: 0.0000 | X146: 0.0000 | AB146: 0.0000 | AF146: 0.0000 | AK146: 0.0000 | AQ146: 0.0000 | AR146: 0.000
A147: 124 | B147: котлеты "Аппетитные" мясо-куриные | C147: шт | J147: 0.0000 | K147: 0.0000 | L147: 0.0000 | U147: 0.0000 | X147: 0.0000 | AB147: 0.0000 | AF147: 0.0000 | AK147: 0.0000 | AQ147: 0.0000 | AR147: 0.000
A148: 125 | B148: ежики мясные с рисом | C148: шт | J148: 0.0000 | K148: 0.0000 | L148: 0.0000 | U148: 0.0000 | X148: 0.0000 | AB148: 0.0000 | AF148: 0.0000 | AK148: 0.0000 | AQ148: 0.0000 | AR148: 0.000

Sheet Чт День 4 Нед 1
A1: Расход продуктов питания в образовательных учереждениях
D2: Меню с 1 по 4 класс 77,76 РУБ | I2: ИТОГО | J2: Меню с 5 по 11 класс 77,76 РУБ | O2: ИТОГО | P2: Меню на сумму 10,70 РУБ | R2: ИТОГО | S2: Меню КАШИ НА молоке 28,00 РУБ | V2: ИТОГО | W2: Меню СУПА 38,00 РУБ | Z2: ИТОГО | AA2: Меню ЧЕРЕДОВАНИЕ суп/второе 50,00 РУБ | AE2: ИТОГО | AF2: Меню ЧЕРЕДОВАНИЕ суп/второе +КОНДИТЕРКА 53,00 РУБ | AK2: ИТОГО | AL2: ВСЕГО ЗА ДЕНЬ расход продуктов по всем рационам
B3: ДЕНЬ 4 неделя 1 | D3: свекла отварная дольками | E3: птица запеченная | F3: Пюре картоф с маслом слив | G3: компот из сухофруктов | H3: Хлеб пшеничн /ржаной | J3: свекла отварная дольками допгарнир | K3: птица запеченная | L3: Пюре картоф с маслом слив | M3: компот из сухофруктов | N3: Хлеб пшеничн /ржаной | P3: сушки | Q3: Компот из св яблок | S3: каша геркулес с маслом слив | T3: напиток из шиповника | U3: Хлеб ржаной | W3: Суп крест с крупой /пшено/ с кур фрик, с смет | X3: чай с мармеладом | Y3: Хлеб ржаной | AA3: Суп крест с крупой /пшено/ с кур фрик, с смет | AC3: Кисель | AD3: Хлеб пшеничн /ржаной | AF3: Суп крест с крупой /пшено/ с кур фрик, с смет | AH3: Печенье | AI3: Кисель | AJ3: Хлеб пшеничн /ржаной
B4: КОЛИЧЕСТВО ДЕТЕЙ | D4: 7-11 | E4: 7-11 | F4: 7-11 | G4: 7-11 | H4: 7-11 | J4: 12-18 | K4: 12-18 | L4: 12-18 | M4: 12-18 | N4: 12-18 | P4: 12-18 | Q4: 12-18 | S4: 12-18 | T4: 12-18 | U4: 12-18 | W4: 12-18 | X4: 12-18 | Y4: 12-18 | AA4: 12-18 | AB4: 12-18 | AC4: 12-18 | AD4: 12-18 | AF4: 12-18 | AG4: 12-18 | AH4: 12-18 | AI4: 12-18 | AJ4: 12-18
B5: Выход,гр | D5: 60 | E5: 100 | F5: 150/3 | G5: 200 | H5: 30/40 | I5: 1 | J5: 60 | K5: 100 | L5: 150/3 | M5: 200 | N5: 0/40 | O5: 1 | P5: 30 | Q5: 200 | R5: 1 | S5: 150/3 | T5: 200 | U5: 30 | V5: 1 | W5: 250/10/5 | X5: 190/10 | Y5: 30 | Z5: 1 | AA5: 250/10/5 | AC5: 200 | AD5: 20/20 | AE5: 1 | AF5: 250/10/5 | AH5: 40 | AI5: 200 | AJ5: 20/20 | AL5: =AK5+AE5+Z5+V5+R5+O5+I5 -> 6
B6: Хлеб
A7: 1 | B7: батон | C7: кг | I7: =(D7+E7+F7+G7+H7)*$I$5 -> 0.0000 | O7: =(N7+M7+L7+K7+J7)*$O$5 -> 0.0000 | R7: =(Q7+P7)*$R$5 -> 0.0000 | V7: =(U7+T7+S7)*$V$5 -> 0.0000 | Z7: =(W7+X7+Y7)*$Z$5 -> 0.0000 | AE7: =(AA7+AC7+AD7)*$AE$5 -> 0.0000 | AK7: =(AJ7+AI7+AH7+AG7+AF7)*$AK$5 -> 0.0000 | AL7: =AK7+AE7+Z7+V7+R7+O7+I7 -> 0.000
A8: 2 | B8: хлеб пшеничный | C8: кг | H8: 0.0300 | I8: =(D8+E8+F8+G8+H8)*$I$5 -> 0.0300 | O8: =(N8+M8+L8+K8+J8)*$O$5 -> 0.0000 | R8: =(Q8+P8)*$R$5 -> 0.0000 | V8: =(U8+T8+S8)*$V$5 -> 0.0000 | Z8: =(W8+X8+Y8)*$Z$5 -> 0.0000 | AD8: 0.0200 | AE8: =(AA8+AC8+AD8)*$AE$5 -> 0.0200 | AJ8: 0.0200 | AK8: =(AJ8+AI8+AH8+AG8+AF8)*$AK$5 -> 0.0000 | AL8: =AK8+AE8+Z8+V8+R8+O8+I8 -> 0.050
A9: 3 | B9: хлеб ржаной | C9: кг | H9: 0.0400 | I9: 0.0400 | N9: 0.0400 | O9: 0.0400 | R9: 0.0000 | U9: 0.0300 | V9: 0.0300 | Y9: 0.0300 | Z9: 0.0300 | AD9: 0.0200 | AE9: 0.0200 | AJ9: 0.0200 | AK9: 0.0000 | AL9: 0.160
A10: 4 | B10: булоч/выпечка готов с х/ком | C10: кг | I10: 0.0000 | O10: 0.0000 | R10: 0.0000 | V10: 0.0000 | Z10: 0.0000 | AE10: 0.0000 | AK10: 0.0000 | AL10: 0.000
B11: Молочка | I11: 0.0000 | O11: 0.0000 | R11: 0.0000 | V11: 0.0000 | Z11: 0.0000 | AE11: 0.0000 | AK11: 0.0000 | AL11: 0.000
A12: 5 | B12: молоко 2,5% | C12: кг | F12: 0.0237 | I12: 0.0237 | L12: 0.0237 | O12: 0.0237 | R12: 0.0000 | S12: 0.0750 | V12: 0.0750 | Z12: 0.0000 | AE12: 0.0000 | AK12: 0.0000 | AL12: 0.122
A13: 6 | B13: творог 5% | C13: кг | I13: 0.0000 | O13: 0.0000 | R13: 0.0000 | V13: 0.0000 | Z13: 0.0000 | AE13: 0.0000 | AK13: 0.0000 | AL13: 0.000
A14: 7 | B14: сметана 15% | C14: кг | E14: 0.0040 | I14: 0.0040 | K14: 0.0040 | O14: 0.0040 | R14: 0.0000 | V14: 0.0000 | W14: 0.0050 | Z14: 0.0050 | AA14: 0.0050 | AE14: 0.0050 | AF14: 0.0050 | AK14: 0.0000 | AL14: 0.018
A15: 8 | B15: йогурт фруктов | C15: кг | I15: 0.0000 | O15: 0.0000 | R15: 0.0000 | V15: 0.0000 | Z15: 0.0000 | AE15: 0.0000 | AK15: 0.0000 | AL15: 0.000
A16: 9 | B16: катык 2,5% | C16: кг | I16: 0.0000 | O16: 0.0000 | R16: 0.0000 | V16: 0.0000 | Z16: 0.0000 | AE16: 0.0000 | AK16: 0.0000 | AL16: 0.000
A17: 10 | B17: кефир 2,5% | C17: кг | I17: 0.0000 | O17: 0.0000 | R17: 0.0000 | V17: 0.0000 | Z17: 0.0000 | AE17: 0.0000 | AK17: 0.0000 | AL17: 0.000
A18: 11 | B18: ряженка 2,5% | C18: кг | I18: 0.0000 | O18: 0.0000 | R18: 0.0000 | V18: 0.0000 | Z18: 0.0000 | AE18: 0.0000 | AK18: 0.0000 | AL18: 0.000
A19: 12 | B19: напиток ацидофильный | C19: кг | I19: 0.0000 | O19: 0.0000 | R19: 0.0000 | V19: 0.0000 | Z19: 0.0000 | AE19: 0.0000 | AK19: 0.0000 | AL19: 0.000
B20: Масло / сыр | I20: 0.0000 | O20: 0.0000 | R20: 0.0000 | V20: 0.0000 | Z20: 0.0000 | AE20: 0.0000 | AK20: 0.0000 | AL20: 0.000
A21: 13 | B21: масло растительное | C21: кг | E21: 0.0030 | I21: 0.0030 | K21: 0.0030 | O21: 0.0030 | R21: 0.0000 | V21: 0.0000 | W21: 0.0050 | Z21: 0.0050 | AA21: 0.0050 | AE21: 0.0050 | AF21: 0.0050 | AK21: 0.0000 | AL21: 0.016
A22: 14 | B22: масло сливочное | C22: кг | F22: 0.0070 | I22: 0.0070 | L22: 0.0070 | O22: 0.0070 | R22: 0.0000 | S22: 0.0030 | V22: 0.0030 | Z22: 0.0000 | AE22: 0.0000 | AK22: 0.0000 | AL22: 0.017
A23: 15 | B23: сыр голландский | C23: кг | I23: 0.0000 | O23: 0.0000 | R23: 0.0000 | V23: 0.0000 | Z23: 0.0000 | AE23: 0.0000 | AK23: 0.0000 | AL23: 0.000
B24: Мясо | I24: 0.0000 | O24: 0.0000 | R24: 0.0000 | V24: 0.0000 | Z24: 0.0000 | AE24: 0.0000 | AK24: 0.0000 | AL24: 0.000
A25: 16 | B25: говядина (котлетное мясо) | C25: кг | I25: 0.0000 | O25: 0.0000 | R25: 0.0000 | V25: 0.0000 | Z25: 0.0000 | AE25: 0.0000 | AK25: 0.0000 | AL25: 0.000
A26: 17 | B26: фарш говяжий | C26: кг | I26: 0.0000 | O26: 0.0000 | R26: 0.0000 | V26: 0.0000 | Z26: 0.0000 | AE26: 0.0000 | AK26: 0.0000 | AL26: 0.000
A27: 18 | B27: говядина лопатка б/к | C27: кг | I27: 0.0000 | O27: 0.0000 | R27: 0.0000 | V27: 0.0000 | Z27: 0.0000 | AE27: 0.0000 | AK27: 0.0000 | AL27: 0.000
A28: 19 | B28: сосиски | C28: кг | I28: 0.0000 | O28: 0.0000 | R28: 0.0000 | V28: 0.0000 | Z28: 0.0000 | AE28: 0.0000 | AK28: 0.0000 | AL28: 0.000
A29: 20 | B29: колбаса п/к "Халяль" | C29: кг | I29: 0.0000 | O29: 0.0000 | R29: 0.0000 | V29: 0.0000 | Z29: 0.0000 | AE29: 0.0000 | AK29: 0.0000 | AL29: 0.000
A30: 21 | B30: куриное бедро | C30: кг | I30: 0.0000 | O30: 0.0000 | R30: 0.0000 | V30: 0.0000 | Z30: 0.0000 | AE30: 0.0000 | AK30: 0.0000 | AL30: 0.000
A31: 22 | B31: куриная грудка | C31: кг | E31: 0.1450 | I31: 0.1450 | K31: 0.1450 | O31: 0.1450 | R31: 0.0000 | V31: 0.0000 | W31: 0.0132 | Z31: 0.0132 | AA31: 0.0132 | AE31: 0.0132 | AF31: 0.0132 | AK31: 0.0000 | AL31: 0.316
A32: 23 | B32: куры/цыплята потрош. | C32: кг | I32: 0.0000 | O32: 0.0000 | R32: 0.0000 | V32: 0.0000 | Z32: 0.0000 | AE32: 0.0000 | AK32: 0.0000 | AL32: 0.000
A33: 24 | B33: фарш куриный | C33: кг | I33: 0.0000 | O33: 0.0000 | R33: 0.0000 | V33: 0.0000 | Z33: 0.0000 | AE33: 0.0000 | AK33: 0.0000 | AL33: 0.000
A34: 25 | B34: индека бедро филе | C34: кг | I34: 0.0000 | O34: 0.0000 | R34: 0.0000 | V34: 0.0000 | Z34: 0.0000 | AE34: 0.0000 | AK34: 0.0000 | AL34: 0.000
A35: 26 | B35: индейка грудка филе | C35: кг | I35: 0.0000 | O35: 0.0000 | R35: 0.0000 | V35: 0.0000 | Z35: 0.0000 | AE35: 0.0000 | AK35: 0.0000 | AL35: 0.000
B36: Рыба | I36: 0.0000 | O36: 0.0000 | R36: 0.0000 | V36: 0.0000 | Z36: 0.0000 | AE36: 0.0000 | AK36: 0.0000 | AL36: 0.000
A37: 27 | B37: горбуша ПБГ с/м | C37: кг | I37: 0.0000 | O37: 0.0000 | R37: 0.0000 | V37: 0.0000 | Z37: 0.0000 | AE37: 0.0000 | AK37: 0.0000 | AL37: 0.000
A38: 28 | B38: минтай б/г с/м | C38: кг | I38: 0.0000 | O38: 0.0000 | R38: 0.0000 | V38: 0.0000 | Z38: 0.0000 | AE38: 0.0000 | AK38: 0.0000 | AL38: 0.000
A39: 29 | B39: фарш минтая | C39: кг | I39: 0.0000 | O39: 0.0000 | R39: 0.0000 | V39: 0.0000 | Z39: 0.0000 | AE39: 0.0000 | AK39: 0.0000 | AL39: 0.000
B40: Сыпучка | I40: 0.0000 | O40: 0.0000 | R40: 0.0000 | V40: 0.0000 | Z40: 0.0000 | AE40: 0.0000 | AK40: 0.0000 | AL40: 0.000
A41: 30 | B41: вермишель | C41: кг | I41: 0.0000 | O41: 0.0000 | R41: 0.0000 | V41: 0.0000 | Z41: 0.0000 | AE41: 0.0000 | AK41: 0.0000 | AL41: 0.000
A42: 31 | B42: геркулес | C42: кг | I42: 0.0000 | O42: 0.0000 | R42: 0.0000 | S42: 0.0280 | V42: 0.0280 | Z42: 0.0000 | AE42: 0.0000 | AK42: 0.0000 | AL42: 0.028
A43: 32 | B43: горох | C43: кг | I43: 0.0000 | O43: 0.0000 | R43: 0.0000 | V43: 0.0000 | Z43: 0.0000 | AE43: 0.0000 | AK43: 0.0000 | AL43: 0.000
A44: 33 | B44: гречневая крупа | C44: кг | I44: 0.0000 | O44: 0.0000 | R44: 0.0000 | V44: 0.0000 | Z44: 0.0000 | AE44: 0.0000 | AK44: 0.0000 | AL44: 0.000
A45: 34 | B45: кукурузная крупа | C45: кг | I45: 0.0000 | O45: 0.0000 | R45: 0.0000 | V45: 0.0000 | Z45: 0.0000 | AE45: 0.0000 | AK45: 0.0000 | AL45: 0.000
A46: 35 | B46: макаронные изделия | C46: кг | I46: 0.0000 | O46: 0.0000 | R46: 0.0000 | V46: 0.0000 | Z46: 0.0000 | AE46: 0.0000 | AK46: 0.0000 | AL46: 0.000
A47: 36 | B47: манная крупа | C47: кг | I47: 0.0000 | O47: 0.0000 | R47: 0.0000 | V47: 0.0000 | Z47: 0.0000 | AE47: 0.0000 | AK47: 0.0000 | AL47: 0.000
A48: 37 | B48: перловая крупа | C48: кг | I48: 0.0000 | O48: 0.0000 | R48: 0.0000 | V48: 0.0000 | Z48: 0.0000 | AE48: 0.0000 | AK48: 0.0000 | AL48: 0.000
A49: 38 | B49: полбяная крупа | C49: кг | I49: 0.0000 | O49: 0.0000 | R49: 0.0000 | V49: 0.0000 | Z49: 0.0000 | AE49: 0.0000 | AK49: 0.0000 | AL49: 0.000
A50: 39 | B50: пшеничная крупа | C50: кг | I50: 0.0000 | O50: 0.0000 | R50: 0.0000 | V50: 0.0000 | Z50: 0.0000 | AE50: 0.0000 | AK50: 0.0000 | AL50: 0.000
A51: 40 | B51: пшено | C51: кг | I51: 0.0000 | O51: 0.0000 | R51: 0.0000 | V51: 0.0000 | W51: 0.0050 | Z51: 0.0050 | AA51: 0.0050 | AE51: 0.0050 | AF51: 0.0050 | AK51: 0.0000 | AL51: 0.010
A52: 41 | B52: рис | C52: кг | I52: 0.0000 | O52: 0.0000 | R52: 0.0000 | V52: 0.0000 | Z52: 0.0000 | AE52: 0.0000 | AK52: 0.0000 | AL52: 0.000
A53: 42 | B53: ячневая крупа | C53: кг | I53: 0.0000 | O53: 0.0000 | R53: 0.0000 | V53: 0.0000 | Z53: 0.0000 | AE53: 0.0000 | AK53: 0.0000 | AL53: 0.000
A54: 43 | B54: лапша домашняя п/ф | C54: кг | I54: 0.0000 | O54: 0.0000 | R54: 0.0000 | V54: 0.0000 | Z54: 0.0000 | AE54: 0.0000 | AK54: 0.0000 | AL54: 0.000
A55: 44 | B55: мука пшеничная в/с | C55: кг | I55: 0.0000 | O55: 0.0000 | R55: 0.0000 | V55: 0.0000 | Z55: 0.0000 | AE55: 0.0000 | AK55: 0.0000 | AL55: 0.000
A56: 45 | B56: сахарный песок | C56: кг | G56: 0.0100 | I56: 0.0100 | M56: 0.0100 | O56: 0.0100 | Q56: 0.0100 | R56: 0.0100 | S56: 0.0005 | T56: 0.0100 | V56: 0.0105 | Z56: 0.0000 | AC56: 0.0100 | AE56: 0.0100 | AI56: 0.0100 | AK56: 0.0000 | AL56: 0.051
A57: 46 | B57: соль | C57: кг | E57: 0.0005 | F57: 0.0006 | I57: 0.0011 | K57: 0.0005 | L57: 0.0006 | O57: 0.0011 | R57: 0.0000 | S57: 0.0003 | V57: 0.0003 | W57: 0.0010 | Z57: 0.0010 | AA57: 0.0010 | AE57: 0.0010 | AF57: 0.0010 | AK57: 0.0000 | AL57: 0.005
A58: 47 | B58: сухари панировочные | C58: кг | I58: 0.0000 | O58: 0.0000 | R58: 0.0000 | V58: 0.0000 | Z58: 0.0000 | AE58: 0.0000 | AK58: 0.0000 | AL58: 0.000
A59: 48 | B59: дрожжи сухие | C59: кг | I59: 0.0000 | O59: 0.0000 | R59: 0.0000 | V59: 0.0000 | Z59: 0.0000 | AE59: 0.0000 | AK59: 0.0000 | AL59: 0.000
A60: 49 | B60: хлебцы | C60: кг | I60: 0.0000 | O60: 0.0000 | R60: 0.0000 | V60: 0.0000 | Z60: 0.0000 | AE60: 0.0000 | AK60: 0.0000 | AL60: 0.000
B61: Консервы | I61: 0.0000 | O61: 0.0000 | R61: 0.0000 | V61: 0.0000 | Z61: 0.0000 | AE61: 0.0000 | AK61: 0.0000 | AL61: 0.000
A62: 50 | B62: зеленый горошек к/с | C62: кг | I62: 0.0000 | O62: 0.0000 | R62: 0.0000 | V62: 0.0000 | Z62: 0.0000 | AE62: 0.0000 | AK62: 0.0000 | AL62: 0.000
A63: 51 | B63: кукуруза к/с | C63: кг | I63: 0.0000 | O63: 0.0000 | R63: 0.0000 | V63: 0.0000 | Z63: 0.0000 | AE63: 0.0000 | AK63: 0.0000 | AL63: 0.000
A64: 52 | B64: фасоль к/с | C64: кг | I64: 0.0000 | O64: 0.0000 | R64: 0.0000 | V64: 0.0000 | Z64: 0.0000 | AE64: 0.0000 | AK64: 0.0000 | AL64: 0.000
A65: 53 | B65: икра кабачк/ икра баклажан | C65: кг | I65: 0.0000 | O65: 0.0000 | R65: 0.0000 | V65: 0.0000 | Z65: 0.0000 | AE65: 0.0000 | AK65: 0.0000 | AL65: 0.000
A66: 54 | B66: капуста морская сушеная | C66: кг | I66: 0.0000 | O66: 0.0000 | R66: 0.0000 | V66: 0.0000 | Z66: 0.0000 | AE66: 0.0000 | AK66: 0.0000 | AL66: 0.000
A67: 55 | B67: капуста квашеная | C67: кг | I67: 0.0000 | O67: 0.0000 | R67: 0.0000 | V67: 0.0000 | Z67: 0.0000 | AE67: 0.0000 | AK67: 0.0000 | AL67: 0.000
A68: 56 | B68: молоко сгущенное | C68: кг | I68: 0.0000 | O68: 0.0000 | R68: 0.0000 | V68: 0.0000 | Z68: 0.0000 | AE68: 0.0000 | AK68: 0.0000 | AL68: 0.000
A69: 57 | B69: огурцы соленые | C69: кг | I69: 0.0000 | O69: 0.0000 | R69: 0.0000 | V69: 0.0000 | Z69: 0.0000 | AE69: 0.0000 | AK69: 0.0000 | AL69: 0.000
A70: 58 | B70: повидло | C70: кг | I70: 0.0000 | O70: 0.0000 | R70: 0.0000 | V70: 0.0000 | Z70: 0.0000 | AE70: 0.0000 | AK70: 0.0000 | AL70: 0.000
A71: 59 | B71: томатная паста | C71: кг | I71: 0.0000 | O71: 0.0000 | R71: 0.0000 | V71: 0.0000 | Z71: 0.0000 | AE71: 0.0000 | AK71: 0.0000 | AL71: 0.000
A72: 60 | B72: рыбные консервы | C72: кг | I72: =(D72+E72+F72+G72+H72)*$I$5 -> 0.0000 | O72: =(N72+M72+L72+K72+J72)*$O$5 -> 0.0000 | R72: =(Q72+P72)*$R$5 -> 0.0000 | V72: =(U72+T72+S72)*$V$5 -> 0.0000 | Z72: =(W72+X72+Y72)*$Z$5 -> 0.0000 | AE72: =(AA72+AC72+AD72)*$AE$5 -> 0.0000 | AK72: =(AJ72+AI72+AH72+AG72+AF72)*$AK$5 -> 0.0000 | AL72: =AK72+AE72+Z72+V72+R72+O72+I72 -> 0.000
B73: Напитки | I73: 0.0000 | O73: 0.0000 | R73: 0.0000 | V73: 0.0000 | Z73: 0.0000 | AE73: 0.0000 | AK73: 0.0000 | AL73: 0.000
A74: 61 | B74: чай весовой | C74: кг | I74: 0.0000 | O74: 0.0000 | R74: 0.0000 | V74: 0.0000 | X74: 0.0005 | Z74: 0.0005 | AE74: 0.0000 | AK74: 0.0000 | AL74: 0.001
A75: 62 | B75: какао | C75: кг | I75: 0.0000 | O75: 0.0000 | R75: 0.0000 | V75: 0.0000 | Z75: 0.0000 | AE75: 0.0000 | AK75: 0.0000 | AL75: 0.000
A76: 63 | B76: кисель | C76: кг | I76: 0.0000 | O76: 0.0000 | R76: 0.0000 | V76: 0.0000 | Z76: 0.0000 | AC76: 0.0240 | AE76: 0.0240 | AI76: 0.0240 | AK76: 0.0000 | AL76: 0.024
A77: 64 | B77: кофейный напиток | C77: кг | I77: 0.0000 | O77: 0.0000 | R77: 0.0000 | V77: 0.0000 | Z77: 0.0000 | AE77: 0.0000 | AK77: 0.0000 | AL77: 0.000
A78: 65 | B78: цикорий | C78: кг | I78: 0.0000 | O78: 0.0000 | R78: 0.0000 | V78: 0.0000 | Z78: 0.0000 | AE78: 0.0000 | AK78: 0.0000 | AL78: 0.000
B79: Сухофрукты | I79: 0.0000 | O79: 0.0000 | R79: 0.0000 | V79: 0.0000 | Z79: 0.0000 | AE79: 0.0000 | AK79: 0.0000 | AL79: 0.000
A80: 66 | B80: ассорти для компота (сухофрукты) | C80: кг | G80: 0.0204 | I80: 0.0204 | M80: 0.0204 | O80: 0.0204 | R80: 0.0000 | V80: 0.0000 | Z80: 0.0000 | AE80: 0.0000 | AK80: 0.0000 | AL80: 0.041
A81: 67 | B81: изюм | C81: кг | I81: 0.0000 | O81: 0.0000 | R81: 0.0000 | V81: 0.0000 | Z81: 0.0000 | AE81: 0.0000 | AK81: 0.0000 | AL81: 0.000
A82: 68 | B82: курага | C82: кг | I82: 0.0000 | O82: 0.0000 | R82: 0.0000 | V82: 0.0000 | Z82: 0.0000 | AE82: 0.0000 | AK82: 0.0000 | AL82: 0.000
A83: 69 | B83: урюк | C83: кг | I83: 0.0000 | O83: 0.0000 | R83: 0.0000 | V83: 0.0000 | Z83: 0.0000 | AE83: 0.0000 | AK83: 0.0000 | AL83: 0.000
A84: 70 | B84: шиповник | C84: кг | I84: 0.0000 | O84: 0.0000 | R84: 0.0000 | T84: 0.0153 | V84: 0.0153 | Z84: 0.0000 | AE84: 0.0000 | AK84: 0.0000 | AL84: 0.015
A85: 71 | B85: компотная смесь с/м | C85: кг | I85: 0.0000 | O85: 0.0000 | R85: 0.0000 | V85: 0.0000 | Z85: 0.0000 | AE85: 0.0000 | AK85: 0.0000 | AL85: 0.000
A86: 72 | B86: вишня с/м | C86: кг | I86: 0.0000 | O86: 0.0000 | R86: 0.0000 | V86: 0.0000 | Z86: 0.0000 | AE86: 0.0000 | AK86: 0.0000 | AL86: 0.000
A87: 73 | B87: клюква с/м | C87: кг | I87: 0.0000 | O87: 0.0000 | R87: 0.0000 | V87: 0.0000 | Z87: 0.0000 | AE87: 0.0000 | AK87: 0.0000 | AL87: 0.000
A88: 74 | B88: смородина в ассорт с/м | C88: кг | I88: 0.0000 | O88: 0.0000 | R88: 0.0000 | V88: 0.0000 | Z88: 0.0000 | AE88: 0.0000 | AK88: 0.0000 | AL88: 0.000
A89: 75 | B89: облепиха с/м | C89: кг | I89: 0.0000 | O89: 0.0000 | R89: 0.0000 | V89: 0.0000 | Z89: 0.0000 | AE89: 0.0000 | AK89: 0.0000 | AL89: 0.000
B90: Сок | I90: 0.0000 | O90: 0.0000 | R90: 0.0000 | V90: 0.0000 | Z90: 0.0000 | AE90: 0.0000 | AK90: 0.0000 | AL90: 0.000
A91: 76 | B91: сок 0,125л или 0,2л | C91: л | I91: 0.0000 | O91: 0.0000 | R91: 0.0000 | V91: 0.0000 | Z91: 0.0000 | AE91: 0.0000 | AK91: 0.0000 | AL91: 0.000
A92: 77 | B92: нектар плодовый | C92: л | I92: 0.0000 | O92: 0.0000 | R92: 0.0000 | V92: 0.0000 | Z92: 0.0000 | AE92: 0.0000 | AK92: 0.0000 | AL92: 0.000
B93: Кондитерка | I93: 0.0000 | O93: 0.0000 | R93: 0.0000 | V93: 0.0000 | Z93: 0.0000 | AE93: 0.0000 | AK93: 0.0000 | AL93: 0.000
A94: 78 | B94: батончик злаковый | C94: шт | I94: 0.0000 | O94: 0.0000 | R94: 0.0000 | V94: 0.0000 | Z94: 0.0000 | AE94: 0.0000 | AK94: 0.0000 | AL94: 0.000
A95: 79 | B95: пряник | C95: кг | I95: 0.0000 | O95: 0.0000 | R95: 0.0000 | V95: 0.0000 | Z95: 0.0000 | AE95: 0.0000 | AK95: 0.0000 | AL95: 0.000
A96: 80 | B96: вафли | C96: кг | I96: 0.0000 | O96: 0.0000 | R96: 0.0000 | V96: 0.0000 | Z96: 0.0000 | AE96: 0.0000 | AK96: 0.0000 | AL96: 0.000
A97: 81 | B97: печенье | C97: кг | I97: 0.0000 | O97: 0.0000 | R97: 0.0000 | V97: 0.0000 | Z97: 0.0000 | AE97: 0.0000 | AH97: 0.0400 | AK97: 0.0000 | AL97: 0.000
A98: 82 | B98: крекер | C98: кг | I98: 0.0000 | O98: 0.0000 | R98: 0.0000 | V98: 0.0000 | Z98: 0.0000 | AE98: 0.0000 | AK98: 0.0000 | AL98: 0.000
A99: 83 | B99: сушки | C99: кг | I99: 0.0000 | O99: 0.0000 | P99: 0.0300 | R99: 0.0300 | V99: 0.0000 | Z99: 0.0000 | AE99: 0.0000 | AK99: 0.0000 | AL99: 0.030
A100: 84 | B100: мармелад | C100: кг | I100: 0.0000 | O100: 0.0000 | R100: 0.0000 | V100: 0.0000 | X100: 0.0150 | Z100: 0.0150 | AE100: 0.0000 | AK100: 0.0000 | AL100: 0.015
A101: 85 | B101: блины с/м | C101: кг | I101: 0.0000 | O101: 0.0000 | R101: 0.0000 | V101: 0.0000 | Z101: 0.0000 | AE101: 0.0000 | AK101: 0.0000 | AL101: 0.000
A102: 86 | B102: выпечка п/ф со склада | C102: шт | I102: 0.0000 | O102: 0.0000 | R102: 0.0000 | V102: 0.0000 | Z102: 0.0000 | AE102: 0.0000 | AK102: 0.0000 | AL102: 0.000
B103: Яйцо | I103: 0.0000 | O103: 0.0000 | R103: 0.0000 | V103: 0.0000 | Z103: 0.0000 | AE103: 0.0000 | AK103: 0.0000 | AL103: 0.000
A104: 87 | B104: яйцо куриное | C104: кг | I104: 0.0000 | O104: 0.0000 | R104: 0.0000 | V104: 0.0000 | W104: 0.0010 | Z104: 0.0010 | AA104: 0.0010 | AE104: 0.0010 | AF104: 0.0010 | AK104: 0.0000 | AL104: 0.002
B105: 0.048 | C105: шт | I105: 0.0000 | O105: 0.0000 | R105: 0.0000 | V105: 0.0000 | Z105: 0.0000 | AE105: 0.0000 | AK105: 0.0000 | AL105: 0.000
B106: Овощи заморозка | I106: 0.0000 | O106: 0.0000 | R106: 0.0000 | V106: 0.0000 | Z106: 0.0000 | AE106: 0.0000 | AK106: 0.0000 | AL106: 0.000
A107: 88 | B107: зеленый горошек с/м | C107: кг | I107: 0.0000 | O107: 0.0000 | R107: 0.0000 | V107: 0.0000 | Z107: 0.0000 | AE107: 0.0000 | AK107: 0.0000 | AL107: 0.000
A108: 89 | B108: кабачки с/м | C108: кг | I108: 0.0000 | O108: 0.0000 | R108: 0.0000 | V108: 0.0000 | Z108: 0.0000 | AE108: 0.0000 | AK108: 0.0000 | AL108: 0.000
A109: 90 | B109: мексиканс смесь с/м | C109: кг | I109: 0.0000 | O109: 0.0000 | R109: 0.0000 | V109: 0.0000 | Z109: 0.0000 | AE109: 0.0000 | AK109: 0.0000 | AL109: 0.000
A110: 91 | B110: капуста цветная с/м | C110: кг | I110: 0.0000 | O110: 0.0000 | R110: 0.0000 | V110: 0.0000 | Z110: 0.0000 | AE110: 0.0000 | AK110: 0.0000 | AL110: 0.000
A111: 92 | B111: брокколи с/м | C111: кг | I111: 0.0000 | O111: 0.0000 | R111: 0.0000 | V111: 0.0000 | Z111: 0.0000 | AE111: 0.0000 | AK111: 0.0000 | AL111: 0.000
A112: 93 | B112: кукуруза с/м | C112: кг | I112: 0.0000 | O112: 0.0000 | R112: 0.0000 | V112: 0.0000 | Z112: 0.0000 | AE112: 0.0000 | AK112: 0.0000 | AL112: 0.000
A113: 94 | B113: фасоль стручковая с/м | C113: кг | I113: 0.0000 | O113: 0.0000 | R113: 0.0000 | V113: 0.0000 | Z113: 0.0000 | AE113: 0.0000 | AK113: 0.0000 | AL113: 0.000
B114: Фрукты | I114: 0.0000 | O114: 0.0000 | R114: 0.0000 | V114: 0.0000 | Z114: 0.0000 | AE114: 0.0000 | AK114: 0.0000 | AL114: 0.000
A115: 95 | B115: апельсин | C115: кг | I115: 0.0000 | O115: 0.0000 | R115: 0.0000 | V115: 0.0000 | Z115: 0.0000 | AE115: 0.0000 | AK115: 0.0000 | AL115: 0.000
A116: 96 | B116: банан | C116: кг | I116: 0.0000 | O116: 0.0000 | R116: 0.0000 | V116: 0.0000 | Z116: 0.0000 | AE116: 0.0000 | AK116: 0.0000 | AL116: 0.000
A117: 97 | B117: груши | C117: кг | I117: 0.0000 | O117: 0.0000 | R117: 0.0000 | V117: 0.0000 | Z117: 0.0000 | AE117: 0.0000 | AK117: 0.0000 | AL117: 0.000
A118: 98 | B118: мандарины | C118: кг | I118: 0.0000 | O118: 0.0000 | R118: 0.0000 | V118: 0.0000 | Z118: 0.0000 | AE118: 0.0000 | AK118: 0.0000 | AL118: 0.000
A119: 99 | B119: лимон | C119: кг | I119: 0.0000 | O119: 0.0000 | R119: 0.0000 | V119: 0.0000 | Z119: 0.0000 | AE119: 0.0000 | AK119: 0.0000 | AL119: 0.000
A120: 100 | B120: яблоки свежие | C120: кг | I120: 0.0000 | O120: 0.0000 | Q120: 0.0454 | R120: 0.0454 | V120: 0.0000 | Z120: 0.0000 | AE120: 0.0000 | AK120: 0.0000 | AL120: 0.045
B121: Овощи / зелень | I121: 0.0000 | O121: 0.0000 | R121: 0.0000 | V121: 0.0000 | Z121: 0.0000 | AE121: 0.0000 | AK121: 0.0000 | AL121: 0.000
A122: 101 | B122: капуста свежая | C122: кг | I122: 0.0000 | O122: 0.0000 | R122: 0.0000 | V122: 0.0000 | W122: 0.0375 | Z122: 0.0375 | AA122: 0.0375 | AE122: 0.0375 | AF122: 0.0375 | AK122: 0.0000 | AL122: 0.075
A123: 102 | B123: картофель | C123: кг | F123: 0.1710 | I123: 0.1710 | L123: 0.1710 | O123: 0.1710 | R123: 0.0000 | V123: 0.0000 | W123: 0.0333 | Z123: 0.0333 | AA123: 0.0333 | AE123: 0.0333 | AF123: 0.0333 | AK123: 0.0000 | AL123: 0.409
A124: 103 | B124: лук репчатый | C124: кг | I124: 0.0000 | O124: 0.0000 | R124: 0.0000 | V124: 0.0000 | W124: 0.0132 | Z124: 0.0132 | AA124: 0.0132 | AE124: 0.0132 | AF124: 0.0132 | AK124: 0.0000 | AL124: 0.026
A125: 104 | B125: морковь | C125: кг | I125: 0.0000 | O125: 0.0000 | R125: 0.0000 | V125: 0.0000 | W125: 0.0125 | Z125: 0.0125 | AA125: 0.0125 | AE125: 0.0125 | AF125: 0.0125 | AK125: 0.0000 | AL125: 0.025
A126: 105 | B126: свекла | C126: кг | D126: 0.0768 | I126: 0.0768 | J126: 0.0768 | O126: 0.0768 | R126: 0.0000 | V126: 0.0000 | Z126: 0.0000 | AE126: 0.0000 | AK126: 0.0000 | AL126: 0.154
A127: 106 | B127: огурцы св. | C127: кг | I127: 0.0000 | O127: 0.0000 | R127: 0.0000 | V127: 0.0000 | Z127: 0.0000 | AE127: 0.0000 | AK127: 0.0000 | AL127: 0.000
A128: 107 | B128: томаты св. | C128: кг | I128: 0.0000 | O128: 0.0000 | R128: 0.0000 | V128: 0.0000 | Z128: 0.0000 | AE128: 0.0000 | AK128: 0.0000 | AL128: 0.000
A129: 108 | B129: перец болг.красный | C129: кг | I129: 0.0000 | O129: 0.0000 | R129: 0.0000 | V129: 0.0000 | Z129: 0.0000 | AE129: 0.0000 | AK129: 0.0000 | AL129: 0.000
A130: 109 | B130: тыква | C130: кг | I130: 0.0000 | O130: 0.0000 | R130: 0.0000 | V130: 0.0000 | Z130: 0.0000 | AE130: 0.0000 | AK130: 0.0000 | AL130: 0.000
B131: Овощи очищенные | I131: 0.0000 | O131: 0.0000 | R131: 0.0000 | V131: 0.0000 | Z131: 0.0000 | AE131: 0.0000 | AK131: 0.0000 | AL131: 0.000
A132: 110 | B132: капуста св.очищенная | C132: кг | I132: 0.0000 | O132: 0.0000 | R132: 0.0000 | V132: 0.0000 | Z132: 0.0000 | AE132: 0.0000 | AK132: 0.0000 | AL132: 0.000
A133: 111 | B133: картофель св. очищенный | C133: кг | I133: 0.0000 | O133: 0.0000 | R133: 0.0000 | V133: 0.0000 | Z133: 0.0000 | AE133: 0.0000 | AK133: 0.0000 | AL133: 0.000
A134: 112 | B134: лук репчатый св.очищенный | C134: кг | I134: 0.0000 | O134: 0.0000 | R134: 0.0000 | V134: 0.0000 | Z134: 0.0000 | AE134: 0.0000 | AK134: 0.0000 | AL134: 0.000
A135: 113 | B135: морковь св.очищенная | C135: кг | I135: 0.0000 | O135: 0.0000 | R135: 0.0000 | V135: 0.0000 | Z135: 0.0000 | AE135: 0.0000 | AK135: 0.0000 | AL135: 0.000
A136: 114 | B136: свекла св.очищенная | C136: кг | I136: =(D136+E136+F136+G136+H136)*$I$5 -> 0.0000 | O136: =(N136+M136+L136+K136+J136)*$O$5 -> 0.0000 | R136: =(Q136+P136)*$R$5 -> 0.0000 | V136: =(U136+T136+S136)*$V$5 -> 0.0000 | Z136: =(W136+X136+Y136)*$Z$5 -> 0.0000 | AE136: =(AA136+AC136+AD136)*$AE$5 -> 0.0000 | AK136: =(AJ136+AI136+AH136+AG136+AF136)*$AK$5 -> 0.0000 | AL136: =AK136+AE136+Z136+V136+R136+O136+I136 -> 0.000
B137: Полуфабрикаты | I137: 0.0000 | O137: 0.0000 | R137: 0.0000 | V137: 0.0000 | Z137: 0.0000 | AE137: 0.0000 | AK137: 0.0000 | AL137: 0.000
A138: 115 | B138: сырники ПФ | C138: шт | I138: 0.0000 | O138: 0.0000 | R138: 0.0000 | V138: 0.0000 | Z138: 0.0000 | AE138: 0.0000 | AK138: 0.0000 | AL138: 0.000
A139: 116 | B139: пельмени ПФ | C139: кг | I139: 0.0000 | O139: 0.0000 | R139: 0.0000 | V139: 0.0000 | Z139: 0.0000 | AE139: 0.0000 | AK139: 0.0000 | AL139: 0.000
A140: 117 | B140: биточки рыбные | C140: шт | I140: 0.0000 | O140: 0.0000 | R140: 0.0000 | V140: 0.0000 | Z140: 0.0000 | AE140: 0.0000 | AK140: 0.0000 | AL140: 0.000
A141: 118 | B141: фрикадельки мясные | C141: кг | I141: 0.0000 | O141: 0.0000 | R141: 0.0000 | V141: 0.0000 | Z141: 0.0000 | AE141: 0.0000 | AK141: 0.0000 | AL141: 0.000
A142: 119 | B142: фрикадельки куриные | C142: кг | I142: 0.0000 | O142: 0.0000 | R142: 0.0000 | V142: 0.0000 | Z142: 0.0000 | AE142: 0.0000 | AK142: 0.0000 | AL142: 0.000
A143: 120 | B143: хинкали п/ф из говядины | C143: кг | I143: 0.0000 | O143: 0.0000 | R143: 0.0000 | V143: 0.0000 | Z143: 0.0000 | AE143: 0.0000 | AK143: 0.0000 | AL143: 0.000
A144: 121 | B144: котлеты из говядины "Пожарские" | C144: шт | I144: 0.0000 | O144: 0.0000 | R144: 0.0000 | V144: 0.0000 | Z144: 0.0000 | AE144: 0.0000 | AK144: 0.0000 | AL144: 0.000
A145: 122 | B145: бифштекс из говядины | C145: шт | I145: 0.0000 | O145: 0.0000 | R145: 0.0000 | V145: 0.0000 | Z145: 0.0000 | AE145: 0.0000 | AK145: 0.0000 | AL145: 0.000
A146: 123 | B146: котлеты из мяса кур | C146: шт | I146: 0.0000 | O146: 0.0000 | R146: 0.0000 | V146: 0.0000 | Z146: 0.0000 | AE146: 0.0000 | AK146: 0.0000 | AL146: 0.000
A147: 124 | B147: котлеты "Аппетитные" мясо-куриные | C147: шт | I147: 0.0000 | O147: 0.0000 | R147: 0.0000 | V147: 0.0000 | Z147: 0.0000 | AE147: 0.0000 | AK147: 0.0000 | AL147: 0.000
A148: 125 | B148: ежики мясные с рисом | C148: шт | I148: 0.0000 | O148: 0.0000 | R148: 0.0000 | V148: 0.0000 | Z148: 0.0000 | AE148: 0.0000 | AK148: 0.0000 | AL148: 0.000

Sheet Пт День 5 Нед 1
A1: Расход продуктов питания в образовательных учереждениях
D2: Меню с 1 по 4 класс 77,76 РУБ | K2: ИТОГО | L2: Меню с 5 по 11 класс 77,76 РУБ | T2: ИТОГО | U2: Меню на сумму 10,70 РУБ | W2: ИТОГО | X2: Меню КАШИ НА молоке 28,00 РУБ | AA2: ИТОГО | AB2: Меню СУПА 38,00 РУБ | AE2: ИТОГО | AF2: Меню ЧЕРЕДОВАНИЕ суп/второе 50,00 руб | AJ2: ИТОГО | AK2: Меню ЧЕРЕДОВАНИЕ суп/второе + КОНДИТЕРКА 53,00 руб | AO2: ИТОГО | AP2: ВСЕГО ЗА ДЕНЬ расход продуктов по всем рационам
B3: ДЕНЬ 5 неделя 1 | D3: сыр порционно | E3: тефтели мясные в смет-том соусе | F3: макароны отварные с маслом слив | G3: напиток из свежих фруктов | H3: Хлеб пшеничн /ржаной | L3: сыр порционно | N3: тефтели мясные в смет-том соусе | O3: макароны отварные | P3: напиток из свежих фруктов | Q3: Хлеб пшеничн /ржаной | U3: печенье /крекер/ | V3: чай с сахаром | X3: Каша манная с маслом слив | Y3: компот из св яблок | Z3: Хлеб ржаной | AB3: суп Харчо с мясом птицы со смет | AC3: компот из сухофруктов | AD3: Хлеб ржаной | AF3: тефтели мясные в смет-том соусе | AG3: макароны отварные | AH3: Чай с сахаром с лимоном | AI3: Хлеб пшенич/ржаной | AK3: тефтели мясные в смет-том соусе | AL3: макароны отварные | AM3: Чай с сахаром с лимоном | AN3: Хлеб пшенич/ржаной
B4: КОЛИЧЕСТВО ДЕТЕЙ | D4: 7-11 | E4: 7-11 | F4: 7-11 | G4: 7-11 | H4: 7-11 | L4: 12-18 | M4: 12-18 | N4: 12-18 | O4: 12-18 | P4: 12-18 | Q4: 12-18 | U4: 12-18 | V4: 12-18 | X4: 12-18 | Y4: 12-18 | Z4: 12-18 | AB4: 12-18 | AC4: 12-18 | AD4: 12-18 | AF4: 12-18 | AG4: 12-18 | AH4: 12-18 | AI4: 12-18 | AK4: 12-18 | AL4: 12-18 | AM4: 12-18 | AN4: 12-18
B5: Выход,гр | D5: 15 | E5: 60/40 | F5: 180/5 | G5: 200 | H5: 45/0 | K5: 1 | L5: 10 | N5: 60/40 | O5: 200 | P5: 200 | Q5: 0/40 | T5: 1 | U5: 30 | V5: 190/10 | W5: 1 | X5: 150/3 | Y5: 200 | Z5: 30 | AA5: 1 | AB5: 250/10/5 | AC5: 200 | AD5: 30 | AE5: 1 | AF5: 60/40 | AG5: 180 | AH5: 185/10/5 | AI5: 20/20 | AJ5: 1 | AK5: 60/40 | AL5: 180 | AM5: 185/10/5 | AN5: 20/20 | AP5: =AO5+AJ5+AE5+AA5+W5+T5+K5 -> 6
B6: Хлеб
A7: 1 | B7: батон | C7: кг | K7: =(D7+E7+F7+G7+H7)*$K$5 -> 0.0000 | T7: =(Q7+P7+O7+N7+L7)*$T$5 -> 0.0000 | W7: =(V7+U7)*$W$5 -> 0.0000 | AA7: =(Z7+Y7+X7)*$AA$5 -> 0.0000 | AE7: =(AC7+AB7+AD7)*$AE$5 -> 0.0000 | AJ7: =(AF7+AG7+AH7+AI7)*$AJ$5 -> 0.0000 | AO7: =(AN7+AM7+AL7+AK7)*$AO$5 -> 0.0000 | AP7: =AO7+AJ7+AE7+AA7+W7+T7+K7 -> 0.000
A8: 2 | B8: хлеб пшеничный | C8: кг | H8: 0.0450 | K8: =(D8+E8+F8+G8+H8)*$K$5 -> 0.0450 | T8: =(Q8+P8+O8+N8+L8)*$T$5 -> 0.0000 | W8: =(V8+U8)*$W$5 -> 0.0000 | AA8: =(Z8+Y8+X8)*$AA$5 -> 0.0000 | AE8: =(AC8+AB8+AD8)*$AE$5 -> 0.0000 | AI8: 0.0200 | AJ8: =(AF8+AG8+AH8+AI8)*$AJ$5 -> 0.0200 | AN8: 0.0200 | AO8: =(AN8+AM8+AL8+AK8)*$AO$5 -> 0.0000 | AP8: =AO8+AJ8+AE8+AA8+W8+T8+K8 -> 0.065
A9: 3 | B9: хлеб ржаной | C9: кг | K9: 0.0000 | Q9: 0.0400 | T9: 0.0400 | W9: 0.0000 | Z9: 0.0300 | AA9: 0.0300 | AD9: 0.0300 | AE9: 0.0300 | AI9: 0.0200 | AJ9: 0.0200 | AN9: 0.0200 | AO9: 0.0000 | AP9: 0.120
A10: 4 | B10: булоч/ выпечка готов с х/ком | C10: шт | K10: 0.0000 | T10: 0.0000 | W10: 0.0000 | AA10: 0.0000 | AE10: 0.0000 | AJ10: 0.0000 | AO10: 0.0000 | AP10: 0.000
B11: Молочка | K11: 0.0000 | T11: 0.0000 | W11: 0.0000 | AA11: 0.0000 | AE11: 0.0000 | AJ11: 0.0000 | AO11: 0.0000 | AP11: 0.000
A12: 5 | B12: молоко 2,5% | C12: кг | K12: 0.0000 | T12: 0.0000 | W12: 0.0000 | X12: 0.0750 | AA12: 0.0750 | AE12: 0.0000 | AJ12: 0.0000 | AO12: 0.0000 | AP12: 0.075
A13: 6 | B13: творог 5% | C13: кг | K13: 0.0000 | T13: 0.0000 | W13: 0.0000 | AA13: 0.0000 | AE13: 0.0000 | AJ13: 0.0000 | AO13: 0.0000 | AP13: 0.000
A14: 7 | B14: сметана 15% | C14: кг | E14: 0.0100 | K14: 0.0100 | N14: 0.0100 | T14: 0.0100 | W14: 0.0000 | AA14: 0.0000 | AB14: 0.0050 | AE14: 0.0050 | AF14: 0.0100 | AJ14: 0.0100 | AK14: 0.0100 | AO14: 0.0000 | AP14: 0.035
A15: 8 | B15: йогурт фруктов | C15: кг | K15: 0.0000 | T15: 0.0000 | W15: 0.0000 | AA15: 0.0000 | AE15: 0.0000 | AJ15: 0.0000 | AO15: 0.0000 | AP15: 0.000
A16: 9 | B16: катык 2,5% | C16: кг | K16: 0.0000 | T16: 0.0000 | W16: 0.0000 | AA16: 0.0000 | AE16: 0.0000 | AJ16: 0.0000 | AO16: 0.0000 | AP16: 0.000
A17: 10 | B17: кефир 2,5% | C17: кг | K17: 0.0000 | T17: 0.0000 | W17: 0.0000 | AA17: 0.0000 | AE17: 0.0000 | AJ17: 0.0000 | AO17: 0.0000 | AP17: 0.000
A18: 11 | B18: ряженка 2,5% | C18: кг | K18: 0.0000 | T18: 0.0000 | W18: 0.0000 | AA18: 0.0000 | AE18: 0.0000 | AJ18: 0.0000 | AO18: 0.0000 | AP18: 0.000
A19: 12 | B19: напиток ацидофильный | C19: кг | K19: 0.0000 | T19: 0.0000 | W19: 0.0000 | AA19: 0.0000 | AE19: 0.0000 | AJ19: 0.0000 | AO19: 0.0000 | AP19: 0.000
B20: Масло / сыр | K20: 0.0000 | T20: 0.0000 | W20: 0.0000 | AA20: 0.0000 | AE20: 0.0000 | AJ20: 0.0000 | AO20: 0.0000 | AP20: 0.000
A21: 13 | B21: масло растительное | C21: кг | E21: 0.0050 | K21: 0.0050 | N21: 0.0050 | T21: 0.0050 | W21: 0.0000 | AA21: 0.0000 | AB21: 0.0050 | AE21: 0.0050 | AF21: 0.0050 | AJ21: 0.0050 | AK21: 0.0050 | AO21: 0.0000 | AP21: 0.020
A22: 14 | B22: масло сливочное | C22: кг | F22: 0.0050 | K22: 0.0050 | O22: 0.0030 | T22: 0.0030 | W22: 0.0000 | X22: 0.0030 | AA22: 0.0030 | AE22: 0.0000 | AG22: 0.0010 | AJ22: 0.0010 | AL22: 0.0010 | AO22: 0.0000 | AP22: 0.012
A23: 15 | B23: сыр голландский | C23: кг | D23: 0.0153 | K23: 0.0153 | L23: 0.0102 | T23: 0.0102 | W23: 0.0000 | AA23: 0.0000 | AE23: 0.0000 | AJ23: 0.0000 | AO23: 0.0000 | AP23: 0.026
B24: Мясо | K24: 0.0000 | T24: 0.0000 | W24: 0.0000 | AA24: 0.0000 | AE24: 0.0000 | AJ24: 0.0000 | AO24: 0.0000 | AP24: 0.000
A25: 16 | B25: говядина (котлетное мясо) | C25: кг | K25: 0.0000 | T25: 0.0000 | W25: 0.0000 | AA25: 0.0000 | AE25: 0.0000 | AJ25: 0.0000 | AO25: 0.0000 | AP25: 0.000
A26: 17 | B26: фарш говяжий | C26: кг | E26: 0.0400 | K26: 0.0400 | N26: 0.0400 | T26: 0.0400 | W26: 0.0000 | AA26: 0.0000 | AE26: 0.0000 | AF26: 0.0380 | AJ26: 0.0380 | AK26: 0.0380 | AO26: 0.0000 | AP26: 0.118
A27: 18 | B27: говядина лопатка б/к | C27: кг | K27: 0.0000 | T27: 0.0000 | W27: 0.0000 | AA27: 0.0000 | AE27: 0.0000 | AJ27: 0.0000 | AO27: 0.0000 | AP27: 0.000
A28: 19 | B28: сосиски | C28: кг | K28: 0.0000 | T28: 0.0000 | W28: 0.0000 | AA28: 0.0000 | AE28: 0.0000 | AJ28: 0.0000 | AO28: 0.0000 | AP28: 0.000
A29: 20 | B29: колбаса п/к "Халяль" | C29: кг | K29: 0.0000 | T29: 0.0000 | W29: 0.0000 | AA29: 0.0000 | AE29: 0.0000 | AJ29: 0.0000 | AO29: 0.0000 | AP29: 0.000
A30: 21 | B30: куриное бедро | C30: кг | K30: 0.0000 | T30: 0.0000 | W30: 0.0000 | AA30: 0.0000 | AE30: 0.0000 | AJ30: 0.0000 | AO30: 0.0000 | AP30: 0.000
A31: 22 | B31: куриная грудка | C31: кг | K31: 0.0000 | T31: 0.0000 | W31: 0.0000 | AA31: 0.0000 | AB31: 0.0162 | AE31: 0.0162 | AJ31: 0.0000 | AO31: 0.0000 | AP31: 0.016
A32: 23 | B32: куры/цыплята потрош. | C32: кг | K32: 0.0000 | T32: 0.0000 | W32: 0.0000 | AA32: 0.0000 | AE32: 0.0000 | AJ32: 0.0000 | AO32: 0.0000 | AP32: 0.000
A33: 24 | B33: фарш куриный | C33: кг | K33: 0.0000 | T33: 0.0000 | W33: 0.0000 | AA33: 0.0000 | AE33: 0.0000 | AJ33: 0.0000 | AO33: 0.0000 | AP33: 0.000
A34: 25 | B34: индейка бедро филе | C34: кг | K34: 0.0000 | T34: 0.0000 | W34: 0.0000 | AA34: 0.0000 | AE34: 0.0000 | AJ34: 0.0000 | AO34: 0.0000 | AP34: 0.000
A35: 26 | B35: индейка грудка филе | C35: кг | K35: 0.0000 | T35: 0.0000 | W35: 0.0000 | AA35: 0.0000 | AE35: 0.0000 | AJ35: 0.0000 | AO35: 0.0000 | AP35: 0.000
B36: Рыба | K36: 0.0000 | T36: 0.0000 | W36: 0.0000 | AA36: 0.0000 | AE36: 0.0000 | AJ36: 0.0000 | AO36: 0.0000 | AP36: 0.000
A37: 27 | B37: горбуша ПБГ с/м | C37: кг | K37: 0.0000 | T37: 0.0000 | W37: 0.0000 | AA37: 0.0000 | AE37: 0.0000 | AJ37: 0.0000 | AO37: 0.0000 | AP37: 0.000
A38: 28 | B38: минтай б/г с/м | C38: кг | K38: 0.0000 | T38: 0.0000 | W38: 0.0000 | AA38: 0.0000 | AE38: 0.0000 | AJ38: 0.0000 | AO38: 0.0000 | AP38: 0.000
A39: 29 | B39: фарш минтая | C39: кг | K39: 0.0000 | T39: 0.0000 | W39: 0.0000 | AA39: 0.0000 | AE39: 0.0000 | AJ39: 0.0000 | AO39: 0.0000 | AP39: 0.000
B40: Сыпучка | K40: 0.0000 | T40: 0.0000 | W40: 0.0000 | AA40: 0.0000 | AE40: 0.0000 | AJ40: 0.0000 | AO40: 0.0000 | AP40: 0.000
A41: 30 | B41: вермишель | C41: кг | K41: 0.0000 | T41: 0.0000 | W41: 0.0000 | AA41: 0.0000 | AE41: 0.0000 | AJ41: 0.0000 | AO41: 0.0000 | AP41: 0.000
A42: 31 | B42: геркулес | C42: кг | K42: 0.0000 | T42: 0.0000 | W42: 0.0000 | AA42: 0.0000 | AE42: 0.0000 | AJ42: 0.0000 | AO42: 0.0000 | AP42: 0.000
A43: 32 | B43: горох | C43: кг | K43: 0.0000 | T43: 0.0000 | W43: 0.0000 | AA43: 0.0000 | AE43: 0.0000 | AJ43: 0.0000 | AO43: 0.0000 | AP43: 0.000
A44: 33 | B44: гречневая крупа | C44: кг | K44: 0.0000 | T44: 0.0000 | W44: 0.0000 | AA44: 0.0000 | AE44: 0.0000 | AJ44: 0.0000 | AO44: 0.0000 | AP44: 0.000
A45: 34 | B45: кукурузная крупа | C45: кг | K45: 0.0000 | T45: 0.0000 | W45: 0.0000 | AA45: 0.0000 | AE45: 0.0000 | AJ45: 0.0000 | AO45: 0.0000 | AP45: 0.000
A46: 35 | B46: макаронные изделия | C46: кг | F46: 0.0732 | K46: 0.0732 | O46: 0.0810 | T46: 0.0810 | W46: 0.0000 | AA46: 0.0000 | AE46: 0.0000 | AG46: 0.0732 | AJ46: 0.0732 | AL46: 0.0732 | AO46: 0.0000 | AP46: 0.227
A47: 36 | B47: манная крупа | C47: кг | K47: 0.0000 | T47: 0.0000 | W47: 0.0000 | X47: 0.0280 | AA47: 0.0280 | AE47: 0.0000 | AJ47: 0.0000 | AO47: 0.0000 | AP47: 0.028
A48: 37 | B48: перловая крупа | C48: кг | K48: 0.0000 | T48: 0.0000 | W48: 0.0000 | AA48: 0.0000 | AE48: 0.0000 | AJ48: 0.0000 | AO48: 0.0000 | AP48: 0.000
A49: 38 | B49: полбяная крупа | C49: кг | K49: 0.0000 | T49: 0.0000 | W49: 0.0000 | AA49: 0.0000 | AE49: 0.0000 | AJ49: 0.0000 | AO49: 0.0000 | AP49: 0.000
A50: 39 | B50: пшеничная крупа | C50: кг | K50: 0.0000 | T50: 0.0000 | W50: 0.0000 | AA50: 0.0000 | AE50: 0.0000 | AJ50: 0.0000 | AO50: 0.0000 | AP50: 0.000
A51: 40 | B51: пшено | C51: кг | K51: 0.0000 | T51: 0.0000 | W51: 0.0000 | AA51: 0.0000 | AE51: 0.0000 | AJ51: 0.0000 | AO51: 0.0000 | AP51: 0.000
A52: 41 | B52: рис | C52: кг | E52: 0.0050 | K52: 0.0050 | N52: 0.0050 | T52: 0.0050 | W52: 0.0000 | AA52: 0.0000 | AB52: 0.0200 | AE52: 0.0200 | AF52: 0.0050 | AJ52: 0.0050 | AK52: 0.0050 | AO52: 0.0000 | AP52: 0.035
A53: 42 | B53: ячневая крупа | C53: кг | K53: 0.0000 | T53: 0.0000 | W53: 0.0000 | AA53: 0.0000 | AE53: 0.0000 | AJ53: 0.0000 | AO53: 0.0000 | AP53: 0.000
A54: 43 | B54: лапша домашняя п/ф | C54: кг | K54: 0.0000 | T54: 0.0000 | W54: 0.0000 | AA54: 0.0000 | AE54: 0.0000 | AJ54: 0.0000 | AO54: 0.0000 | AP54: 0.000
A55: 44 | B55: мука пшеничная в/с | C55: кг | E55: 0.0070 | K55: 0.0070 | N55: 0.0070 | T55: 0.0070 | W55: 0.0000 | AA55: 0.0000 | AE55: 0.0000 | AF55: 0.0070 | AJ55: 0.0070 | AK55: 0.0070 | AO55: 0.0000 | AP55: 0.021
A56: 45 | B56: сахарный песок | C56: кг | G56: 0.0100 | K56: 0.0100 | P56: 0.0100 | T56: 0.0100 | V56: 0.0100 | W56: 0.0100 | X56: 0.0005 | Y56: 0.0100 | AA56: 0.0105 | AC56: 0.0100 | AE56: 0.0100 | AH56: 0.0100 | AJ56: 0.0100 | AM56: 0.0100 | AO56: 0.0000 | AP56: 0.061
A57: 46 | B57: соль | C57: кг | E57: 0.0008 | F57: 0.0004 | K57: 0.0012 | N57: 0.0008 | O57: 0.0007 | T57: 0.0015 | W57: 0.0000 | X57: 0.0003 | AA57: 0.0003 | AB57: 0.0008 | AE57: 0.0008 | AF57: 0.0004 | AG57: 0.0070 | AJ57: 0.0074 | AK57: 0.0004 | AL57: 0.0070 | AO57: 0.0000 | AP57: 0.011
A58: 47 | B58: сухари панировочные | C58: кг | K58: 0.0000 | T58: 0.0000 | W58: 0.0000 | AA58: 0.0000 | AE58: 0.0000 | AJ58: 0.0000 | AO58: 0.0000 | AP58: 0.000
A59: 48 | B59: дрожжи сухие | C59: кг | K59: 0.0000 | T59: 0.0000 | W59: 0.0000 | AA59: 0.0000 | AE59: 0.0000 | AJ59: 0.0000 | AO59: 0.0000 | AP59: 0.000
A60: 49 | B60: хлебцы | C60: кг | K60: 0.0000 | T60: 0.0000 | W60: 0.0000 | AA60: 0.0000 | AE60: 0.0000 | AJ60: 0.0000 | AO60: 0.0000 | AP60: 0.000
B61: Консервы | K61: 0.0000 | T61: 0.0000 | W61: 0.0000 | AA61: 0.0000 | AE61: 0.0000 | AJ61: 0.0000 | AO61: 0.0000 | AP61: 0.000
A62: 50 | B62: зеленый горошек к/с | C62: кг | K62: 0.0000 | T62: 0.0000 | W62: 0.0000 | AA62: 0.0000 | AE62: 0.0000 | AJ62: 0.0000 | AO62: 0.0000 | AP62: 0.000
A63: 51 | B63: кукуруза к/с | C63: кг | K63: 0.0000 | T63: 0.0000 | W63: 0.0000 | AA63: 0.0000 | AE63: 0.0000 | AJ63: 0.0000 | AO63: 0.0000 | AP63: 0.000
A64: 52 | B64: фасоль к/с | C64: кг | K64: 0.0000 | T64: 0.0000 | W64: 0.0000 | AA64: 0.0000 | AE64: 0.0000 | AJ64: 0.0000 | AO64: 0.0000 | AP64: 0.000
A65: 53 | B65: икра кабач/икра баклаж | C65: кг | K65: 0.0000 | T65: 0.0000 | W65: 0.0000 | AA65: 0.0000 | AE65: 0.0000 | AJ65: 0.0000 | AO65: 0.0000 | AP65: 0.000
A66: 54 | B66: капуста морская сушеная | C66: кг | K66: 0.0000 | T66: 0.0000 | W66: 0.0000 | AA66: 0.0000 | AE66: 0.0000 | AJ66: 0.0000 | AO66: 0.0000 | AP66: 0.000
A67: 55 | B67: капуста квашеная | C67: кг | K67: 0.0000 | T67: 0.0000 | W67: 0.0000 | AA67: 0.0000 | AE67: 0.0000 | AJ67: 0.0000 | AO67: 0.0000 | AP67: 0.000
A68: 56 | B68: молоко сгущенное | C68: кг | K68: 0.0000 | T68: 0.0000 | W68: 0.0000 | AA68: 0.0000 | AE68: 0.0000 | AJ68: 0.0000 | AO68: 0.0000 | AP68: 0.000
A69: 57 | B69: огурцы соленые | C69: кг | K69: 0.0000 | T69: 0.0000 | W69: 0.0000 | AA69: 0.0000 | AE69: 0.0000 | AJ69: 0.0000 | AO69: 0.0000 | AP69: 0.000
A70: 58 | B70: повидло | C70: кг | K70: 0.0000 | T70: 0.0000 | W70: 0.0000 | AA70: 0.0000 | AE70: 0.0000 | AJ70: 0.0000 | AO70: 0.0000 | AP70: 0.000
A71: 59 | B71: томатная паста | C71: кг | E71: 0.0016 | K71: 0.0016 | N71: 0.0016 | T71: 0.0016 | W71: 0.0000 | AA71: 0.0000 | AB71: 0.0030 | AE71: 0.0030 | AF71: 0.0016 | AJ71: 0.0016 | AK71: 0.0016 | AO71: 0.0000 | AP71: 0.008
A72: 60 | B72: рыбные консервы | C72: кг | K72: =(D72+E72+F72+G72+H72)*$K$5 -> 0.0000 | T72: =(Q72+P72+O72+N72+L72)*$T$5 -> 0.0000 | W72: =(V72+U72)*$W$5 -> 0.0000 | AA72: =(Z72+Y72+X72)*$AA$5 -> 0.0000 | AE72: =(AC72+AB72+AD72)*$AE$5 -> 0.0000 | AJ72: =(AF72+AG72+AH72+AI72)*$AJ$5 -> 0.0000 | AO72: =(AN72+AM72+AL72+AK72)*$AO$5 -> 0.0000 | AP72: =AO72+AJ72+AE72+AA72+W72+T72+K72 -> 0.000
B73: Напитки | K73: 0.0000 | T73: 0.0000 | W73: 0.0000 | AA73: 0.0000 | AE73: 0.0000 | AJ73: 0.0000 | AO73: 0.0000 | AP73: 0.000
A74: 61 | B74: чай весовой | C74: кг | K74: 0.0000 | T74: 0.0000 | V74: 0.0005 | W74: 0.0005 | AA74: 0.0000 | AE74: 0.0000 | AH74: 0.0010 | AJ74: 0.0010 | AM74: 0.0010 | AO74: 0.0000 | AP74: 0.002
A75: 62 | B75: какао | C75: кг | K75: 0.0000 | T75: 0.0000 | W75: 0.0000 | AA75: 0.0000 | AE75: 0.0000 | AJ75: 0.0000 | AO75: 0.0000 | AP75: 0.000
A76: 63 | B76: кисель | C76: кг | K76: 0.0000 | T76: 0.0000 | W76: 0.0000 | AA76: 0.0000 | AE76: 0.0000 | AJ76: 0.0000 | AO76: 0.0000 | AP76: 0.000
A77: 64 | B77: кофейный напиток | C77: кг | K77: 0.0000 | T77: 0.0000 | W77: 0.0000 | AA77: 0.0000 | AE77: 0.0000 | AJ77: 0.0000 | AO77: 0.0000 | AP77: 0.000
A78: 65 | B78: цикорий | C78: кг | K78: 0.0000 | T78: 0.0000 | W78: 0.0000 | AA78: 0.0000 | AE78: 0.0000 | AJ78: 0.0000 | AO78: 0.0000 | AP78: 0.000
B79: Сухофрукты | K79: 0.0000 | T79: 0.0000 | W79: 0.0000 | AA79: 0.0000 | AE79: 0.0000 | AJ79: 0.0000 | AO79: 0.0000 | AP79: 0.000
A80: 66 | B80: ассорти для компота (сухофрукты) | C80: кг | K80: 0.0000 | T80: 0.0000 | W80: 0.0000 | AA80: 0.0000 | AC80: 0.0204 | AE80: 0.0204 | AJ80: 0.0000 | AO80: 0.0000 | AP80: 0.020
A81: 67 | B81: изюм | C81: кг | K81: 0.0000 | T81: 0.0000 | W81: 0.0000 | AA81: 0.0000 | AE81: 0.0000 | AJ81: 0.0000 | AO81: 0.0000 | AP81: 0.000
A82: 68 | B82: курага | C82: кг | K82: 0.0000 | T82: 0.0000 | W82: 0.0000 | AA82: 0.0000 | AE82: 0.0000 | AJ82: 0.0000 | AO82: 0.0000 | AP82: 0.000
A83: 69 | B83: урюк | C83: кг | K83: 0.0000 | T83: 0.0000 | W83: 0.0000 | AA83: 0.0000 | AE83: 0.0000 | AJ83: 0.0000 | AO83: 0.0000 | AP83: 0.000
A84: 70 | B84: шиповник | C84: кг | K84: 0.0000 | T84: 0.0000 | W84: 0.0000 | AA84: 0.0000 | AE84: 0.0000 | AJ84: 0.0000 | AO84: 0.0000 | AP84: 0.000
A85: 71 | B85: компотная смесь с/м | C85: кг | K85: 0.0000 | T85: 0.0000 | W85: 0.0000 | AA85: 0.0000 | AE85: 0.0000 | AJ85: 0.0000 | AO85: 0.0000 | AP85: 0.000
A86: 72 | B86: вишня с/м | C86: кг | K86: 0.0000 | T86: 0.0000 | W86: 0.0000 | AA86: 0.0000 | AE86: 0.0000 | AJ86: 0.0000 | AO86: 0.0000 | AP86: 0.000
A87: 73 | B87: клюква с/м | C87: кг | K87: 0.0000 | T87: 0.0000 | W87: 0.0000 | AA87: 0.0000 | AE87: 0.0000 | AJ87: 0.0000 | AO87: 0.0000 | AP87: 0.000
A88: 74 | B88: смородина в ассорт с/м | C88: кг | K88: 0.0000 | T88: 0.0000 | W88: 0.0000 | AA88: 0.0000 | AE88: 0.0000 | AJ88: 0.0000 | AO88: 0.0000 | AP88: 0.000
A89: 75 | B89: облепиха с/м | C89: кг | K89: 0.0000 | T89: 0.0000 | W89: 0.0000 | AA89: 0.0000 | AE89: 0.0000 | AJ89: 0.0000 | AO89: 0.0000 | AP89: 0.000
B90: Сок | K90: 0.0000 | T90: 0.0000 | W90: 0.0000 | AA90: 0.0000 | AE90: 0.0000 | AJ90: 0.0000 | AO90: 0.0000 | AP90: 0.000
A91: 76 | B91: сок 0,125л или 0,2л | C91: л | K91: 0.0000 | T91: 0.0000 | W91: 0.0000 | AA91: 0.0000 | AE91: 0.0000 | AJ91: 0.0000 | AO91: 0.0000 | AP91: 0.000
A92: 77 | B92: нектар плодовый | C92: л | K92: 0.0000 | T92: 0.0000 | W92: 0.0000 | AA92: 0.0000 | AE92: 0.0000 | AJ92: 0.0000 | AO92: 0.0000 | AP92: 0.000
B93: Кондитерка | K93: 0.0000 | T93: 0.0000 | W93: 0.0000 | AA93: 0.0000 | AE93: 0.0000 | AJ93: 0.0000 | AO93: 0.0000 | AP93: 0.000
A94: 78 | B94: батончик злаковый | C94: шт | K94: 0.0000 | T94: 0.0000 | W94: 0.0000 | AA94: 0.0000 | AE94: 0.0000 | AJ94: 0.0000 | AO94: 0.0000 | AP94: 0.000
A95: 79 | B95: пряник | C95: кг | K95: 0.0000 | T95: 0.0000 | W95: 0.0000 | AA95: 0.0000 | AE95: 0.0000 | AJ95: 0.0000 | AO95: 0.0000 | AP95: 0.000
A96: 80 | B96: вафли | C96: кг | K96: 0.0000 | T96: 0.0000 | W96: 0.0000 | AA96: 0.0000 | AE96: 0.0000 | AJ96: 0.0000 | AO96: 0.0000 | AP96: 0.000
A97: 81 | B97: печенье | C97: кг | K97: 0.0000 | T97: 0.0000 | W97: 0.0000 | AA97: 0.0000 | AE97: 0.0000 | AJ97: 0.0000 | AO97: 0.0000 | AP97: 0.000
A98: 82 | B98: крекер | C98: кг | K98: 0.0000 | T98: 0.0000 | U98: 0.0300 | W98: 0.0300 | AA98: 0.0000 | AE98: 0.0000 | AJ98: 0.0000 | AO98: 0.0000 | AP98: 0.030
A99: 83 | B99: сушки | C99: кг | K99: 0.0000 | T99: 0.0000 | W99: 0.0000 | AA99: 0.0000 | AE99: 0.0000 | AJ99: 0.0000 | AO99: 0.0000 | AP99: 0.000
A100: 84 | B100: мармелад | C100: кг | K100: 0.0000 | T100: 0.0000 | W100: 0.0000 | AA100: 0.0000 | AE100: 0.0000 | AJ100: 0.0000 | AO100: 0.0000 | AP100: 0.000
A101: 85 | B101: блины п/ф | C101: кг | K101: 0.0000 | T101: 0.0000 | W101: 0.0000 | AA101: 0.0000 | AE101: 0.0000 | AJ101: 0.0000 | AO101: 0.0000 | AP101: 0.000
A102: 86 | B102: выпечка п/ф со склада | C102: шт | K102: 0.0000 | T102: 0.0000 | W102: 0.0000 | AA102: 0.0000 | AE102: 0.0000 | AJ102: 0.0000 | AO102: 0.0000 | AP102: 0.000
B103: Яйцо | K103: 0.0000 | T103: 0.0000 | W103: 0.0000 | AA103: 0.0000 | AE103: 0.0000 | AJ103: 0.0000 | AO103: 0.0000 | AP103: 0.000
A104: 87 | B104: яйцо куриное | C104: кг | K104: 0.0000 | T104: 0.0000 | W104: 0.0000 | AA104: 0.0000 | AE104: 0.0000 | AJ104: 0.0000 | AO104: 0.0000 | AP104: 0.000
B105: 0.048 | C105: шт | K105: 0.0000 | T105: 0.0000 | W105: 0.0000 | AA105: 0.0000 | AE105: 0.0000 | AJ105: 0.0000 | AO105: 0.0000 | AP105: 0.000
B106: Овощи заморозка | K106: 0.0000 | T106: 0.0000 | W106: 0.0000 | AA106: 0.0000 | AE106: 0.0000 | AJ106: 0.0000 | AO106: 0.0000 | AP106: 0.000
A107: 88 | B107: зеленый горошек с/м | C107: кг | K107: 0.0000 | T107: 0.0000 | W107: 0.0000 | AA107: 0.0000 | AE107: 0.0000 | AJ107: 0.0000 | AO107: 0.0000 | AP107: 0.000
A108: 89 | B108: кабачки с/м | C108: кг | K108: 0.0000 | T108: 0.0000 | W108: 0.0000 | AA108: 0.0000 | AE108: 0.0000 | AJ108: 0.0000 | AO108: 0.0000 | AP108: 0.000
A109: 90 | B109: мексиканс смесь с/м | C109: кг | K109: 0.0000 | T109: 0.0000 | W109: 0.0000 | AA109: 0.0000 | AE109: 0.0000 | AJ109: 0.0000 | AO109: 0.0000 | AP109: 0.000
A110: 91 | B110: капуста цветная с/м | C110: кг | K110: 0.0000 | T110: 0.0000 | W110: 0.0000 | AA110: 0.0000 | AE110: 0.0000 | AJ110: 0.0000 | AO110: 0.0000 | AP110: 0.000
A111: 92 | B111: брокколи с/м | C111: кг | K111: 0.0000 | T111: 0.0000 | W111: 0.0000 | AA111: 0.0000 | AE111: 0.0000 | AJ111: 0.0000 | AO111: 0.0000 | AP111: 0.000
A112: 93 | B112: кукуруза с/м | C112: кг | K112: 0.0000 | T112: 0.0000 | W112: 0.0000 | AA112: 0.0000 | AE112: 0.0000 | AJ112: 0.0000 | AO112: 0.0000 | AP112: 0.000
A113: 94 | B113: фасоль стручковая с/м | C113: кг | K113: 0.0000 | T113: 0.0000 | W113: 0.0000 | AA113: 0.0000 | AE113: 0.0000 | AJ113: 0.0000 | AO113: 0.0000 | AP113: 0.000
B114: Фрукты | K114: 0.0000 | T114: 0.0000 | W114: 0.0000 | AA114: 0.0000 | AE114: 0.0000 | AJ114: 0.0000 | AO114: 0.0000 | AP114: 0.000
A115: 95 | B115: апельсин | C115: кг | G115: 0.0149 | K115: 0.0149 | P115: 0.0149 | T115: 0.0149 | W115: 0.0000 | AA115: 0.0000 | AE115: 0.0000 | AJ115: 0.0000 | AO115: 0.0000 | AP115: 0.030
A116: 96 | B116: банан | C116: кг | K116: 0.0000 | T116: 0.0000 | W116: 0.0000 | AA116: 0.0000 | AE116: 0.0000 | AJ116: 0.0000 | AO116: 0.0000 | AP116: 0.000
A117: 97 | B117: груши | C117: кг | K117: 0.0000 | T117: 0.0000 | W117: 0.0000 | AA117: 0.0000 | AE117: 0.0000 | AJ117: 0.0000 | AO117: 0.0000 | AP117: 0.000
A118: 98 | B118: мандарины | C118: кг | K118: 0.0000 | T118: 0.0000 | W118: 0.0000 | AA118: 0.0000 | AE118: 0.0000 | AJ118: 0.0000 | AO118: 0.0000 | AP118: 0.000
A119: 99 | B119: лимон | C119: кг | G119: 0.0056 | K119: 0.0056 | P119: 0.0056 | T119: 0.0056 | W119: 0.0000 | AA119: 0.0000 | AE119: 0.0000 | AH119: 0.0056 | AJ119: 0.0056 | AM119: 0.0056 | AO119: 0.0000 | AP119: 0.017
A120: 100 | B120: яблоки свежие | C120: кг | G120: 0.0285 | K120: 0.0285 | P120: 0.0285 | T120: 0.0285 | W120: 0.0000 | Y120: 0.0454 | AA120: 0.0454 | AE120: 0.0000 | AJ120: 0.0000 | AO120: 0.0000 | AP120: 0.102
B121: Овощи / зелень | K121: 0.0000 | T121: 0.0000 | W121: 0.0000 | AA121: 0.0000 | AE121: 0.0000 | AJ121: 0.0000 | AO121: 0.0000 | AP121: 0.000
A122: 101 | B122: капуста свежая | C122: кг | K122: 0.0000 | T122: 0.0000 | W122: 0.0000 | AA122: 0.0000 | AE122: 0.0000 | AJ122: 0.0000 | AO122: 0.0000 | AP122: 0.000
A123: 102 | B123: картофель | C123: кг | K123: 0.0000 | T123: 0.0000 | W123: 0.0000 | AA123: 0.0000 | AE123: 0.0000 | AJ123: 0.0000 | AO123: 0.0000 | AP123: 0.000
A124: 103 | B124: лук репчатый | C124: кг | E124: 0.0216 | K124: 0.0216 | N124: 0.0216 | T124: 0.0216 | W124: 0.0000 | AA124: 0.0000 | AB124: 0.0120 | AE124: 0.0120 | AF124: 0.0216 | AJ124: 0.0216 | AK124: 0.0216 | AO124: 0.0000 | AP124: 0.077
A125: 104 | B125: морковь | C125: кг | K125: 0.0000 | T125: 0.0000 | W125: 0.0000 | AA125: 0.0000 | AB125: 0.0125 | AE125: 0.0125 | AJ125: 0.0000 | AO125: 0.0000 | AP125: 0.013
A126: 105 | B126: свекла | C126: кг | K126: 0.0000 | T126: 0.0000 | W126: 0.0000 | AA126: 0.0000 | AE126: 0.0000 | AJ126: 0.0000 | AO126: 0.0000 | AP126: 0.000
A127: 106 | B127: огурцы св. | C127: кг | K127: 0.0000 | T127: 0.0000 | W127: 0.0000 | AA127: 0.0000 | AE127: 0.0000 | AJ127: 0.0000 | AO127: 0.0000 | AP127: 0.000
A128: 107 | B128: томаты св. | C128: кг | K128: 0.0000 | T128: 0.0000 | W128: 0.0000 | AA128: 0.0000 | AE128: 0.0000 | AJ128: 0.0000 | AO128: 0.0000 | AP128: 0.000
A129: 108 | B129: перец болг.красный | C129: кг | K129: 0.0000 | T129: 0.0000 | W129: 0.0000 | AA129: 0.0000 | AE129: 0.0000 | AJ129: 0.0000 | AO129: 0.0000 | AP129: 0.000
A130: 109 | B130: тыква | C130: кг | K130: 0.0000 | T130: 0.0000 | W130: 0.0000 | AA130: 0.0000 | AE130: 0.0000 | AJ130: 0.0000 | AO130: 0.0000 | AP130: 0.000
B131: Овощи очищенные | K131: 0.0000 | T131: 0.0000 | W131: 0.0000 | AA131: 0.0000 | AE131: 0.0000 | AJ131: 0.0000 | AO131: 0.0000 | AP131: 0.000
A132: 110 | B132: капуста св.очищенная | C132: кг | K132: 0.0000 | T132: 0.0000 | W132: 0.0000 | AA132: 0.0000 | AE132: 0.0000 | AJ132: 0.0000 | AO132: 0.0000 | AP132: 0.000
A133: 111 | B133: картофель св. очищенный | C133: кг | K133: 0.0000 | T133: 0.0000 | W133: 0.0000 | AA133: 0.0000 | AE133: 0.0000 | AJ133: 0.0000 | AO133: 0.0000 | AP133: 0.000
A134: 112 | B134: лук репчатый св.очищенный | C134: кг | K134: 0.0000 | T134: 0.0000 | W134: 0.0000 | AA134: 0.0000 | AE134: 0.0000 | AJ134: 0.0000 | AO134: 0.0000 | AP134: 0.000
A135: 113 | B135: морковь св.очищенная | C135: кг | K135: 0.0000 | T135: 0.0000 | W135: 0.0000 | AA135: 0.0000 | AE135: 0.0000 | AJ135: 0.0000 | AO135: 0.0000 | AP135: 0.000
A136: 114 | B136: свекла св.очищенная | C136: кг | K136: =(D136+E136+F136+G136+H136)*$K$5 -> 0.0000 | T136: =(Q136+P136+O136+N136+L136)*$T$5 -> 0.0000 | W136: =(V136+U136)*$W$5 -> 0.0000 | AA136: =(Z136+Y136+X136)*$AA$5 -> 0.0000 | AE136: =(AC136+AB136+AD136)*$AE$5 -> 0.0000 | AJ136: =(AF136+AG136+AH136+AI136)*$AJ$5 -> 0.0000 | AO136: =(AN136+AM136+AL136+AK136)*$AO$5 -> 0.0000 | AP136: =AO136+AJ136+AE136+AA136+W136+T136+K136 -> 0.000
B137: Полуфабрикаты | K137: 0.0000 | T137: 0.0000 | W137: 0.0000 | AA137: 0.0000 | AE137: 0.0000 | AJ137: 0.0000 | AO137: 0.0000 | AP137: 0.000
A138: 115 | B138: сырники ПФ | C138: шт | K138: 0.0000 | T138: 0.0000 | W138: 0.0000 | AA138: 0.0000 | AE138: 0.0000 | AJ138: 0.0000 | AO138: 0.0000 | AP138: 0.000
A139: 116 | B139: пельмени ПФ | C139: кг | K139: 0.0000 | T139: 0.0000 | W139: 0.0000 | AA139: 0.0000 | AE139: 0.0000 | AJ139: 0.0000 | AO139: 0.0000 | AP139: 0.000
A140: 117 | B140: биточки рыбные | C140: шт | K140: 0.0000 | T140: 0.0000 | W140: 0.0000 | AA140: 0.0000 | AE140: 0.0000 | AJ140: 0.0000 | AO140: 0.0000 | AP140: 0.000
A141: 118 | B141: фрикадельки мясные | C141: кг | K141: 0.0000 | T141: 0.0000 | W141: 0.0000 | AA141: 0.0000 | AE141: 0.0000 | AJ141: 0.0000 | AO141: 0.0000 | AP141: 0.000
A142: 119 | B142: фрикадельки куриные | C142: кг | K142: 0.0000 | T142: 0.0000 | W142: 0.0000 | AA142: 0.0000 | AE142: 0.0000 | AJ142: 0.0000 | AO142: 0.0000 | AP142: 0.000
A143: 120 | B143: хинкали п/ф из говядины | C143: кг | K143: 0.0000 | T143: 0.0000 | W143: 0.0000 | AA143: 0.0000 | AE143: 0.0000 | AJ143: 0.0000 | AO143: 0.0000 | AP143: 0.000
A144: 121 | B144: котлеты из говядины "Пожарские" | C144: шт | K144: 0.0000 | T144: 0.0000 | W144: 0.0000 | AA144: 0.0000 | AE144: 0.0000 | AJ144: 0.0000 | AO144: 0.0000 | AP144: 0.000
A145: 122 | B145: бифштекс из говядины | C145: шт | K145: 0.0000 | T145: 0.0000 | W145: 0.0000 | AA145: 0.0000 | AE145: 0.0000 | AJ145: 0.0000 | AO145: 0.0000 | AP145: 0.000
A146: 123 | B146: котлеты из мяса кур | C146: шт | K146: 0.0000 | T146: 0.0000 | W146: 0.0000 | AA146: 0.0000 | AE146: 0.0000 | AJ146: 0.0000 | AO146: 0.0000 | AP146: 0.000
A147: 124 | B147: котлеты "Аппетитные" мясо-куриные | C147: шт | K147: 0.0000 | T147: 0.0000 | W147: 0.0000 | AA147: 0.0000 | AE147: 0.0000 | AJ147: 0.0000 | AO147: 0.0000 | AP147: 0.000
A148: 125 | B148: ежики мясные с рисом | C148: шт | K148: 0.0000 | T148: 0.0000 | W148: 0.0000 | AA148: 0.0000 | AE148: 0.0000 | AJ148: 0.0000 | AO148: 0.0000 | AP148: 0.000

Sheet Сб День 6 Нед 1
A1: Расход продуктов питания в образовательных учереждениях
D2: Меню с 1 по 4 класс 77,76 РУБ | J2: Кол-во учащихся 1 - 4 кл БИТОЧКИ ПФ | K2: Кол-во учащихся 5-11 кл БИТОЧКИ на минтае | L2: ИТОГО | M2: Меню с 5 по 11 класс 77,76 РУБ | S2: Кол-во учащихся 1 - 4 кл БИТОЧКИ ПФ | T2: Кол-во учащихся 5-11 кл БИТОЧКИ на минтае | U2: ИТОГО | V2: Меню на сумму 10,70 РУБ | X2: ИТОГО | Y2: Меню КАШИ НА молоке 28,00 РУБ | AB2: ИТОГО | AC2: Меню СУПА 38,00 РУБ | AF2: ИТОГО | AG2: Меню ЧЕРЕДОВАНИЕ суп/второе 50,00 РУБ | AL2: ИТОГО | AM2: Меню ЧЕРЕДОВАНИЕ суп/второе +КОНДИТЕРКА 53,00 РУБ | AR2: ИТОГО | AS2: ВСЕГО ЗА ДЕНЬ расход продуктов по всем рационам
B3: ДЕНЬ 6 неделя 1 | D3: салат из свежей капусты с морковью | E3: биточки рыбные ПФ | F3: биточки рыбные | G3: рис отварной с масл слив | H3: чай с сахаром с лимоном | I3: Хлеб пшеничн /ржаной | M3: салат из свежей капусты с морковью | N3: биточки рыбные ПФ | O3: биточки рыбные | P3: рис отварной с масл слив | Q3: Чай с сахаром с лимоном | R3: Хлеб пшеничн /ржаной | V3: пряники | W3: Чай с сахаром | Y3: каша пшенная с мас слив | Z3: компот из урюка | AA3: Хлеб ржаной | AC3: Борщ из св капуст с картоф с мяс фрикад и смет | AD3: чай с сахаром | AE3: Хлеб ржаной | AG3: Борщ из св капуст с картоф с мяс фрикад и смет | AJ3: компот из изюма и урюка | AK3: Хлеб ржаной | AM3: Борщ из св капуст с картоф с мяс фрикад и смет | AO3: Печенье КРЕКЕР | AP3: компот из изюма и урюка | AQ3: Хлеб ржаной
B4: КОЛИЧЕСТВО ДЕТЕЙ | D4: 7-11 | E4: 7-11 | F4: 12-18 | G4: 7-11 | H4: 7-11 | I4: 7-11 | M4: 12-18 | N4: 12-18 | O4: 12-18 | P4: 12-18 | Q4: 12-18 | R4: 12-18 | V4: 12-18 | W4: 12-18 | Y4: 12-18 | Z4: 12-18 | AA4: 12-18 | AC4: 12-18 | AD4: 12-18 | AE4: 12-18 | AG4: 12-18 | AH4: 12-18 | AI4: 12-18 | AJ4: 12-18 | AK4: 12-18 | AM4: 12-18 | AN4: 12-18 | AO4: 12-18 | AP4: 12-18 | AQ4: 12-18
B5: Выход,гр | D5: 80 | E5: 75 | F5: 75 | G5: 150/3 | H5: 185/10/5 | I5: 0/30 | J5: 1 | K5: 0 | L5: =J5+K5 -> 1 | M5: 100 | N5: 75 | O5: 75 | P5: 150/3 | Q5: 185/10/5 | R5: 0/50 | S5: 1 | T5: 0 | U5: =S5+T5 -> 1 | V5: 35 | W5: 190/10 | X5: 1 | Y5: 150/3 | Z5: 200 | AA5: 30 | AB5: 1 | AC5: 250/10/5 | AD5: 190/10 | AE5: 30 | AF5: 1 | AG5: 250/10/5 | AJ5: 200 | AK5: 20 | AL5: 1 | AM5: 250/10/5 | AO5: 30 | AP5: 200 | AQ5: 20 | AS5: =AR5+AL5+AF5+AB5+X5+U5+L5 -> 6
B6: Хлеб
A7: 1 | B7: батон | C7: кг | J7: =(I7+H7+E7+D7+G7)*$J$5 -> 0.0000 | K7: =(I7+H7+G7+D7+F7)*$K$5 -> 0.0000 | L7: =J7+K7 -> 0.0000 | S7: =(M7+N7+P7+Q7+R7)*$S$5 -> 0.0000 | T7: =(M7+O7+P7+Q7+R7)*$T$5 -> 0.0000 | U7: =S7+T7 -> 0.0000 | X7: =(W7+V7)*$X$5 -> 0.0000 | AB7: =(AA7+Z7+Y7)*$AB$5 -> 0.0000 | AF7: =(AC7+AD7+AE7)*$AF$5 -> 0.0000 | AL7: =(AG7+AJ7+AK7)*$AL$5 -> 0.0000 | AR7: =(AQ7+AP7+AO7+AN7+AM7)*$AR$5 -> 0.0000 | AS7: =AR7+AL7+AF7+AB7+X7+U7+L7 -> 0.000
A8: 2 | B8: хлеб пшеничный | C8: кг | F8: 0.0080 | J8: =(I8+H8+E8+D8+G8)*$J$5 -> 0.0000 | K8: =(I8+H8+G8+D8+F8)*$K$5 -> 0.0000 | L8: =J8+K8 -> 0.0000 | O8: 0.0080 | S8: =(M8+N8+P8+Q8+R8)*$S$5 -> 0.0000 | T8: =(M8+O8+P8+Q8+R8)*$T$5 -> 0.0000 | U8: =S8+T8 -> 0.0000 | X8: =(W8+V8)*$X$5 -> 0.0000 | AB8: =(AA8+Z8+Y8)*$AB$5 -> 0.0000 | AF8: =(AC8+AD8+AE8)*$AF$5 -> 0.0000 | AL8: =(AG8+AJ8+AK8)*$AL$5 -> 0.0000 | AR8: =(AQ8+AP8+AO8+AN8+AM8)*$AR$5 -> 0.0000 | AS8: =AR8+AL8+AF8+AB8+X8+U8+L8 -> 0.000
A9: 3 | B9: хлеб ржаной | C9: кг | I9: 0.0300 | J9: 0.0300 | K9: 0.0000 | L9: 0.0300 | R9: 0.0500 | S9: 0.0500 | T9: 0.0000 | U9: 0.0500 | X9: 0.0000 | AA9: 0.0300 | AB9: 0.0300 | AE9: 0.0300 | AF9: 0.0300 | AK9: 0.0200 | AL9: 0.0200 | AQ9: 0.0200 | AR9: 0.0000 | AS9: 0.160
A10: 4 | B10: булоч/выпечка готов с х/ком | C10: шт | J10: 0.0000 | K10: 0.0000 | L10: 0.0000 | S10: 0.0000 | T10: 0.0000 | U10: 0.0000 | X10: 0.0000 | AB10: 0.0000 | AF10: 0.0000 | AL10: 0.0000 | AR10: 0.0000 | AS10: 0.000
B11: Молочка | J11: 0.0000 | K11: 0.0000 | L11: 0.0000 | S11: 0.0000 | T11: 0.0000 | U11: 0.0000 | X11: 0.0000 | AB11: 0.0000 | AF11: 0.0000 | AL11: 0.0000 | AR11: 0.0000 | AS11: 0.000
A12: 5 | B12: молоко 2,5% | C12: кг | J12: 0.0000 | K12: 0.0000 | L12: 0.0000 | S12: 0.0000 | T12: 0.0000 | U12: 0.0000 | X12: 0.0000 | Y12: 0.0750 | AB12: 0.0750 | AF12: 0.0000 | AL12: 0.0000 | AR12: 0.0000 | AS12: 0.075
A13: 6 | B13: творог 5% | C13: кг | J13: 0.0000 | K13: 0.0000 | L13: 0.0000 | S13: 0.0000 | T13: 0.0000 | U13: 0.0000 | X13: 0.0000 | AB13: 0.0000 | AF13: 0.0000 | AL13: 0.0000 | AR13: 0.0000 | AS13: 0.000
A14: 7 | B14: сметана 15% | C14: кг | J14: 0.0000 | K14: 0.0000 | L14: 0.0000 | S14: 0.0000 | T14: 0.0000 | U14: 0.0000 | X14: 0.0000 | AB14: 0.0000 | AC14: 0.0050 | AF14: 0.0050 | AG14: 0.0050 | AL14: 0.0050 | AM14: 0.0050 | AR14: 0.0000 | AS14: 0.010
A15: 8 | B15: йогурт фруктов | C15: кг | J15: 0.0000 | K15: 0.0000 | L15: 0.0000 | S15: 0.0000 | T15: 0.0000 | U15: 0.0000 | X15: 0.0000 | AB15: 0.0000 | AF15: 0.0000 | AL15: 0.0000 | AR15: 0.0000 | AS15: 0.000
A16: 9 | B16: катык 2,5% | C16: кг | J16: 0.0000 | K16: 0.0000 | L16: 0.0000 | S16: 0.0000 | T16: 0.0000 | U16: 0.0000 | X16: 0.0000 | AB16: 0.0000 | AF16: 0.0000 | AL16: 0.0000 | AR16: 0.0000 | AS16: 0.000
A17: 10 | B17: кефир 2,5% | C17: кг | J17: 0.0000 | K17: 0.0000 | L17: 0.0000 | S17: 0.0000 | T17: 0.0000 | U17: 0.0000 | X17: 0.0000 | AB17: 0.0000 | AF17: 0.0000 | AL17: 0.0000 | AR17: 0.0000 | AS17: 0.000
A18: 11 | B18: ряженка 2,5% | C18: кг | J18: 0.0000 | K18: 0.0000 | L18: 0.0000 | S18: 0.0000 | T18: 0.0000 | U18: 0.0000 | X18: 0.0000 | AB18: 0.0000 | AF18: 0.0000 | AL18: 0.0000 | AR18: 0.0000 | AS18: 0.000
A19: 12 | B19: напиток ацидофильный | C19: кг | J19: 0.0000 | K19: 0.0000 | L19: 0.0000 | S19: 0.0000 | T19: 0.0000 | U19: 0.0000 | X19: 0.0000 | AB19: 0.0000 | AF19: 0.0000 | AL19: 0.0000 | AR19: 0.0000 | AS19: 0.000
B20: Масло / сыр | J20: 0.0000 | K20: 0.0000 | L20: 0.0000 | S20: 0.0000 | T20: 0.0000 | U20: 0.0000 | X20: 0.0000 | AB20: 0.0000 | AF20: 0.0000 | AL20: 0.0000 | AR20: 0.0000 | AS20: 0.000
A21: 13 | B21: масло растительное | C21: кг | D21: 0.0040 | E21: 0.0020 | F21: 0.0030 | J21: 0.0060 | K21: 0.0000 | L21: 0.0060 | M21: 0.0050 | N21: 0.0020 | O21: 0.0030 | S21: 0.0070 | T21: 0.0000 | U21: 0.0070 | X21: 0.0000 | AB21: 0.0000 | AC21: 0.0050 | AF21: 0.0050 | AG21: 0.0050 | AL21: 0.0050 | AM21: 0.0050 | AR21: 0.0000 | AS21: 0.023
A22: 14 | B22: масло сливочное | C22: кг | G22: 0.0030 | J22: 0.0030 | K22: 0.0000 | L22: 0.0030 | P22: 0.0030 | S22: 0.0030 | T22: 0.0000 | U22: 0.0030 | X22: 0.0000 | Y22: 0.0030 | AB22: 0.0030 | AF22: 0.0000 | AL22: 0.0000 | AR22: 0.0000 | AS22: 0.009
A23: 15 | B23: сыр голландский | C23: кг | J23: 0.0000 | K23: 0.0000 | L23: 0.0000 | S23: 0.0000 | T23: 0.0000 | U23: 0.0000 | X23: 0.0000 | AB23: 0.0000 | AF23: 0.0000 | AL23: 0.0000 | AR23: 0.0000 | AS23: 0.000
B24: Мясо | J24: 0.0000 | K24: 0.0000 | L24: 0.0000 | S24: 0.0000 | T24: 0.0000 | U24: 0.0000 | X24: 0.0000 | AB24: 0.0000 | AF24: 0.0000 | AL24: 0.0000 | AR24: 0.0000 | AS24: 0.000
A25: 16 | B25: говядина (котлетное мясо) | C25: кг | J25: 0.0000 | K25: 0.0000 | L25: 0.0000 | S25: 0.0000 | T25: 0.0000 | U25: 0.0000 | X25: 0.0000 | AB25: 0.0000 | AF25: 0.0000 | AL25: 0.0000 | AR25: 0.0000 | AS25: 0.000
A26: 17 | B26: фарш говяжий | C26: кг | J26: 0.0000 | K26: 0.0000 | L26: 0.0000 | S26: 0.0000 | T26: 0.0000 | U26: 0.0000 | X26: 0.0000 | AB26: 0.0000 | AC26: 0.0114 | AF26: 0.0114 | AG26: 0.0114 | AL26: 0.0114 | AM26: 0.0114 | AR26: 0.0000 | AS26: 0.023
A27: 18 | B27: говядина лопатка б/к | C27: кг | J27: 0.0000 | K27: 0.0000 | L27: 0.0000 | S27: 0.0000 | T27: 0.0000 | U27: 0.0000 | X27: 0.0000 | AB27: 0.0000 | AF27: 0.0000 | AL27: 0.0000 | AR27: 0.0000 | AS27: 0.000
A28: 19 | B28: сосиски | C28: кг | J28: 0.0000 | K28: 0.0000 | L28: 0.0000 | S28: 0.0000 | T28: 0.0000 | U28: 0.0000 | X28: 0.0000 | AB28: 0.0000 | AF28: 0.0000 | AL28: 0.0000 | AR28: 0.0000 | AS28: 0.000
A29: 20 | B29: колбаса п/к "Халяль" | C29: кг | J29: 0.0000 | K29: 0.0000 | L29: 0.0000 | S29: 0.0000 | T29: 0.0000 | U29: 0.0000 | X29: 0.0000 | AB29: 0.0000 | AF29: 0.0000 | AL29: 0.0000 | AR29: 0.0000 | AS29: 0.000
A30: 21 | B30: куриное бедро | C30: кг | J30: 0.0000 | K30: 0.0000 | L30: 0.0000 | S30: 0.0000 | T30: 0.0000 | U30: 0.0000 | X30: 0.0000 | AB30: 0.0000 | AF30: 0.0000 | AL30: 0.0000 | AR30: 0.0000 | AS30: 0.000
A31: 22 | B31: куриная грудка | C31: кг | J31: 0.0000 | K31: 0.0000 | L31: 0.0000 | S31: 0.0000 | T31: 0.0000 | U31: 0.0000 | X31: 0.0000 | AB31: 0.0000 | AF31: 0.0000 | AL31: 0.0000 | AR31: 0.0000 | AS31: 0.000
A32: 23 | B32: куры/цыплята потрош. | C32: кг | J32: 0.0000 | K32: 0.0000 | L32: 0.0000 | S32: 0.0000 | T32: 0.0000 | U32: 0.0000 | X32: 0.0000 | AB32: 0.0000 | AF32: 0.0000 | AL32: 0.0000 | AR32: 0.0000 | AS32: 0.000
A33: 24 | B33: фарш куриный | C33: кг | J33: 0.0000 | K33: 0.0000 | L33: 0.0000 | S33: 0.0000 | T33: 0.0000 | U33: 0.0000 | X33: 0.0000 | AB33: 0.0000 | AF33: 0.0000 | AL33: 0.0000 | AR33: 0.0000 | AS33: 0.000
A34: 25 | B34: индейка бедро филе | C34: кг | J34: 0.0000 | K34: 0.0000 | L34: 0.0000 | S34: 0.0000 | T34: 0.0000 | U34: 0.0000 | X34: 0.0000 | AB34: 0.0000 | AF34: 0.0000 | AL34: 0.0000 | AR34: 0.0000 | AS34: 0.000
A35: 26 | B35: индейка грудка филе | C35: кг | J35: 0.0000 | K35: 0.0000 | L35: 0.0000 | S35: 0.0000 | T35: 0.0000 | U35: 0.0000 | X35: 0.0000 | AB35: 0.0000 | AF35: 0.0000 | AL35: 0.0000 | AR35: 0.0000 | AS35: 0.000
B36: Рыба | J36: 0.0000 | K36: 0.0000 | L36: 0.0000 | S36: 0.0000 | T36: 0.0000 | U36: 0.0000 | X36: 0.0000 | AB36: 0.0000 | AF36: 0.0000 | AL36: 0.0000 | AR36: 0.0000 | AS36: 0.000
A37: 27 | B37: горбуша ПБГ с/м | C37: кг | J37: 0.0000 | K37: 0.0000 | L37: 0.0000 | S37: 0.0000 | T37: 0.0000 | U37: 0.0000 | X37: 0.0000 | AB37: 0.0000 | AF37: 0.0000 | AL37: 0.0000 | AR37: 0.0000 | AS37: 0.000
A38: 28 | B38: минтай б/г с/м | C38: кг | F38: 0.0780 | J38: 0.0000 | K38: 0.0000 | L38: 0.0000 | O38: 0.0780 | S38: 0.0000 | T38: 0.0000 | U38: 0.0000 | X38: 0.0000 | AB38: 0.0000 | AF38: 0.0000 | AL38: 0.0000 | AR38: 0.0000 | AS38: 0.000
A39: 29 | B39: фарш минтая | C39: кг | J39: 0.0000 | K39: 0.0000 | L39: 0.0000 | S39: 0.0000 | T39: 0.0000 | U39: 0.0000 | X39: 0.0000 | AB39: 0.0000 | AF39: 0.0000 | AL39: 0.0000 | AR39: 0.0000 | AS39: 0.000
B40: Сыпучка | J40: 0.0000 | K40: 0.0000 | L40: 0.0000 | S40: 0.0000 | T40: 0.0000 | U40: 0.0000 | X40: 0.0000 | AB40: 0.0000 | AF40: 0.0000 | AL40: 0.0000 | AR40: 0.0000 | AS40: 0.000
A41: 30 | B41: вермишель | C41: кг | J41: 0.0000 | K41: 0.0000 | L41: 0.0000 | S41: 0.0000 | T41: 0.0000 | U41: 0.0000 | X41: 0.0000 | AB41: 0.0000 | AF41: 0.0000 | AL41: 0.0000 | AR41: 0.0000 | AS41: 0.000
A42: 31 | B42: геркулес | C42: кг | J42: 0.0000 | K42: 0.0000 | L42: 0.0000 | S42: 0.0000 | T42: 0.0000 | U42: 0.0000 | X42: 0.0000 | AB42: 0.0000 | AF42: 0.0000 | AL42: 0.0000 | AR42: 0.0000 | AS42: 0.000
A43: 32 | B43: горох | C43: кг | J43: 0.0000 | K43: 0.0000 | L43: 0.0000 | S43: 0.0000 | T43: 0.0000 | U43: 0.0000 | X43: 0.0000 | AB43: 0.0000 | AF43: 0.0000 | AL43: 0.0000 | AR43: 0.0000 | AS43: 0.000
A44: 33 | B44: гречневая крупа | C44: кг | J44: 0.0000 | K44: 0.0000 | L44: 0.0000 | S44: 0.0000 | T44: 0.0000 | U44: 0.0000 | X44: 0.0000 | AB44: 0.0000 | AF44: 0.0000 | AL44: 0.0000 | AR44: 0.0000 | AS44: 0.000
A45: 34 | B45: кукурузная крупа | C45: кг | J45: 0.0000 | K45: 0.0000 | L45: 0.0000 | S45: 0.0000 | T45: 0.0000 | U45: 0.0000 | X45: 0.0000 | AB45: 0.0000 | AF45: 0.0000 | AL45: 0.0000 | AR45: 0.0000 | AS45: 0.000
A46: 35 | B46: макаронные изделия | C46: кг | J46: 0.0000 | K46: 0.0000 | L46: 0.0000 | S46: 0.0000 | T46: 0.0000 | U46: 0.0000 | X46: 0.0000 | AB46: 0.0000 | AF46: 0.0000 | AL46: 0.0000 | AR46: 0.0000 | AS46: 0.000
A47: 36 | B47: манная крупа | C47: кг | J47: 0.0000 | K47: 0.0000 | L47: 0.0000 | S47: 0.0000 | T47: 0.0000 | U47: 0.0000 | X47: 0.0000 | AB47: 0.0000 | AF47: 0.0000 | AL47: 0.0000 | AR47: 0.0000 | AS47: 0.000
A48: 37 | B48: перловая крупа | C48: кг | J48: 0.0000 | K48: 0.0000 | L48: 0.0000 | S48: 0.0000 | T48: 0.0000 | U48: 0.0000 | X48: 0.0000 | AB48: 0.0000 | AF48: 0.0000 | AL48: 0.0000 | AR48: 0.0000 | AS48: 0.000
A49: 38 | B49: полбяная крупа | C49: кг | J49: 0.0000 | K49: 0.0000 | L49: 0.0000 | S49: 0.0000 | T49: 0.0000 | U49: 0.0000 | X49: 0.0000 | AB49: 0.0000 | AF49: 0.0000 | AL49: 0.0000 | AR49: 0.0000 | AS49: 0.000
A50: 39 | B50: пшеничная крупа | C50: кг | J50: 0.0000 | K50: 0.0000 | L50: 0.0000 | S50: 0.0000 | T50: 0.0000 | U50: 0.0000 | X50: 0.0000 | AB50: 0.0000 | AF50: 0.0000 | AL50: 0.0000 | AR50: 0.0000 | AS50: 0.000
A51: 40 | B51: пшено | C51: кг | J51: 0.0000 | K51: 0.0000 | L51: 0.0000 | S51: 0.0000 | T51: 0.0000 | U51: 0.0000 | X51: 0.0000 | Y51: 0.0300 | AB51: 0.0300 | AF51: 0.0000 | AL51: 0.0000 | AR51: 0.0000 | AS51: 0.030
A52: 41 | B52: рис | C52: кг | G52: 0.0540 | J52: 0.0540 | K52: 0.0000 | L52: 0.0540 | P52: 0.0540 | S52: 0.0540 | T52: 0.0000 | U52: 0.0540 | X52: 0.0000 | AB52: 0.0000 | AF52: 0.0000 | AL52: 0.0000 | AR52: 0.0000 | AS52: 0.108
A53: 42 | B53: ячневая крупа | C53: кг | J53: 0.0000 | K53: 0.0000 | L53: 0.0000 | S53: 0.0000 | T53: 0.0000 | U53: 0.0000 | X53: 0.0000 | AB53: 0.0000 | AF53: 0.0000 | AL53: 0.0000 | AR53: 0.0000 | AS53: 0.000
A54: 43 | B54: лапша домашняя п/ф | C54: кг | J54: 0.0000 | K54: 0.0000 | L54: 0.0000 | S54: 0.0000 | T54: 0.0000 | U54: 0.0000 | X54: 0.0000 | AB54: 0.0000 | AF54: 0.0000 | AL54: 0.0000 | AR54: 0.0000 | AS54: 0.000
A55: 44 | B55: мука пшеничная в/с | C55: кг | J55: 0.0000 | K55: 0.0000 | L55: 0.0000 | S55: 0.0000 | T55: 0.0000 | U55: 0.0000 | X55: 0.0000 | AB55: 0.0000 | AF55: 0.0000 | AL55: 0.0000 | AR55: 0.0000 | AS55: 0.000
A56: 45 | B56: сахарный песок | C56: кг | D56: 0.0012 | H56: 0.0100 | J56: 0.0112 | K56: 0.0000 | L56: 0.0112 | M56: 0.0016 | Q56: 0.0100 | S56: 0.0116 | T56: 0.0000 | U56: 0.0116 | W56: 0.0100 | X56: 0.0100 | Y56: 0.0008 | Z56: 0.0100 | AB56: 0.0108 | AC56: 0.0025 | AD56: 0.0100 | AF56: 0.0125 | AG56: 0.0025 | AJ56: 0.0100 | AL56: 0.0125 | AM56: 0.0025 | AP56: 0.0100 | AR56: 0.0000 | AS56: 0.069
A57: 46 | B57: соль | C57: кг | D57: 0.0004 | F57: 0.0005 | G57: 0.0006 | J57: 0.0010 | K57: 0.0000 | L57: 0.0010 | M57: 0.0005 | O57: 0.0005 | P57: 0.0006 | S57: 0.0011 | T57: 0.0000 | U57: 0.0011 | X57: 0.0000 | Y57: 0.0004 | AB57: 0.0004 | AC57: 0.0010 | AF57: 0.0010 | AG57: 0.0010 | AL57: 0.0010 | AM57: 0.0010 | AR57: 0.0000 | AS57: 0.005
A58: 47 | B58: сухари панировочные | C58: кг | F58: 0.0075 | J58: 0.0000 | K58: 0.0000 | L58: 0.0000 | O58: 0.0075 | S58: 0.0000 | T58: 0.0000 | U58: 0.0000 | X58: 0.0000 | AB58: 0.0000 | AF58: 0.0000 | AL58: 0.0000 | AR58: 0.0000 | AS58: 0.000
A59: 48 | B59: дрожжи сухие | C59: кг | J59: 0.0000 | K59: 0.0000 | L59: 0.0000 | S59: 0.0000 | T59: 0.0000 | U59: 0.0000 | X59: 0.0000 | AB59: 0.0000 | AF59: 0.0000 | AL59: 0.0000 | AR59: 0.0000 | AS59: 0.000
A60: 49 | B60: хлебцы | C60: кг | J60: 0.0000 | K60: 0.0000 | L60: 0.0000 | S60: 0.0000 | T60: 0.0000 | U60: 0.0000 | X60: 0.0000 | AB60: 0.0000 | AF60: 0.0000 | AL60: 0.0000 | AR60: 0.0000 | AS60: 0.000
B61: Консервы | J61: 0.0000 | K61: 0.0000 | L61: 0.0000 | S61: 0.0000 | T61: 0.0000 | U61: 0.0000 | X61: 0.0000 | AB61: 0.0000 | AF61: 0.0000 | AL61: 0.0000 | AR61: 0.0000 | AS61: 0.000
A62: 50 | B62: зеленый горошек к/с | C62: кг | J62: 0.0000 | K62: 0.0000 | L62: 0.0000 | S62: 0.0000 | T62: 0.0000 | U62: 0.0000 | X62: 0.0000 | AB62: 0.0000 | AF62: 0.0000 | AL62: 0.0000 | AR62: 0.0000 | AS62: 0.000
A63: 51 | B63: кукуруза к/с | C63: кг | J63: 0.0000 | K63: 0.0000 | L63: 0.0000 | S63: 0.0000 | T63: 0.0000 | U63: 0.0000 | X63: 0.0000 | AB63: 0.0000 | AF63: 0.0000 | AL63: 0.0000 | AR63: 0.0000 | AS63: 0.000
A64: 52 | B64: фасоль к/с | C64: кг | J64: 0.0000 | K64: 0.0000 | L64: 0.0000 | S64: 0.0000 | T64: 0.0000 | U64: 0.0000 | X64: 0.0000 | AB64: 0.0000 | AF64: 0.0000 | AL64: 0.0000 | AR64: 0.0000 | AS64: 0.000
A65: 53 | B65: икра кабач/икра баклаж | C65: кг | J65: 0.0000 | K65: 0.0000 | L65: 0.0000 | S65: 0.0000 | T65: 0.0000 | U65: 0.0000 | X65: 0.0000 | AB65: 0.0000 | AF65: 0.0000 | AL65: 0.0000 | AR65: 0.0000 | AS65: 0.000
A66: 54 | B66: капуста морская сушеная | C66: кг | J66: 0.0000 | K66: 0.0000 | L66: 0.0000 | S66: 0.0000 | T66: 0.0000 | U66: 0.0000 | X66: 0.0000 | AB66: 0.0000 | AF66: 0.0000 | AL66: 0.0000 | AR66: 0.0000 | AS66: 0.000
A67: 55 | B67: капуста квашеная | C67: кг | J67: 0.0000 | K67: 0.0000 | L67: 0.0000 | S67: 0.0000 | T67: 0.0000 | U67: 0.0000 | X67: 0.0000 | AB67: 0.0000 | AF67: 0.0000 | AL67: 0.0000 | AR67: 0.0000 | AS67: 0.000
A68: 56 | B68: молоко сгущенное | C68: кг | J68: 0.0000 | K68: 0.0000 | L68: 0.0000 | S68: 0.0000 | T68: 0.0000 | U68: 0.0000 | X68: 0.0000 | AB68: 0.0000 | AF68: 0.0000 | AL68: 0.0000 | AR68: 0.0000 | AS68: 0.000
A69: 57 | B69: огурцы соленые | C69: кг | J69: 0.0000 | K69: 0.0000 | L69: 0.0000 | S69: 0.0000 | T69: 0.0000 | U69: 0.0000 | X69: 0.0000 | AB69: 0.0000 | AF69: 0.0000 | AL69: 0.0000 | AR69: 0.0000 | AS69: 0.000
A70: 58 | B70: повидло | C70: кг | J70: 0.0000 | K70: 0.0000 | L70: 0.0000 | S70: 0.0000 | T70: 0.0000 | U70: 0.0000 | X70: 0.0000 | AB70: 0.0000 | AF70: 0.0000 | AL70: 0.0000 | AR70: 0.0000 | AS70: 0.000
A71: 59 | B71: томатная паста | C71: кг | J71: 0.0000 | K71: 0.0000 | L71: 0.0000 | S71: 0.0000 | T71: 0.0000 | U71: 0.0000 | X71: 0.0000 | AB71: 0.0000 | AC71: 0.0030 | AF71: 0.0030 | AG71: 0.0030 | AL71: 0.0030 | AM71: 0.0030 | AR71: 0.0000 | AS71: 0.006
A72: 60 | B72: рыбные консервы | C72: кг | J72: =(I72+H72+E72+D72+G72)*$J$5 -> 0.0000 | K72: =(I72+H72+G72+D72+F72)*$K$5 -> 0.0000 | L72: =J72+K72 -> 0.0000 | S72: =(M72+N72+P72+Q72+R72)*$S$5 -> 0.0000 | T72: =(M72+O72+P72+Q72+R72)*$T$5 -> 0.0000 | U72: =S72+T72 -> 0.0000 | X72: =(W72+V72)*$X$5 -> 0.0000 | AB72: =(AA72+Z72+Y72)*$AB$5 -> 0.0000 | AF72: =(AC72+AD72+AE72)*$AF$5 -> 0.0000 | AL72: =(AG72+AJ72+AK72)*$AL$5 -> 0.0000 | AR72: =(AQ72+AP72+AO72+AN72+AM72)*$AR$5 -> 0.0000 | AS72: =AR72+AL72+AF72+AB72+X72+U72+L72 -> 0.000
B73: Напитки | J73: 0.0000 | K73: 0.0000 | L73: 0.0000 | S73: 0.0000 | T73: 0.0000 | U73: 0.0000 | X73: 0.0000 | AB73: 0.0000 | AF73: 0.0000 | AL73: 0.0000 | AR73: 0.0000 | AS73: 0.000
A74: 61 | B74: чай весовой | C74: кг | H74: 0.0005 | J74: 0.0005 | K74: 0.0000 | L74: 0.0005 | Q74: 0.0005 | S74: 0.0005 | T74: 0.0000 | U74: 0.0005 | W74: 0.0005 | X74: 0.0005 | AB74: 0.0000 | AD74: 0.0005 | AF74: 0.0005 | AL74: 0.0000 | AR74: 0.0000 | AS74: 0.002
A75: 62 | B75: какао | C75: кг | J75: 0.0000 | K75: 0.0000 | L75: 0.0000 | S75: 0.0000 | T75: 0.0000 | U75: 0.0000 | X75: 0.0000 | AB75: 0.0000 | AF75: 0.0000 | AL75: 0.0000 | AR75: 0.0000 | AS75: 0.000
A76: 63 | B76: кисель | C76: кг | J76: 0.0000 | K76: 0.0000 | L76: 0.0000 | S76: 0.0000 | T76: 0.0000 | U76: 0.0000 | X76: 0.0000 | AB76: 0.0000 | AF76: 0.0000 | AL76: 0.0000 | AR76: 0.0000 | AS76: 0.000
A77: 64 | B77: кофейный напиток | C77: кг | J77: 0.0000 | K77: 0.0000 | L77: 0.0000 | S77: 0.0000 | T77: 0.0000 | U77: 0.0000 | X77: 0.0000 | AB77: 0.0000 | AF77: 0.0000 | AL77: 0.0000 | AR77: 0.0000 | AS77: 0.000
A78: 65 | B78: цикорий | C78: кг | J78: 0.0000 | K78: 0.0000 | L78: 0.0000 | S78: 0.0000 | T78: 0.0000 | U78: 0.0000 | X78: 0.0000 | AB78: 0.0000 | AF78: 0.0000 | AL78: 0.0000 | AR78: 0.0000 | AS78: 0.000
B79: Сухофрукты | J79: 0.0000 | K79: 0.0000 | L79: 0.0000 | S79: 0.0000 | T79: 0.0000 | U79: 0.0000 | X79: 0.0000 | AB79: 0.0000 | AF79: 0.0000 | AL79: 0.0000 | AR79: 0.0000 | AS79: 0.000
A80: 66 | B80: ассорти для компота (сухофрукты) | C80: кг | J80: 0.0000 | K80: 0.0000 | L80: 0.0000 | S80: 0.0000 | T80: 0.0000 | U80: 0.0000 | X80: 0.0000 | AB80: 0.0000 | AF80: 0.0000 | AL80: 0.0000 | AR80: 0.0000 | AS80: 0.000
A81: 67 | B81: изюм | C81: кг | J81: 0.0000 | K81: 0.0000 | L81: 0.0000 | S81: 0.0000 | T81: 0.0000 | U81: 0.0000 | X81: 0.0000 | AB81: 0.0000 | AF81: 0.0000 | AJ81: 0.0102 | AL81: 0.0102 | AP81: 0.0102 | AR81: 0.0000 | AS81: 0.010
A82: 68 | B82: курага | C82: кг | J82: 0.0000 | K82: 0.0000 | L82: 0.0000 | S82: 0.0000 | T82: 0.0000 | U82: 0.0000 | X82: 0.0000 | AB82: 0.0000 | AF82: 0.0000 | AL82: 0.0000 | AR82: 0.0000 | AS82: 0.000
A83: 69 | B83: урюк | C83: кг | J83: 0.0000 | K83: 0.0000 | L83: 0.0000 | S83: 0.0000 | T83: 0.0000 | U83: 0.0000 | X83: 0.0000 | Z83: 0.0204 | AB83: 0.0204 | AF83: 0.0000 | AJ83: 0.0102 | AL83: 0.0102 | AP83: 0.0102 | AR83: 0.0000 | AS83: 0.031
A84: 70 | B84: шиповник | C84: кг | J84: 0.0000 | K84: 0.0000 | L84: 0.0000 | S84: 0.0000 | T84: 0.0000 | U84: 0.0000 | X84: 0.0000 | AB84: 0.0000 | AF84: 0.0000 | AL84: 0.0000 | AR84: 0.0000 | AS84: 0.000
A85: 71 | B85: компотная смесь с/м | C85: кг | J85: 0.0000 | K85: 0.0000 | L85: 0.0000 | S85: 0.0000 | T85: 0.0000 | U85: 0.0000 | X85: 0.0000 | AB85: 0.0000 | AF85: 0.0000 | AL85: 0.0000 | AR85: 0.0000 | AS85: 0.000
A86: 72 | B86: вишня с/м | C86: кг | J86: 0.0000 | K86: 0.0000 | L86: 0.0000 | S86: 0.0000 | T86: 0.0000 | U86: 0.0000 | X86: 0.0000 | AB86: 0.0000 | AF86: 0.0000 | AL86: 0.0000 | AR86: 0.0000 | AS86: 0.000
A87: 73 | B87: клюква с/м | C87: кг | J87: 0.0000 | K87: 0.0000 | L87: 0.0000 | S87: 0.0000 | T87: 0.0000 | U87: 0.0000 | X87: 0.0000 | AB87: 0.0000 | AF87: 0.0000 | AL87: 0.0000 | AR87: 0.0000 | AS87: 0.000
A88: 74 | B88: смородина в ассорт с/м | C88: кг | J88: 0.0000 | K88: 0.0000 | L88: 0.0000 | S88: 0.0000 | T88: 0.0000 | U88: 0.0000 | X88: 0.0000 | AB88: 0.0000 | AF88: 0.0000 | AL88: 0.0000 | AR88: 0.0000 | AS88: 0.000
A89: 75 | B89: облепиха с/м | C89: кг | J89: 0.0000 | K89: 0.0000 | L89: 0.0000 | S89: 0.0000 | T89: 0.0000 | U89: 0.0000 | X89: 0.0000 | AB89: 0.0000 | AF89: 0.0000 | AL89: 0.0000 | AR89: 0.0000 | AS89: 0.000
B90: сок | J90: 0.0000 | K90: 0.0000 | L90: 0.0000 | S90: 0.0000 | T90: 0.0000 | U90: 0.0000 | X90: 0.0000 | AB90: 0.0000 | AF90: 0.0000 | AL90: 0.0000 | AR90: 0.0000 | AS90: 0.000
A91: 76 | B91: сок 0,125л или 0,2л | C91: л | J91: 0.0000 | K91: 0.0000 | L91: 0.0000 | S91: 0.0000 | T91: 0.0000 | U91: 0.0000 | X91: 0.0000 | AB91: 0.0000 | AF91: 0.0000 | AL91: 0.0000 | AR91: 0.0000 | AS91: 0.000
A92: 77 | B92: нектар плодовый | C92: л | J92: 0.0000 | K92: 0.0000 | L92: 0.0000 | S92: 0.0000 | T92: 0.0000 | U92: 0.0000 | X92: 0.0000 | AB92: 0.0000 | AF92: 0.0000 | AL92: 0.0000 | AR92: 0.0000 | AS92: 0.000
B93: Кондитерка | J93: 0.0000 | K93: 0.0000 | L93: 0.0000 | S93: 0.0000 | T93: 0.0000 | U93: 0.0000 | X93: 0.0000 | AB93: 0.0000 | AF93: 0.0000 | AL93: 0.0000 | AR93: 0.0000 | AS93: 0.000
A94: 78 | B94: батончик злаковый | C94: шт | J94: 0.0000 | K94: 0.0000 | L94: 0.0000 | S94: 0.0000 | T94: 0.0000 | U94: 0.0000 | X94: 0.0000 | AB94: 0.0000 | AF94: 0.0000 | AL94: 0.0000 | AR94: 0.0000 | AS94: 0.000
A95: 79 | B95: пряник | C95: кг | J95: 0.0000 | K95: 0.0000 | L95: 0.0000 | S95: 0.0000 | T95: 0.0000 | U95: 0.0000 | V95: 0.0350 | X95: 0.0350 | AB95: 0.0000 | AF95: 0.0000 | AL95: 0.0000 | AR95: 0.0000 | AS95: 0.035
A96: 80 | B96: вафли | C96: кг | J96: 0.0000 | K96: 0.0000 | L96: 0.0000 | S96: 0.0000 | T96: 0.0000 | U96: 0.0000 | X96: 0.0000 | AB96: 0.0000 | AF96: 0.0000 | AL96: 0.0000 | AR96: 0.0000 | AS96: 0.000
A97: 81 | B97: печенье | C97: кг | J97: 0.0000 | K97: 0.0000 | L97: 0.0000 | S97: 0.0000 | T97: 0.0000 | U97: 0.0000 | X97: 0.0000 | AB97: 0.0000 | AF97: 0.0000 | AL97: 0.0000 | AR97: 0.0000 | AS97: 0.000
A98: 82 | B98: крекер | C98: кг | J98: 0.0000 | K98: 0.0000 | L98: 0.0000 | S98: 0.0000 | T98: 0.0000 | U98: 0.0000 | X98: 0.0000 | AB98: 0.0000 | AF98: 0.0000 | AL98: 0.0000 | AO98: 0.0300 | AR98: 0.0000 | AS98: 0.000
A99: 83 | B99: сушки | C99: кг | J99: 0.0000 | K99: 0.0000 | L99: 0.0000 | S99: 0.0000 | T99: 0.0000 | U99: 0.0000 | X99: 0.0000 | AB99: 0.0000 | AF99: 0.0000 | AL99: 0.0000 | AR99: 0.0000 | AS99: 0.000
A100: 84 | B100: мармелад | C100: кг | J100: 0.0000 | K100: 0.0000 | L100: 0.0000 | S100: 0.0000 | T100: 0.0000 | U100: 0.0000 | X100: 0.0000 | AB100: 0.0000 | AF100: 0.0000 | AL100: 0.0000 | AR100: 0.0000 | AS100: 0.000
A101: 85 | B101: блины п/ф | C101: кг | J101: 0.0000 | K101: 0.0000 | L101: 0.0000 | S101: 0.0000 | T101: 0.0000 | U101: 0.0000 | X101: 0.0000 | AB101: 0.0000 | AF101: 0.0000 | AL101: 0.0000 | AR101: 0.0000 | AS101: 0.000
A102: 86 | B102: выпечка п/ф со склада | C102: шт | J102: 0.0000 | K102: 0.0000 | L102: 0.0000 | S102: 0.0000 | T102: 0.0000 | U102: 0.0000 | X102: 0.0000 | AB102: 0.0000 | AF102: 0.0000 | AL102: 0.0000 | AR102: 0.0000 | AS102: 0.000
B103: Яйцо | J103: 0.0000 | K103: 0.0000 | L103: 0.0000 | S103: 0.0000 | T103: 0.0000 | U103: 0.0000 | X103: 0.0000 | AB103: 0.0000 | AF103: 0.0000 | AL103: 0.0000 | AR103: 0.0000 | AS103: 0.000
A104: 87 | B104: яйцо куриное | C104: кг | J104: 0.0000 | K104: 0.0000 | L104: 0.0000 | S104: 0.0000 | T104: 0.0000 | U104: 0.0000 | X104: 0.0000 | AB104: 0.0000 | AC104: 0.0010 | AF104: 0.0010 | AG104: 0.0010 | AL104: 0.0010 | AM104: 0.0010 | AR104: 0.0000 | AS104: 0.002
B105: 0.048 | C105: шт | J105: 0.0000 | K105: 0.0000 | L105: 0.0000 | S105: 0.0000 | T105: 0.0000 | U105: 0.0000 | X105: 0.0000 | AB105: 0.0000 | AF105: 0.0000 | AL105: 0.0000 | AR105: 0.0000 | AS105: 0.000
B106: Овощи заморозка | J106: 0.0000 | K106: 0.0000 | L106: 0.0000 | S106: 0.0000 | T106: 0.0000 | U106: 0.0000 | X106: 0.0000 | AB106: 0.0000 | AF106: 0.0000 | AL106: 0.0000 | AR106: 0.0000 | AS106: 0.000
A107: 88 | B107: зеленый горошек с/м | C107: кг | J107: 0.0000 | K107: 0.0000 | L107: 0.0000 | S107: 0.0000 | T107: 0.0000 | U107: 0.0000 | X107: 0.0000 | AB107: 0.0000 | AF107: 0.0000 | AL107: 0.0000 | AR107: 0.0000 | AS107: 0.000
A108: 89 | B108: кабачки с/м | C108: кг | J108: 0.0000 | K108: 0.0000 | L108: 0.0000 | S108: 0.0000 | T108: 0.0000 | U108: 0.0000 | X108: 0.0000 | AB108: 0.0000 | AF108: 0.0000 | AL108: 0.0000 | AR108: 0.0000 | AS108: 0.000
A109: 90 | B109: мексиканс смесь с/м | C109: кг | J109: 0.0000 | K109: 0.0000 | L109: 0.0000 | S109: 0.0000 | T109: 0.0000 | U109: 0.0000 | X109: 0.0000 | AB109: 0.0000 | AF109: 0.0000 | AL109: 0.0000 | AR109: 0.0000 | AS109: 0.000
A110: 91 | B110: капуста цветная с/м | C110: кг | J110: 0.0000 | K110: 0.0000 | L110: 0.0000 | S110: 0.0000 | T110: 0.0000 | U110: 0.0000 | X110: 0.0000 | AB110: 0.0000 | AF110: 0.0000 | AL110: 0.0000 | AR110: 0.0000 | AS110: 0.000
A111: 92 | B111: брокколи с/м | C111: кг | J111: 0.0000 | K111: 0.0000 | L111: 0.0000 | S111: 0.0000 | T111: 0.0000 | U111: 0.0000 | X111: 0.0000 | AB111: 0.0000 | AF111: 0.0000 | AL111: 0.0000 | AR111: 0.0000 | AS111: 0.000
A112: 93 | B112: кукуруза с/м | C112: кг | J112: 0.0000 | K112: 0.0000 | L112: 0.0000 | S112: 0.0000 | T112: 0.0000 | U112: 0.0000 | X112: 0.0000 | AB112: 0.0000 | AF112: 0.0000 | AL112: 0.0000 | AR112: 0.0000 | AS112: 0.000
A113: 94 | B113: фасоль стручковая с/м | C113: кг | J113: 0.0000 | K113: 0.0000 | L113: 0.0000 | S113: 0.0000 | T113: 0.0000 | U113: 0.0000 | X113: 0.0000 | AB113: 0.0000 | AF113: 0.0000 | AL113: 0.0000 | AR113: 0.0000 | AS113: 0.000
B114: Фрукты | J114: 0.0000 | K114: 0.0000 | L114: 0.0000 | S114: 0.0000 | T114: 0.0000 | U114: 0.0000 | X114: 0.0000 | AB114: 0.0000 | AF114: 0.0000 | AL114: 0.0000 | AR114: 0.0000 | AS114: 0.000
A115: 95 | B115: апельсин | C115: кг | J115: 0.0000 | K115: 0.0000 | L115: 0.0000 | S115: 0.0000 | T115: 0.0000 | U115: 0.0000 | X115: 0.0000 | AB115: 0.0000 | AF115: 0.0000 | AL115: 0.0000 | AR115: 0.0000 | AS115: 0.000
A116: 96 | B116: банан | C116: кг | J116: 0.0000 | K116: 0.0000 | L116: 0.0000 | S116: 0.0000 | T116: 0.0000 | U116: 0.0000 | X116: 0.0000 | AB116: 0.0000 | AF116: 0.0000 | AL116: 0.0000 | AR116: 0.0000 | AS116: 0.000
A117: 97 | B117: груши | C117: кг | J117: 0.0000 | K117: 0.0000 | L117: 0.0000 | S117: 0.0000 | T117: 0.0000 | U117: 0.0000 | X117: 0.0000 | AB117: 0.0000 | AF117: 0.0000 | AL117: 0.0000 | AR117: 0.0000 | AS117: 0.000
A118: 98 | B118: мандарины | C118: кг | J118: 0.0000 | K118: 0.0000 | L118: 0.0000 | S118: 0.0000 | T118: 0.0000 | U118: 0.0000 | X118: 0.0000 | AB118: 0.0000 | AF118: 0.0000 | AL118: 0.0000 | AR118: 0.0000 | AS118: 0.000
A119: 99 | B119: лимон | C119: кг | H119: 0.0056 | J119: 0.0056 | K119: 0.0000 | L119: 0.0056 | Q119: 0.0056 | S119: 0.0056 | T119: 0.0000 | U119: 0.0056 | X119: 0.0000 | AB119: 0.0000 | AF119: 0.0000 | AL119: 0.0000 | AR119: 0.0000 | AS119: 0.011
A120: 100 | B120: яблоки свежие | C120: кг | J120: 0.0000 | K120: 0.0000 | L120: 0.0000 | S120: 0.0000 | T120: 0.0000 | U120: 0.0000 | X120: 0.0000 | AB120: 0.0000 | AF120: 0.0000 | AL120: 0.0000 | AR120: 0.0000 | AS120: 0.000
B121: Овощи / зелень | J121: 0.0000 | K121: 0.0000 | L121: 0.0000 | S121: 0.0000 | T121: 0.0000 | U121: 0.0000 | X121: 0.0000 | AB121: 0.0000 | AF121: 0.0000 | AL121: 0.0000 | AR121: 0.0000 | AS121: 0.000
A122: 101 | B122: капуста свежая | C122: кг | D122: 0.0925 | J122: 0.0925 | K122: 0.0000 | L122: 0.0925 | M122: 0.1156 | S122: 0.1156 | T122: 0.0000 | U122: 0.1156 | X122: 0.0000 | AB122: 0.0000 | AC122: 0.0250 | AF122: 0.0250 | AG122: 0.0250 | AL122: 0.0250 | AM122: 0.0250 | AR122: 0.0000 | AS122: 0.258
A123: 102 | B123: картофель | C123: кг | J123: 0.0000 | K123: 0.0000 | L123: 0.0000 | S123: 0.0000 | T123: 0.0000 | U123: 0.0000 | X123: 0.0000 | AB123: 0.0000 | AC123: 0.0268 | AF123: 0.0268 | AG123: 0.0268 | AL123: 0.0268 | AM123: 0.0268 | AR123: 0.0000 | AS123: 0.054
A124: 103 | B124: лук репчатый | C124: кг | F124: 0.0120 | J124: 0.0000 | K124: 0.0000 | L124: 0.0000 | O124: 0.0120 | S124: 0.0000 | T124: 0.0000 | U124: 0.0000 | X124: 0.0000 | AB124: 0.0000 | AC124: 0.0132 | AF124: 0.0132 | AG124: 0.0132 | AL124: 0.0132 | AM124: 0.0132 | AR124: 0.0000 | AS124: 0.026
A125: 104 | B125: морковь | C125: кг | D125: 0.0125 | J125: 0.0125 | K125: 0.0000 | L125: 0.0125 | M125: 0.0125 | S125: 0.0125 | T125: 0.0000 | U125: 0.0125 | X125: 0.0000 | AB125: 0.0000 | AC125: 0.0125 | AF125: 0.0125 | AG125: 0.0125 | AL125: 0.0125 | AM125: 0.0125 | AR125: 0.0000 | AS125: 0.050
A126: 105 | B126: свекла | C126: кг | J126: 0.0000 | K126: 0.0000 | L126: 0.0000 | S126: 0.0000 | T126: 0.0000 | U126: 0.0000 | X126: 0.0000 | AB126: 0.0000 | AC126: 0.0500 | AF126: 0.0500 | AG126: 0.0500 | AL126: 0.0500 | AM126: 0.0500 | AR126: 0.0000 | AS126: 0.100
A127: 106 | B127: огурцы св. | C127: кг | J127: 0.0000 | K127: 0.0000 | L127: 0.0000 | S127: 0.0000 | T127: 0.0000 | U127: 0.0000 | X127: 0.0000 | AB127: 0.0000 | AF127: 0.0000 | AL127: 0.0000 | AR127: 0.0000 | AS127: 0.000
A128: 107 | B128: томаты св. | C128: кг | J128: 0.0000 | K128: 0.0000 | L128: 0.0000 | S128: 0.0000 | T128: 0.0000 | U128: 0.0000 | X128: 0.0000 | AB128: 0.0000 | AF128: 0.0000 | AL128: 0.0000 | AR128: 0.0000 | AS128: 0.000
A129: 108 | B129: перец болг.красный | C129: кг | J129: 0.0000 | K129: 0.0000 | L129: 0.0000 | S129: 0.0000 | T129: 0.0000 | U129: 0.0000 | X129: 0.0000 | AB129: 0.0000 | AF129: 0.0000 | AL129: 0.0000 | AR129: 0.0000 | AS129: 0.000
A130: 109 | B130: тыква | C130: кг | J130: 0.0000 | K130: 0.0000 | L130: 0.0000 | S130: 0.0000 | T130: 0.0000 | U130: 0.0000 | X130: 0.0000 | AB130: 0.0000 | AF130: 0.0000 | AL130: 0.0000 | AR130: 0.0000 | AS130: 0.000
B131: Овощи очищенные | J131: 0.0000 | K131: 0.0000 | L131: 0.0000 | S131: 0.0000 | T131: 0.0000 | U131: 0.0000 | X131: 0.0000 | AB131: 0.0000 | AF131: 0.0000 | AL131: 0.0000 | AR131: 0.0000 | AS131: 0.000
A132: 110 | B132: капуста св.очищенная | C132: кг | J132: 0.0000 | K132: 0.0000 | L132: 0.0000 | S132: 0.0000 | T132: 0.0000 | U132: 0.0000 | X132: 0.0000 | AB132: 0.0000 | AF132: 0.0000 | AL132: 0.0000 | AR132: 0.0000 | AS132: 0.000
A133: 111 | B133: картофель св. очищенный | C133: кг | J133: 0.0000 | K133: 0.0000 | L133: 0.0000 | S133: 0.0000 | T133: 0.0000 | U133: 0.0000 | X133: 0.0000 | AB133: 0.0000 | AF133: 0.0000 | AL133: 0.0000 | AR133: 0.0000 | AS133: 0.000
A134: 112 | B134: лук репчатый св.очищенный | C134: кг | J134: 0.0000 | K134: 0.0000 | L134: 0.0000 | S134: 0.0000 | T134: 0.0000 | U134: 0.0000 | X134: 0.0000 | AB134: 0.0000 | AF134: 0.0000 | AL134: 0.0000 | AR134: 0.0000 | AS134: 0.000
A135: 113 | B135: морковь св.очищенная | C135: кг | J135: 0.0000 | K135: 0.0000 | L135: 0.0000 | S135: 0.0000 | T135: 0.0000 | U135: 0.0000 | X135: 0.0000 | AB135: 0.0000 | AF135: 0.0000 | AL135: 0.0000 | AR135: 0.0000 | AS135: 0.000
A136: 114 | B136: свекла св.очищенная | C136: кг | J136: =(I136+H136+E136+D136+G136)*$J$5 -> 0.0000 | K136: =(I136+H136+G136+D136+F136)*$K$5 -> 0.0000 | L136: =J136+K136 -> 0.0000 | S136: =(M136+N136+P136+Q136+R136)*$S$5 -> 0.0000 | T136: =(M136+O136+P136+Q136+R136)*$T$5 -> 0.0000 | U136: =S136+T136 -> 0.0000 | X136: =(W136+V136)*$X$5 -> 0.0000 | AB136: =(AA136+Z136+Y136)*$AB$5 -> 0.0000 | AF136: =(AC136+AD136+AE136)*$AF$5 -> 0.0000 | AL136: =(AG136+AJ136+AK136)*$AL$5 -> 0.0000 | AR136: =(AQ136+AP136+AO136+AN136+AM136)*$AR$5 -> 0.0000 | AS136: =AR136+AL136+AF136+AB136+X136+U136+L136 -> 0.000
B137: Полуфабрикаты | J137: 0.0000 | K137: 0.0000 | L137: 0.0000 | S137: 0.0000 | T137: 0.0000 | U137: 0.0000 | X137: 0.0000 | AB137: 0.0000 | AF137: 0.0000 | AL137: 0.0000 | AR137: 0.0000 | AS137: 0.000
A138: 115 | B138: сырники ПФ | C138: шт | J138: 0.0000 | K138: 0.0000 | L138: 0.0000 | S138: 0.0000 | T138: 0.0000 | U138: 0.0000 | X138: 0.0000 | AB138: 0.0000 | AF138: 0.0000 | AL138: 0.0000 | AR138: 0.0000 | AS138: 0.000
A139: 116 | B139: пельмени ПФ | C139: кг | J139: 0.0000 | K139: 0.0000 | L139: 0.0000 | S139: 0.0000 | T139: 0.0000 | U139: 0.0000 | X139: 0.0000 | AB139: 0.0000 | AF139: 0.0000 | AL139: 0.0000 | AR139: 0.0000 | AS139: 0.000
A140: 117 | B140: биточки рыбные | C140: шт | E140: 1 | J140: 1.0000 | K140: 0.0000 | L140: 1.0000 | N140: 1 | S140: 1.0000 | T140: 0.0000 | U140: 1.0000 | X140: 0.0000 | AB140: 0.0000 | AF140: 0.0000 | AL140: 0.0000 | AR140: 0.0000 | AS140: 2.000
A141: 118 | B141: фрикадельки мясные | C141: кг | J141: 0.0000 | K141: 0.0000 | L141: 0.0000 | S141: 0.0000 | T141: 0.0000 | U141: 0.0000 | X141: 0.0000 | AB141: 0.0000 | AF141: 0.0000 | AL141: 0.0000 | AR141: 0.0000 | AS141: 0.000
A142: 119 | B142: фрикадельки куриные | C142: кг | J142: 0.0000 | K142: 0.0000 | L142: 0.0000 | S142: 0.0000 | T142: 0.0000 | U142: 0.0000 | X142: 0.0000 | AB142: 0.0000 | AF142: 0.0000 | AL142: 0.0000 | AR142: 0.0000 | AS142: 0.000
A143: 120 | B143: хинкали п/ф из говядины | C143: кг | J143: 0.0000 | K143: 0.0000 | L143: 0.0000 | S143: 0.0000 | T143: 0.0000 | U143: 0.0000 | X143: 0.0000 | AB143: 0.0000 | AF143: 0.0000 | AL143: 0.0000 | AR143: 0.0000 | AS143: 0.000
A144: 121 | B144: котлеты из говядины "Пожарские" | C144: шт | J144: 0.0000 | K144: 0.0000 | L144: 0.0000 | S144: 0.0000 | T144: 0.0000 | U144: 0.0000 | X144: 0.0000 | AB144: 0.0000 | AF144: 0.0000 | AL144: 0.0000 | AR144: 0.0000 | AS144: 0.000
A145: 122 | B145: бифштекс из говядины | C145: шт | J145: 0.0000 | K145: 0.0000 | L145: 0.0000 | S145: 0.0000 | T145: 0.0000 | U145: 0.0000 | X145: 0.0000 | AB145: 0.0000 | AF145: 0.0000 | AL145: 0.0000 | AR145: 0.0000 | AS145: 0.000
A146: 123 | B146: котлеты из мяса кур | C146: шт | J146: 0.0000 | K146: 0.0000 | L146: 0.0000 | S146: 0.0000 | T146: 0.0000 | U146: 0.0000 | X146: 0.0000 | AB146: 0.0000 | AF146: 0.0000 | AL146: 0.0000 | AR146: 0.0000 | AS146: 0.000
A147: 124 | B147: котлеты "Аппетитные" мясо-куриные | C147: шт | J147: 0.0000 | K147: 0.0000 | L147: 0.0000 | S147: 0.0000 | T147: 0.0000 | U147: 0.0000 | X147: 0.0000 | AB147: 0.0000 | AF147: 0.0000 | AL147: 0.0000 | AR147: 0.0000 | AS147: 0.000
A148: 125 | B148: ежики мясные с рисом | C148: шт | J148: 0.0000 | K148: 0.0000 | L148: 0.0000 | S148: 0.0000 | T148: 0.0000 | U148: 0.0000 | X148: 0.0000 | AB148: 0.0000 | AF148: 0.0000 | AL148: 0.0000 | AR148: 0.0000 | AS148: 0.000

Sheet Итого за 1 нед
A1: Расход продуктов питания в образовательных учереждениях
B2: итого за 6 дней 1 неделя | D2: ИТОГО Кол-во учащихся 1 - 4 кл 77,76 РУБ | E2: ИТОГО Кол-во учащихся 5-11 кл 77,76 РУБ | F2: ИТОГО Кол-во учащихся по меню на 10,70 РУБ | G2: ИТОГО Кол-во учащихся по меню на КАШИ на молоке 28,00 РУБ | H2: ИТОГО Кол-во учащихся по меню на СУПА 38,00 РУБ | I2: ИТОГО Кол-во учащихся по меню ЧЕРЕДОВАНИЕ суп/второе 50,00 руб | J2: ИТОГО Кол-во учащихся по меню ЧЕРЕДОВАНИЕ суп/второе +КОНДИТЕРКА 53,00 руб | K2: ВСЕГО ЗА неделю расход продуктов по всем рационам
B4: КОЛИЧЕСТВО ДЕТЕЙ | D4: ='Сб День 6 Нед 1'!L5+'Пт День 5 Нед 1'!K5+'Чт День 4 Нед 1'!I5+'Ср День 3 Нед 1'!L5+'Вт День 2 Нед 1'!L5+'Пн День 1 Нед 1'!L5 -> 6 | E4: ='Сб День 6 Нед 1'!U5+'Пт День 5 Нед 1'!T5+'Чт День 4 Нед 1'!O5+'Ср День 3 Нед 1'!U5+'Вт День 2 Нед 1'!U5+'Пн День 1 Нед 1'!U5 -> 6 | F4: ='Сб День 6 Нед 1'!X5+'Пт День 5 Нед 1'!W5+'Чт День 4 Нед 1'!R5+'Ср День 3 Нед 1'!X5+'Вт День 2 Нед 1'!X5+'Пн День 1 Нед 1'!X5 -> 6 | G4: ='Сб День 6 Нед 1'!AB5+'Пт День 5 Нед 1'!AA5+'Чт День 4 Нед 1'!V5+'Ср День 3 Нед 1'!AB5+'Вт День 2 Нед 1'!AB5+'Пн День 1 Нед 1'!AB5 -> 6 | H4: ='Сб День 6 Нед 1'!AF5+'Пт День 5 Нед 1'!AE5+'Чт День 4 Нед 1'!Z5+'Ср День 3 Нед 1'!AF5+'Вт День 2 Нед 1'!AF5+'Пн День 1 Нед 1'!AF5 -> 6 | I4: ='Сб День 6 Нед 1'!AL5+'Пт День 5 Нед 1'!AJ5+'Чт День 4 Нед 1'!AE5+'Ср День 3 Нед 1'!AK5+'Вт День 2 Нед 1'!AK5+'Пн День 1 Нед 1'!AL5 -> 6 | J4: ='Сб День 6 Нед 1'!AR5+'Пт День 5 Нед 1'!AO5+'Чт День 4 Нед 1'!AK5+'Ср День 3 Нед 1'!AQ5+'Вт День 2 Нед 1'!AP5+'Пн День 1 Нед 1'!AR5 -> 0 | K4: =J4+I4+H4+G4+E4+D4+F4 -> 36
B5: Выход,гр
B6: Хлеб
A7: 1 | B7: батон | C7: кг | D7: ='Сб День 6 Нед 1'!L7+'Пт День 5 Нед 1'!K7+'Чт День 4 Нед 1'!I7+'Ср День 3 Нед 1'!L7+'Вт День 2 Нед 1'!L7+'Пн День 1 Нед 1'!L7 -> 0.0000 | E7: ='Сб День 6 Нед 1'!U7+'Пт День 5 Нед 1'!T7+'Чт День 4 Нед 1'!O7+'Ср День 3 Нед 1'!U7+'Вт День 2 Нед 1'!U7+'Пн День 1 Нед 1'!U7 -> 0.0000 | F7: ='Сб День 6 Нед 1'!X7+'Пт День 5 Нед 1'!W7+'Чт День 4 Нед 1'!R7+'Ср День 3 Нед 1'!X7+'Вт День 2 Нед 1'!X7+'Пн День 1 Нед 1'!X7 -> 0.0000 | G7: ='Сб День 6 Нед 1'!AB7+'Пт День 5 Нед 1'!AA7+'Чт День 4 Нед 1'!V7+'Ср День 3 Нед 1'!AB7+'Вт День 2 Нед 1'!AB7+'Пн День 1 Нед 1'!AB7 -> 0.0000 | H7: ='Сб День 6 Нед 1'!AF7+'Пт День 5 Нед 1'!AE7+'Чт День 4 Нед 1'!Z7+'Ср День 3 Нед 1'!AF7+'Вт День 2 Нед 1'!AF7+'Пн День 1 Нед 1'!AF7 -> 0.0000 | I7: ='Сб День 6 Нед 1'!AL7+'Пт День 5 Нед 1'!AJ7+'Чт День 4 Нед 1'!AE7+'Ср День 3 Нед 1'!AK7+'Вт День 2 Нед 1'!AK7+'Пн День 1 Нед 1'!AL7 -> 0.0000 | J7: ='Сб День 6 Нед 1'!AR7+'Пт День 5 Нед 1'!AO7+'Чт День 4 Нед 1'!AK7+'Ср День 3 Нед 1'!AQ7+'Вт День 2 Нед 1'!AP7+'Пн День 1 Нед 1'!AR7 -> 0.0000 | K7: =J7+I7+H7+G7+E7+D7+F7 -> 0.000
A8: 2 | B8: хлеб пшеничный | C8: кг | D8: ='Сб День 6 Нед 1'!L8+'Пт День 5 Нед 1'!K8+'Чт День 4 Нед 1'!I8+'Ср День 3 Нед 1'!L8+'Вт День 2 Нед 1'!L8+'Пн День 1 Нед 1'!L8 -> 0.0890 | E8: ='Сб День 6 Нед 1'!U8+'Пт День 5 Нед 1'!T8+'Чт День 4 Нед 1'!O8+'Ср День 3 Нед 1'!U8+'Вт День 2 Нед 1'!U8+'Пн День 1 Нед 1'!U8 -> 0.0340 | F8: ='Сб День 6 Нед 1'!X8+'Пт День 5 Нед 1'!W8+'Чт День 4 Нед 1'!R8+'Ср День 3 Нед 1'!X8+'Вт День 2 Нед 1'!X8+'Пн День 1 Нед 1'!X8 -> 0.0000 | G8: ='Сб День 6 Нед 1'!AB8+'Пт День 5 Нед 1'!AA8+'Чт День 4 Нед 1'!V8+'Ср День 3 Нед 1'!AB8+'Вт День 2 Нед 1'!AB8+'Пн День 1 Нед 1'!AB8 -> 0.0000 | H8: ='Сб День 6 Нед 1'!AF8+'Пт День 5 Нед 1'!AE8+'Чт День 4 Нед 1'!Z8+'Ср День 3 Нед 1'!AF8+'Вт День 2 Нед 1'!AF8+'Пн День 1 Нед 1'!AF8 -> 0.0000 | I8: ='Сб День 6 Нед 1'!AL8+'Пт День 5 Нед 1'!AJ8+'Чт День 4 Нед 1'!AE8+'Ср День 3 Нед 1'!AK8+'Вт День 2 Нед 1'!AK8+'Пн День 1 Нед 1'!AL8 -> 0.0960 | J8: ='Сб День 6 Нед 1'!AR8+'Пт День 5 Нед 1'!AO8+'Чт День 4 Нед 1'!AK8+'Ср День 3 Нед 1'!AQ8+'Вт День 2 Нед 1'!AP8+'Пн День 1 Нед 1'!AR8 -> 0.0000 | K8: =J8+I8+H8+G8+E8+D8+F8 -> 0.219
A9: 3 | B9: хлеб ржаной | C9: кг | D9: ='Сб День 6 Нед 1'!L9+'Пт День 5 Нед 1'!K9+'Чт День 4 Нед 1'!I9+'Ср День 3 Нед 1'!L9+'Вт День 2 Нед 1'!L9+'Пн День 1 Нед 1'!L9 -> 0.1800 | E9: ='Сб День 6 Нед 1'!U9+'Пт День 5 Нед 1'!T9+'Чт День 4 Нед 1'!O9+'Ср День 3 Нед 1'!U9+'Вт День 2 Нед 1'!U9+'Пн День 1 Нед 1'!U9 -> 0.2450 | F9: ='Сб День 6 Нед 1'!X9+'Пт День 5 Нед 1'!W9+'Чт День 4 Нед 1'!R9+'Ср День 3 Нед 1'!X9+'Вт День 2 Нед 1'!X9+'Пн День 1 Нед 1'!X9 -> 0.0000 | G9: ='Сб День 6 Нед 1'!AB9+'Пт День 5 Нед 1'!AA9+'Чт День 4 Нед 1'!V9+'Ср День 3 Нед 1'!AB9+'Вт День 2 Нед 1'!AB9+'Пн День 1 Нед 1'!AB9 -> 0.1800 | H9: ='Сб День 6 Нед 1'!AF9+'Пт День 5 Нед 1'!AE9+'Чт День 4 Нед 1'!Z9+'Ср День 3 Нед 1'!AF9+'Вт День 2 Нед 1'!AF9+'Пн День 1 Нед 1'!AF9 -> 0.1800 | I9: ='Сб День 6 Нед 1'!AL9+'Пт День 5 Нед 1'!AJ9+'Чт День 4 Нед 1'!AE9+'Ср День 3 Нед 1'!AK9+'Вт День 2 Нед 1'!AK9+'Пн День 1 Нед 1'!AL9 -> 0.1200 | J9: ='Сб День 6 Нед 1'!AR9+'Пт День 5 Нед 1'!AO9+'Чт День 4 Нед 1'!AK9+'Ср День 3 Нед 1'!AQ9+'Вт День 2 Нед 1'!AP9+'Пн День 1 Нед 1'!AR9 -> 0.0000 | K9: 0.905
A10: 4 | B10: булоч/выпечка готов с х/клм | C10: шт | D10: ='Сб День 6 Нед 1'!L10+'Пт День 5 Нед 1'!K10+'Чт День 4 Нед 1'!I10+'Ср День 3 Нед 1'!L10+'Вт День 2 Нед 1'!L10+'Пн День 1 Нед 1'!L10 -> 0.0000 | E10: ='Сб День 6 Нед 1'!U10+'Пт День 5 Нед 1'!T10+'Чт День 4 Нед 1'!O10+'Ср День 3 Нед 1'!U10+'Вт День 2 Нед 1'!U10+'Пн День 1 Нед 1'!U10 -> 0.0000 | F10: ='Сб День 6 Нед 1'!X10+'Пт День 5 Нед 1'!W10+'Чт День 4 Нед 1'!R10+'Ср День 3 Нед 1'!X10+'Вт День 2 Нед 1'!X10+'Пн День 1 Нед 1'!X10 -> 0.0000 | G10: ='Сб День 6 Нед 1'!AB10+'Пт День 5 Нед 1'!AA10+'Чт День 4 Нед 1'!V10+'Ср День 3 Нед 1'!AB10+'Вт День 2 Нед 1'!AB10+'Пн День 1 Нед 1'!AB10 -> 0.0000 | H10: ='Сб День 6 Нед 1'!AF10+'Пт День 5 Нед 1'!AE10+'Чт День 4 Нед 1'!Z10+'Ср День 3 Нед 1'!AF10+'Вт День 2 Нед 1'!AF10+'Пн День 1 Нед 1'!AF10 -> 0.0000 | I10: ='Сб День 6 Нед 1'!AL10+'Пт День 5 Нед 1'!AJ10+'Чт День 4 Нед 1'!AE10+'Ср День 3 Нед 1'!AK10+'Вт День 2 Нед 1'!AK10+'Пн День 1 Нед 1'!AL10 -> 0.0000 | J10: ='Сб День 6 Нед 1'!AR10+'Пт День 5 Нед 1'!AO10+'Чт День 4 Нед 1'!AK10+'Ср День 3 Нед 1'!AQ10+'Вт День 2 Нед 1'!AP10+'Пн День 1 Нед 1'!AR10 -> 0.0000 | K10: 0.000
B11: Молочка
A12: 5 | B12: молоко 2,5% | C12: кг | D12: ='Сб День 6 Нед 1'!L12+'Пт День 5 Нед 1'!K12+'Чт День 4 Нед 1'!I12+'Ср День 3 Нед 1'!L12+'Вт День 2 Нед 1'!L12+'Пн День 1 Нед 1'!L12 -> 0.1987 | E12: ='Сб День 6 Нед 1'!U12+'Пт День 5 Нед 1'!T12+'Чт День 4 Нед 1'!O12+'Ср День 3 Нед 1'!U12+'Вт День 2 Нед 1'!U12+'Пн День 1 Нед 1'!U12 -> 0.2237 | F12: ='Сб День 6 Нед 1'!X12+'Пт День 5 Нед 1'!W12+'Чт День 4 Нед 1'!R12+'Ср День 3 Нед 1'!X12+'Вт День 2 Нед 1'!X12+'Пн День 1 Нед 1'!X12 -> 0.0000 | G12: ='Сб День 6 Нед 1'!AB12+'Пт День 5 Нед 1'!AA12+'Чт День 4 Нед 1'!V12+'Ср День 3 Нед 1'!AB12+'Вт День 2 Нед 1'!AB12+'Пн День 1 Нед 1'!AB12 -> 0.3750 | H12: ='Сб День 6 Нед 1'!AF12+'Пт День 5 Нед 1'!AE12+'Чт День 4 Нед 1'!Z12+'Ср День 3 Нед 1'!AF12+'Вт День 2 Нед 1'!AF12+'Пн День 1 Нед 1'!AF12 -> 0.0000 | I12: ='Сб День 6 Нед 1'!AL12+'Пт День 5 Нед 1'!AJ12+'Чт День 4 Нед 1'!AE12+'Ср День 3 Нед 1'!AK12+'Вт День 2 Нед 1'!AK12+'Пн День 1 Нед 1'!AL12 -> 0.0000 | J12: ='Сб День 6 Нед 1'!AR12+'Пт День 5 Нед 1'!AO12+'Чт День 4 Нед 1'!AK12+'Ср День 3 Нед 1'!AQ12+'Вт День 2 Нед 1'!AP12+'Пн День 1 Нед 1'!AR12 -> 0.0000 | K12: 0.797
A13: 6 | B13: творог 5% | C13: кг | D13: ='Сб День 6 Нед 1'!L13+'Пт День 5 Нед 1'!K13+'Чт День 4 Нед 1'!I13+'Ср День 3 Нед 1'!L13+'Вт День 2 Нед 1'!L13+'Пн День 1 Нед 1'!L13 -> 0.0000 | E13: ='Сб День 6 Нед 1'!U13+'Пт День 5 Нед 1'!T13+'Чт День 4 Нед 1'!O13+'Ср День 3 Нед 1'!U13+'Вт День 2 Нед 1'!U13+'Пн День 1 Нед 1'!U13 -> 0.0000 | F13: ='Сб День 6 Нед 1'!X13+'Пт День 5 Нед 1'!W13+'Чт День 4 Нед 1'!R13+'Ср День 3 Нед 1'!X13+'Вт День 2 Нед 1'!X13+'Пн День 1 Нед 1'!X13 -> 0.0000 | G13: ='Сб День 6 Нед 1'!AB13+'Пт День 5 Нед 1'!AA13+'Чт День 4 Нед 1'!V13+'Ср День 3 Нед 1'!AB13+'Вт День 2 Нед 1'!AB13+'Пн День 1 Нед 1'!AB13 -> 0.0000 | H13: ='Сб День 6 Нед 1'!AF13+'Пт День 5 Нед 1'!AE13+'Чт День 4 Нед 1'!Z13+'Ср День 3 Нед 1'!AF13+'Вт День 2 Нед 1'!AF13+'Пн День 1 Нед 1'!AF13 -> 0.0000 | I13: ='Сб День 6 Нед 1'!AL13+'Пт День 5 Нед 1'!AJ13+'Чт День 4 Нед 1'!AE13+'Ср День 3 Нед 1'!AK13+'Вт День 2 Нед 1'!AK13+'Пн День 1 Нед 1'!AL13 -> 0.0000 | J13: ='Сб День 6 Нед 1'!AR13+'Пт День 5 Нед 1'!AO13+'Чт День 4 Нед 1'!AK13+'Ср День 3 Нед 1'!AQ13+'Вт День 2 Нед 1'!AP13+'Пн День 1 Нед 1'!AR13 -> 0.0000 | K13: 0.000
A14: 7 | B14: сметана 15% | C14: кг | D14: ='Сб День 6 Нед 1'!L14+'Пт День 5 Нед 1'!K14+'Чт День 4 Нед 1'!I14+'Ср День 3 Нед 1'!L14+'Вт День 2 Нед 1'!L14+'Пн День 1 Нед 1'!L14 -> 0.0140 | E14: ='Сб День 6 Нед 1'!U14+'Пт День 5 Нед 1'!T14+'Чт День 4 Нед 1'!O14+'Ср День 3 Нед 1'!U14+'Вт День 2 Нед 1'!U14+'Пн День 1 Нед 1'!U14 -> 0.0140 | F14: ='Сб День 6 Нед 1'!X14+'Пт День 5 Нед 1'!W14+'Чт День 4 Нед 1'!R14+'Ср День 3 Нед 1'!X14+'Вт День 2 Нед 1'!X14+'Пн День 1 Нед 1'!X14 -> 0.0000 | G14: ='Сб День 6 Нед 1'!AB14+'Пт День 5 Нед 1'!AA14+'Чт День 4 Нед 1'!V14+'Ср День 3 Нед 1'!AB14+'Вт День 2 Нед 1'!AB14+'Пн День 1 Нед 1'!AB14 -> 0.0000 | H14: ='Сб День 6 Нед 1'!AF14+'Пт День 5 Нед 1'!AE14+'Чт День 4 Нед 1'!Z14+'Ср День 3 Нед 1'!AF14+'Вт День 2 Нед 1'!AF14+'Пн День 1 Нед 1'!AF14 -> 0.0250 | I14: ='Сб День 6 Нед 1'!AL14+'Пт День 5 Нед 1'!AJ14+'Чт День 4 Нед 1'!AE14+'Ср День 3 Нед 1'!AK14+'Вт День 2 Нед 1'!AK14+'Пн День 1 Нед 1'!AL14 -> 0.0200 | J14: ='Сб День 6 Нед 1'!AR14+'Пт День 5 Нед 1'!AO14+'Чт День 4 Нед 1'!AK14+'Ср День 3 Нед 1'!AQ14+'Вт День 2 Нед 1'!AP14+'Пн День 1 Нед 1'!AR14 -> 0.0000 | K14: 0.073
A15: 8 | B15: йогурт фруктов | C15: кг | D15: ='Сб День 6 Нед 1'!L15+'Пт День 5 Нед 1'!K15+'Чт День 4 Нед 1'!I15+'Ср День 3 Нед 1'!L15+'Вт День 2 Нед 1'!L15+'Пн День 1 Нед 1'!L15 -> 0.0000 | E15: ='Сб День 6 Нед 1'!U15+'Пт День 5 Нед 1'!T15+'Чт День 4 Нед 1'!O15+'Ср День 3 Нед 1'!U15+'Вт День 2 Нед 1'!U15+'Пн День 1 Нед 1'!U15 -> 0.0000 | F15: ='Сб День 6 Нед 1'!X15+'Пт День 5 Нед 1'!W15+'Чт День 4 Нед 1'!R15+'Ср День 3 Нед 1'!X15+'Вт День 2 Нед 1'!X15+'Пн День 1 Нед 1'!X15 -> 0.0000 | G15: ='Сб День 6 Нед 1'!AB15+'Пт День 5 Нед 1'!AA15+'Чт День 4 Нед 1'!V15+'Ср День 3 Нед 1'!AB15+'Вт День 2 Нед 1'!AB15+'Пн День 1 Нед 1'!AB15 -> 0.0000 | H15: ='Сб День 6 Нед 1'!AF15+'Пт День 5 Нед 1'!AE15+'Чт День 4 Нед 1'!Z15+'Ср День 3 Нед 1'!AF15+'Вт День 2 Нед 1'!AF15+'Пн День 1 Нед 1'!AF15 -> 0.0000 | I15: ='Сб День 6 Нед 1'!AL15+'Пт День 5 Нед 1'!AJ15+'Чт День 4 Нед 1'!AE15+'Ср День 3 Нед 1'!AK15+'Вт День 2 Нед 1'!AK15+'Пн День 1 Нед 1'!AL15 -> 0.0000 | J15: ='Сб День 6 Нед 1'!AR15+'Пт День 5 Нед 1'!AO15+'Чт День 4 Нед 1'!AK15+'Ср День 3 Нед 1'!AQ15+'Вт День 2 Нед 1'!AP15+'Пн День 1 Нед 1'!AR15 -> 0.0000 | K15: 0.000
A16: 9 | B16: катык 2,5% | C16: кг | D16: ='Сб День 6 Нед 1'!L16+'Пт День 5 Нед 1'!K16+'Чт День 4 Нед 1'!I16+'Ср День 3 Нед 1'!L16+'Вт День 2 Нед 1'!L16+'Пн День 1 Нед 1'!L16 -> 0.0000 | E16: ='Сб День 6 Нед 1'!U16+'Пт День 5 Нед 1'!T16+'Чт День 4 Нед 1'!O16+'Ср День 3 Нед 1'!U16+'Вт День 2 Нед 1'!U16+'Пн День 1 Нед 1'!U16 -> 0.0000 | F16: ='Сб День 6 Нед 1'!X16+'Пт День 5 Нед 1'!W16+'Чт День 4 Нед 1'!R16+'Ср День 3 Нед 1'!X16+'Вт День 2 Нед 1'!X16+'Пн День 1 Нед 1'!X16 -> 0.0000 | G16: ='Сб День 6 Нед 1'!AB16+'Пт День 5 Нед 1'!AA16+'Чт День 4 Нед 1'!V16+'Ср День 3 Нед 1'!AB16+'Вт День 2 Нед 1'!AB16+'Пн День 1 Нед 1'!AB16 -> 0.0000 | H16: ='Сб День 6 Нед 1'!AF16+'Пт День 5 Нед 1'!AE16+'Чт День 4 Нед 1'!Z16+'Ср День 3 Нед 1'!AF16+'Вт День 2 Нед 1'!AF16+'Пн День 1 Нед 1'!AF16 -> 0.0000 | I16: ='Сб День 6 Нед 1'!AL16+'Пт День 5 Нед 1'!AJ16+'Чт День 4 Нед 1'!AE16+'Ср День 3 Нед 1'!AK16+'Вт День 2 Нед 1'!AK16+'Пн День 1 Нед 1'!AL16 -> 0.0000 | J16: ='Сб День 6 Нед 1'!AR16+'Пт День 5 Нед 1'!AO16+'Чт День 4 Нед 1'!AK16+'Ср День 3 Нед 1'!AQ16+'Вт День 2 Нед 1'!AP16+'Пн День 1 Нед 1'!AR16 -> 0.0000 | K16: 0.000
A17: 10 | B17: кефир 2,5% | C17: кг | D17: ='Сб День 6 Нед 1'!L17+'Пт День 5 Нед 1'!K17+'Чт День 4 Нед 1'!I17+'Ср День 3 Нед 1'!L17+'Вт День 2 Нед 1'!L17+'Пн День 1 Нед 1'!L17 -> 0.0000 | E17: ='Сб День 6 Нед 1'!U17+'Пт День 5 Нед 1'!T17+'Чт День 4 Нед 1'!O17+'Ср День 3 Нед 1'!U17+'Вт День 2 Нед 1'!U17+'Пн День 1 Нед 1'!U17 -> 0.0000 | F17: ='Сб День 6 Нед 1'!X17+'Пт День 5 Нед 1'!W17+'Чт День 4 Нед 1'!R17+'Ср День 3 Нед 1'!X17+'Вт День 2 Нед 1'!X17+'Пн День 1 Нед 1'!X17 -> 0.0000 | G17: ='Сб День 6 Нед 1'!AB17+'Пт День 5 Нед 1'!AA17+'Чт День 4 Нед 1'!V17+'Ср День 3 Нед 1'!AB17+'Вт День 2 Нед 1'!AB17+'Пн День 1 Нед 1'!AB17 -> 0.0000 | H17: ='Сб День 6 Нед 1'!AF17+'Пт День 5 Нед 1'!AE17+'Чт День 4 Нед 1'!Z17+'Ср День 3 Нед 1'!AF17+'Вт День 2 Нед 1'!AF17+'Пн День 1 Нед 1'!AF17 -> 0.0000 | I17: ='Сб День 6 Нед 1'!AL17+'Пт День 5 Нед 1'!AJ17+'Чт День 4 Нед 1'!AE17+'Ср День 3 Нед 1'!AK17+'Вт День 2 Нед 1'!AK17+'Пн День 1 Нед 1'!AL17 -> 0.0000 | J17: ='Сб День 6 Нед 1'!AR17+'Пт День 5 Нед 1'!AO17+'Чт День 4 Нед 1'!AK17+'Ср День 3 Нед 1'!AQ17+'Вт День 2 Нед 1'!AP17+'Пн День 1 Нед 1'!AR17 -> 0.0000 | K17: 0.000
A18: 11 | B18: ряженка 2,5% | C18: кг | D18: ='Сб День 6 Нед 1'!L18+'Пт День 5 Нед 1'!K18+'Чт День 4 Нед 1'!I18+'Ср День 3 Нед 1'!L18+'Вт День 2 Нед 1'!L18+'Пн День 1 Нед 1'!L18 -> 0.0000 | E18: ='Сб День 6 Нед 1'!U18+'Пт День 5 Нед 1'!T18+'Чт День 4 Нед 1'!O18+'Ср День 3 Нед 1'!U18+'Вт День 2 Нед 1'!U18+'Пн День 1 Нед 1'!U18 -> 0.0000 | F18: ='Сб День 6 Нед 1'!X18+'Пт День 5 Нед 1'!W18+'Чт День 4 Нед 1'!R18+'Ср День 3 Нед 1'!X18+'Вт День 2 Нед 1'!X18+'Пн День 1 Нед 1'!X18 -> 0.0000 | G18: ='Сб День 6 Нед 1'!AB18+'Пт День 5 Нед 1'!AA18+'Чт День 4 Нед 1'!V18+'Ср День 3 Нед 1'!AB18+'Вт День 2 Нед 1'!AB18+'Пн День 1 Нед 1'!AB18 -> 0.0000 | H18: ='Сб День 6 Нед 1'!AF18+'Пт День 5 Нед 1'!AE18+'Чт День 4 Нед 1'!Z18+'Ср День 3 Нед 1'!AF18+'Вт День 2 Нед 1'!AF18+'Пн День 1 Нед 1'!AF18 -> 0.0000 | I18: ='Сб День 6 Нед 1'!AL18+'Пт День 5 Нед 1'!AJ18+'Чт День 4 Нед 1'!AE18+'Ср День 3 Нед 1'!AK18+'Вт День 2 Нед 1'!AK18+'Пн День 1 Нед 1'!AL18 -> 0.0000 | J18: ='Сб День 6 Нед 1'!AR18+'Пт День 5 Нед 1'!AO18+'Чт День 4 Нед 1'!AK18+'Ср День 3 Нед 1'!AQ18+'Вт День 2 Нед 1'!AP18+'Пн День 1 Нед 1'!AR18 -> 0.0000 | K18: 0.000
A19: 12 | B19: напиток ацидофильный | C19: кг | D19: ='Сб День 6 Нед 1'!L19+'Пт День 5 Нед 1'!K19+'Чт День 4 Нед 1'!I19+'Ср День 3 Нед 1'!L19+'Вт День 2 Нед 1'!L19+'Пн День 1 Нед 1'!L19 -> 0.0000 | E19: ='Сб День 6 Нед 1'!U19+'Пт День 5 Нед 1'!T19+'Чт День 4 Нед 1'!O19+'Ср День 3 Нед 1'!U19+'Вт День 2 Нед 1'!U19+'Пн День 1 Нед 1'!U19 -> 0.0000 | F19: ='Сб День 6 Нед 1'!X19+'Пт День 5 Нед 1'!W19+'Чт День 4 Нед 1'!R19+'Ср День 3 Нед 1'!X19+'Вт День 2 Нед 1'!X19+'Пн День 1 Нед 1'!X19 -> 0.0000 | G19: ='Сб День 6 Нед 1'!AB19+'Пт День 5 Нед 1'!AA19+'Чт День 4 Нед 1'!V19+'Ср День 3 Нед 1'!AB19+'Вт День 2 Нед 1'!AB19+'Пн День 1 Нед 1'!AB19 -> 0.0000 | H19: ='Сб День 6 Нед 1'!AF19+'Пт День 5 Нед 1'!AE19+'Чт День 4 Нед 1'!Z19+'Ср День 3 Нед 1'!AF19+'Вт День 2 Нед 1'!AF19+'Пн День 1 Нед 1'!AF19 -> 0.0000 | I19: ='Сб День 6 Нед 1'!AL19+'Пт День 5 Нед 1'!AJ19+'Чт День 4 Нед 1'!AE19+'Ср День 3 Нед 1'!AK19+'Вт День 2 Нед 1'!AK19+'Пн День 1 Нед 1'!AL19 -> 0.0000 | J19: ='Сб День 6 Нед 1'!AR19+'Пт День 5 Нед 1'!AO19+'Чт День 4 Нед 1'!AK19+'Ср День 3 Нед 1'!AQ19+'Вт День 2 Нед 1'!AP19+'Пн День 1 Нед 1'!AR19 -> 0.0000 | K19: 0.000
B20: Масло / сыр
A21: 13 | B21: масло растительное | C21: кг | D21: ='Сб День 6 Нед 1'!L21+'Пт День 5 Нед 1'!K21+'Чт День 4 Нед 1'!I21+'Ср День 3 Нед 1'!L21+'Вт День 2 Нед 1'!L21+'Пн День 1 Нед 1'!L21 -> 0.0230 | E21: ='Сб День 6 Нед 1'!U21+'Пт День 5 Нед 1'!T21+'Чт День 4 Нед 1'!O21+'Ср День 3 Нед 1'!U21+'Вт День 2 Нед 1'!U21+'Пн День 1 Нед 1'!U21 -> 0.0240 | F21: ='Сб День 6 Нед 1'!X21+'Пт День 5 Нед 1'!W21+'Чт День 4 Нед 1'!R21+'Ср День 3 Нед 1'!X21+'Вт День 2 Нед 1'!X21+'Пн День 1 Нед 1'!X21 -> 0.0000 | G21: ='Сб День 6 Нед 1'!AB21+'Пт День 5 Нед 1'!AA21+'Чт День 4 Нед 1'!V21+'Ср День 3 Нед 1'!AB21+'Вт День 2 Нед 1'!AB21+'Пн День 1 Нед 1'!AB21 -> 0.0000 | H21: ='Сб День 6 Нед 1'!AF21+'Пт День 5 Нед 1'!AE21+'Чт День 4 Нед 1'!Z21+'Ср День 3 Нед 1'!AF21+'Вт День 2 Нед 1'!AF21+'Пн День 1 Нед 1'!AF21 -> 0.0300 | I21: ='Сб День 6 Нед 1'!AL21+'Пт День 5 Нед 1'!AJ21+'Чт День 4 Нед 1'!AE21+'Ср День 3 Нед 1'!AK21+'Вт День 2 Нед 1'!AK21+'Пн День 1 Нед 1'!AL21 -> 0.0295 | J21: ='Сб День 6 Нед 1'!AR21+'Пт День 5 Нед 1'!AO21+'Чт День 4 Нед 1'!AK21+'Ср День 3 Нед 1'!AQ21+'Вт День 2 Нед 1'!AP21+'Пн День 1 Нед 1'!AR21 -> 0.0000 | K21: 0.107
A22: 14 | B22: масло сливочное | C22: кг | D22: ='Сб День 6 Нед 1'!L22+'Пт День 5 Нед 1'!K22+'Чт День 4 Нед 1'!I22+'Ср День 3 Нед 1'!L22+'Вт День 2 Нед 1'!L22+'Пн День 1 Нед 1'!L22 -> 0.0250 | E22: ='Сб День 6 Нед 1'!U22+'Пт День 5 Нед 1'!T22+'Чт День 4 Нед 1'!O22+'Ср День 3 Нед 1'!U22+'Вт День 2 Нед 1'!U22+'Пн День 1 Нед 1'!U22 -> 0.0190 | F22: ='Сб День 6 Нед 1'!X22+'Пт День 5 Нед 1'!W22+'Чт День 4 Нед 1'!R22+'Ср День 3 Нед 1'!X22+'Вт День 2 Нед 1'!X22+'Пн День 1 Нед 1'!X22 -> 0.0000 | G22: ='Сб День 6 Нед 1'!AB22+'Пт День 5 Нед 1'!AA22+'Чт День 4 Нед 1'!V22+'Ср День 3 Нед 1'!AB22+'Вт День 2 Нед 1'!AB22+'Пн День 1 Нед 1'!AB22 -> 0.0180 | H22: ='Сб День 6 Нед 1'!AF22+'Пт День 5 Нед 1'!AE22+'Чт День 4 Нед 1'!Z22+'Ср День 3 Нед 1'!AF22+'Вт День 2 Нед 1'!AF22+'Пн День 1 Нед 1'!AF22 -> 0.0000 | I22: ='Сб День 6 Нед 1'!AL22+'Пт День 5 Нед 1'!AJ22+'Чт День 4 Нед 1'!AE22+'Ср День 3 Нед 1'!AK22+'Вт День 2 Нед 1'!AK22+'Пн День 1 Нед 1'!AL22 -> 0.0060 | J22: ='Сб День 6 Нед 1'!AR22+'Пт День 5 Нед 1'!AO22+'Чт День 4 Нед 1'!AK22+'Ср День 3 Нед 1'!AQ22+'Вт День 2 Нед 1'!AP22+'Пн День 1 Нед 1'!AR22 -> 0.0000 | K22: 0.068
A23: 15 | B23: сыр голландский | C23: кг | D23: ='Сб День 6 Нед 1'!L23+'Пт День 5 Нед 1'!K23+'Чт День 4 Нед 1'!I23+'Ср День 3 Нед 1'!L23+'Вт День 2 Нед 1'!L23+'Пн День 1 Нед 1'!L23 -> 0.0255 | E23: ='Сб День 6 Нед 1'!U23+'Пт День 5 Нед 1'!T23+'Чт День 4 Нед 1'!O23+'Ср День 3 Нед 1'!U23+'Вт День 2 Нед 1'!U23+'Пн День 1 Нед 1'!U23 -> 0.0204 | F23: ='Сб День 6 Нед 1'!X23+'Пт День 5 Нед 1'!W23+'Чт День 4 Нед 1'!R23+'Ср День 3 Нед 1'!X23+'Вт День 2 Нед 1'!X23+'Пн День 1 Нед 1'!X23 -> 0.0000 | G23: ='Сб День 6 Нед 1'!AB23+'Пт День 5 Нед 1'!AA23+'Чт День 4 Нед 1'!V23+'Ср День 3 Нед 1'!AB23+'Вт День 2 Нед 1'!AB23+'Пн День 1 Нед 1'!AB23 -> 0.0000 | H23: ='Сб День 6 Нед 1'!AF23+'Пт День 5 Нед 1'!AE23+'Чт День 4 Нед 1'!Z23+'Ср День 3 Нед 1'!AF23+'Вт День 2 Нед 1'!AF23+'Пн День 1 Нед 1'!AF23 -> 0.0000 | I23: ='Сб День 6 Нед 1'!AL23+'Пт День 5 Нед 1'!AJ23+'Чт День 4 Нед 1'!AE23+'Ср День 3 Нед 1'!AK23+'Вт День 2 Нед 1'!AK23+'Пн День 1 Нед 1'!AL23 -> 0.0000 | J23: ='Сб День 6 Нед 1'!AR23+'Пт День 5 Нед 1'!AO23+'Чт День 4 Нед 1'!AK23+'Ср День 3 Нед 1'!AQ23+'Вт День 2 Нед 1'!AP23+'Пн День 1 Нед 1'!AR23 -> 0.0000 | K23: 0.046
B24: Мясо
A25: 16 | B25: говядина (котлетное мясо) | C25: кг | D25: ='Сб День 6 Нед 1'!L25+'Пт День 5 Нед 1'!K25+'Чт День 4 Нед 1'!I25+'Ср День 3 Нед 1'!L25+'Вт День 2 Нед 1'!L25+'Пн День 1 Нед 1'!L25 -> 0.0000 | E25: ='Сб День 6 Нед 1'!U25+'Пт День 5 Нед 1'!T25+'Чт День 4 Нед 1'!O25+'Ср День 3 Нед 1'!U25+'Вт День 2 Нед 1'!U25+'Пн День 1 Нед 1'!U25 -> 0.0000 | F25: ='Сб День 6 Нед 1'!X25+'Пт День 5 Нед 1'!W25+'Чт День 4 Нед 1'!R25+'Ср День 3 Нед 1'!X25+'Вт День 2 Нед 1'!X25+'Пн День 1 Нед 1'!X25 -> 0.0000 | G25: ='Сб День 6 Нед 1'!AB25+'Пт День 5 Нед 1'!AA25+'Чт День 4 Нед 1'!V25+'Ср День 3 Нед 1'!AB25+'Вт День 2 Нед 1'!AB25+'Пн День 1 Нед 1'!AB25 -> 0.0000 | H25: ='Сб День 6 Нед 1'!AF25+'Пт День 5 Нед 1'!AE25+'Чт День 4 Нед 1'!Z25+'Ср День 3 Нед 1'!AF25+'Вт День 2 Нед 1'!AF25+'Пн День 1 Нед 1'!AF25 -> 0.0000 | I25: ='Сб День 6 Нед 1'!AL25+'Пт День 5 Нед 1'!AJ25+'Чт День 4 Нед 1'!AE25+'Ср День 3 Нед 1'!AK25+'Вт День 2 Нед 1'!AK25+'Пн День 1 Нед 1'!AL25 -> 0.0000 | J25: ='Сб День 6 Нед 1'!AR25+'Пт День 5 Нед 1'!AO25+'Чт День 4 Нед 1'!AK25+'Ср День 3 Нед 1'!AQ25+'Вт День 2 Нед 1'!AP25+'Пн День 1 Нед 1'!AR25 -> 0.0000 | K25: 0.000
A26: 17 | B26: фарш говяжий | C26: кг | D26: ='Сб День 6 Нед 1'!L26+'Пт День 5 Нед 1'!K26+'Чт День 4 Нед 1'!I26+'Ср День 3 Нед 1'!L26+'Вт День 2 Нед 1'!L26+'Пн День 1 Нед 1'!L26 -> 0.0400 | E26: ='Сб День 6 Нед 1'!U26+'Пт День 5 Нед 1'!T26+'Чт День 4 Нед 1'!O26+'Ср День 3 Нед 1'!U26+'Вт День 2 Нед 1'!U26+'Пн День 1 Нед 1'!U26 -> 0.0400 | F26: ='Сб День 6 Нед 1'!X26+'Пт День 5 Нед 1'!W26+'Чт День 4 Нед 1'!R26+'Ср День 3 Нед 1'!X26+'Вт День 2 Нед 1'!X26+'Пн День 1 Нед 1'!X26 -> 0.0000 | G26: ='Сб День 6 Нед 1'!AB26+'Пт День 5 Нед 1'!AA26+'Чт День 4 Нед 1'!V26+'Ср День 3 Нед 1'!AB26+'Вт День 2 Нед 1'!AB26+'Пн День 1 Нед 1'!AB26 -> 0.0000 | H26: ='Сб День 6 Нед 1'!AF26+'Пт День 5 Нед 1'!AE26+'Чт День 4 Нед 1'!Z26+'Ср День 3 Нед 1'!AF26+'Вт День 2 Нед 1'!AF26+'Пн День 1 Нед 1'!AF26 -> 0.0234 | I26: ='Сб День 6 Нед 1'!AL26+'Пт День 5 Нед 1'!AJ26+'Чт День 4 Нед 1'!AE26+'Ср День 3 Нед 1'!AK26+'Вт День 2 Нед 1'!AK26+'Пн День 1 Нед 1'!AL26 -> 0.0494 | J26: ='Сб День 6 Нед 1'!AR26+'Пт День 5 Нед 1'!AO26+'Чт День 4 Нед 1'!AK26+'Ср День 3 Нед 1'!AQ26+'Вт День 2 Нед 1'!AP26+'Пн День 1 Нед 1'!AR26 -> 0.0000 | K26: 0.153
A27: 18 | B27: говядина лопатка б/к | C27: кг | D27: ='Сб День 6 Нед 1'!L27+'Пт День 5 Нед 1'!K27+'Чт День 4 Нед 1'!I27+'Ср День 3 Нед 1'!L27+'Вт День 2 Нед 1'!L27+'Пн День 1 Нед 1'!L27 -> 0.0800 | E27: ='Сб День 6 Нед 1'!U27+'Пт День 5 Нед 1'!T27+'Чт День 4 Нед 1'!O27+'Ср День 3 Нед 1'!U27+'Вт День 2 Нед 1'!U27+'Пн День 1 Нед 1'!U27 -> 0.0800 | F27: ='Сб День 6 Нед 1'!X27+'Пт День 5 Нед 1'!W27+'Чт День 4 Нед 1'!R27+'Ср День 3 Нед 1'!X27+'Вт День 2 Нед 1'!X27+'Пн День 1 Нед 1'!X27 -> 0.0000 | G27: ='Сб День 6 Нед 1'!AB27+'Пт День 5 Нед 1'!AA27+'Чт День 4 Нед 1'!V27+'Ср День 3 Нед 1'!AB27+'Вт День 2 Нед 1'!AB27+'Пн День 1 Нед 1'!AB27 -> 0.0000 | H27: ='Сб День 6 Нед 1'!AF27+'Пт День 5 Нед 1'!AE27+'Чт День 4 Нед 1'!Z27+'Ср День 3 Нед 1'!AF27+'Вт День 2 Нед 1'!AF27+'Пн День 1 Нед 1'!AF27 -> 0.0000 | I27: ='Сб День 6 Нед 1'!AL27+'Пт День 5 Нед 1'!AJ27+'Чт День 4 Нед 1'!AE27+'Ср День 3 Нед 1'!AK27+'Вт День 2 Нед 1'!AK27+'Пн День 1 Нед 1'!AL27 -> 0.0000 | J27: ='Сб День 6 Нед 1'!AR27+'Пт День 5 Нед 1'!AO27+'Чт День 4 Нед 1'!AK27+'Ср День 3 Нед 1'!AQ27+'Вт День 2 Нед 1'!AP27+'Пн День 1 Нед 1'!AR27 -> 0.0000 | K27: 0.160
A28: 19 | B28: сосиски | C28: кг | D28: ='Сб День 6 Нед 1'!L28+'Пт День 5 Нед 1'!K28+'Чт День 4 Нед 1'!I28+'Ср День 3 Нед 1'!L28+'Вт День 2 Нед 1'!L28+'Пн День 1 Нед 1'!L28 -> 0.0000 | E28: ='Сб День 6 Нед 1'!U28+'Пт День 5 Нед 1'!T28+'Чт День 4 Нед 1'!O28+'Ср День 3 Нед 1'!U28+'Вт День 2 Нед 1'!U28+'Пн День 1 Нед 1'!U28 -> 0.0000 | F28: ='Сб День 6 Нед 1'!X28+'Пт День 5 Нед 1'!W28+'Чт День 4 Нед 1'!R28+'Ср День 3 Нед 1'!X28+'Вт День 2 Нед 1'!X28+'Пн День 1 Нед 1'!X28 -> 0.0000 | G28: ='Сб День 6 Нед 1'!AB28+'Пт День 5 Нед 1'!AA28+'Чт День 4 Нед 1'!V28+'Ср День 3 Нед 1'!AB28+'Вт День 2 Нед 1'!AB28+'Пн День 1 Нед 1'!AB28 -> 0.0000 | H28: ='Сб День 6 Нед 1'!AF28+'Пт День 5 Нед 1'!AE28+'Чт День 4 Нед 1'!Z28+'Ср День 3 Нед 1'!AF28+'Вт День 2 Нед 1'!AF28+'Пн День 1 Нед 1'!AF28 -> 0.0000 | I28: ='Сб День 6 Нед 1'!AL28+'Пт День 5 Нед 1'!AJ28+'Чт День 4 Нед 1'!AE28+'Ср День 3 Нед 1'!AK28+'Вт День 2 Нед 1'!AK28+'Пн День 1 Нед 1'!AL28 -> 0.0000 | J28: ='Сб День 6 Нед 1'!AR28+'Пт День 5 Нед 1'!AO28+'Чт День 4 Нед 1'!AK28+'Ср День 3 Нед 1'!AQ28+'Вт День 2 Нед 1'!AP28+'Пн День 1 Нед 1'!AR28 -> 0.0000 | K28: 0.000
A29: 20 | B29: колбаса п/к Халяль | C29: кг | D29: ='Сб День 6 Нед 1'!L29+'Пт День 5 Нед 1'!K29+'Чт День 4 Нед 1'!I29+'Ср День 3 Нед 1'!L29+'Вт День 2 Нед 1'!L29+'Пн День 1 Нед 1'!L29 -> 0.0000 | E29: ='Сб День 6 Нед 1'!U29+'Пт День 5 Нед 1'!T29+'Чт День 4 Нед 1'!O29+'Ср День 3 Нед 1'!U29+'Вт День 2 Нед 1'!U29+'Пн День 1 Нед 1'!U29 -> 0.0000 | F29: ='Сб День 6 Нед 1'!X29+'Пт День 5 Нед 1'!W29+'Чт День 4 Нед 1'!R29+'Ср День 3 Нед 1'!X29+'Вт День 2 Нед 1'!X29+'Пн День 1 Нед 1'!X29 -> 0.0000 | G29: ='Сб День 6 Нед 1'!AB29+'Пт День 5 Нед 1'!AA29+'Чт День 4 Нед 1'!V29+'Ср День 3 Нед 1'!AB29+'Вт День 2 Нед 1'!AB29+'Пн День 1 Нед 1'!AB29 -> 0.0000 | H29: ='Сб День 6 Нед 1'!AF29+'Пт День 5 Нед 1'!AE29+'Чт День 4 Нед 1'!Z29+'Ср День 3 Нед 1'!AF29+'Вт День 2 Нед 1'!AF29+'Пн День 1 Нед 1'!AF29 -> 0.0000 | I29: ='Сб День 6 Нед 1'!AL29+'Пт День 5 Нед 1'!AJ29+'Чт День 4 Нед 1'!AE29+'Ср День 3 Нед 1'!AK29+'Вт День 2 Нед 1'!AK29+'Пн День 1 Нед 1'!AL29 -> 0.0000 | J29: ='Сб День 6 Нед 1'!AR29+'Пт День 5 Нед 1'!AO29+'Чт День 4 Нед 1'!AK29+'Ср День 3 Нед 1'!AQ29+'Вт День 2 Нед 1'!AP29+'Пн День 1 Нед 1'!AR29 -> 0.0000 | K29: 0.000
A30: 21 | B30: куриное бедро | C30: кг | D30: ='Сб День 6 Нед 1'!L30+'Пт День 5 Нед 1'!K30+'Чт День 4 Нед 1'!I30+'Ср День 3 Нед 1'!L30+'Вт День 2 Нед 1'!L30+'Пн День 1 Нед 1'!L30 -> 0.0000 | E30: ='Сб День 6 Нед 1'!U30+'Пт День 5 Нед 1'!T30+'Чт День 4 Нед 1'!O30+'Ср День 3 Нед 1'!U30+'Вт День 2 Нед 1'!U30+'Пн День 1 Нед 1'!U30 -> 0.0000 | F30: ='Сб День 6 Нед 1'!X30+'Пт День 5 Нед 1'!W30+'Чт День 4 Нед 1'!R30+'Ср День 3 Нед 1'!X30+'Вт День 2 Нед 1'!X30+'Пн День 1 Нед 1'!X30 -> 0.0000 | G30: ='Сб День 6 Нед 1'!AB30+'Пт День 5 Нед 1'!AA30+'Чт День 4 Нед 1'!V30+'Ср День 3 Нед 1'!AB30+'Вт День 2 Нед 1'!AB30+'Пн День 1 Нед 1'!AB30 -> 0.0000 | H30: ='Сб День 6 Нед 1'!AF30+'Пт День 5 Нед 1'!AE30+'Чт День 4 Нед 1'!Z30+'Ср День 3 Нед 1'!AF30+'Вт День 2 Нед 1'!AF30+'Пн День 1 Нед 1'!AF30 -> 0.0000 | I30: ='Сб День 6 Нед 1'!AL30+'Пт День 5 Нед 1'!AJ30+'Чт День 4 Нед 1'!AE30+'Ср День 3 Нед 1'!AK30+'Вт День 2 Нед 1'!AK30+'Пн День 1 Нед 1'!AL30 -> 0.0000 | J30: ='Сб День 6 Нед 1'!AR30+'Пт День 5 Нед 1'!AO30+'Чт День 4 Нед 1'!AK30+'Ср День 3 Нед 1'!AQ30+'Вт День 2 Нед 1'!AP30+'Пн День 1 Нед 1'!AR30 -> 0.0000 | K30: 0.000
A31: 22 | B31: куриная грудка | C31: кг | D31: ='Сб День 6 Нед 1'!L31+'Пт День 5 Нед 1'!K31+'Чт День 4 Нед 1'!I31+'Ср День 3 Нед 1'!L31+'Вт День 2 Нед 1'!L31+'Пн День 1 Нед 1'!L31 -> 0.1995 | E31: ='Сб День 6 Нед 1'!U31+'Пт День 5 Нед 1'!T31+'Чт День 4 Нед 1'!O31+'Ср День 3 Нед 1'!U31+'Вт День 2 Нед 1'!U31+'Пн День 1 Нед 1'!U31 -> 0.1995 | F31: ='Сб День 6 Нед 1'!X31+'Пт День 5 Нед 1'!W31+'Чт День 4 Нед 1'!R31+'Ср День 3 Нед 1'!X31+'Вт День 2 Нед 1'!X31+'Пн День 1 Нед 1'!X31 -> 0.0000 | G31: ='Сб День 6 Нед 1'!AB31+'Пт День 5 Нед 1'!AA31+'Чт День 4 Нед 1'!V31+'Ср День 3 Нед 1'!AB31+'Вт День 2 Нед 1'!AB31+'Пн День 1 Нед 1'!AB31 -> 0.0000 | H31: ='Сб День 6 Нед 1'!AF31+'Пт День 5 Нед 1'!AE31+'Чт День 4 Нед 1'!Z31+'Ср День 3 Нед 1'!AF31+'Вт День 2 Нед 1'!AF31+'Пн День 1 Нед 1'!AF31 -> 0.0588 | I31: ='Сб День 6 Нед 1'!AL31+'Пт День 5 Нед 1'!AJ31+'Чт День 4 Нед 1'!AE31+'Ср День 3 Нед 1'!AK31+'Вт День 2 Нед 1'!AK31+'Пн День 1 Нед 1'!AL31 -> 0.1768 | J31: ='Сб День 6 Нед 1'!AR31+'Пт День 5 Нед 1'!AO31+'Чт День 4 Нед 1'!AK31+'Ср День 3 Нед 1'!AQ31+'Вт День 2 Нед 1'!AP31+'Пн День 1 Нед 1'!AR31 -> 0.0000 | K31: 0.635
A32: 23 | B32: куры/цыплята потрош | C32: кг | D32: ='Сб День 6 Нед 1'!L32+'Пт День 5 Нед 1'!K32+'Чт День 4 Нед 1'!I32+'Ср День 3 Нед 1'!L32+'Вт День 2 Нед 1'!L32+'Пн День 1 Нед 1'!L32 -> 0.0000 | E32: ='Сб День 6 Нед 1'!U32+'Пт День 5 Нед 1'!T32+'Чт День 4 Нед 1'!O32+'Ср День 3 Нед 1'!U32+'Вт День 2 Нед 1'!U32+'Пн День 1 Нед 1'!U32 -> 0.0000 | F32: ='Сб День 6 Нед 1'!X32+'Пт День 5 Нед 1'!W32+'Чт День 4 Нед 1'!R32+'Ср День 3 Нед 1'!X32+'Вт День 2 Нед 1'!X32+'Пн День 1 Нед 1'!X32 -> 0.0000 | G32: ='Сб День 6 Нед 1'!AB32+'Пт День 5 Нед 1'!AA32+'Чт День 4 Нед 1'!V32+'Ср День 3 Нед 1'!AB32+'Вт День 2 Нед 1'!AB32+'Пн День 1 Нед 1'!AB32 -> 0.0000 | H32: ='Сб День 6 Нед 1'!AF32+'Пт День 5 Нед 1'!AE32+'Чт День 4 Нед 1'!Z32+'Ср День 3 Нед 1'!AF32+'Вт День 2 Нед 1'!AF32+'Пн День 1 Нед 1'!AF32 -> 0.0000 | I32: ='Сб День 6 Нед 1'!AL32+'Пт День 5 Нед 1'!AJ32+'Чт День 4 Нед 1'!AE32+'Ср День 3 Нед 1'!AK32+'Вт День 2 Нед 1'!AK32+'Пн День 1 Нед 1'!AL32 -> 0.0000 | J32: ='Сб День 6 Нед 1'!AR32+'Пт День 5 Нед 1'!AO32+'Чт День 4 Нед 1'!AK32+'Ср День 3 Нед 1'!AQ32+'Вт День 2 Нед 1'!AP32+'Пн День 1 Нед 1'!AR32 -> 0.0000 | K32: 0.000
A33: 24 | B33: фарш куриный | C33: кг | D33: ='Сб День 6 Нед 1'!L33+'Пт День 5 Нед 1'!K33+'Чт День 4 Нед 1'!I33+'Ср День 3 Нед 1'!L33+'Вт День 2 Нед 1'!L33+'Пн День 1 Нед 1'!L33 -> 0.0000 | E33: ='Сб День 6 Нед 1'!U33+'Пт День 5 Нед 1'!T33+'Чт День 4 Нед 1'!O33+'Ср День 3 Нед 1'!U33+'Вт День 2 Нед 1'!U33+'Пн День 1 Нед 1'!U33 -> 0.0000 | F33: ='Сб День 6 Нед 1'!X33+'Пт День 5 Нед 1'!W33+'Чт День 4 Нед 1'!R33+'Ср День 3 Нед 1'!X33+'Вт День 2 Нед 1'!X33+'Пн День 1 Нед 1'!X33 -> 0.0000 | G33: ='Сб День 6 Нед 1'!AB33+'Пт День 5 Нед 1'!AA33+'Чт День 4 Нед 1'!V33+'Ср День 3 Нед 1'!AB33+'Вт День 2 Нед 1'!AB33+'Пн День 1 Нед 1'!AB33 -> 0.0000 | H33: ='Сб День 6 Нед 1'!AF33+'Пт День 5 Нед 1'!AE33+'Чт День 4 Нед 1'!Z33+'Ср День 3 Нед 1'!AF33+'Вт День 2 Нед 1'!AF33+'Пн День 1 Нед 1'!AF33 -> 0.0000 | I33: ='Сб День 6 Нед 1'!AL33+'Пт День 5 Нед 1'!AJ33+'Чт День 4 Нед 1'!AE33+'Ср День 3 Нед 1'!AK33+'Вт День 2 Нед 1'!AK33+'Пн День 1 Нед 1'!AL33 -> 0.0000 | J33: ='Сб День 6 Нед 1'!AR33+'Пт День 5 Нед 1'!AO33+'Чт День 4 Нед 1'!AK33+'Ср День 3 Нед 1'!AQ33+'Вт День 2 Нед 1'!AP33+'Пн День 1 Нед 1'!AR33 -> 0.0000 | K33: 0.000
A34: 25 | B34: индейка бедро филе | C34: кг | D34: ='Сб День 6 Нед 1'!L34+'Пт День 5 Нед 1'!K34+'Чт День 4 Нед 1'!I34+'Ср День 3 Нед 1'!L34+'Вт День 2 Нед 1'!L34+'Пн День 1 Нед 1'!L34 -> 0.0000 | E34: ='Сб День 6 Нед 1'!U34+'Пт День 5 Нед 1'!T34+'Чт День 4 Нед 1'!O34+'Ср День 3 Нед 1'!U34+'Вт День 2 Нед 1'!U34+'Пн День 1 Нед 1'!U34 -> 0.0000 | F34: ='Сб День 6 Нед 1'!X34+'Пт День 5 Нед 1'!W34+'Чт День 4 Нед 1'!R34+'Ср День 3 Нед 1'!X34+'Вт День 2 Нед 1'!X34+'Пн День 1 Нед 1'!X34 -> 0.0000 | G34: ='Сб День 6 Нед 1'!AB34+'Пт День 5 Нед 1'!AA34+'Чт День 4 Нед 1'!V34+'Ср День 3 Нед 1'!AB34+'Вт День 2 Нед 1'!AB34+'Пн День 1 Нед 1'!AB34 -> 0.0000 | H34: ='Сб День 6 Нед 1'!AF34+'Пт День 5 Нед 1'!AE34+'Чт День 4 Нед 1'!Z34+'Ср День 3 Нед 1'!AF34+'Вт День 2 Нед 1'!AF34+'Пн День 1 Нед 1'!AF34 -> 0.0000 | I34: ='Сб День 6 Нед 1'!AL34+'Пт День 5 Нед 1'!AJ34+'Чт День 4 Нед 1'!AE34+'Ср День 3 Нед 1'!AK34+'Вт День 2 Нед 1'!AK34+'Пн День 1 Нед 1'!AL34 -> 0.0000 | J34: ='Сб День 6 Нед 1'!AR34+'Пт День 5 Нед 1'!AO34+'Чт День 4 Нед 1'!AK34+'Ср День 3 Нед 1'!AQ34+'Вт День 2 Нед 1'!AP34+'Пн День 1 Нед 1'!AR34 -> 0.0000 | K34: 0.000
A35: 26 | B35: индейка грудка филе | C35: кг | D35: ='Сб День 6 Нед 1'!L35+'Пт День 5 Нед 1'!K35+'Чт День 4 Нед 1'!I35+'Ср День 3 Нед 1'!L35+'Вт День 2 Нед 1'!L35+'Пн День 1 Нед 1'!L35 -> 0.0000 | E35: ='Сб День 6 Нед 1'!U35+'Пт День 5 Нед 1'!T35+'Чт День 4 Нед 1'!O35+'Ср День 3 Нед 1'!U35+'Вт День 2 Нед 1'!U35+'Пн День 1 Нед 1'!U35 -> 0.0000 | F35: ='Сб День 6 Нед 1'!X35+'Пт День 5 Нед 1'!W35+'Чт День 4 Нед 1'!R35+'Ср День 3 Нед 1'!X35+'Вт День 2 Нед 1'!X35+'Пн День 1 Нед 1'!X35 -> 0.0000 | G35: ='Сб День 6 Нед 1'!AB35+'Пт День 5 Нед 1'!AA35+'Чт День 4 Нед 1'!V35+'Ср День 3 Нед 1'!AB35+'Вт День 2 Нед 1'!AB35+'Пн День 1 Нед 1'!AB35 -> 0.0000 | H35: ='Сб День 6 Нед 1'!AF35+'Пт День 5 Нед 1'!AE35+'Чт День 4 Нед 1'!Z35+'Ср День 3 Нед 1'!AF35+'Вт День 2 Нед 1'!AF35+'Пн День 1 Нед 1'!AF35 -> 0.0000 | I35: ='Сб День 6 Нед 1'!AL35+'Пт День 5 Нед 1'!AJ35+'Чт День 4 Нед 1'!AE35+'Ср День 3 Нед 1'!AK35+'Вт День 2 Нед 1'!AK35+'Пн День 1 Нед 1'!AL35 -> 0.0000 | J35: ='Сб День 6 Нед 1'!AR35+'Пт День 5 Нед 1'!AO35+'Чт День 4 Нед 1'!AK35+'Ср День 3 Нед 1'!AQ35+'Вт День 2 Нед 1'!AP35+'Пн День 1 Нед 1'!AR35 -> 0.0000 | K35: 0.000
B36: Рыба
A37: 27 | B37: горбуша ПБГ с/м | C37: кг | D37: ='Сб День 6 Нед 1'!L37+'Пт День 5 Нед 1'!K37+'Чт День 4 Нед 1'!I37+'Ср День 3 Нед 1'!L37+'Вт День 2 Нед 1'!L37+'Пн День 1 Нед 1'!L37 -> 0.0000 | E37: ='Сб День 6 Нед 1'!U37+'Пт День 5 Нед 1'!T37+'Чт День 4 Нед 1'!O37+'Ср День 3 Нед 1'!U37+'Вт День 2 Нед 1'!U37+'Пн День 1 Нед 1'!U37 -> 0.0000 | F37: ='Сб День 6 Нед 1'!X37+'Пт День 5 Нед 1'!W37+'Чт День 4 Нед 1'!R37+'Ср День 3 Нед 1'!X37+'Вт День 2 Нед 1'!X37+'Пн День 1 Нед 1'!X37 -> 0.0000 | G37: ='Сб День 6 Нед 1'!AB37+'Пт День 5 Нед 1'!AA37+'Чт День 4 Нед 1'!V37+'Ср День 3 Нед 1'!AB37+'Вт День 2 Нед 1'!AB37+'Пн День 1 Нед 1'!AB37 -> 0.0000 | H37: ='Сб День 6 Нед 1'!AF37+'Пт День 5 Нед 1'!AE37+'Чт День 4 Нед 1'!Z37+'Ср День 3 Нед 1'!AF37+'Вт День 2 Нед 1'!AF37+'Пн День 1 Нед 1'!AF37 -> 0.0000 | I37: ='Сб День 6 Нед 1'!AL37+'Пт День 5 Нед 1'!AJ37+'Чт День 4 Нед 1'!AE37+'Ср День 3 Нед 1'!AK37+'Вт День 2 Нед 1'!AK37+'Пн День 1 Нед 1'!AL37 -> 0.0000 | J37: ='Сб День 6 Нед 1'!AR37+'Пт День 5 Нед 1'!AO37+'Чт День 4 Нед 1'!AK37+'Ср День 3 Нед 1'!AQ37+'Вт День 2 Нед 1'!AP37+'Пн День 1 Нед 1'!AR37 -> 0.0000 | K37: 0.000
A38: 28 | B38: минтай б/г с/м | C38: кг | D38: ='Сб День 6 Нед 1'!L38+'Пт День 5 Нед 1'!K38+'Чт День 4 Нед 1'!I38+'Ср День 3 Нед 1'!L38+'Вт День 2 Нед 1'!L38+'Пн День 1 Нед 1'!L38 -> 0.0000 | E38: ='Сб День 6 Нед 1'!U38+'Пт День 5 Нед 1'!T38+'Чт День 4 Нед 1'!O38+'Ср День 3 Нед 1'!U38+'Вт День 2 Нед 1'!U38+'Пн День 1 Нед 1'!U38 -> 0.0000 | F38: ='Сб День 6 Нед 1'!X38+'Пт День 5 Нед 1'!W38+'Чт День 4 Нед 1'!R38+'Ср День 3 Нед 1'!X38+'Вт День 2 Нед 1'!X38+'Пн День 1 Нед 1'!X38 -> 0.0000 | G38: ='Сб День 6 Нед 1'!AB38+'Пт День 5 Нед 1'!AA38+'Чт День 4 Нед 1'!V38+'Ср День 3 Нед 1'!AB38+'Вт День 2 Нед 1'!AB38+'Пн День 1 Нед 1'!AB38 -> 0.0000 | H38: ='Сб День 6 Нед 1'!AF38+'Пт День 5 Нед 1'!AE38+'Чт День 4 Нед 1'!Z38+'Ср День 3 Нед 1'!AF38+'Вт День 2 Нед 1'!AF38+'Пн День 1 Нед 1'!AF38 -> 0.0000 | I38: ='Сб День 6 Нед 1'!AL38+'Пт День 5 Нед 1'!AJ38+'Чт День 4 Нед 1'!AE38+'Ср День 3 Нед 1'!AK38+'Вт День 2 Нед 1'!AK38+'Пн День 1 Нед 1'!AL38 -> 0.0000 | J38: ='Сб День 6 Нед 1'!AR38+'Пт День 5 Нед 1'!AO38+'Чт День 4 Нед 1'!AK38+'Ср День 3 Нед 1'!AQ38+'Вт День 2 Нед 1'!AP38+'Пн День 1 Нед 1'!AR38 -> 0.0000 | K38: 0.000
A39: 29 | B39: фарш минтая | C39: кг | D39: ='Сб День 6 Нед 1'!L39+'Пт День 5 Нед 1'!K39+'Чт День 4 Нед 1'!I39+'Ср День 3 Нед 1'!L39+'Вт День 2 Нед 1'!L39+'Пн День 1 Нед 1'!L39 -> 0.0000 | E39: ='Сб День 6 Нед 1'!U39+'Пт День 5 Нед 1'!T39+'Чт День 4 Нед 1'!O39+'Ср День 3 Нед 1'!U39+'Вт День 2 Нед 1'!U39+'Пн День 1 Нед 1'!U39 -> 0.0000 | F39: ='Сб День 6 Нед 1'!X39+'Пт День 5 Нед 1'!W39+'Чт День 4 Нед 1'!R39+'Ср День 3 Нед 1'!X39+'Вт День 2 Нед 1'!X39+'Пн День 1 Нед 1'!X39 -> 0.0000 | G39: ='Сб День 6 Нед 1'!AB39+'Пт День 5 Нед 1'!AA39+'Чт День 4 Нед 1'!V39+'Ср День 3 Нед 1'!AB39+'Вт День 2 Нед 1'!AB39+'Пн День 1 Нед 1'!AB39 -> 0.0000 | H39: ='Сб День 6 Нед 1'!AF39+'Пт День 5 Нед 1'!AE39+'Чт День 4 Нед 1'!Z39+'Ср День 3 Нед 1'!AF39+'Вт День 2 Нед 1'!AF39+'Пн День 1 Нед 1'!AF39 -> 0.0000 | I39: ='Сб День 6 Нед 1'!AL39+'Пт День 5 Нед 1'!AJ39+'Чт День 4 Нед 1'!AE39+'Ср День 3 Нед 1'!AK39+'Вт День 2 Нед 1'!AK39+'Пн День 1 Нед 1'!AL39 -> 0.0000 | J39: ='Сб День 6 Нед 1'!AR39+'Пт День 5 Нед 1'!AO39+'Чт День 4 Нед 1'!AK39+'Ср День 3 Нед 1'!AQ39+'Вт День 2 Нед 1'!AP39+'Пн День 1 Нед 1'!AR39 -> 0.0000 | K39: 0.000
B40: Сыпучка
A41: 30 | B41: вермишель | C41: кг | D41: ='Сб День 6 Нед 1'!L41+'Пт День 5 Нед 1'!K41+'Чт День 4 Нед 1'!I41+'Ср День 3 Нед 1'!L41+'Вт День 2 Нед 1'!L41+'Пн День 1 Нед 1'!L41 -> 0.0000 | E41: ='Сб День 6 Нед 1'!U41+'Пт День 5 Нед 1'!T41+'Чт День 4 Нед 1'!O41+'Ср День 3 Нед 1'!U41+'Вт День 2 Нед 1'!U41+'Пн День 1 Нед 1'!U41 -> 0.0000 | F41: ='Сб День 6 Нед 1'!X41+'Пт День 5 Нед 1'!W41+'Чт День 4 Нед 1'!R41+'Ср День 3 Нед 1'!X41+'Вт День 2 Нед 1'!X41+'Пн День 1 Нед 1'!X41 -> 0.0000 | G41: ='Сб День 6 Нед 1'!AB41+'Пт День 5 Нед 1'!AA41+'Чт День 4 Нед 1'!V41+'Ср День 3 Нед 1'!AB41+'Вт День 2 Нед 1'!AB41+'Пн День 1 Нед 1'!AB41 -> 0.0000 | H41: ='Сб День 6 Нед 1'!AF41+'Пт День 5 Нед 1'!AE41+'Чт День 4 Нед 1'!Z41+'Ср День 3 Нед 1'!AF41+'Вт День 2 Нед 1'!AF41+'Пн День 1 Нед 1'!AF41 -> 0.0000 | I41: ='Сб День 6 Нед 1'!AL41+'Пт День 5 Нед 1'!AJ41+'Чт День 4 Нед 1'!AE41+'Ср День 3 Нед 1'!AK41+'Вт День 2 Нед 1'!AK41+'Пн День 1 Нед 1'!AL41 -> 0.0000 | J41: ='Сб День 6 Нед 1'!AR41+'Пт День 5 Нед 1'!AO41+'Чт День 4 Нед 1'!AK41+'Ср День 3 Нед 1'!AQ41+'Вт День 2 Нед 1'!AP41+'Пн День 1 Нед 1'!AR41 -> 0.0000 | K41: 0.000
A42: 31 | B42: геркулес | C42: кг | D42: ='Сб День 6 Нед 1'!L42+'Пт День 5 Нед 1'!K42+'Чт День 4 Нед 1'!I42+'Ср День 3 Нед 1'!L42+'Вт День 2 Нед 1'!L42+'Пн День 1 Нед 1'!L42 -> 0.0000 | E42: ='Сб День 6 Нед 1'!U42+'Пт День 5 Нед 1'!T42+'Чт День 4 Нед 1'!O42+'Ср День 3 Нед 1'!U42+'Вт День 2 Нед 1'!U42+'Пн День 1 Нед 1'!U42 -> 0.0000 | F42: ='Сб День 6 Нед 1'!X42+'Пт День 5 Нед 1'!W42+'Чт День 4 Нед 1'!R42+'Ср День 3 Нед 1'!X42+'Вт День 2 Нед 1'!X42+'Пн День 1 Нед 1'!X42 -> 0.0000 | G42: ='Сб День 6 Нед 1'!AB42+'Пт День 5 Нед 1'!AA42+'Чт День 4 Нед 1'!V42+'Ср День 3 Нед 1'!AB42+'Вт День 2 Нед 1'!AB42+'Пн День 1 Нед 1'!AB42 -> 0.0280 | H42: ='Сб День 6 Нед 1'!AF42+'Пт День 5 Нед 1'!AE42+'Чт День 4 Нед 1'!Z42+'Ср День 3 Нед 1'!AF42+'Вт День 2 Нед 1'!AF42+'Пн День 1 Нед 1'!AF42 -> 0.0000 | I42: ='Сб День 6 Нед 1'!AL42+'Пт День 5 Нед 1'!AJ42+'Чт День 4 Нед 1'!AE42+'Ср День 3 Нед 1'!AK42+'Вт День 2 Нед 1'!AK42+'Пн День 1 Нед 1'!AL42 -> 0.0000 | J42: ='Сб День 6 Нед 1'!AR42+'Пт День 5 Нед 1'!AO42+'Чт День 4 Нед 1'!AK42+'Ср День 3 Нед 1'!AQ42+'Вт День 2 Нед 1'!AP42+'Пн День 1 Нед 1'!AR42 -> 0.0000 | K42: 0.028
A43: 32 | B43: горох | C43: кг | D43: ='Сб День 6 Нед 1'!L43+'Пт День 5 Нед 1'!K43+'Чт День 4 Нед 1'!I43+'Ср День 3 Нед 1'!L43+'Вт День 2 Нед 1'!L43+'Пн День 1 Нед 1'!L43 -> 0.0000 | E43: ='Сб День 6 Нед 1'!U43+'Пт День 5 Нед 1'!T43+'Чт День 4 Нед 1'!O43+'Ср День 3 Нед 1'!U43+'Вт День 2 Нед 1'!U43+'Пн День 1 Нед 1'!U43 -> 0.0000 | F43: ='Сб День 6 Нед 1'!X43+'Пт День 5 Нед 1'!W43+'Чт День 4 Нед 1'!R43+'Ср День 3 Нед 1'!X43+'Вт День 2 Нед 1'!X43+'Пн День 1 Нед 1'!X43 -> 0.0000 | G43: ='Сб День 6 Нед 1'!AB43+'Пт День 5 Нед 1'!AA43+'Чт День 4 Нед 1'!V43+'Ср День 3 Нед 1'!AB43+'Вт День 2 Нед 1'!AB43+'Пн День 1 Нед 1'!AB43 -> 0.0000 | H43: ='Сб День 6 Нед 1'!AF43+'Пт День 5 Нед 1'!AE43+'Чт День 4 Нед 1'!Z43+'Ср День 3 Нед 1'!AF43+'Вт День 2 Нед 1'!AF43+'Пн День 1 Нед 1'!AF43 -> 0.0000 | I43: ='Сб День 6 Нед 1'!AL43+'Пт День 5 Нед 1'!AJ43+'Чт День 4 Нед 1'!AE43+'Ср День 3 Нед 1'!AK43+'Вт День 2 Нед 1'!AK43+'Пн День 1 Нед 1'!AL43 -> 0.0000 | J43: ='Сб День 6 Нед 1'!AR43+'Пт День 5 Нед 1'!AO43+'Чт День 4 Нед 1'!AK43+'Ср День 3 Нед 1'!AQ43+'Вт День 2 Нед 1'!AP43+'Пн День 1 Нед 1'!AR43 -> 0.0000 | K43: 0.000
A44: 33 | B44: гречневая крупа | C44: кг | D44: ='Сб День 6 Нед 1'!L44+'Пт День 5 Нед 1'!K44+'Чт День 4 Нед 1'!I44+'Ср День 3 Нед 1'!L44+'Вт День 2 Нед 1'!L44+'Пн День 1 Нед 1'!L44 -> 0.0710 | E44: ='Сб День 6 Нед 1'!U44+'Пт День 5 Нед 1'!T44+'Чт День 4 Нед 1'!O44+'Ср День 3 Нед 1'!U44+'Вт День 2 Нед 1'!U44+'Пн День 1 Нед 1'!U44 -> 0.0852 | F44: ='Сб День 6 Нед 1'!X44+'Пт День 5 Нед 1'!W44+'Чт День 4 Нед 1'!R44+'Ср День 3 Нед 1'!X44+'Вт День 2 Нед 1'!X44+'Пн День 1 Нед 1'!X44 -> 0.0000 | G44: ='Сб День 6 Нед 1'!AB44+'Пт День 5 Нед 1'!AA44+'Чт День 4 Нед 1'!V44+'Ср День 3 Нед 1'!AB44+'Вт День 2 Нед 1'!AB44+'Пн День 1 Нед 1'!AB44 -> 0.0375 | H44: ='Сб День 6 Нед 1'!AF44+'Пт День 5 Нед 1'!AE44+'Чт День 4 Нед 1'!Z44+'Ср День 3 Нед 1'!AF44+'Вт День 2 Нед 1'!AF44+'Пн День 1 Нед 1'!AF44 -> 0.0000 | I44: ='Сб День 6 Нед 1'!AL44+'Пт День 5 Нед 1'!AJ44+'Чт День 4 Нед 1'!AE44+'Ср День 3 Нед 1'!AK44+'Вт День 2 Нед 1'!AK44+'Пн День 1 Нед 1'!AL44 -> 0.0852 | J44: ='Сб День 6 Нед 1'!AR44+'Пт День 5 Нед 1'!AO44+'Чт День 4 Нед 1'!AK44+'Ср День 3 Нед 1'!AQ44+'Вт День 2 Нед 1'!AP44+'Пн День 1 Нед 1'!AR44 -> 0.0000 | K44: 0.279
A45: 34 | B45: кукурузная крупа | C45: кг | D45: ='Сб День 6 Нед 1'!L45+'Пт День 5 Нед 1'!K45+'Чт День 4 Нед 1'!I45+'Ср День 3 Нед 1'!L45+'Вт День 2 Нед 1'!L45+'Пн День 1 Нед 1'!L45 -> 0.0000 | E45: ='Сб День 6 Нед 1'!U45+'Пт День 5 Нед 1'!T45+'Чт День 4 Нед 1'!O45+'Ср День 3 Нед 1'!U45+'Вт День 2 Нед 1'!U45+'Пн День 1 Нед 1'!U45 -> 0.0000 | F45: ='Сб День 6 Нед 1'!X45+'Пт День 5 Нед 1'!W45+'Чт День 4 Нед 1'!R45+'Ср День 3 Нед 1'!X45+'Вт День 2 Нед 1'!X45+'Пн День 1 Нед 1'!X45 -> 0.0000 | G45: ='Сб День 6 Нед 1'!AB45+'Пт День 5 Нед 1'!AA45+'Чт День 4 Нед 1'!V45+'Ср День 3 Нед 1'!AB45+'Вт День 2 Нед 1'!AB45+'Пн День 1 Нед 1'!AB45 -> 0.0000 | H45: ='Сб День 6 Нед 1'!AF45+'Пт День 5 Нед 1'!AE45+'Чт День 4 Нед 1'!Z45+'Ср День 3 Нед 1'!AF45+'Вт День 2 Нед 1'!AF45+'Пн День 1 Нед 1'!AF45 -> 0.0000 | I45: ='Сб День 6 Нед 1'!AL45+'Пт День 5 Нед 1'!AJ45+'Чт День 4 Нед 1'!AE45+'Ср День 3 Нед 1'!AK45+'Вт День 2 Нед 1'!AK45+'Пн День 1 Нед 1'!AL45 -> 0.0000 | J45: ='Сб День 6 Нед 1'!AR45+'Пт День 5 Нед 1'!AO45+'Чт День 4 Нед 1'!AK45+'Ср День 3 Нед 1'!AQ45+'Вт День 2 Нед 1'!AP45+'Пн День 1 Нед 1'!AR45 -> 0.0000 | K45: 0.000
A46: 35 | B46: макаронные изделия | C46: кг | D46: ='Сб День 6 Нед 1'!L46+'Пт День 5 Нед 1'!K46+'Чт День 4 Нед 1'!I46+'Ср День 3 Нед 1'!L46+'Вт День 2 Нед 1'!L46+'Пн День 1 Нед 1'!L46 -> 0.1342 | E46: ='Сб День 6 Нед 1'!U46+'Пт День 5 Нед 1'!T46+'Чт День 4 Нед 1'!O46+'Ср День 3 Нед 1'!U46+'Вт День 2 Нед 1'!U46+'Пн День 1 Нед 1'!U46 -> 0.1542 | F46: ='Сб День 6 Нед 1'!X46+'Пт День 5 Нед 1'!W46+'Чт День 4 Нед 1'!R46+'Ср День 3 Нед 1'!X46+'Вт День 2 Нед 1'!X46+'Пн День 1 Нед 1'!X46 -> 0.0000 | G46: ='Сб День 6 Нед 1'!AB46+'Пт День 5 Нед 1'!AA46+'Чт День 4 Нед 1'!V46+'Ср День 3 Нед 1'!AB46+'Вт День 2 Нед 1'!AB46+'Пн День 1 Нед 1'!AB46 -> 0.0610 | H46: ='Сб День 6 Нед 1'!AF46+'Пт День 5 Нед 1'!AE46+'Чт День 4 Нед 1'!Z46+'Ср День 3 Нед 1'!AF46+'Вт День 2 Нед 1'!AF46+'Пн День 1 Нед 1'!AF46 -> 0.0000 | I46: ='Сб День 6 Нед 1'!AL46+'Пт День 5 Нед 1'!AJ46+'Чт День 4 Нед 1'!AE46+'Ср День 3 Нед 1'!AK46+'Вт День 2 Нед 1'!AK46+'Пн День 1 Нед 1'!AL46 -> 0.1342 | J46: ='Сб День 6 Нед 1'!AR46+'Пт День 5 Нед 1'!AO46+'Чт День 4 Нед 1'!AK46+'Ср День 3 Нед 1'!AQ46+'Вт День 2 Нед 1'!AP46+'Пн День 1 Нед 1'!AR46 -> 0.0000 | K46: 0.484
A47: 36 | B47: манная крупа | C47: кг | D47: ='Сб День 6 Нед 1'!L47+'Пт День 5 Нед 1'!K47+'Чт День 4 Нед 1'!I47+'Ср День 3 Нед 1'!L47+'Вт День 2 Нед 1'!L47+'Пн День 1 Нед 1'!L47 -> 0.0000 | E47: ='Сб День 6 Нед 1'!U47+'Пт День 5 Нед 1'!T47+'Чт День 4 Нед 1'!O47+'Ср День 3 Нед 1'!U47+'Вт День 2 Нед 1'!U47+'Пн День 1 Нед 1'!U47 -> 0.0000 | F47: ='Сб День 6 Нед 1'!X47+'Пт День 5 Нед 1'!W47+'Чт День 4 Нед 1'!R47+'Ср День 3 Нед 1'!X47+'Вт День 2 Нед 1'!X47+'Пн День 1 Нед 1'!X47 -> 0.0000 | G47: ='Сб День 6 Нед 1'!AB47+'Пт День 5 Нед 1'!AA47+'Чт День 4 Нед 1'!V47+'Ср День 3 Нед 1'!AB47+'Вт День 2 Нед 1'!AB47+'Пн День 1 Нед 1'!AB47 -> 0.0280 | H47: ='Сб День 6 Нед 1'!AF47+'Пт День 5 Нед 1'!AE47+'Чт День 4 Нед 1'!Z47+'Ср День 3 Нед 1'!AF47+'Вт День 2 Нед 1'!AF47+'Пн День 1 Нед 1'!AF47 -> 0.0000 | I47: ='Сб День 6 Нед 1'!AL47+'Пт День 5 Нед 1'!AJ47+'Чт День 4 Нед 1'!AE47+'Ср День 3 Нед 1'!AK47+'Вт День 2 Нед 1'!AK47+'Пн День 1 Нед 1'!AL47 -> 0.0000 | J47: ='Сб День 6 Нед 1'!AR47+'Пт День 5 Нед 1'!AO47+'Чт День 4 Нед 1'!AK47+'Ср День 3 Нед 1'!AQ47+'Вт День 2 Нед 1'!AP47+'Пн День 1 Нед 1'!AR47 -> 0.0000 | K47: 0.028
A48: 37 | B48: перловая крупа | C48: кг | D48: ='Сб День 6 Нед 1'!L48+'Пт День 5 Нед 1'!K48+'Чт День 4 Нед 1'!I48+'Ср День 3 Нед 1'!L48+'Вт День 2 Нед 1'!L48+'Пн День 1 Нед 1'!L48 -> 0.0000 | E48: ='Сб День 6 Нед 1'!U48+'Пт День 5 Нед 1'!T48+'Чт День 4 Нед 1'!O48+'Ср День 3 Нед 1'!U48+'Вт День 2 Нед 1'!U48+'Пн День 1 Нед 1'!U48 -> 0.0000 | F48: ='Сб День 6 Нед 1'!X48+'Пт День 5 Нед 1'!W48+'Чт День 4 Нед 1'!R48+'Ср День 3 Нед 1'!X48+'Вт День 2 Нед 1'!X48+'Пн День 1 Нед 1'!X48 -> 0.0000 | G48: ='Сб День 6 Нед 1'!AB48+'Пт День 5 Нед 1'!AA48+'Чт День 4 Нед 1'!V48+'Ср День 3 Нед 1'!AB48+'Вт День 2 Нед 1'!AB48+'Пн День 1 Нед 1'!AB48 -> 0.0000 | H48: ='Сб День 6 Нед 1'!AF48+'Пт День 5 Нед 1'!AE48+'Чт День 4 Нед 1'!Z48+'Ср День 3 Нед 1'!AF48+'Вт День 2 Нед 1'!AF48+'Пн День 1 Нед 1'!AF48 -> 0.0050 | I48: ='Сб День 6 Нед 1'!AL48+'Пт День 5 Нед 1'!AJ48+'Чт День 4 Нед 1'!AE48+'Ср День 3 Нед 1'!AK48+'Вт День 2 Нед 1'!AK48+'Пн День 1 Нед 1'!AL48 -> 0.0000 | J48: ='Сб День 6 Нед 1'!AR48+'Пт День 5 Нед 1'!AO48+'Чт День 4 Нед 1'!AK48+'Ср День 3 Нед 1'!AQ48+'Вт День 2 Нед 1'!AP48+'Пн День 1 Нед 1'!AR48 -> 0.0000 | K48: 0.005
A49: 38 | B49: полбяная крупа | C49: кг | D49: ='Сб День 6 Нед 1'!L49+'Пт День 5 Нед 1'!K49+'Чт День 4 Нед 1'!I49+'Ср День 3 Нед 1'!L49+'Вт День 2 Нед 1'!L49+'Пн День 1 Нед 1'!L49 -> 0.0000 | E49: ='Сб День 6 Нед 1'!U49+'Пт День 5 Нед 1'!T49+'Чт День 4 Нед 1'!O49+'Ср День 3 Нед 1'!U49+'Вт День 2 Нед 1'!U49+'Пн День 1 Нед 1'!U49 -> 0.0000 | F49: ='Сб День 6 Нед 1'!X49+'Пт День 5 Нед 1'!W49+'Чт День 4 Нед 1'!R49+'Ср День 3 Нед 1'!X49+'Вт День 2 Нед 1'!X49+'Пн День 1 Нед 1'!X49 -> 0.0000 | G49: ='Сб День 6 Нед 1'!AB49+'Пт День 5 Нед 1'!AA49+'Чт День 4 Нед 1'!V49+'Ср День 3 Нед 1'!AB49+'Вт День 2 Нед 1'!AB49+'Пн День 1 Нед 1'!AB49 -> 0.0000 | H49: ='Сб День 6 Нед 1'!AF49+'Пт День 5 Нед 1'!AE49+'Чт День 4 Нед 1'!Z49+'Ср День 3 Нед 1'!AF49+'Вт День 2 Нед 1'!AF49+'Пн День 1 Нед 1'!AF49 -> 0.0000 | I49: ='Сб День 6 Нед 1'!AL49+'Пт День 5 Нед 1'!AJ49+'Чт День 4 Нед 1'!AE49+'Ср День 3 Нед 1'!AK49+'Вт День 2 Нед 1'!AK49+'Пн День 1 Нед 1'!AL49 -> 0.0000 | J49: ='Сб День 6 Нед 1'!AR49+'Пт День 5 Нед 1'!AO49+'Чт День 4 Нед 1'!AK49+'Ср День 3 Нед 1'!AQ49+'Вт День 2 Нед 1'!AP49+'Пн День 1 Нед 1'!AR49 -> 0.0000 | K49: 0.000
A50: 39 | B50: пшеничная крупа | C50: кг | D50: ='Сб День 6 Нед 1'!L50+'Пт День 5 Нед 1'!K50+'Чт День 4 Нед 1'!I50+'Ср День 3 Нед 1'!L50+'Вт День 2 Нед 1'!L50+'Пн День 1 Нед 1'!L50 -> 0.0000 | E50: ='Сб День 6 Нед 1'!U50+'Пт День 5 Нед 1'!T50+'Чт День 4 Нед 1'!O50+'Ср День 3 Нед 1'!U50+'Вт День 2 Нед 1'!U50+'Пн День 1 Нед 1'!U50 -> 0.0000 | F50: ='Сб День 6 Нед 1'!X50+'Пт День 5 Нед 1'!W50+'Чт День 4 Нед 1'!R50+'Ср День 3 Нед 1'!X50+'Вт День 2 Нед 1'!X50+'Пн День 1 Нед 1'!X50 -> 0.0000 | G50: ='Сб День 6 Нед 1'!AB50+'Пт День 5 Нед 1'!AA50+'Чт День 4 Нед 1'!V50+'Ср День 3 Нед 1'!AB50+'Вт День 2 Нед 1'!AB50+'Пн День 1 Нед 1'!AB50 -> 0.0000 | H50: ='Сб День 6 Нед 1'!AF50+'Пт День 5 Нед 1'!AE50+'Чт День 4 Нед 1'!Z50+'Ср День 3 Нед 1'!AF50+'Вт День 2 Нед 1'!AF50+'Пн День 1 Нед 1'!AF50 -> 0.0000 | I50: ='Сб День 6 Нед 1'!AL50+'Пт День 5 Нед 1'!AJ50+'Чт День 4 Нед 1'!AE50+'Ср День 3 Нед 1'!AK50+'Вт День 2 Нед 1'!AK50+'Пн День 1 Нед 1'!AL50 -> 0.0000 | J50: ='Сб День 6 Нед 1'!AR50+'Пт День 5 Нед 1'!AO50+'Чт День 4 Нед 1'!AK50+'Ср День 3 Нед 1'!AQ50+'Вт День 2 Нед 1'!AP50+'Пн День 1 Нед 1'!AR50 -> 0.0000 | K50: 0.000
A51: 40 | B51: пшено | C51: кг | D51: ='Сб День 6 Нед 1'!L51+'Пт День 5 Нед 1'!K51+'Чт День 4 Нед 1'!I51+'Ср День 3 Нед 1'!L51+'Вт День 2 Нед 1'!L51+'Пн День 1 Нед 1'!L51 -> 0.0150 | E51: ='Сб День 6 Нед 1'!U51+'Пт День 5 Нед 1'!T51+'Чт День 4 Нед 1'!O51+'Ср День 3 Нед 1'!U51+'Вт День 2 Нед 1'!U51+'Пн День 1 Нед 1'!U51 -> 0.0190 | F51: ='Сб День 6 Нед 1'!X51+'Пт День 5 Нед 1'!W51+'Чт День 4 Нед 1'!R51+'Ср День 3 Нед 1'!X51+'Вт День 2 Нед 1'!X51+'Пн День 1 Нед 1'!X51 -> 0.0000 | G51: ='Сб День 6 Нед 1'!AB51+'Пт День 5 Нед 1'!AA51+'Чт День 4 Нед 1'!V51+'Ср День 3 Нед 1'!AB51+'Вт День 2 Нед 1'!AB51+'Пн День 1 Нед 1'!AB51 -> 0.0300 | H51: ='Сб День 6 Нед 1'!AF51+'Пт День 5 Нед 1'!AE51+'Чт День 4 Нед 1'!Z51+'Ср День 3 Нед 1'!AF51+'Вт День 2 Нед 1'!AF51+'Пн День 1 Нед 1'!AF51 -> 0.0050 | I51: ='Сб День 6 Нед 1'!AL51+'Пт День 5 Нед 1'!AJ51+'Чт День 4 Нед 1'!AE51+'Ср День 3 Нед 1'!AK51+'Вт День 2 Нед 1'!AK51+'Пн День 1 Нед 1'!AL51 -> 0.0050 | J51: ='Сб День 6 Нед 1'!AR51+'Пт День 5 Нед 1'!AO51+'Чт День 4 Нед 1'!AK51+'Ср День 3 Нед 1'!AQ51+'Вт День 2 Нед 1'!AP51+'Пн День 1 Нед 1'!AR51 -> 0.0000 | K51: 0.074
A52: 41 | B52: рис | C52: кг | D52: ='Сб День 6 Нед 1'!L52+'Пт День 5 Нед 1'!K52+'Чт День 4 Нед 1'!I52+'Ср День 3 Нед 1'!L52+'Вт День 2 Нед 1'!L52+'Пн День 1 Нед 1'!L52 -> 0.0700 | E52: ='Сб День 6 Нед 1'!U52+'Пт День 5 Нед 1'!T52+'Чт День 4 Нед 1'!O52+'Ср День 3 Нед 1'!U52+'Вт День 2 Нед 1'!U52+'Пн День 1 Нед 1'!U52 -> 0.0730 | F52: ='Сб День 6 Нед 1'!X52+'Пт День 5 Нед 1'!W52+'Чт День 4 Нед 1'!R52+'Ср День 3 Нед 1'!X52+'Вт День 2 Нед 1'!X52+'Пн День 1 Нед 1'!X52 -> 0.0000 | G52: ='Сб День 6 Нед 1'!AB52+'Пт День 5 Нед 1'!AA52+'Чт День 4 Нед 1'!V52+'Ср День 3 Нед 1'!AB52+'Вт День 2 Нед 1'!AB52+'Пн День 1 Нед 1'!AB52 -> 0.0000 | H52: ='Сб День 6 Нед 1'!AF52+'Пт День 5 Нед 1'!AE52+'Чт День 4 Нед 1'!Z52+'Ср День 3 Нед 1'!AF52+'Вт День 2 Нед 1'!AF52+'Пн День 1 Нед 1'!AF52 -> 0.0200 | I52: ='Сб День 6 Нед 1'!AL52+'Пт День 5 Нед 1'!AJ52+'Чт День 4 Нед 1'!AE52+'Ср День 3 Нед 1'!AK52+'Вт День 2 Нед 1'!AK52+'Пн День 1 Нед 1'!AL52 -> 0.0050 | J52: ='Сб День 6 Нед 1'!AR52+'Пт День 5 Нед 1'!AO52+'Чт День 4 Нед 1'!AK52+'Ср День 3 Нед 1'!AQ52+'Вт День 2 Нед 1'!AP52+'Пн День 1 Нед 1'!AR52 -> 0.0000 | K52: 0.168
A53: 42 | B53: ячневая крупа | C53: кг | D53: ='Сб День 6 Нед 1'!L53+'Пт День 5 Нед 1'!K53+'Чт День 4 Нед 1'!I53+'Ср День 3 Нед 1'!L53+'Вт День 2 Нед 1'!L53+'Пн День 1 Нед 1'!L53 -> 0.0000 | E53: ='Сб День 6 Нед 1'!U53+'Пт День 5 Нед 1'!T53+'Чт День 4 Нед 1'!O53+'Ср День 3 Нед 1'!U53+'Вт День 2 Нед 1'!U53+'Пн День 1 Нед 1'!U53 -> 0.0000 | F53: ='Сб День 6 Нед 1'!X53+'Пт День 5 Нед 1'!W53+'Чт День 4 Нед 1'!R53+'Ср День 3 Нед 1'!X53+'Вт День 2 Нед 1'!X53+'Пн День 1 Нед 1'!X53 -> 0.0000 | G53: ='Сб День 6 Нед 1'!AB53+'Пт День 5 Нед 1'!AA53+'Чт День 4 Нед 1'!V53+'Ср День 3 Нед 1'!AB53+'Вт День 2 Нед 1'!AB53+'Пн День 1 Нед 1'!AB53 -> 0.0280 | H53: ='Сб День 6 Нед 1'!AF53+'Пт День 5 Нед 1'!AE53+'Чт День 4 Нед 1'!Z53+'Ср День 3 Нед 1'!AF53+'Вт День 2 Нед 1'!AF53+'Пн День 1 Нед 1'!AF53 -> 0.0000 | I53: ='Сб День 6 Нед 1'!AL53+'Пт День 5 Нед 1'!AJ53+'Чт День 4 Нед 1'!AE53+'Ср День 3 Нед 1'!AK53+'Вт День 2 Нед 1'!AK53+'Пн День 1 Нед 1'!AL53 -> 0.0000 | J53: ='Сб День 6 Нед 1'!AR53+'Пт День 5 Нед 1'!AO53+'Чт День 4 Нед 1'!AK53+'Ср День 3 Нед 1'!AQ53+'Вт День 2 Нед 1'!AP53+'Пн День 1 Нед 1'!AR53 -> 0.0000 | K53: 0.028
A54: 43 | B54: лапша домашняя п/ф | C54: кг | D54: ='Сб День 6 Нед 1'!L54+'Пт День 5 Нед 1'!K54+'Чт День 4 Нед 1'!I54+'Ср День 3 Нед 1'!L54+'Вт День 2 Нед 1'!L54+'Пн День 1 Нед 1'!L54 -> 0.0000 | E54: ='Сб День 6 Нед 1'!U54+'Пт День 5 Нед 1'!T54+'Чт День 4 Нед 1'!O54+'Ср День 3 Нед 1'!U54+'Вт День 2 Нед 1'!U54+'Пн День 1 Нед 1'!U54 -> 0.0000 | F54: ='Сб День 6 Нед 1'!X54+'Пт День 5 Нед 1'!W54+'Чт День 4 Нед 1'!R54+'Ср День 3 Нед 1'!X54+'Вт День 2 Нед 1'!X54+'Пн День 1 Нед 1'!X54 -> 0.0000 | G54: ='Сб День 6 Нед 1'!AB54+'Пт День 5 Нед 1'!AA54+'Чт День 4 Нед 1'!V54+'Ср День 3 Нед 1'!AB54+'Вт День 2 Нед 1'!AB54+'Пн День 1 Нед 1'!AB54 -> 0.0000 | H54: ='Сб День 6 Нед 1'!AF54+'Пт День 5 Нед 1'!AE54+'Чт День 4 Нед 1'!Z54+'Ср День 3 Нед 1'!AF54+'Вт День 2 Нед 1'!AF54+'Пн День 1 Нед 1'!AF54 -> 0.0200 | I54: ='Сб День 6 Нед 1'!AL54+'Пт День 5 Нед 1'!AJ54+'Чт День 4 Нед 1'!AE54+'Ср День 3 Нед 1'!AK54+'Вт День 2 Нед 1'!AK54+'Пн День 1 Нед 1'!AL54 -> 0.0200 | J54: ='Сб День 6 Нед 1'!AR54+'Пт День 5 Нед 1'!AO54+'Чт День 4 Нед 1'!AK54+'Ср День 3 Нед 1'!AQ54+'Вт День 2 Нед 1'!AP54+'Пн День 1 Нед 1'!AR54 -> 0.0000 | K54: 0.040
A55: 44 | B55: мука пшеничная в/с | C55: кг | D55: ='Сб День 6 Нед 1'!L55+'Пт День 5 Нед 1'!K55+'Чт День 4 Нед 1'!I55+'Ср День 3 Нед 1'!L55+'Вт День 2 Нед 1'!L55+'Пн День 1 Нед 1'!L55 -> 0.0090 | E55: ='Сб День 6 Нед 1'!U55+'Пт День 5 Нед 1'!T55+'Чт День 4 Нед 1'!O55+'Ср День 3 Нед 1'!U55+'Вт День 2 Нед 1'!U55+'Пн День 1 Нед 1'!U55 -> 0.0090 | F55: ='Сб День 6 Нед 1'!X55+'Пт День 5 Нед 1'!W55+'Чт День 4 Нед 1'!R55+'Ср День 3 Нед 1'!X55+'Вт День 2 Нед 1'!X55+'Пн День 1 Нед 1'!X55 -> 0.0000 | G55: ='Сб День 6 Нед 1'!AB55+'Пт День 5 Нед 1'!AA55+'Чт День 4 Нед 1'!V55+'Ср День 3 Нед 1'!AB55+'Вт День 2 Нед 1'!AB55+'Пн День 1 Нед 1'!AB55 -> 0.0000 | H55: ='Сб День 6 Нед 1'!AF55+'Пт День 5 Нед 1'!AE55+'Чт День 4 Нед 1'!Z55+'Ср День 3 Нед 1'!AF55+'Вт День 2 Нед 1'!AF55+'Пн День 1 Нед 1'!AF55 -> 0.0000 | I55: ='Сб День 6 Нед 1'!AL55+'Пт День 5 Нед 1'!AJ55+'Чт День 4 Нед 1'!AE55+'Ср День 3 Нед 1'!AK55+'Вт День 2 Нед 1'!AK55+'Пн День 1 Нед 1'!AL55 -> 0.0090 | J55: ='Сб День 6 Нед 1'!AR55+'Пт День 5 Нед 1'!AO55+'Чт День 4 Нед 1'!AK55+'Ср День 3 Нед 1'!AQ55+'Вт День 2 Нед 1'!AP55+'Пн День 1 Нед 1'!AR55 -> 0.0000 | K55: 0.027
A56: 45 | B56: сахарный песок | C56: кг | D56: ='Сб День 6 Нед 1'!L56+'Пт День 5 Нед 1'!K56+'Чт День 4 Нед 1'!I56+'Ср День 3 Нед 1'!L56+'Вт День 2 Нед 1'!L56+'Пн День 1 Нед 1'!L56 -> 0.0624 | E56: ='Сб День 6 Нед 1'!U56+'Пт День 5 Нед 1'!T56+'Чт День 4 Нед 1'!O56+'Ср День 3 Нед 1'!U56+'Вт День 2 Нед 1'!U56+'Пн День 1 Нед 1'!U56 -> 0.0634 | F56: ='Сб День 6 Нед 1'!X56+'Пт День 5 Нед 1'!W56+'Чт День 4 Нед 1'!R56+'Ср День 3 Нед 1'!X56+'Вт День 2 Нед 1'!X56+'Пн День 1 Нед 1'!X56 -> 0.0600 | G56: ='Сб День 6 Нед 1'!AB56+'Пт День 5 Нед 1'!AA56+'Чт День 4 Нед 1'!V56+'Ср День 3 Нед 1'!AB56+'Вт День 2 Нед 1'!AB56+'Пн День 1 Нед 1'!AB56 -> 0.0623 | H56: ='Сб День 6 Нед 1'!AF56+'Пт День 5 Нед 1'!AE56+'Чт День 4 Нед 1'!Z56+'Ср День 3 Нед 1'!AF56+'Вт День 2 Нед 1'!AF56+'Пн День 1 Нед 1'!AF56 -> 0.0485 | I56: ='Сб День 6 Нед 1'!AL56+'Пт День 5 Нед 1'!AJ56+'Чт День 4 Нед 1'!AE56+'Ср День 3 Нед 1'!AK56+'Вт День 2 Нед 1'!AK56+'Пн День 1 Нед 1'!AL56 -> 0.0625 | J56: ='Сб День 6 Нед 1'!AR56+'Пт День 5 Нед 1'!AO56+'Чт День 4 Нед 1'!AK56+'Ср День 3 Нед 1'!AQ56+'Вт День 2 Нед 1'!AP56+'Пн День 1 Нед 1'!AR56 -> 0.0000 | K56: 0.359
A57: 46 | B57: соль | C57: кг | D57: ='Сб День 6 Нед 1'!L57+'Пт День 5 Нед 1'!K57+'Чт День 4 Нед 1'!I57+'Ср День 3 Нед 1'!L57+'Вт День 2 Нед 1'!L57+'Пн День 1 Нед 1'!L57 -> 0.0055 | E57: ='Сб День 6 Нед 1'!U57+'Пт День 5 Нед 1'!T57+'Чт День 4 Нед 1'!O57+'Ср День 3 Нед 1'!U57+'Вт День 2 Нед 1'!U57+'Пн День 1 Нед 1'!U57 -> 0.0061 | F57: ='Сб День 6 Нед 1'!X57+'Пт День 5 Нед 1'!W57+'Чт День 4 Нед 1'!R57+'Ср День 3 Нед 1'!X57+'Вт День 2 Нед 1'!X57+'Пн День 1 Нед 1'!X57 -> 0.0000 | G57: ='Сб День 6 Нед 1'!AB57+'Пт День 5 Нед 1'!AA57+'Чт День 4 Нед 1'!V57+'Ср День 3 Нед 1'!AB57+'Вт День 2 Нед 1'!AB57+'Пн День 1 Нед 1'!AB57 -> 0.0021 | H57: ='Сб День 6 Нед 1'!AF57+'Пт День 5 Нед 1'!AE57+'Чт День 4 Нед 1'!Z57+'Ср День 3 Нед 1'!AF57+'Вт День 2 Нед 1'!AF57+'Пн День 1 Нед 1'!AF57 -> 0.0056 | I57: ='Сб День 6 Нед 1'!AL57+'Пт День 5 Нед 1'!AJ57+'Чт День 4 Нед 1'!AE57+'Ср День 3 Нед 1'!AK57+'Вт День 2 Нед 1'!AK57+'Пн День 1 Нед 1'!AL57 -> 0.0123 | J57: ='Сб День 6 Нед 1'!AR57+'Пт День 5 Нед 1'!AO57+'Чт День 4 Нед 1'!AK57+'Ср День 3 Нед 1'!AQ57+'Вт День 2 Нед 1'!AP57+'Пн День 1 Нед 1'!AR57 -> 0.0000 | K57: 0.032
A58: 47 | B58: сухари панировочные | C58: кг | D58: ='Сб День 6 Нед 1'!L58+'Пт День 5 Нед 1'!K58+'Чт День 4 Нед 1'!I58+'Ср День 3 Нед 1'!L58+'Вт День 2 Нед 1'!L58+'Пн День 1 Нед 1'!L58 -> 0.0075 | E58: ='Сб День 6 Нед 1'!U58+'Пт День 5 Нед 1'!T58+'Чт День 4 Нед 1'!O58+'Ср День 3 Нед 1'!U58+'Вт День 2 Нед 1'!U58+'Пн День 1 Нед 1'!U58 -> 0.0075 | F58: ='Сб День 6 Нед 1'!X58+'Пт День 5 Нед 1'!W58+'Чт День 4 Нед 1'!R58+'Ср День 3 Нед 1'!X58+'Вт День 2 Нед 1'!X58+'Пн День 1 Нед 1'!X58 -> 0.0000 | G58: ='Сб День 6 Нед 1'!AB58+'Пт День 5 Нед 1'!AA58+'Чт День 4 Нед 1'!V58+'Ср День 3 Нед 1'!AB58+'Вт День 2 Нед 1'!AB58+'Пн День 1 Нед 1'!AB58 -> 0.0000 | H58: ='Сб День 6 Нед 1'!AF58+'Пт День 5 Нед 1'!AE58+'Чт День 4 Нед 1'!Z58+'Ср День 3 Нед 1'!AF58+'Вт День 2 Нед 1'!AF58+'Пн День 1 Нед 1'!AF58 -> 0.0000 | I58: ='Сб День 6 Нед 1'!AL58+'Пт День 5 Нед 1'!AJ58+'Чт День 4 Нед 1'!AE58+'Ср День 3 Нед 1'!AK58+'Вт День 2 Нед 1'!AK58+'Пн День 1 Нед 1'!AL58 -> 0.0090 | J58: ='Сб День 6 Нед 1'!AR58+'Пт День 5 Нед 1'!AO58+'Чт День 4 Нед 1'!AK58+'Ср День 3 Нед 1'!AQ58+'Вт День 2 Нед 1'!AP58+'Пн День 1 Нед 1'!AR58 -> 0.0000 | K58: 0.024
A59: 48 | B59: дрожжи сухие | C59: кг | D59: ='Сб День 6 Нед 1'!L59+'Пт День 5 Нед 1'!K59+'Чт День 4 Нед 1'!I59+'Ср День 3 Нед 1'!L59+'Вт День 2 Нед 1'!L59+'Пн День 1 Нед 1'!L59 -> 0.0000 | E59: ='Сб День 6 Нед 1'!U59+'Пт День 5 Нед 1'!T59+'Чт День 4 Нед 1'!O59+'Ср День 3 Нед 1'!U59+'Вт День 2 Нед 1'!U59+'Пн День 1 Нед 1'!U59 -> 0.0000 | F59: ='Сб День 6 Нед 1'!X59+'Пт День 5 Нед 1'!W59+'Чт День 4 Нед 1'!R59+'Ср День 3 Нед 1'!X59+'Вт День 2 Нед 1'!X59+'Пн День 1 Нед 1'!X59 -> 0.0000 | G59: ='Сб День 6 Нед 1'!AB59+'Пт День 5 Нед 1'!AA59+'Чт День 4 Нед 1'!V59+'Ср День 3 Нед 1'!AB59+'Вт День 2 Нед 1'!AB59+'Пн День 1 Нед 1'!AB59 -> 0.0000 | H59: ='Сб День 6 Нед 1'!AF59+'Пт День 5 Нед 1'!AE59+'Чт День 4 Нед 1'!Z59+'Ср День 3 Нед 1'!AF59+'Вт День 2 Нед 1'!AF59+'Пн День 1 Нед 1'!AF59 -> 0.0000 | I59: ='Сб День 6 Нед 1'!AL59+'Пт День 5 Нед 1'!AJ59+'Чт День 4 Нед 1'!AE59+'Ср День 3 Нед 1'!AK59+'Вт День 2 Нед 1'!AK59+'Пн День 1 Нед 1'!AL59 -> 0.0000 | J59: ='Сб День 6 Нед 1'!AR59+'Пт День 5 Нед 1'!AO59+'Чт День 4 Нед 1'!AK59+'Ср День 3 Нед 1'!AQ59+'Вт День 2 Нед 1'!AP59+'Пн День 1 Нед 1'!AR59 -> 0.0000 | K59: 0.000
A60: 49 | B60: хлебцы | C60: кг | D60: ='Сб День 6 Нед 1'!L60+'Пт День 5 Нед 1'!K60+'Чт День 4 Нед 1'!I60+'Ср День 3 Нед 1'!L60+'Вт День 2 Нед 1'!L60+'Пн День 1 Нед 1'!L60 -> 0.0000 | E60: ='Сб День 6 Нед 1'!U60+'Пт День 5 Нед 1'!T60+'Чт День 4 Нед 1'!O60+'Ср День 3 Нед 1'!U60+'Вт День 2 Нед 1'!U60+'Пн День 1 Нед 1'!U60 -> 0.0000 | F60: ='Сб День 6 Нед 1'!X60+'Пт День 5 Нед 1'!W60+'Чт День 4 Нед 1'!R60+'Ср День 3 Нед 1'!X60+'Вт День 2 Нед 1'!X60+'Пн День 1 Нед 1'!X60 -> 0.0000 | G60: ='Сб День 6 Нед 1'!AB60+'Пт День 5 Нед 1'!AA60+'Чт День 4 Нед 1'!V60+'Ср День 3 Нед 1'!AB60+'Вт День 2 Нед 1'!AB60+'Пн День 1 Нед 1'!AB60 -> 0.0000 | H60: ='Сб День 6 Нед 1'!AF60+'Пт День 5 Нед 1'!AE60+'Чт День 4 Нед 1'!Z60+'Ср День 3 Нед 1'!AF60+'Вт День 2 Нед 1'!AF60+'Пн День 1 Нед 1'!AF60 -> 0.0000 | I60: ='Сб День 6 Нед 1'!AL60+'Пт День 5 Нед 1'!AJ60+'Чт День 4 Нед 1'!AE60+'Ср День 3 Нед 1'!AK60+'Вт День 2 Нед 1'!AK60+'Пн День 1 Нед 1'!AL60 -> 0.0000 | J60: ='Сб День 6 Нед 1'!AR60+'Пт День 5 Нед 1'!AO60+'Чт День 4 Нед 1'!AK60+'Ср День 3 Нед 1'!AQ60+'Вт День 2 Нед 1'!AP60+'Пн День 1 Нед 1'!AR60 -> 0.0000 | K60: 0.000
B61: Консервы
A62: 50 | B62: зеленый горошек к/с | C62: кг | D62: ='Сб День 6 Нед 1'!L62+'Пт День 5 Нед 1'!K62+'Чт День 4 Нед 1'!I62+'Ср День 3 Нед 1'!L62+'Вт День 2 Нед 1'!L62+'Пн День 1 Нед 1'!L62 -> 0.0000 | E62: ='Сб День 6 Нед 1'!U62+'Пт День 5 Нед 1'!T62+'Чт День 4 Нед 1'!O62+'Ср День 3 Нед 1'!U62+'Вт День 2 Нед 1'!U62+'Пн День 1 Нед 1'!U62 -> 0.0000 | F62: ='Сб День 6 Нед 1'!X62+'Пт День 5 Нед 1'!W62+'Чт День 4 Нед 1'!R62+'Ср День 3 Нед 1'!X62+'Вт День 2 Нед 1'!X62+'Пн День 1 Нед 1'!X62 -> 0.0000 | G62: ='Сб День 6 Нед 1'!AB62+'Пт День 5 Нед 1'!AA62+'Чт День 4 Нед 1'!V62+'Ср День 3 Нед 1'!AB62+'Вт День 2 Нед 1'!AB62+'Пн День 1 Нед 1'!AB62 -> 0.0000 | H62: ='Сб День 6 Нед 1'!AF62+'Пт День 5 Нед 1'!AE62+'Чт День 4 Нед 1'!Z62+'Ср День 3 Нед 1'!AF62+'Вт День 2 Нед 1'!AF62+'Пн День 1 Нед 1'!AF62 -> 0.0000 | I62: ='Сб День 6 Нед 1'!AL62+'Пт День 5 Нед 1'!AJ62+'Чт День 4 Нед 1'!AE62+'Ср День 3 Нед 1'!AK62+'Вт День 2 Нед 1'!AK62+'Пн День 1 Нед 1'!AL62 -> 0.0000 | J62: ='Сб День 6 Нед 1'!AR62+'Пт День 5 Нед 1'!AO62+'Чт День 4 Нед 1'!AK62+'Ср День 3 Нед 1'!AQ62+'Вт День 2 Нед 1'!AP62+'Пн День 1 Нед 1'!AR62 -> 0.0000 | K62: 0.000
A63: 51 | B63: кукуруза к/с | C63: кг | D63: ='Сб День 6 Нед 1'!L63+'Пт День 5 Нед 1'!K63+'Чт День 4 Нед 1'!I63+'Ср День 3 Нед 1'!L63+'Вт День 2 Нед 1'!L63+'Пн День 1 Нед 1'!L63 -> 0.0000 | E63: ='Сб День 6 Нед 1'!U63+'Пт День 5 Нед 1'!T63+'Чт День 4 Нед 1'!O63+'Ср День 3 Нед 1'!U63+'Вт День 2 Нед 1'!U63+'Пн День 1 Нед 1'!U63 -> 0.0000 | F63: ='Сб День 6 Нед 1'!X63+'Пт День 5 Нед 1'!W63+'Чт День 4 Нед 1'!R63+'Ср День 3 Нед 1'!X63+'Вт День 2 Нед 1'!X63+'Пн День 1 Нед 1'!X63 -> 0.0000 | G63: ='Сб День 6 Нед 1'!AB63+'Пт День 5 Нед 1'!AA63+'Чт День 4 Нед 1'!V63+'Ср День 3 Нед 1'!AB63+'Вт День 2 Нед 1'!AB63+'Пн День 1 Нед 1'!AB63 -> 0.0000 | H63: ='Сб День 6 Нед 1'!AF63+'Пт День 5 Нед 1'!AE63+'Чт День 4 Нед 1'!Z63+'Ср День 3 Нед 1'!AF63+'Вт День 2 Нед 1'!AF63+'Пн День 1 Нед 1'!AF63 -> 0.0000 | I63: ='Сб День 6 Нед 1'!AL63+'Пт День 5 Нед 1'!AJ63+'Чт День 4 Нед 1'!AE63+'Ср День 3 Нед 1'!AK63+'Вт День 2 Нед 1'!AK63+'Пн День 1 Нед 1'!AL63 -> 0.0000 | J63: ='Сб День 6 Нед 1'!AR63+'Пт День 5 Нед 1'!AO63+'Чт День 4 Нед 1'!AK63+'Ср День 3 Нед 1'!AQ63+'Вт День 2 Нед 1'!AP63+'Пн День 1 Нед 1'!AR63 -> 0.0000 | K63: 0.000
A64: 52 | B64: фасоль к/с | C64: кг | D64: ='Сб День 6 Нед 1'!L64+'Пт День 5 Нед 1'!K64+'Чт День 4 Нед 1'!I64+'Ср День 3 Нед 1'!L64+'Вт День 2 Нед 1'!L64+'Пн День 1 Нед 1'!L64 -> 0.0000 | E64: ='Сб День 6 Нед 1'!U64+'Пт День 5 Нед 1'!T64+'Чт День 4 Нед 1'!O64+'Ср День 3 Нед 1'!U64+'Вт День 2 Нед 1'!U64+'Пн День 1 Нед 1'!U64 -> 0.0000 | F64: ='Сб День 6 Нед 1'!X64+'Пт День 5 Нед 1'!W64+'Чт День 4 Нед 1'!R64+'Ср День 3 Нед 1'!X64+'Вт День 2 Нед 1'!X64+'Пн День 1 Нед 1'!X64 -> 0.0000 | G64: ='Сб День 6 Нед 1'!AB64+'Пт День 5 Нед 1'!AA64+'Чт День 4 Нед 1'!V64+'Ср День 3 Нед 1'!AB64+'Вт День 2 Нед 1'!AB64+'Пн День 1 Нед 1'!AB64 -> 0.0000 | H64: ='Сб День 6 Нед 1'!AF64+'Пт День 5 Нед 1'!AE64+'Чт День 4 Нед 1'!Z64+'Ср День 3 Нед 1'!AF64+'Вт День 2 Нед 1'!AF64+'Пн День 1 Нед 1'!AF64 -> 0.0000 | I64: ='Сб День 6 Нед 1'!AL64+'Пт День 5 Нед 1'!AJ64+'Чт День 4 Нед 1'!AE64+'Ср День 3 Нед 1'!AK64+'Вт День 2 Нед 1'!AK64+'Пн День 1 Нед 1'!AL64 -> 0.0000 | J64: ='Сб День 6 Нед 1'!AR64+'Пт День 5 Нед 1'!AO64+'Чт День 4 Нед 1'!AK64+'Ср День 3 Нед 1'!AQ64+'Вт День 2 Нед 1'!AP64+'Пн День 1 Нед 1'!AR64 -> 0.0000 | K64: 0.000
A65: 53 | B65: икра кабач/икра баклаж | C65: кг | D65: ='Сб День 6 Нед 1'!L65+'Пт День 5 Нед 1'!K65+'Чт День 4 Нед 1'!I65+'Ср День 3 Нед 1'!L65+'Вт День 2 Нед 1'!L65+'Пн День 1 Нед 1'!L65 -> 0.0000 | E65: ='Сб День 6 Нед 1'!U65+'Пт День 5 Нед 1'!T65+'Чт День 4 Нед 1'!O65+'Ср День 3 Нед 1'!U65+'Вт День 2 Нед 1'!U65+'Пн День 1 Нед 1'!U65 -> 0.0000 | F65: ='Сб День 6 Нед 1'!X65+'Пт День 5 Нед 1'!W65+'Чт День 4 Нед 1'!R65+'Ср День 3 Нед 1'!X65+'Вт День 2 Нед 1'!X65+'Пн День 1 Нед 1'!X65 -> 0.0000 | G65: ='Сб День 6 Нед 1'!AB65+'Пт День 5 Нед 1'!AA65+'Чт День 4 Нед 1'!V65+'Ср День 3 Нед 1'!AB65+'Вт День 2 Нед 1'!AB65+'Пн День 1 Нед 1'!AB65 -> 0.0000 | H65: ='Сб День 6 Нед 1'!AF65+'Пт День 5 Нед 1'!AE65+'Чт День 4 Нед 1'!Z65+'Ср День 3 Нед 1'!AF65+'Вт День 2 Нед 1'!AF65+'Пн День 1 Нед 1'!AF65 -> 0.0000 | I65: ='Сб День 6 Нед 1'!AL65+'Пт День 5 Нед 1'!AJ65+'Чт День 4 Нед 1'!AE65+'Ср День 3 Нед 1'!AK65+'Вт День 2 Нед 1'!AK65+'Пн День 1 Нед 1'!AL65 -> 0.0000 | J65: ='Сб День 6 Нед 1'!AR65+'Пт День 5 Нед 1'!AO65+'Чт День 4 Нед 1'!AK65+'Ср День 3 Нед 1'!AQ65+'Вт День 2 Нед 1'!AP65+'Пн День 1 Нед 1'!AR65 -> 0.0000 | K65: 0.000
A66: 54 | B66: капуста морская сушеная | C66: кг | D66: ='Сб День 6 Нед 1'!L66+'Пт День 5 Нед 1'!K66+'Чт День 4 Нед 1'!I66+'Ср День 3 Нед 1'!L66+'Вт День 2 Нед 1'!L66+'Пн День 1 Нед 1'!L66 -> 0.0000 | E66: ='Сб День 6 Нед 1'!U66+'Пт День 5 Нед 1'!T66+'Чт День 4 Нед 1'!O66+'Ср День 3 Нед 1'!U66+'Вт День 2 Нед 1'!U66+'Пн День 1 Нед 1'!U66 -> 0.0000 | F66: ='Сб День 6 Нед 1'!X66+'Пт День 5 Нед 1'!W66+'Чт День 4 Нед 1'!R66+'Ср День 3 Нед 1'!X66+'Вт День 2 Нед 1'!X66+'Пн День 1 Нед 1'!X66 -> 0.0000 | G66: ='Сб День 6 Нед 1'!AB66+'Пт День 5 Нед 1'!AA66+'Чт День 4 Нед 1'!V66+'Ср День 3 Нед 1'!AB66+'Вт День 2 Нед 1'!AB66+'Пн День 1 Нед 1'!AB66 -> 0.0000 | H66: ='Сб День 6 Нед 1'!AF66+'Пт День 5 Нед 1'!AE66+'Чт День 4 Нед 1'!Z66+'Ср День 3 Нед 1'!AF66+'Вт День 2 Нед 1'!AF66+'Пн День 1 Нед 1'!AF66 -> 0.0000 | I66: ='Сб День 6 Нед 1'!AL66+'Пт День 5 Нед 1'!AJ66+'Чт День 4 Нед 1'!AE66+'Ср День 3 Нед 1'!AK66+'Вт День 2 Нед 1'!AK66+'Пн День 1 Нед 1'!AL66 -> 0.0000 | J66: ='Сб День 6 Нед 1'!AR66+'Пт День 5 Нед 1'!AO66+'Чт День 4 Нед 1'!AK66+'Ср День 3 Нед 1'!AQ66+'Вт День 2 Нед 1'!AP66+'Пн День 1 Нед 1'!AR66 -> 0.0000 | K66: 0.000
A67: 55 | B67: капуста квашеная | C67: кг | D67: ='Сб День 6 Нед 1'!L67+'Пт День 5 Нед 1'!K67+'Чт День 4 Нед 1'!I67+'Ср День 3 Нед 1'!L67+'Вт День 2 Нед 1'!L67+'Пн День 1 Нед 1'!L67 -> 0.0000 | E67: ='Сб День 6 Нед 1'!U67+'Пт День 5 Нед 1'!T67+'Чт День 4 Нед 1'!O67+'Ср День 3 Нед 1'!U67+'Вт День 2 Нед 1'!U67+'Пн День 1 Нед 1'!U67 -> 0.0000 | F67: ='Сб День 6 Нед 1'!X67+'Пт День 5 Нед 1'!W67+'Чт День 4 Нед 1'!R67+'Ср День 3 Нед 1'!X67+'Вт День 2 Нед 1'!X67+'Пн День 1 Нед 1'!X67 -> 0.0000 | G67: ='Сб День 6 Нед 1'!AB67+'Пт День 5 Нед 1'!AA67+'Чт День 4 Нед 1'!V67+'Ср День 3 Нед 1'!AB67+'Вт День 2 Нед 1'!AB67+'Пн День 1 Нед 1'!AB67 -> 0.0000 | H67: ='Сб День 6 Нед 1'!AF67+'Пт День 5 Нед 1'!AE67+'Чт День 4 Нед 1'!Z67+'Ср День 3 Нед 1'!AF67+'Вт День 2 Нед 1'!AF67+'Пн День 1 Нед 1'!AF67 -> 0.0000 | I67: ='Сб День 6 Нед 1'!AL67+'Пт День 5 Нед 1'!AJ67+'Чт День 4 Нед 1'!AE67+'Ср День 3 Нед 1'!AK67+'Вт День 2 Нед 1'!AK67+'Пн День 1 Нед 1'!AL67 -> 0.0000 | J67: ='Сб День 6 Нед 1'!AR67+'Пт День 5 Нед 1'!AO67+'Чт День 4 Нед 1'!AK67+'Ср День 3 Нед 1'!AQ67+'Вт День 2 Нед 1'!AP67+'Пн День 1 Нед 1'!AR67 -> 0.0000 | K67: 0.000
A68: 56 | B68: молоко сгущенное | C68: кг | D68: ='Сб День 6 Нед 1'!L68+'Пт День 5 Нед 1'!K68+'Чт День 4 Нед 1'!I68+'Ср День 3 Нед 1'!L68+'Вт День 2 Нед 1'!L68+'Пн День 1 Нед 1'!L68 -> 0.0000 | E68: ='Сб День 6 Нед 1'!U68+'Пт День 5 Нед 1'!T68+'Чт День 4 Нед 1'!O68+'Ср День 3 Нед 1'!U68+'Вт День 2 Нед 1'!U68+'Пн День 1 Нед 1'!U68 -> 0.0000 | F68: ='Сб День 6 Нед 1'!X68+'Пт День 5 Нед 1'!W68+'Чт День 4 Нед 1'!R68+'Ср День 3 Нед 1'!X68+'Вт День 2 Нед 1'!X68+'Пн День 1 Нед 1'!X68 -> 0.0000 | G68: ='Сб День 6 Нед 1'!AB68+'Пт День 5 Нед 1'!AA68+'Чт День 4 Нед 1'!V68+'Ср День 3 Нед 1'!AB68+'Вт День 2 Нед 1'!AB68+'Пн День 1 Нед 1'!AB68 -> 0.0000 | H68: ='Сб День 6 Нед 1'!AF68+'Пт День 5 Нед 1'!AE68+'Чт День 4 Нед 1'!Z68+'Ср День 3 Нед 1'!AF68+'Вт День 2 Нед 1'!AF68+'Пн День 1 Нед 1'!AF68 -> 0.0000 | I68: ='Сб День 6 Нед 1'!AL68+'Пт День 5 Нед 1'!AJ68+'Чт День 4 Нед 1'!AE68+'Ср День 3 Нед 1'!AK68+'Вт День 2 Нед 1'!AK68+'Пн День 1 Нед 1'!AL68 -> 0.0000 | J68: ='Сб День 6 Нед 1'!AR68+'Пт День 5 Нед 1'!AO68+'Чт День 4 Нед 1'!AK68+'Ср День 3 Нед 1'!AQ68+'Вт День 2 Нед 1'!AP68+'Пн День 1 Нед 1'!AR68 -> 0.0000 | K68: 0.000
A69: 57 | B69: огурцы соленые | C69: кг | D69: ='Сб День 6 Нед 1'!L69+'Пт День 5 Нед 1'!K69+'Чт День 4 Нед 1'!I69+'Ср День 3 Нед 1'!L69+'Вт День 2 Нед 1'!L69+'Пн День 1 Нед 1'!L69 -> 0.0000 | E69: ='Сб День 6 Нед 1'!U69+'Пт День 5 Нед 1'!T69+'Чт День 4 Нед 1'!O69+'Ср День 3 Нед 1'!U69+'Вт День 2 Нед 1'!U69+'Пн День 1 Нед 1'!U69 -> 0.0000 | F69: ='Сб День 6 Нед 1'!X69+'Пт День 5 Нед 1'!W69+'Чт День 4 Нед 1'!R69+'Ср День 3 Нед 1'!X69+'Вт День 2 Нед 1'!X69+'Пн День 1 Нед 1'!X69 -> 0.0000 | G69: ='Сб День 6 Нед 1'!AB69+'Пт День 5 Нед 1'!AA69+'Чт День 4 Нед 1'!V69+'Ср День 3 Нед 1'!AB69+'Вт День 2 Нед 1'!AB69+'Пн День 1 Нед 1'!AB69 -> 0.0000 | H69: ='Сб День 6 Нед 1'!AF69+'Пт День 5 Нед 1'!AE69+'Чт День 4 Нед 1'!Z69+'Ср День 3 Нед 1'!AF69+'Вт День 2 Нед 1'!AF69+'Пн День 1 Нед 1'!AF69 -> 0.0273 | I69: ='Сб День 6 Нед 1'!AL69+'Пт День 5 Нед 1'!AJ69+'Чт День 4 Нед 1'!AE69+'Ср День 3 Нед 1'!AK69+'Вт День 2 Нед 1'!AK69+'Пн День 1 Нед 1'!AL69 -> 0.0000 | J69: ='Сб День 6 Нед 1'!AR69+'Пт День 5 Нед 1'!AO69+'Чт День 4 Нед 1'!AK69+'Ср День 3 Нед 1'!AQ69+'Вт День 2 Нед 1'!AP69+'Пн День 1 Нед 1'!AR69 -> 0.0000 | K69: 0.027
A70: 58 | B70: повидло | C70: кг | D70: ='Сб День 6 Нед 1'!L70+'Пт День 5 Нед 1'!K70+'Чт День 4 Нед 1'!I70+'Ср День 3 Нед 1'!L70+'Вт День 2 Нед 1'!L70+'Пн День 1 Нед 1'!L70 -> 0.0000 | E70: ='Сб День 6 Нед 1'!U70+'Пт День 5 Нед 1'!T70+'Чт День 4 Нед 1'!O70+'Ср День 3 Нед 1'!U70+'Вт День 2 Нед 1'!U70+'Пн День 1 Нед 1'!U70 -> 0.0000 | F70: ='Сб День 6 Нед 1'!X70+'Пт День 5 Нед 1'!W70+'Чт День 4 Нед 1'!R70+'Ср День 3 Нед 1'!X70+'Вт День 2 Нед 1'!X70+'Пн День 1 Нед 1'!X70 -> 0.0000 | G70: ='Сб День 6 Нед 1'!AB70+'Пт День 5 Нед 1'!AA70+'Чт День 4 Нед 1'!V70+'Ср День 3 Нед 1'!AB70+'Вт День 2 Нед 1'!AB70+'Пн День 1 Нед 1'!AB70 -> 0.0000 | H70: ='Сб День 6 Нед 1'!AF70+'Пт День 5 Нед 1'!AE70+'Чт День 4 Нед 1'!Z70+'Ср День 3 Нед 1'!AF70+'Вт День 2 Нед 1'!AF70+'Пн День 1 Нед 1'!AF70 -> 0.0000 | I70: ='Сб День 6 Нед 1'!AL70+'Пт День 5 Нед 1'!AJ70+'Чт День 4 Нед 1'!AE70+'Ср День 3 Нед 1'!AK70+'Вт День 2 Нед 1'!AK70+'Пн День 1 Нед 1'!AL70 -> 0.0000 | J70: ='Сб День 6 Нед 1'!AR70+'Пт День 5 Нед 1'!AO70+'Чт День 4 Нед 1'!AK70+'Ср День 3 Нед 1'!AQ70+'Вт День 2 Нед 1'!AP70+'Пн День 1 Нед 1'!AR70 -> 0.0000 | K70: 0.000
A71: 59 | B71: томатная паста | C71: кг | D71: ='Сб День 6 Нед 1'!L71+'Пт День 5 Нед 1'!K71+'Чт День 4 Нед 1'!I71+'Ср День 3 Нед 1'!L71+'Вт День 2 Нед 1'!L71+'Пн День 1 Нед 1'!L71 -> 0.0048 | E71: ='Сб День 6 Нед 1'!U71+'Пт День 5 Нед 1'!T71+'Чт День 4 Нед 1'!O71+'Ср День 3 Нед 1'!U71+'Вт День 2 Нед 1'!U71+'Пн День 1 Нед 1'!U71 -> 0.0048 | F71: ='Сб День 6 Нед 1'!X71+'Пт День 5 Нед 1'!W71+'Чт День 4 Нед 1'!R71+'Ср День 3 Нед 1'!X71+'Вт День 2 Нед 1'!X71+'Пн День 1 Нед 1'!X71 -> 0.0000 | G71: ='Сб День 6 Нед 1'!AB71+'Пт День 5 Нед 1'!AA71+'Чт День 4 Нед 1'!V71+'Ср День 3 Нед 1'!AB71+'Вт День 2 Нед 1'!AB71+'Пн День 1 Нед 1'!AB71 -> 0.0000 | H71: ='Сб День 6 Нед 1'!AF71+'Пт День 5 Нед 1'!AE71+'Чт День 4 Нед 1'!Z71+'Ср День 3 Нед 1'!AF71+'Вт День 2 Нед 1'!AF71+'Пн День 1 Нед 1'!AF71 -> 0.0070 | I71: ='Сб День 6 Нед 1'!AL71+'Пт День 5 Нед 1'!AJ71+'Чт День 4 Нед 1'!AE71+'Ср День 3 Нед 1'!AK71+'Вт День 2 Нед 1'!AK71+'Пн День 1 Нед 1'!AL71 -> 0.0078 | J71: ='Сб День 6 Нед 1'!AR71+'Пт День 5 Нед 1'!AO71+'Чт День 4 Нед 1'!AK71+'Ср День 3 Нед 1'!AQ71+'Вт День 2 Нед 1'!AP71+'Пн День 1 Нед 1'!AR71 -> 0.0000 | K71: 0.024
A72: 60 | B72: рыбные консервы | C72: кг | D72: ='Сб День 6 Нед 1'!L72+'Пт День 5 Нед 1'!K72+'Чт День 4 Нед 1'!I72+'Ср День 3 Нед 1'!L72+'Вт День 2 Нед 1'!L72+'Пн День 1 Нед 1'!L72 -> 0.0000 | E72: ='Сб День 6 Нед 1'!U72+'Пт День 5 Нед 1'!T72+'Чт День 4 Нед 1'!O72+'Ср День 3 Нед 1'!U72+'Вт День 2 Нед 1'!U72+'Пн День 1 Нед 1'!U72 -> 0.0000 | F72: ='Сб День 6 Нед 1'!X72+'Пт День 5 Нед 1'!W72+'Чт День 4 Нед 1'!R72+'Ср День 3 Нед 1'!X72+'Вт День 2 Нед 1'!X72+'Пн День 1 Нед 1'!X72 -> 0.0000 | G72: ='Сб День 6 Нед 1'!AB72+'Пт День 5 Нед 1'!AA72+'Чт День 4 Нед 1'!V72+'Ср День 3 Нед 1'!AB72+'Вт День 2 Нед 1'!AB72+'Пн День 1 Нед 1'!AB72 -> 0.0000 | H72: ='Сб День 6 Нед 1'!AF72+'Пт День 5 Нед 1'!AE72+'Чт День 4 Нед 1'!Z72+'Ср День 3 Нед 1'!AF72+'Вт День 2 Нед 1'!AF72+'Пн День 1 Нед 1'!AF72 -> 0.0000 | I72: ='Сб День 6 Нед 1'!AL72+'Пт День 5 Нед 1'!AJ72+'Чт День 4 Нед 1'!AE72+'Ср День 3 Нед 1'!AK72+'Вт День 2 Нед 1'!AK72+'Пн День 1 Нед 1'!AL72 -> 0.0000 | J72: ='Сб День 6 Нед 1'!AR72+'Пт День 5 Нед 1'!AO72+'Чт День 4 Нед 1'!AK72+'Ср День 3 Нед 1'!AQ72+'Вт День 2 Нед 1'!AP72+'Пн День 1 Нед 1'!AR72 -> 0.0000 | K72: =J72+I72+H72+G72+E72+D72+F72 -> 0.000
B73: Напитки
A74: 61 | B74: чай весовой | C74: кг | D74: ='Сб День 6 Нед 1'!L74+'Пт День 5 Нед 1'!K74+'Чт День 4 Нед 1'!I74+'Ср День 3 Нед 1'!L74+'Вт День 2 Нед 1'!L74+'Пн День 1 Нед 1'!L74 -> 0.0010 | E74: ='Сб День 6 Нед 1'!U74+'Пт День 5 Нед 1'!T74+'Чт День 4 Нед 1'!O74+'Ср День 3 Нед 1'!U74+'Вт День 2 Нед 1'!U74+'Пн День 1 Нед 1'!U74 -> 0.0010 | F74: ='Сб День 6 Нед 1'!X74+'Пт День 5 Нед 1'!W74+'Чт День 4 Нед 1'!R74+'Ср День 3 Нед 1'!X74+'Вт День 2 Нед 1'!X74+'Пн День 1 Нед 1'!X74 -> 0.0025 | G74: ='Сб День 6 Нед 1'!AB74+'Пт День 5 Нед 1'!AA74+'Чт День 4 Нед 1'!V74+'Ср День 3 Нед 1'!AB74+'Вт День 2 Нед 1'!AB74+'Пн День 1 Нед 1'!AB74 -> 0.0010 | H74: ='Сб День 6 Нед 1'!AF74+'Пт День 5 Нед 1'!AE74+'Чт День 4 Нед 1'!Z74+'Ср День 3 Нед 1'!AF74+'Вт День 2 Нед 1'!AF74+'Пн День 1 Нед 1'!AF74 -> 0.0010 | I74: ='Сб День 6 Нед 1'!AL74+'Пт День 5 Нед 1'!AJ74+'Чт День 4 Нед 1'!AE74+'Ср День 3 Нед 1'!AK74+'Вт День 2 Нед 1'!AK74+'Пн День 1 Нед 1'!AL74 -> 0.0025 | J74: ='Сб День 6 Нед 1'!AR74+'Пт День 5 Нед 1'!AO74+'Чт День 4 Нед 1'!AK74+'Ср День 3 Нед 1'!AQ74+'Вт День 2 Нед 1'!AP74+'Пн День 1 Нед 1'!AR74 -> 0.0000 | K74: 0.009
A75: 62 | B75: какао | C75: кг | D75: ='Сб День 6 Нед 1'!L75+'Пт День 5 Нед 1'!K75+'Чт День 4 Нед 1'!I75+'Ср День 3 Нед 1'!L75+'Вт День 2 Нед 1'!L75+'Пн День 1 Нед 1'!L75 -> 0.0000 | E75: ='Сб День 6 Нед 1'!U75+'Пт День 5 Нед 1'!T75+'Чт День 4 Нед 1'!O75+'Ср День 3 Нед 1'!U75+'Вт День 2 Нед 1'!U75+'Пн День 1 Нед 1'!U75 -> 0.0000 | F75: ='Сб День 6 Нед 1'!X75+'Пт День 5 Нед 1'!W75+'Чт День 4 Нед 1'!R75+'Ср День 3 Нед 1'!X75+'Вт День 2 Нед 1'!X75+'Пн День 1 Нед 1'!X75 -> 0.0000 | G75: ='Сб День 6 Нед 1'!AB75+'Пт День 5 Нед 1'!AA75+'Чт День 4 Нед 1'!V75+'Ср День 3 Нед 1'!AB75+'Вт День 2 Нед 1'!AB75+'Пн День 1 Нед 1'!AB75 -> 0.0000 | H75: ='Сб День 6 Нед 1'!AF75+'Пт День 5 Нед 1'!AE75+'Чт День 4 Нед 1'!Z75+'Ср День 3 Нед 1'!AF75+'Вт День 2 Нед 1'!AF75+'Пн День 1 Нед 1'!AF75 -> 0.0000 | I75: ='Сб День 6 Нед 1'!AL75+'Пт День 5 Нед 1'!AJ75+'Чт День 4 Нед 1'!AE75+'Ср День 3 Нед 1'!AK75+'Вт День 2 Нед 1'!AK75+'Пн День 1 Нед 1'!AL75 -> 0.0000 | J75: ='Сб День 6 Нед 1'!AR75+'Пт День 5 Нед 1'!AO75+'Чт День 4 Нед 1'!AK75+'Ср День 3 Нед 1'!AQ75+'Вт День 2 Нед 1'!AP75+'Пн День 1 Нед 1'!AR75 -> 0.0000 | K75: 0.000
A76: 63 | B76: кисель | C76: кг | D76: ='Сб День 6 Нед 1'!L76+'Пт День 5 Нед 1'!K76+'Чт День 4 Нед 1'!I76+'Ср День 3 Нед 1'!L76+'Вт День 2 Нед 1'!L76+'Пн День 1 Нед 1'!L76 -> 0.0000 | E76: ='Сб День 6 Нед 1'!U76+'Пт День 5 Нед 1'!T76+'Чт День 4 Нед 1'!O76+'Ср День 3 Нед 1'!U76+'Вт День 2 Нед 1'!U76+'Пн День 1 Нед 1'!U76 -> 0.0000 | F76: ='Сб День 6 Нед 1'!X76+'Пт День 5 Нед 1'!W76+'Чт День 4 Нед 1'!R76+'Ср День 3 Нед 1'!X76+'Вт День 2 Нед 1'!X76+'Пн День 1 Нед 1'!X76 -> 0.0000 | G76: ='Сб День 6 Нед 1'!AB76+'Пт День 5 Нед 1'!AA76+'Чт День 4 Нед 1'!V76+'Ср День 3 Нед 1'!AB76+'Вт День 2 Нед 1'!AB76+'Пн День 1 Нед 1'!AB76 -> 0.0240 | H76: ='Сб День 6 Нед 1'!AF76+'Пт День 5 Нед 1'!AE76+'Чт День 4 Нед 1'!Z76+'Ср День 3 Нед 1'!AF76+'Вт День 2 Нед 1'!AF76+'Пн День 1 Нед 1'!AF76 -> 0.0000 | I76: ='Сб День 6 Нед 1'!AL76+'Пт День 5 Нед 1'!AJ76+'Чт День 4 Нед 1'!AE76+'Ср День 3 Нед 1'!AK76+'Вт День 2 Нед 1'!AK76+'Пн День 1 Нед 1'!AL76 -> 0.0240 | J76: ='Сб День 6 Нед 1'!AR76+'Пт День 5 Нед 1'!AO76+'Чт День 4 Нед 1'!AK76+'Ср День 3 Нед 1'!AQ76+'Вт День 2 Нед 1'!AP76+'Пн День 1 Нед 1'!AR76 -> 0.0000 | K76: 0.048
A77: 64 | B77: кофейный напиток | C77: кг | D77: ='Сб День 6 Нед 1'!L77+'Пт День 5 Нед 1'!K77+'Чт День 4 Нед 1'!I77+'Ср День 3 Нед 1'!L77+'Вт День 2 Нед 1'!L77+'Пн День 1 Нед 1'!L77 -> 0.0050 | E77: ='Сб День 6 Нед 1'!U77+'Пт День 5 Нед 1'!T77+'Чт День 4 Нед 1'!O77+'Ср День 3 Нед 1'!U77+'Вт День 2 Нед 1'!U77+'Пн День 1 Нед 1'!U77 -> 0.0050 | F77: ='Сб День 6 Нед 1'!X77+'Пт День 5 Нед 1'!W77+'Чт День 4 Нед 1'!R77+'Ср День 3 Нед 1'!X77+'Вт День 2 Нед 1'!X77+'Пн День 1 Нед 1'!X77 -> 0.0000 | G77: ='Сб День 6 Нед 1'!AB77+'Пт День 5 Нед 1'!AA77+'Чт День 4 Нед 1'!V77+'Ср День 3 Нед 1'!AB77+'Вт День 2 Нед 1'!AB77+'Пн День 1 Нед 1'!AB77 -> 0.0000 | H77: ='Сб День 6 Нед 1'!AF77+'Пт День 5 Нед 1'!AE77+'Чт День 4 Нед 1'!Z77+'Ср День 3 Нед 1'!AF77+'Вт День 2 Нед 1'!AF77+'Пн День 1 Нед 1'!AF77 -> 0.0000 | I77: ='Сб День 6 Нед 1'!AL77+'Пт День 5 Нед 1'!AJ77+'Чт День 4 Нед 1'!AE77+'Ср День 3 Нед 1'!AK77+'Вт День 2 Нед 1'!AK77+'Пн День 1 Нед 1'!AL77 -> 0.0000 | J77: ='Сб День 6 Нед 1'!AR77+'Пт День 5 Нед 1'!AO77+'Чт День 4 Нед 1'!AK77+'Ср День 3 Нед 1'!AQ77+'Вт День 2 Нед 1'!AP77+'Пн День 1 Нед 1'!AR77 -> 0.0000 | K77: 0.010
A78: 65 | B78: цикорий | C78: кг | D78: ='Сб День 6 Нед 1'!L78+'Пт День 5 Нед 1'!K78+'Чт День 4 Нед 1'!I78+'Ср День 3 Нед 1'!L78+'Вт День 2 Нед 1'!L78+'Пн День 1 Нед 1'!L78 -> 0.0000 | E78: ='Сб День 6 Нед 1'!U78+'Пт День 5 Нед 1'!T78+'Чт День 4 Нед 1'!O78+'Ср День 3 Нед 1'!U78+'Вт День 2 Нед 1'!U78+'Пн День 1 Нед 1'!U78 -> 0.0000 | F78: ='Сб День 6 Нед 1'!X78+'Пт День 5 Нед 1'!W78+'Чт День 4 Нед 1'!R78+'Ср День 3 Нед 1'!X78+'Вт День 2 Нед 1'!X78+'Пн День 1 Нед 1'!X78 -> 0.0000 | G78: ='Сб День 6 Нед 1'!AB78+'Пт День 5 Нед 1'!AA78+'Чт День 4 Нед 1'!V78+'Ср День 3 Нед 1'!AB78+'Вт День 2 Нед 1'!AB78+'Пн День 1 Нед 1'!AB78 -> 0.0000 | H78: ='Сб День 6 Нед 1'!AF78+'Пт День 5 Нед 1'!AE78+'Чт День 4 Нед 1'!Z78+'Ср День 3 Нед 1'!AF78+'Вт День 2 Нед 1'!AF78+'Пн День 1 Нед 1'!AF78 -> 0.0000 | I78: ='Сб День 6 Нед 1'!AL78+'Пт День 5 Нед 1'!AJ78+'Чт День 4 Нед 1'!AE78+'Ср День 3 Нед 1'!AK78+'Вт День 2 Нед 1'!AK78+'Пн День 1 Нед 1'!AL78 -> 0.0000 | J78: ='Сб День 6 Нед 1'!AR78+'Пт День 5 Нед 1'!AO78+'Чт День 4 Нед 1'!AK78+'Ср День 3 Нед 1'!AQ78+'Вт День 2 Нед 1'!AP78+'Пн День 1 Нед 1'!AR78 -> 0.0000 | K78: 0.000
B79: Сухофрукты
A80: 66 | B80: ассорти для компота (сухофрукты) | C80: кг | D80: ='Сб День 6 Нед 1'!L80+'Пт День 5 Нед 1'!K80+'Чт День 4 Нед 1'!I80+'Ср День 3 Нед 1'!L80+'Вт День 2 Нед 1'!L80+'Пн День 1 Нед 1'!L80 -> 0.0408 | E80: ='Сб День 6 Нед 1'!U80+'Пт День 5 Нед 1'!T80+'Чт День 4 Нед 1'!O80+'Ср День 3 Нед 1'!U80+'Вт День 2 Нед 1'!U80+'Пн День 1 Нед 1'!U80 -> 0.0408 | F80: ='Сб День 6 Нед 1'!X80+'Пт День 5 Нед 1'!W80+'Чт День 4 Нед 1'!R80+'Ср День 3 Нед 1'!X80+'Вт День 2 Нед 1'!X80+'Пн День 1 Нед 1'!X80 -> 0.0204 | G80: ='Сб День 6 Нед 1'!AB80+'Пт День 5 Нед 1'!AA80+'Чт День 4 Нед 1'!V80+'Ср День 3 Нед 1'!AB80+'Вт День 2 Нед 1'!AB80+'Пн День 1 Нед 1'!AB80 -> 0.0204 | H80: ='Сб День 6 Нед 1'!AF80+'Пт День 5 Нед 1'!AE80+'Чт День 4 Нед 1'!Z80+'Ср День 3 Нед 1'!AF80+'Вт День 2 Нед 1'!AF80+'Пн День 1 Нед 1'!AF80 -> 0.0204 | I80: ='Сб День 6 Нед 1'!AL80+'Пт День 5 Нед 1'!AJ80+'Чт День 4 Нед 1'!AE80+'Ср День 3 Нед 1'!AK80+'Вт День 2 Нед 1'!AK80+'Пн День 1 Нед 1'!AL80 -> 0.0200 | J80: ='Сб День 6 Нед 1'!AR80+'Пт День 5 Нед 1'!AO80+'Чт День 4 Нед 1'!AK80+'Ср День 3 Нед 1'!AQ80+'Вт День 2 Нед 1'!AP80+'Пн День 1 Нед 1'!AR80 -> 0.0000 | K80: 0.163
A81: 67 | B81: изюм | C81: кг | D81: ='Сб День 6 Нед 1'!L81+'Пт День 5 Нед 1'!K81+'Чт День 4 Нед 1'!I81+'Ср День 3 Нед 1'!L81+'Вт День 2 Нед 1'!L81+'Пн День 1 Нед 1'!L81 -> 0.0000 | E81: ='Сб День 6 Нед 1'!U81+'Пт День 5 Нед 1'!T81+'Чт День 4 Нед 1'!O81+'Ср День 3 Нед 1'!U81+'Вт День 2 Нед 1'!U81+'Пн День 1 Нед 1'!U81 -> 0.0000 | F81: ='Сб День 6 Нед 1'!X81+'Пт День 5 Нед 1'!W81+'Чт День 4 Нед 1'!R81+'Ср День 3 Нед 1'!X81+'Вт День 2 Нед 1'!X81+'Пн День 1 Нед 1'!X81 -> 0.0000 | G81: ='Сб День 6 Нед 1'!AB81+'Пт День 5 Нед 1'!AA81+'Чт День 4 Нед 1'!V81+'Ср День 3 Нед 1'!AB81+'Вт День 2 Нед 1'!AB81+'Пн День 1 Нед 1'!AB81 -> 0.0000 | H81: ='Сб День 6 Нед 1'!AF81+'Пт День 5 Нед 1'!AE81+'Чт День 4 Нед 1'!Z81+'Ср День 3 Нед 1'!AF81+'Вт День 2 Нед 1'!AF81+'Пн День 1 Нед 1'!AF81 -> 0.0102 | I81: ='Сб День 6 Нед 1'!AL81+'Пт День 5 Нед 1'!AJ81+'Чт День 4 Нед 1'!AE81+'Ср День 3 Нед 1'!AK81+'Вт День 2 Нед 1'!AK81+'Пн День 1 Нед 1'!AL81 -> 0.0102 | J81: ='Сб День 6 Нед 1'!AR81+'Пт День 5 Нед 1'!AO81+'Чт День 4 Нед 1'!AK81+'Ср День 3 Нед 1'!AQ81+'Вт День 2 Нед 1'!AP81+'Пн День 1 Нед 1'!AR81 -> 0.0000 | K81: 0.020
A82: 68 | B82: курага | C82: кг | D82: ='Сб День 6 Нед 1'!L82+'Пт День 5 Нед 1'!K82+'Чт День 4 Нед 1'!I82+'Ср День 3 Нед 1'!L82+'Вт День 2 Нед 1'!L82+'Пн День 1 Нед 1'!L82 -> 0.0000 | E82: ='Сб День 6 Нед 1'!U82+'Пт День 5 Нед 1'!T82+'Чт День 4 Нед 1'!O82+'Ср День 3 Нед 1'!U82+'Вт День 2 Нед 1'!U82+'Пн День 1 Нед 1'!U82 -> 0.0000 | F82: ='Сб День 6 Нед 1'!X82+'Пт День 5 Нед 1'!W82+'Чт День 4 Нед 1'!R82+'Ср День 3 Нед 1'!X82+'Вт День 2 Нед 1'!X82+'Пн День 1 Нед 1'!X82 -> 0.0000 | G82: ='Сб День 6 Нед 1'!AB82+'Пт День 5 Нед 1'!AA82+'Чт День 4 Нед 1'!V82+'Ср День 3 Нед 1'!AB82+'Вт День 2 Нед 1'!AB82+'Пн День 1 Нед 1'!AB82 -> 0.0000 | H82: ='Сб День 6 Нед 1'!AF82+'Пт День 5 Нед 1'!AE82+'Чт День 4 Нед 1'!Z82+'Ср День 3 Нед 1'!AF82+'Вт День 2 Нед 1'!AF82+'Пн День 1 Нед 1'!AF82 -> 0.0000 | I82: ='Сб День 6 Нед 1'!AL82+'Пт День 5 Нед 1'!AJ82+'Чт День 4 Нед 1'!AE82+'Ср День 3 Нед 1'!AK82+'Вт День 2 Нед 1'!AK82+'Пн День 1 Нед 1'!AL82 -> 0.0000 | J82: ='Сб День 6 Нед 1'!AR82+'Пт День 5 Нед 1'!AO82+'Чт День 4 Нед 1'!AK82+'Ср День 3 Нед 1'!AQ82+'Вт День 2 Нед 1'!AP82+'Пн День 1 Нед 1'!AR82 -> 0.0000 | K82: 0.000
A83: 69 | B83: урюк | C83: кг | D83: ='Сб День 6 Нед 1'!L83+'Пт День 5 Нед 1'!K83+'Чт День 4 Нед 1'!I83+'Ср День 3 Нед 1'!L83+'Вт День 2 Нед 1'!L83+'Пн День 1 Нед 1'!L83 -> 0.0000 | E83: ='Сб День 6 Нед 1'!U83+'Пт День 5 Нед 1'!T83+'Чт День 4 Нед 1'!O83+'Ср День 3 Нед 1'!U83+'Вт День 2 Нед 1'!U83+'Пн День 1 Нед 1'!U83 -> 0.0000 | F83: ='Сб День 6 Нед 1'!X83+'Пт День 5 Нед 1'!W83+'Чт День 4 Нед 1'!R83+'Ср День 3 Нед 1'!X83+'Вт День 2 Нед 1'!X83+'Пн День 1 Нед 1'!X83 -> 0.0000 | G83: ='Сб День 6 Нед 1'!AB83+'Пт День 5 Нед 1'!AA83+'Чт День 4 Нед 1'!V83+'Ср День 3 Нед 1'!AB83+'Вт День 2 Нед 1'!AB83+'Пн День 1 Нед 1'!AB83 -> 0.0204 | H83: ='Сб День 6 Нед 1'!AF83+'Пт День 5 Нед 1'!AE83+'Чт День 4 Нед 1'!Z83+'Ср День 3 Нед 1'!AF83+'Вт День 2 Нед 1'!AF83+'Пн День 1 Нед 1'!AF83 -> 0.0204 | I83: ='Сб День 6 Нед 1'!AL83+'Пт День 5 Нед 1'!AJ83+'Чт День 4 Нед 1'!AE83+'Ср День 3 Нед 1'!AK83+'Вт День 2 Нед 1'!AK83+'Пн День 1 Нед 1'!AL83 -> 0.0102 | J83: ='Сб День 6 Нед 1'!AR83+'Пт День 5 Нед 1'!AO83+'Чт День 4 Нед 1'!AK83+'Ср День 3 Нед 1'!AQ83+'Вт День 2 Нед 1'!AP83+'Пн День 1 Нед 1'!AR83 -> 0.0000 | K83: 0.051
A84: 70 | B84: шиповник | C84: кг | D84: ='Сб День 6 Нед 1'!L84+'Пт День 5 Нед 1'!K84+'Чт День 4 Нед 1'!I84+'Ср День 3 Нед 1'!L84+'Вт День 2 Нед 1'!L84+'Пн День 1 Нед 1'!L84 -> 0.0000 | E84: ='Сб День 6 Нед 1'!U84+'Пт День 5 Нед 1'!T84+'Чт День 4 Нед 1'!O84+'Ср День 3 Нед 1'!U84+'Вт День 2 Нед 1'!U84+'Пн День 1 Нед 1'!U84 -> 0.0000 | F84: ='Сб День 6 Нед 1'!X84+'Пт День 5 Нед 1'!W84+'Чт День 4 Нед 1'!R84+'Ср День 3 Нед 1'!X84+'Вт День 2 Нед 1'!X84+'Пн День 1 Нед 1'!X84 -> 0.0000 | G84: ='Сб День 6 Нед 1'!AB84+'Пт День 5 Нед 1'!AA84+'Чт День 4 Нед 1'!V84+'Ср День 3 Нед 1'!AB84+'Вт День 2 Нед 1'!AB84+'Пн День 1 Нед 1'!AB84 -> 0.0153 | H84: ='Сб День 6 Нед 1'!AF84+'Пт День 5 Нед 1'!AE84+'Чт День 4 Нед 1'!Z84+'Ср День 3 Нед 1'!AF84+'Вт День 2 Нед 1'!AF84+'Пн День 1 Нед 1'!AF84 -> 0.0153 | I84: ='Сб День 6 Нед 1'!AL84+'Пт День 5 Нед 1'!AJ84+'Чт День 4 Нед 1'!AE84+'Ср День 3 Нед 1'!AK84+'Вт День 2 Нед 1'!AK84+'Пн День 1 Нед 1'!AL84 -> 0.0000 | J84: ='Сб День 6 Нед 1'!AR84+'Пт День 5 Нед 1'!AO84+'Чт День 4 Нед 1'!AK84+'Ср День 3 Нед 1'!AQ84+'Вт День 2 Нед 1'!AP84+'Пн День 1 Нед 1'!AR84 -> 0.0000 | K84: 0.031
A85: 71 | B85: компотная смесь с/м | C85: кг | D85: ='Сб День 6 Нед 1'!L85+'Пт День 5 Нед 1'!K85+'Чт День 4 Нед 1'!I85+'Ср День 3 Нед 1'!L85+'Вт День 2 Нед 1'!L85+'Пн День 1 Нед 1'!L85 -> 0.0000 | E85: ='Сб День 6 Нед 1'!U85+'Пт День 5 Нед 1'!T85+'Чт День 4 Нед 1'!O85+'Ср День 3 Нед 1'!U85+'Вт День 2 Нед 1'!U85+'Пн День 1 Нед 1'!U85 -> 0.0000 | F85: ='Сб День 6 Нед 1'!X85+'Пт День 5 Нед 1'!W85+'Чт День 4 Нед 1'!R85+'Ср День 3 Нед 1'!X85+'Вт День 2 Нед 1'!X85+'Пн День 1 Нед 1'!X85 -> 0.0000 | G85: ='Сб День 6 Нед 1'!AB85+'Пт День 5 Нед 1'!AA85+'Чт День 4 Нед 1'!V85+'Ср День 3 Нед 1'!AB85+'Вт День 2 Нед 1'!AB85+'Пн День 1 Нед 1'!AB85 -> 0.0000 | H85: ='Сб День 6 Нед 1'!AF85+'Пт День 5 Нед 1'!AE85+'Чт День 4 Нед 1'!Z85+'Ср День 3 Нед 1'!AF85+'Вт День 2 Нед 1'!AF85+'Пн День 1 Нед 1'!AF85 -> 0.0000 | I85: ='Сб День 6 Нед 1'!AL85+'Пт День 5 Нед 1'!AJ85+'Чт День 4 Нед 1'!AE85+'Ср День 3 Нед 1'!AK85+'Вт День 2 Нед 1'!AK85+'Пн День 1 Нед 1'!AL85 -> 0.0000 | J85: ='Сб День 6 Нед 1'!AR85+'Пт День 5 Нед 1'!AO85+'Чт День 4 Нед 1'!AK85+'Ср День 3 Нед 1'!AQ85+'Вт День 2 Нед 1'!AP85+'Пн День 1 Нед 1'!AR85 -> 0.0000 | K85: 0.000
A86: 72 | B86: вишня с/м | C86: кг | D86: ='Сб День 6 Нед 1'!L86+'Пт День 5 Нед 1'!K86+'Чт День 4 Нед 1'!I86+'Ср День 3 Нед 1'!L86+'Вт День 2 Нед 1'!L86+'Пн День 1 Нед 1'!L86 -> 0.0000 | E86: ='Сб День 6 Нед 1'!U86+'Пт День 5 Нед 1'!T86+'Чт День 4 Нед 1'!O86+'Ср День 3 Нед 1'!U86+'Вт День 2 Нед 1'!U86+'Пн День 1 Нед 1'!U86 -> 0.0000 | F86: ='Сб День 6 Нед 1'!X86+'Пт День 5 Нед 1'!W86+'Чт День 4 Нед 1'!R86+'Ср День 3 Нед 1'!X86+'Вт День 2 Нед 1'!X86+'Пн День 1 Нед 1'!X86 -> 0.0000 | G86: ='Сб День 6 Нед 1'!AB86+'Пт День 5 Нед 1'!AA86+'Чт День 4 Нед 1'!V86+'Ср День 3 Нед 1'!AB86+'Вт День 2 Нед 1'!AB86+'Пн День 1 Нед 1'!AB86 -> 0.0000 | H86: ='Сб День 6 Нед 1'!AF86+'Пт День 5 Нед 1'!AE86+'Чт День 4 Нед 1'!Z86+'Ср День 3 Нед 1'!AF86+'Вт День 2 Нед 1'!AF86+'Пн День 1 Нед 1'!AF86 -> 0.0000 | I86: ='Сб День 6 Нед 1'!AL86+'Пт День 5 Нед 1'!AJ86+'Чт День 4 Нед 1'!AE86+'Ср День 3 Нед 1'!AK86+'Вт День 2 Нед 1'!AK86+'Пн День 1 Нед 1'!AL86 -> 0.0000 | J86: ='Сб День 6 Нед 1'!AR86+'Пт День 5 Нед 1'!AO86+'Чт День 4 Нед 1'!AK86+'Ср День 3 Нед 1'!AQ86+'Вт День 2 Нед 1'!AP86+'Пн День 1 Нед 1'!AR86 -> 0.0000 | K86: 0.000
A87: 73 | B87: клюква с/м | C87: кг | D87: ='Сб День 6 Нед 1'!L87+'Пт День 5 Нед 1'!K87+'Чт День 4 Нед 1'!I87+'Ср День 3 Нед 1'!L87+'Вт День 2 Нед 1'!L87+'Пн День 1 Нед 1'!L87 -> 0.0000 | E87: ='Сб День 6 Нед 1'!U87+'Пт День 5 Нед 1'!T87+'Чт День 4 Нед 1'!O87+'Ср День 3 Нед 1'!U87+'Вт День 2 Нед 1'!U87+'Пн День 1 Нед 1'!U87 -> 0.0000 | F87: ='Сб День 6 Нед 1'!X87+'Пт День 5 Нед 1'!W87+'Чт День 4 Нед 1'!R87+'Ср День 3 Нед 1'!X87+'Вт День 2 Нед 1'!X87+'Пн День 1 Нед 1'!X87 -> 0.0000 | G87: ='Сб День 6 Нед 1'!AB87+'Пт День 5 Нед 1'!AA87+'Чт День 4 Нед 1'!V87+'Ср День 3 Нед 1'!AB87+'Вт День 2 Нед 1'!AB87+'Пн День 1 Нед 1'!AB87 -> 0.0000 | H87: ='Сб День 6 Нед 1'!AF87+'Пт День 5 Нед 1'!AE87+'Чт День 4 Нед 1'!Z87+'Ср День 3 Нед 1'!AF87+'Вт День 2 Нед 1'!AF87+'Пн День 1 Нед 1'!AF87 -> 0.0000 | I87: ='Сб День 6 Нед 1'!AL87+'Пт День 5 Нед 1'!AJ87+'Чт День 4 Нед 1'!AE87+'Ср День 3 Нед 1'!AK87+'Вт День 2 Нед 1'!AK87+'Пн День 1 Нед 1'!AL87 -> 0.0000 | J87: ='Сб День 6 Нед 1'!AR87+'Пт День 5 Нед 1'!AO87+'Чт День 4 Нед 1'!AK87+'Ср День 3 Нед 1'!AQ87+'Вт День 2 Нед 1'!AP87+'Пн День 1 Нед 1'!AR87 -> 0.0000 | K87: 0.000
A88: 74 | B88: смородина в ассорт с/м | C88: кг | D88: ='Сб День 6 Нед 1'!L88+'Пт День 5 Нед 1'!K88+'Чт День 4 Нед 1'!I88+'Ср День 3 Нед 1'!L88+'Вт День 2 Нед 1'!L88+'Пн День 1 Нед 1'!L88 -> 0.0000 | E88: ='Сб День 6 Нед 1'!U88+'Пт День 5 Нед 1'!T88+'Чт День 4 Нед 1'!O88+'Ср День 3 Нед 1'!U88+'Вт День 2 Нед 1'!U88+'Пн День 1 Нед 1'!U88 -> 0.0000 | F88: ='Сб День 6 Нед 1'!X88+'Пт День 5 Нед 1'!W88+'Чт День 4 Нед 1'!R88+'Ср День 3 Нед 1'!X88+'Вт День 2 Нед 1'!X88+'Пн День 1 Нед 1'!X88 -> 0.0000 | G88: ='Сб День 6 Нед 1'!AB88+'Пт День 5 Нед 1'!AA88+'Чт День 4 Нед 1'!V88+'Ср День 3 Нед 1'!AB88+'Вт День 2 Нед 1'!AB88+'Пн День 1 Нед 1'!AB88 -> 0.0000 | H88: ='Сб День 6 Нед 1'!AF88+'Пт День 5 Нед 1'!AE88+'Чт День 4 Нед 1'!Z88+'Ср День 3 Нед 1'!AF88+'Вт День 2 Нед 1'!AF88+'Пн День 1 Нед 1'!AF88 -> 0.0000 | I88: ='Сб День 6 Нед 1'!AL88+'Пт День 5 Нед 1'!AJ88+'Чт День 4 Нед 1'!AE88+'Ср День 3 Нед 1'!AK88+'Вт День 2 Нед 1'!AK88+'Пн День 1 Нед 1'!AL88 -> 0.0000 | J88: ='Сб День 6 Нед 1'!AR88+'Пт День 5 Нед 1'!AO88+'Чт День 4 Нед 1'!AK88+'Ср День 3 Нед 1'!AQ88+'Вт День 2 Нед 1'!AP88+'Пн День 1 Нед 1'!AR88 -> 0.0000 | K88: 0.000
A89: 75 | B89: облепиха с/м | C89: кг | D89: ='Сб День 6 Нед 1'!L89+'Пт День 5 Нед 1'!K89+'Чт День 4 Нед 1'!I89+'Ср День 3 Нед 1'!L89+'Вт День 2 Нед 1'!L89+'Пн День 1 Нед 1'!L89 -> 0.0000 | E89: ='Сб День 6 Нед 1'!U89+'Пт День 5 Нед 1'!T89+'Чт День 4 Нед 1'!O89+'Ср День 3 Нед 1'!U89+'Вт День 2 Нед 1'!U89+'Пн День 1 Нед 1'!U89 -> 0.0000 | F89: ='Сб День 6 Нед 1'!X89+'Пт День 5 Нед 1'!W89+'Чт День 4 Нед 1'!R89+'Ср День 3 Нед 1'!X89+'Вт День 2 Нед 1'!X89+'Пн День 1 Нед 1'!X89 -> 0.0000 | G89: ='Сб День 6 Нед 1'!AB89+'Пт День 5 Нед 1'!AA89+'Чт День 4 Нед 1'!V89+'Ср День 3 Нед 1'!AB89+'Вт День 2 Нед 1'!AB89+'Пн День 1 Нед 1'!AB89 -> 0.0000 | H89: ='Сб День 6 Нед 1'!AF89+'Пт День 5 Нед 1'!AE89+'Чт День 4 Нед 1'!Z89+'Ср День 3 Нед 1'!AF89+'Вт День 2 Нед 1'!AF89+'Пн День 1 Нед 1'!AF89 -> 0.0000 | I89: ='Сб День 6 Нед 1'!AL89+'Пт День 5 Нед 1'!AJ89+'Чт День 4 Нед 1'!AE89+'Ср День 3 Нед 1'!AK89+'Вт День 2 Нед 1'!AK89+'Пн День 1 Нед 1'!AL89 -> 0.0000 | J89: ='Сб День 6 Нед 1'!AR89+'Пт День 5 Нед 1'!AO89+'Чт День 4 Нед 1'!AK89+'Ср День 3 Нед 1'!AQ89+'Вт День 2 Нед 1'!AP89+'Пн День 1 Нед 1'!AR89 -> 0.0000 | K89: 0.000
B90: Сок
A91: 76 | B91: сок 0,125л или 0,2л | C91: л | D91: ='Сб День 6 Нед 1'!L91+'Пт День 5 Нед 1'!K91+'Чт День 4 Нед 1'!I91+'Ср День 3 Нед 1'!L91+'Вт День 2 Нед 1'!L91+'Пн День 1 Нед 1'!L91 -> 0.0000 | E91: ='Сб День 6 Нед 1'!U91+'Пт День 5 Нед 1'!T91+'Чт День 4 Нед 1'!O91+'Ср День 3 Нед 1'!U91+'Вт День 2 Нед 1'!U91+'Пн День 1 Нед 1'!U91 -> 0.0000 | F91: ='Сб День 6 Нед 1'!X91+'Пт День 5 Нед 1'!W91+'Чт День 4 Нед 1'!R91+'Ср День 3 Нед 1'!X91+'Вт День 2 Нед 1'!X91+'Пн День 1 Нед 1'!X91 -> 0.0000 | G91: ='Сб День 6 Нед 1'!AB91+'Пт День 5 Нед 1'!AA91+'Чт День 4 Нед 1'!V91+'Ср День 3 Нед 1'!AB91+'Вт День 2 Нед 1'!AB91+'Пн День 1 Нед 1'!AB91 -> 0.0000 | H91: ='Сб День 6 Нед 1'!AF91+'Пт День 5 Нед 1'!AE91+'Чт День 4 Нед 1'!Z91+'Ср День 3 Нед 1'!AF91+'Вт День 2 Нед 1'!AF91+'Пн День 1 Нед 1'!AF91 -> 0.0000 | I91: ='Сб День 6 Нед 1'!AL91+'Пт День 5 Нед 1'!AJ91+'Чт День 4 Нед 1'!AE91+'Ср День 3 Нед 1'!AK91+'Вт День 2 Нед 1'!AK91+'Пн День 1 Нед 1'!AL91 -> 0.0000 | J91: ='Сб День 6 Нед 1'!AR91+'Пт День 5 Нед 1'!AO91+'Чт День 4 Нед 1'!AK91+'Ср День 3 Нед 1'!AQ91+'Вт День 2 Нед 1'!AP91+'Пн День 1 Нед 1'!AR91 -> 0.0000 | K91: 0.000
A92: 77 | B92: нектар плодовый | C92: л | D92: ='Сб День 6 Нед 1'!L92+'Пт День 5 Нед 1'!K92+'Чт День 4 Нед 1'!I92+'Ср День 3 Нед 1'!L92+'Вт День 2 Нед 1'!L92+'Пн День 1 Нед 1'!L92 -> 0.0000 | E92: ='Сб День 6 Нед 1'!U92+'Пт День 5 Нед 1'!T92+'Чт День 4 Нед 1'!O92+'Ср День 3 Нед 1'!U92+'Вт День 2 Нед 1'!U92+'Пн День 1 Нед 1'!U92 -> 0.0000 | F92: ='Сб День 6 Нед 1'!X92+'Пт День 5 Нед 1'!W92+'Чт День 4 Нед 1'!R92+'Ср День 3 Нед 1'!X92+'Вт День 2 Нед 1'!X92+'Пн День 1 Нед 1'!X92 -> 0.0000 | G92: ='Сб День 6 Нед 1'!AB92+'Пт День 5 Нед 1'!AA92+'Чт День 4 Нед 1'!V92+'Ср День 3 Нед 1'!AB92+'Вт День 2 Нед 1'!AB92+'Пн День 1 Нед 1'!AB92 -> 0.0000 | H92: ='Сб День 6 Нед 1'!AF92+'Пт День 5 Нед 1'!AE92+'Чт День 4 Нед 1'!Z92+'Ср День 3 Нед 1'!AF92+'Вт День 2 Нед 1'!AF92+'Пн День 1 Нед 1'!AF92 -> 0.0000 | I92: ='Сб День 6 Нед 1'!AL92+'Пт День 5 Нед 1'!AJ92+'Чт День 4 Нед 1'!AE92+'Ср День 3 Нед 1'!AK92+'Вт День 2 Нед 1'!AK92+'Пн День 1 Нед 1'!AL92 -> 0.0000 | J92: ='Сб День 6 Нед 1'!AR92+'Пт День 5 Нед 1'!AO92+'Чт День 4 Нед 1'!AK92+'Ср День 3 Нед 1'!AQ92+'Вт День 2 Нед 1'!AP92+'Пн День 1 Нед 1'!AR92 -> 0.0000 | K92: 0.000
B93: Кондитерка
A94: 78 | B94: батончик злаковый | C94: шт | D94: ='Сб День 6 Нед 1'!L94+'Пт День 5 Нед 1'!K94+'Чт День 4 Нед 1'!I94+'Ср День 3 Нед 1'!L94+'Вт День 2 Нед 1'!L94+'Пн День 1 Нед 1'!L94 -> 0.0000 | E94: ='Сб День 6 Нед 1'!U94+'Пт День 5 Нед 1'!T94+'Чт День 4 Нед 1'!O94+'Ср День 3 Нед 1'!U94+'Вт День 2 Нед 1'!U94+'Пн День 1 Нед 1'!U94 -> 0.0000 | F94: ='Сб День 6 Нед 1'!X94+'Пт День 5 Нед 1'!W94+'Чт День 4 Нед 1'!R94+'Ср День 3 Нед 1'!X94+'Вт День 2 Нед 1'!X94+'Пн День 1 Нед 1'!X94 -> 0.0000 | G94: ='Сб День 6 Нед 1'!AB94+'Пт День 5 Нед 1'!AA94+'Чт День 4 Нед 1'!V94+'Ср День 3 Нед 1'!AB94+'Вт День 2 Нед 1'!AB94+'Пн День 1 Нед 1'!AB94 -> 0.0000 | H94: ='Сб День 6 Нед 1'!AF94+'Пт День 5 Нед 1'!AE94+'Чт День 4 Нед 1'!Z94+'Ср День 3 Нед 1'!AF94+'Вт День 2 Нед 1'!AF94+'Пн День 1 Нед 1'!AF94 -> 0.0000 | I94: ='Сб День 6 Нед 1'!AL94+'Пт День 5 Нед 1'!AJ94+'Чт День 4 Нед 1'!AE94+'Ср День 3 Нед 1'!AK94+'Вт День 2 Нед 1'!AK94+'Пн День 1 Нед 1'!AL94 -> 0.0000 | J94: ='Сб День 6 Нед 1'!AR94+'Пт День 5 Нед 1'!AO94+'Чт День 4 Нед 1'!AK94+'Ср День 3 Нед 1'!AQ94+'Вт День 2 Нед 1'!AP94+'Пн День 1 Нед 1'!AR94 -> 0.0000 | K94: 0.000
A95: 79 | B95: пряник | C95: кг | D95: ='Сб День 6 Нед 1'!L95+'Пт День 5 Нед 1'!K95+'Чт День 4 Нед 1'!I95+'Ср День 3 Нед 1'!L95+'Вт День 2 Нед 1'!L95+'Пн День 1 Нед 1'!L95 -> 0.0000 | E95: ='Сб День 6 Нед 1'!U95+'Пт День 5 Нед 1'!T95+'Чт День 4 Нед 1'!O95+'Ср День 3 Нед 1'!U95+'Вт День 2 Нед 1'!U95+'Пн День 1 Нед 1'!U95 -> 0.0000 | F95: ='Сб День 6 Нед 1'!X95+'Пт День 5 Нед 1'!W95+'Чт День 4 Нед 1'!R95+'Ср День 3 Нед 1'!X95+'Вт День 2 Нед 1'!X95+'Пн День 1 Нед 1'!X95 -> 0.0700 | G95: ='Сб День 6 Нед 1'!AB95+'Пт День 5 Нед 1'!AA95+'Чт День 4 Нед 1'!V95+'Ср День 3 Нед 1'!AB95+'Вт День 2 Нед 1'!AB95+'Пн День 1 Нед 1'!AB95 -> 0.0000 | H95: ='Сб День 6 Нед 1'!AF95+'Пт День 5 Нед 1'!AE95+'Чт День 4 Нед 1'!Z95+'Ср День 3 Нед 1'!AF95+'Вт День 2 Нед 1'!AF95+'Пн День 1 Нед 1'!AF95 -> 0.0000 | I95: ='Сб День 6 Нед 1'!AL95+'Пт День 5 Нед 1'!AJ95+'Чт День 4 Нед 1'!AE95+'Ср День 3 Нед 1'!AK95+'Вт День 2 Нед 1'!AK95+'Пн День 1 Нед 1'!AL95 -> 0.0000 | J95: ='Сб День 6 Нед 1'!AR95+'Пт День 5 Нед 1'!AO95+'Чт День 4 Нед 1'!AK95+'Ср День 3 Нед 1'!AQ95+'Вт День 2 Нед 1'!AP95+'Пн День 1 Нед 1'!AR95 -> 0.0000 | K95: 0.070
A96: 80 | B96: вафли | C96: кг | D96: ='Сб День 6 Нед 1'!L96+'Пт День 5 Нед 1'!K96+'Чт День 4 Нед 1'!I96+'Ср День 3 Нед 1'!L96+'Вт День 2 Нед 1'!L96+'Пн День 1 Нед 1'!L96 -> 0.0000 | E96: ='Сб День 6 Нед 1'!U96+'Пт День 5 Нед 1'!T96+'Чт День 4 Нед 1'!O96+'Ср День 3 Нед 1'!U96+'Вт День 2 Нед 1'!U96+'Пн День 1 Нед 1'!U96 -> 0.0000 | F96: ='Сб День 6 Нед 1'!X96+'Пт День 5 Нед 1'!W96+'Чт День 4 Нед 1'!R96+'Ср День 3 Нед 1'!X96+'Вт День 2 Нед 1'!X96+'Пн День 1 Нед 1'!X96 -> 0.0200 | G96: ='Сб День 6 Нед 1'!AB96+'Пт День 5 Нед 1'!AA96+'Чт День 4 Нед 1'!V96+'Ср День 3 Нед 1'!AB96+'Вт День 2 Нед 1'!AB96+'Пн День 1 Нед 1'!AB96 -> 0.0000 | H96: ='Сб День 6 Нед 1'!AF96+'Пт День 5 Нед 1'!AE96+'Чт День 4 Нед 1'!Z96+'Ср День 3 Нед 1'!AF96+'Вт День 2 Нед 1'!AF96+'Пн День 1 Нед 1'!AF96 -> 0.0000 | I96: ='Сб День 6 Нед 1'!AL96+'Пт День 5 Нед 1'!AJ96+'Чт День 4 Нед 1'!AE96+'Ср День 3 Нед 1'!AK96+'Вт День 2 Нед 1'!AK96+'Пн День 1 Нед 1'!AL96 -> 0.0000 | J96: ='Сб День 6 Нед 1'!AR96+'Пт День 5 Нед 1'!AO96+'Чт День 4 Нед 1'!AK96+'Ср День 3 Нед 1'!AQ96+'Вт День 2 Нед 1'!AP96+'Пн День 1 Нед 1'!AR96 -> 0.0000 | K96: 0.020
A97: 81 | B97: печенье | C97: кг | D97: ='Сб День 6 Нед 1'!L97+'Пт День 5 Нед 1'!K97+'Чт День 4 Нед 1'!I97+'Ср День 3 Нед 1'!L97+'Вт День 2 Нед 1'!L97+'Пн День 1 Нед 1'!L97 -> 0.0000 | E97: ='Сб День 6 Нед 1'!U97+'Пт День 5 Нед 1'!T97+'Чт День 4 Нед 1'!O97+'Ср День 3 Нед 1'!U97+'Вт День 2 Нед 1'!U97+'Пн День 1 Нед 1'!U97 -> 0.0000 | F97: ='Сб День 6 Нед 1'!X97+'Пт День 5 Нед 1'!W97+'Чт День 4 Нед 1'!R97+'Ср День 3 Нед 1'!X97+'Вт День 2 Нед 1'!X97+'Пн День 1 Нед 1'!X97 -> 0.0200 | G97: ='Сб День 6 Нед 1'!AB97+'Пт День 5 Нед 1'!AA97+'Чт День 4 Нед 1'!V97+'Ср День 3 Нед 1'!AB97+'Вт День 2 Нед 1'!AB97+'Пн День 1 Нед 1'!AB97 -> 0.0000 | H97: ='Сб День 6 Нед 1'!AF97+'Пт День 5 Нед 1'!AE97+'Чт День 4 Нед 1'!Z97+'Ср День 3 Нед 1'!AF97+'Вт День 2 Нед 1'!AF97+'Пн День 1 Нед 1'!AF97 -> 0.0000 | I97: ='Сб День 6 Нед 1'!AL97+'Пт День 5 Нед 1'!AJ97+'Чт День 4 Нед 1'!AE97+'Ср День 3 Нед 1'!AK97+'Вт День 2 Нед 1'!AK97+'Пн День 1 Нед 1'!AL97 -> 0.0000 | J97: ='Сб День 6 Нед 1'!AR97+'Пт День 5 Нед 1'!AO97+'Чт День 4 Нед 1'!AK97+'Ср День 3 Нед 1'!AQ97+'Вт День 2 Нед 1'!AP97+'Пн День 1 Нед 1'!AR97 -> 0.0000 | K97: 0.020
A98: 82 | B98: крекер | C98: кг | D98: ='Сб День 6 Нед 1'!L98+'Пт День 5 Нед 1'!K98+'Чт День 4 Нед 1'!I98+'Ср День 3 Нед 1'!L98+'Вт День 2 Нед 1'!L98+'Пн День 1 Нед 1'!L98 -> 0.0000 | E98: ='Сб День 6 Нед 1'!U98+'Пт День 5 Нед 1'!T98+'Чт День 4 Нед 1'!O98+'Ср День 3 Нед 1'!U98+'Вт День 2 Нед 1'!U98+'Пн День 1 Нед 1'!U98 -> 0.0000 | F98: ='Сб День 6 Нед 1'!X98+'Пт День 5 Нед 1'!W98+'Чт День 4 Нед 1'!R98+'Ср День 3 Нед 1'!X98+'Вт День 2 Нед 1'!X98+'Пн День 1 Нед 1'!X98 -> 0.0300 | G98: ='Сб День 6 Нед 1'!AB98+'Пт День 5 Нед 1'!AA98+'Чт День 4 Нед 1'!V98+'Ср День 3 Нед 1'!AB98+'Вт День 2 Нед 1'!AB98+'Пн День 1 Нед 1'!AB98 -> 0.0000 | H98: ='Сб День 6 Нед 1'!AF98+'Пт День 5 Нед 1'!AE98+'Чт День 4 Нед 1'!Z98+'Ср День 3 Нед 1'!AF98+'Вт День 2 Нед 1'!AF98+'Пн День 1 Нед 1'!AF98 -> 0.0000 | I98: ='Сб День 6 Нед 1'!AL98+'Пт День 5 Нед 1'!AJ98+'Чт День 4 Нед 1'!AE98+'Ср День 3 Нед 1'!AK98+'Вт День 2 Нед 1'!AK98+'Пн День 1 Нед 1'!AL98 -> 0.0000 | J98: ='Сб День 6 Нед 1'!AR98+'Пт День 5 Нед 1'!AO98+'Чт День 4 Нед 1'!AK98+'Ср День 3 Нед 1'!AQ98+'Вт День 2 Нед 1'!AP98+'Пн День 1 Нед 1'!AR98 -> 0.0000 | K98: 0.030
A99: 83 | B99: сушки | C99: кг | D99: ='Сб День 6 Нед 1'!L99+'Пт День 5 Нед 1'!K99+'Чт День 4 Нед 1'!I99+'Ср День 3 Нед 1'!L99+'Вт День 2 Нед 1'!L99+'Пн День 1 Нед 1'!L99 -> 0.0000 | E99: ='Сб День 6 Нед 1'!U99+'Пт День 5 Нед 1'!T99+'Чт День 4 Нед 1'!O99+'Ср День 3 Нед 1'!U99+'Вт День 2 Нед 1'!U99+'Пн День 1 Нед 1'!U99 -> 0.0000 | F99: ='Сб День 6 Нед 1'!X99+'Пт День 5 Нед 1'!W99+'Чт День 4 Нед 1'!R99+'Ср День 3 Нед 1'!X99+'Вт День 2 Нед 1'!X99+'Пн День 1 Нед 1'!X99 -> 0.0300 | G99: ='Сб День 6 Нед 1'!AB99+'Пт День 5 Нед 1'!AA99+'Чт День 4 Нед 1'!V99+'Ср День 3 Нед 1'!AB99+'Вт День 2 Нед 1'!AB99+'Пн День 1 Нед 1'!AB99 -> 0.0000 | H99: ='Сб День 6 Нед 1'!AF99+'Пт День 5 Нед 1'!AE99+'Чт День 4 Нед 1'!Z99+'Ср День 3 Нед 1'!AF99+'Вт День 2 Нед 1'!AF99+'Пн День 1 Нед 1'!AF99 -> 0.0000 | I99: ='Сб День 6 Нед 1'!AL99+'Пт День 5 Нед 1'!AJ99+'Чт День 4 Нед 1'!AE99+'Ср День 3 Нед 1'!AK99+'Вт День 2 Нед 1'!AK99+'Пн День 1 Нед 1'!AL99 -> 0.0000 | J99: ='Сб День 6 Нед 1'!AR99+'Пт День 5 Нед 1'!AO99+'Чт День 4 Нед 1'!AK99+'Ср День 3 Нед 1'!AQ99+'Вт День 2 Нед 1'!AP99+'Пн День 1 Нед 1'!AR99 -> 0.0000 | K99: 0.030
A100: 84 | B100: мармелад | C100: кг | D100: ='Сб День 6 Нед 1'!L100+'Пт День 5 Нед 1'!K100+'Чт День 4 Нед 1'!I100+'Ср День 3 Нед 1'!L100+'Вт День 2 Нед 1'!L100+'Пн День 1 Нед 1'!L100 -> 0.0000 | E100: ='Сб День 6 Нед 1'!U100+'Пт День 5 Нед 1'!T100+'Чт День 4 Нед 1'!O100+'Ср День 3 Нед 1'!U100+'Вт День 2 Нед 1'!U100+'Пн День 1 Нед 1'!U100 -> 0.0000 | F100: ='Сб День 6 Нед 1'!X100+'Пт День 5 Нед 1'!W100+'Чт День 4 Нед 1'!R100+'Ср День 3 Нед 1'!X100+'Вт День 2 Нед 1'!X100+'Пн День 1 Нед 1'!X100 -> 0.0000 | G100: ='Сб День 6 Нед 1'!AB100+'Пт День 5 Нед 1'!AA100+'Чт День 4 Нед 1'!V100+'Ср День 3 Нед 1'!AB100+'Вт День 2 Нед 1'!AB100+'Пн День 1 Нед 1'!AB100 -> 0.0000 | H100: ='Сб День 6 Нед 1'!AF100+'Пт День 5 Нед 1'!AE100+'Чт День 4 Нед 1'!Z100+'Ср День 3 Нед 1'!AF100+'Вт День 2 Нед 1'!AF100+'Пн День 1 Нед 1'!AF100 -> 0.0150 | I100: ='Сб День 6 Нед 1'!AL100+'Пт День 5 Нед 1'!AJ100+'Чт День 4 Нед 1'!AE100+'Ср День 3 Нед 1'!AK100+'Вт День 2 Нед 1'!AK100+'Пн День 1 Нед 1'!AL100 -> 0.0000 | J100: ='Сб День 6 Нед 1'!AR100+'Пт День 5 Нед 1'!AO100+'Чт День 4 Нед 1'!AK100+'Ср День 3 Нед 1'!AQ100+'Вт День 2 Нед 1'!AP100+'Пн День 1 Нед 1'!AR100 -> 0.0000 | K100: 0.015
A101: 85 | B101: блины п/ф | C101: кг | D101: ='Сб День 6 Нед 1'!L101+'Пт День 5 Нед 1'!K101+'Чт День 4 Нед 1'!I101+'Ср День 3 Нед 1'!L101+'Вт День 2 Нед 1'!L101+'Пн День 1 Нед 1'!L101 -> 0.0000 | E101: ='Сб День 6 Нед 1'!U101+'Пт День 5 Нед 1'!T101+'Чт День 4 Нед 1'!O101+'Ср День 3 Нед 1'!U101+'Вт День 2 Нед 1'!U101+'Пн День 1 Нед 1'!U101 -> 0.0000 | F101: ='Сб День 6 Нед 1'!X101+'Пт День 5 Нед 1'!W101+'Чт День 4 Нед 1'!R101+'Ср День 3 Нед 1'!X101+'Вт День 2 Нед 1'!X101+'Пн День 1 Нед 1'!X101 -> 0.0000 | G101: ='Сб День 6 Нед 1'!AB101+'Пт День 5 Нед 1'!AA101+'Чт День 4 Нед 1'!V101+'Ср День 3 Нед 1'!AB101+'Вт День 2 Нед 1'!AB101+'Пн День 1 Нед 1'!AB101 -> 0.0000 | H101: ='Сб День 6 Нед 1'!AF101+'Пт День 5 Нед 1'!AE101+'Чт День 4 Нед 1'!Z101+'Ср День 3 Нед 1'!AF101+'Вт День 2 Нед 1'!AF101+'Пн День 1 Нед 1'!AF101 -> 0.0000 | I101: ='Сб День 6 Нед 1'!AL101+'Пт День 5 Нед 1'!AJ101+'Чт День 4 Нед 1'!AE101+'Ср День 3 Нед 1'!AK101+'Вт День 2 Нед 1'!AK101+'Пн День 1 Нед 1'!AL101 -> 0.0000 | J101: ='Сб День 6 Нед 1'!AR101+'Пт День 5 Нед 1'!AO101+'Чт День 4 Нед 1'!AK101+'Ср День 3 Нед 1'!AQ101+'Вт День 2 Нед 1'!AP101+'Пн День 1 Нед 1'!AR101 -> 0.0000 | K101: 0.000
A102: 86 | B102: выпечка п/ф со склада | C102: шт | D102: ='Сб День 6 Нед 1'!L102+'Пт День 5 Нед 1'!K102+'Чт День 4 Нед 1'!I102+'Ср День 3 Нед 1'!L102+'Вт День 2 Нед 1'!L102+'Пн День 1 Нед 1'!L102 -> 0.0000 | E102: ='Сб День 6 Нед 1'!U102+'Пт День 5 Нед 1'!T102+'Чт День 4 Нед 1'!O102+'Ср День 3 Нед 1'!U102+'Вт День 2 Нед 1'!U102+'Пн День 1 Нед 1'!U102 -> 0.0000 | F102: ='Сб День 6 Нед 1'!X102+'Пт День 5 Нед 1'!W102+'Чт День 4 Нед 1'!R102+'Ср День 3 Нед 1'!X102+'Вт День 2 Нед 1'!X102+'Пн День 1 Нед 1'!X102 -> 0.0000 | G102: ='Сб День 6 Нед 1'!AB102+'Пт День 5 Нед 1'!AA102+'Чт День 4 Нед 1'!V102+'Ср День 3 Нед 1'!AB102+'Вт День 2 Нед 1'!AB102+'Пн День 1 Нед 1'!AB102 -> 0.0000 | H102: ='Сб День 6 Нед 1'!AF102+'Пт День 5 Нед 1'!AE102+'Чт День 4 Нед 1'!Z102+'Ср День 3 Нед 1'!AF102+'Вт День 2 Нед 1'!AF102+'Пн День 1 Нед 1'!AF102 -> 0.0000 | I102: ='Сб День 6 Нед 1'!AL102+'Пт День 5 Нед 1'!AJ102+'Чт День 4 Нед 1'!AE102+'Ср День 3 Нед 1'!AK102+'Вт День 2 Нед 1'!AK102+'Пн День 1 Нед 1'!AL102 -> 0.0000 | J102: ='Сб День 6 Нед 1'!AR102+'Пт День 5 Нед 1'!AO102+'Чт День 4 Нед 1'!AK102+'Ср День 3 Нед 1'!AQ102+'Вт День 2 Нед 1'!AP102+'Пн День 1 Нед 1'!AR102 -> 0.0000 | K102: 0.000
B103: Яйцо
A104: 87 | B104: яйцо куриное | C104: кг | D104: ='Сб День 6 Нед 1'!L104+'Пт День 5 Нед 1'!K104+'Чт День 4 Нед 1'!I104+'Ср День 3 Нед 1'!L104+'Вт День 2 Нед 1'!L104+'Пн День 1 Нед 1'!L104 -> 0.0000 | E104: ='Сб День 6 Нед 1'!U104+'Пт День 5 Нед 1'!T104+'Чт День 4 Нед 1'!O104+'Ср День 3 Нед 1'!U104+'Вт День 2 Нед 1'!U104+'Пн День 1 Нед 1'!U104 -> 0.0000 | F104: ='Сб День 6 Нед 1'!X104+'Пт День 5 Нед 1'!W104+'Чт День 4 Нед 1'!R104+'Ср День 3 Нед 1'!X104+'Вт День 2 Нед 1'!X104+'Пн День 1 Нед 1'!X104 -> 0.0000 | G104: ='Сб День 6 Нед 1'!AB104+'Пт День 5 Нед 1'!AA104+'Чт День 4 Нед 1'!V104+'Ср День 3 Нед 1'!AB104+'Вт День 2 Нед 1'!AB104+'Пн День 1 Нед 1'!AB104 -> 0.0000 | H104: ='Сб День 6 Нед 1'!AF104+'Пт День 5 Нед 1'!AE104+'Чт День 4 Нед 1'!Z104+'Ср День 3 Нед 1'!AF104+'Вт День 2 Нед 1'!AF104+'Пн День 1 Нед 1'!AF104 -> 0.0038 | I104: ='Сб День 6 Нед 1'!AL104+'Пт День 5 Нед 1'!AJ104+'Чт День 4 Нед 1'!AE104+'Ср День 3 Нед 1'!AK104+'Вт День 2 Нед 1'!AK104+'Пн День 1 Нед 1'!AL104 -> 0.0019 | J104: ='Сб День 6 Нед 1'!AR104+'Пт День 5 Нед 1'!AO104+'Чт День 4 Нед 1'!AK104+'Ср День 3 Нед 1'!AQ104+'Вт День 2 Нед 1'!AP104+'Пн День 1 Нед 1'!AR104 -> 0.0000 | K104: 0.006
B105: 0.048 | C105: шт | D105: =D104/B105 -> 0.0 | E105: =E104/B105 -> 0.0 | F105: =F104/B105 -> 0.0 | G105: =G104/B105 -> 0.0 | H105: =H104/B105 -> 0.1 | I105: =I104/B105 -> 0.0 | J105: =J104/B105 -> 0.0 | K105: =K104/B105 -> 0.1
B106: Овощи заморозка
A107: 88 | B107: зеленый горошек с/м | C107: кг | D107: ='Сб День 6 Нед 1'!L107+'Пт День 5 Нед 1'!K107+'Чт День 4 Нед 1'!I107+'Ср День 3 Нед 1'!L107+'Вт День 2 Нед 1'!L107+'Пн День 1 Нед 1'!L107 -> 0.0000 | E107: ='Сб День 6 Нед 1'!U107+'Пт День 5 Нед 1'!T107+'Чт День 4 Нед 1'!O107+'Ср День 3 Нед 1'!U107+'Вт День 2 Нед 1'!U107+'Пн День 1 Нед 1'!U107 -> 0.0000 | F107: ='Сб День 6 Нед 1'!X107+'Пт День 5 Нед 1'!W107+'Чт День 4 Нед 1'!R107+'Ср День 3 Нед 1'!X107+'Вт День 2 Нед 1'!X107+'Пн День 1 Нед 1'!X107 -> 0.0000 | G107: ='Сб День 6 Нед 1'!AB107+'Пт День 5 Нед 1'!AA107+'Чт День 4 Нед 1'!V107+'Ср День 3 Нед 1'!AB107+'Вт День 2 Нед 1'!AB107+'Пн День 1 Нед 1'!AB107 -> 0.0000 | H107: ='Сб День 6 Нед 1'!AF107+'Пт День 5 Нед 1'!AE107+'Чт День 4 Нед 1'!Z107+'Ср День 3 Нед 1'!AF107+'Вт День 2 Нед 1'!AF107+'Пн День 1 Нед 1'!AF107 -> 0.0000 | I107: ='Сб День 6 Нед 1'!AL107+'Пт День 5 Нед 1'!AJ107+'Чт День 4 Нед 1'!AE107+'Ср День 3 Нед 1'!AK107+'Вт День 2 Нед 1'!AK107+'Пн День 1 Нед 1'!AL107 -> 0.0000 | J107: ='Сб День 6 Нед 1'!AR107+'Пт День 5 Нед 1'!AO107+'Чт День 4 Нед 1'!AK107+'Ср День 3 Нед 1'!AQ107+'Вт День 2 Нед 1'!AP107+'Пн День 1 Нед 1'!AR107 -> 0.0000 | K107: 0.000
A108: 89 | B108: кабачки с/м | C108: кг | D108: ='Сб День 6 Нед 1'!L108+'Пт День 5 Нед 1'!K108+'Чт День 4 Нед 1'!I108+'Ср День 3 Нед 1'!L108+'Вт День 2 Нед 1'!L108+'Пн День 1 Нед 1'!L108 -> 0.0000 | E108: ='Сб День 6 Нед 1'!U108+'Пт День 5 Нед 1'!T108+'Чт День 4 Нед 1'!O108+'Ср День 3 Нед 1'!U108+'Вт День 2 Нед 1'!U108+'Пн День 1 Нед 1'!U108 -> 0.0000 | F108: ='Сб День 6 Нед 1'!X108+'Пт День 5 Нед 1'!W108+'Чт День 4 Нед 1'!R108+'Ср День 3 Нед 1'!X108+'Вт День 2 Нед 1'!X108+'Пн День 1 Нед 1'!X108 -> 0.0000 | G108: ='Сб День 6 Нед 1'!AB108+'Пт День 5 Нед 1'!AA108+'Чт День 4 Нед 1'!V108+'Ср День 3 Нед 1'!AB108+'Вт День 2 Нед 1'!AB108+'Пн День 1 Нед 1'!AB108 -> 0.0000 | H108: ='Сб День 6 Нед 1'!AF108+'Пт День 5 Нед 1'!AE108+'Чт День 4 Нед 1'!Z108+'Ср День 3 Нед 1'!AF108+'Вт День 2 Нед 1'!AF108+'Пн День 1 Нед 1'!AF108 -> 0.0000 | I108: ='Сб День 6 Нед 1'!AL108+'Пт День 5 Нед 1'!AJ108+'Чт День 4 Нед 1'!AE108+'Ср День 3 Нед 1'!AK108+'Вт День 2 Нед 1'!AK108+'Пн День 1 Нед 1'!AL108 -> 0.0000 | J108: ='Сб День 6 Нед 1'!AR108+'Пт День 5 Нед 1'!AO108+'Чт День 4 Нед 1'!AK108+'Ср День 3 Нед 1'!AQ108+'Вт День 2 Нед 1'!AP108+'Пн День 1 Нед 1'!AR108 -> 0.0000 | K108: 0.000
